Workbook

Sheet Overview
B2: Hydro One
B3: Financial Model as per Interrogatory # 5-ED-6(a)
B9: Overview

Sheet User Input and Calculations
A1: Project Type | B1: Transmission | C1: EB Number | D1: EB-2022-0140 | G1: Prepared for | H1: x | L1: Results | T1: Legend
A2: Length (1-60yrs) | B2: 50 | C2: Project Description | D2: Transmission Line between Chatham SS and Lakeshore TS | G2: Prepared by | U2: Input
A3: Start Year | B3: 2025 | L3: Net Present Value | O3: =G45 -> -87644.00959 | U3: Calculation
A4: In-Service Date | B4: 2025-12-15 | C4: Terminal Value | D4: No Terminal Value | G4: Overhead Rate | H4: 0 | L4: Discount Rate | O4: =WACC -> 0.05308122
A6: Capital Cost (input in $k) | H6: Line Losses (in $k) | J6: =Start_Year -> 2025 | K6: =J6+1 -> 2026 | L6: 2027 | M6: 2028 | N6: 2029 | O6: 2030 | P6: 2031 | Q6: 2032 | R6: 2033 | S6: 2034 | T6: 2035 | U6: 2036 | V6: 2037 | W6: 2038 | X6: 2039 | Y6: 2040 | Z6: 2041 | AA6: 2042 | AB6: 2043 | AC6: 2044 | AD6: 2045 | AE6: 2046 | AF6: 2047 | AG6: 2048 | AH6: 2049 | AI6: 2050 | AJ6: 2051 | AK6: 2052 | AL6: 2053 | AM6: 2054 | AN6: 2055 | AO6: 2056 | AP6: 2057 | AQ6: 2058 | AR6: 2059 | AS6: 2060 | AT6: 2061 | AU6: 2062 | AV6: 2063 | AW6: 2064 | AX6: =AW6+1 -> 2065 | AY6: 2066 | AZ6: 2067 | BA6: 2068 | BB6: 2069 | BC6: 2070 | BD6: 2071 | BE6: 2072 | BF6: 2073 | BG6: 2074
A7: Option Description: | B7: 1443 kcmil ACSS Conductor | C7: 93000 | H7: Annual Losses (MWh) | J7: 16024 | K7: =$J$7 -> 16024 | L7: =$J$7 -> 16024 | M7: 16024 | N7: 16024 | O7: 16024 | P7: 16024 | Q7: 16024 | R7: 16024 | S7: 16024 | T7: 16024 | U7: 16024 | V7: 16024 | W7: 16024 | X7: 16024 | Y7: 16024 | Z7: 16024 | AA7: 16024 | AB7: 16024 | AC7: 16024 | AD7: 16024 | AE7: 16024 | AF7: 16024 | AG7: 16024 | AH7: 16024 | AI7: 16024 | AJ7: 16024 | AK7: 16024 | AL7: 16024 | AM7: 16024 | AN7: 16024 | AO7: 16024 | AP7: 16024 | AQ7: 16024 | AR7: 16024 | AS7: 16024 | AT7: 16024 | AU7: 16024 | AV7: 16024 | AW7: 16024 | AX7: 16024 | AY7: 16024 | AZ7: 16024 | BA7: 16024 | BB7: 16024 | BC7: 16024 | BD7: 16024 | BE7: 16024 | BF7: 16024 | BG7: 16024
H8: Energy cost ($/MWh) | J8: 23.2 | K8: =$J$8 -> 23.2 | L8: =$J$8 -> 23.2 | M8: 23.2 | N8: 23.2 | O8: 23.2 | P8: 23.2 | Q8: 23.2 | R8: 23.2 | S8: 23.2 | T8: 23.2 | U8: 23.2 | V8: 23.2 | W8: 23.2 | X8: 23.2 | Y8: 23.2 | Z8: 23.2 | AA8: 23.2 | AB8: 23.2 | AC8: 23.2 | AD8: 23.2 | AE8: 23.2 | AF8: 23.2 | AG8: 23.2 | AH8: 23.2 | AI8: 23.2 | AJ8: 23.2 | AK8: 23.2 | AL8: 23.2 | AM8: 23.2 | AN8: 23.2 | AO8: 23.2 | AP8: 23.2 | AQ8: 23.2 | AR8: 23.2 | AS8: 23.2 | AT8: 23.2 | AU8: 23.2 | AV8: 23.2 | AW8: 23.2 | AX8: 23.2 | AY8: 23.2 | AZ8: 23.2 | BA8: 23.2 | BB8: 23.2 | BC8: 23.2 | BD8: 23.2 | BE8: 23.2 | BF8: 23.2 | BG8: 23.2 | BH8: 23.2 | BI8: 23.2 | BJ8: 23.2 | BK8: 23.2 | BL8: 23.2 | BM8: 23.2 | BN8: 23.2 | BO8: 23.2 | BP8: 23.2 | BQ8: 23.2
H9: Annual Cost of Losses | J9: =J7*J8/1000 -> 371.7568 | K9: 371.7568 | L9: 371.7568 | M9: 371.7568 | N9: 371.7568 | O9: 371.7568 | P9: 371.7568 | Q9: 371.7568 | R9: 371.7568 | S9: 371.7568 | T9: 371.7568 | U9: 371.7568 | V9: 371.7568 | W9: 371.7568 | X9: 371.7568 | Y9: 371.7568 | Z9: 371.7568 | AA9: 371.7568 | AB9: 371.7568 | AC9: 371.7568 | AD9: 371.7568 | AE9: 371.7568 | AF9: 371.7568 | AG9: 371.7568 | AH9: 371.7568 | AI9: 371.7568 | AJ9: 371.7568 | AK9: 371.7568 | AL9: 371.7568 | AM9: 371.7568 | AN9: 371.7568 | AO9: 371.7568 | AP9: =AP7*AP8/1000 -> 371.7568 | AQ9: 371.7568 | AR9: 371.7568 | AS9: 371.7568 | AT9: 371.7568 | AU9: 371.7568 | AV9: 371.7568 | AW9: 371.7568 | AX9: 371.7568 | AY9: 371.7568 | AZ9: 371.7568 | BA9: 371.7568 | BB9: 371.7568 | BC9: 371.7568 | BD9: 371.7568 | BE9: 371.7568 | BF9: 371.7568 | BG9: 371.7568
A12: Cash Flows:
A13: Cash Flow # | B13: Description | C13: Type of Cash Flow | D13: CCA Class | E13: CCA Rate | F13: Suggested Service Life | G13: Escalator | H13: Undiscounted Total Cashflow | I13: Period 0 | J13: 2025 | K13: 2026 | L13: 2027 | M13: 2028 | N13: 2029 | O13: 2030 | P13: 2031 | Q13: 2032 | R13: 2033 | S13: 2034 | T13: 2035 | U13: 2036 | V13: 2037 | W13: 2038 | X13: 2039 | Y13: 2040 | Z13: 2041 | AA13: 2042 | AB13: 2043 | AC13: 2044 | AD13: 2045 | AE13: 2046 | AF13: 2047 | AG13: 2048 | AH13: 2049 | AI13: 2050 | AJ13: 2051 | AK13: 2052 | AL13: 2053 | AM13: 2054 | AN13: 2055 | AO13: 2056 | AP13: 2057 | AQ13: 2058 | AR13: 2059 | AS13: 2060 | AT13: 2061 | AU13: 2062 | AV13: 2063 | AW13: 2064 | AX13: 2065 | AY13: 2066 | AZ13: 2067 | BA13: 2068 | BB13: 2069 | BC13: 2070 | BD13: 2071 | BE13: 2072 | BF13: 2073 | BG13: 2074 | BH13: 2075 | BI13: 2076 | BJ13: 2077 | BK13: 2078 | BL13: 2079 | BM13: 2080 | BN13: 2081 | BO13: 2082 | BP13: 2083 | BQ13: 2084 | BR13: Terminal Value
A14: =COUNT(INDIRECT("$H$5:H"&ROW(H14))) -> 1 | E14: =IF(OR(Table1[[#This Row],[Type of Cash Flow]]<>"Capital Expenditure",Table1[[#This Row],[CCA Class]]=""),"",INDEX('Finance Input'!$A$26:$H$37,MATCH($D14,'Finance Input'!$B$26:$B$37,0),MATCH(E$13,'Finance Input'!$A$26:$H$26,0))) ->  | F14: =IF(Table1[[#This Row],[CCA Rate]]="","",INDEX('Finance Input'!$A$26:$H$37,MATCH($D14,'Finance Input'!$B$26:$B$37,0),MATCH(F$13,'Finance Input'!$A$26:$H$26,0))) ->  | H14: =SUM(Table1[[#This Row],[Period 0]:[Terminal Value]]) -> 0 | I14: =-C5 -> 0
A15: =COUNT(INDIRECT("$H$5:H"&ROW(H15))) -> 2 | B15: Line Loss cost | C15: Change in Working Capital | E15: =IF(OR(Table1[[#This Row],[Type of Cash Flow]]<>"Capital Expenditure",Table1[[#This Row],[CCA Class]]=""),"",INDEX('Finance Input'!$A$26:$H$37,MATCH($D15,'Finance Input'!$B$26:$B$37,0),MATCH(E$13,'Finance Input'!$A$26:$H$26,0))) ->  | F15: =IF(Table1[[#This Row],[CCA Rate]]="","",INDEX('Finance Input'!$A$26:$H$37,MATCH($D15,'Finance Input'!$B$26:$B$37,0),MATCH(F$13,'Finance Input'!$A$26:$H$26,0))) ->  | G15: Ontario CPI | H15: =SUM(Table1[[#This Row],[Period 0]:[Terminal Value]]) -> -18587.84 | I15: 0 | J15: =-J9 -> -371.7568 | K15: =-K9 -> -371.7568 | L15: -371.7568 | M15: -371.7568 | N15: -371.7568 | O15: -371.7568 | P15: -371.7568 | Q15: -371.7568 | R15: -371.7568 | S15: -371.7568 | T15: -371.7568 | U15: -371.7568 | V15: -371.7568 | W15: -371.7568 | X15: -371.7568 | Y15: -371.7568 | Z15: -371.7568 | AA15: -371.7568 | AB15: -371.7568 | AC15: -371.7568 | AD15: -371.7568 | AE15: -371.7568 | AF15: -371.7568 | AG15: -371.7568 | AH15: -371.7568 | AI15: -371.7568 | AJ15: -371.7568 | AK15: -371.7568 | AL15: -371.7568 | AM15: -371.7568 | AN15: -371.7568 | AO15: -371.7568 | AP15: -371.7568 | AQ15: -371.7568 | AR15: -371.7568 | AS15: -371.7568 | AT15: -371.7568 | AU15: -371.7568 | AV15: -371.7568 | AW15: -371.7568 | AX15: -371.7568 | AY15: -371.7568 | AZ15: -371.7568 | BA15: -371.7568 | BB15: -371.7568 | BC15: -371.7568 | BD15: -371.7568 | BE15: -371.7568 | BF15: -371.7568 | BG15: -371.7568
A16: =COUNT(INDIRECT("$H$5:H"&ROW(H16))) -> 3 | B16: Capital Cost | C16: Capital Expenditure | D16: 47 | E16: =IF(OR(Table1[[#This Row],[Type of Cash Flow]]<>"Capital Expenditure",Table1[[#This Row],[CCA Class]]=""),"",INDEX('Finance Input'!$A$26:$H$37,MATCH($D16,'Finance Input'!$B$26:$B$37,0),MATCH(E$13,'Finance Input'!$A$26:$H$26,0))) -> 0.08 | F16: =IF(Table1[[#This Row],[CCA Rate]]="","",INDEX('Finance Input'!$A$26:$H$37,MATCH($D16,'Finance Input'!$B$26:$B$37,0),MATCH(F$13,'Finance Input'!$A$26:$H$26,0))) -> 50 | G16: Ontario CPI | H16: =SUM(Table1[[#This Row],[Period 0]:[Terminal Value]]) -> -93000 | I16: -93000
A18: Escalated Cash Flows with Overhead Applied:
A19: Cash Flow # | B19: Description | C19: Type of Cash Flow | D19: CCA Class | E19: CCA Rate | F19: Suggested Service Life | G19: Escalator | H19: Undiscounted Total Cashflow | I19: Period 0 | J19: 2025 | K19: 2026 | L19: 2027 | M19: 2028 | N19: 2029 | O19: 2030 | P19: 2031 | Q19: 2032 | R19: 2033 | S19: 2034 | T19: 2035 | U19: 2036 | V19: 2037 | W19: 2038 | X19: 2039 | Y19: 2040 | Z19: 2041 | AA19: 2042 | AB19: 2043 | AC19: 2044 | AD19: 2045 | AE19: 2046 | AF19: 2047 | AG19: 2048 | AH19: 2049 | AI19: 2050 | AJ19: 2051 | AK19: 2052 | AL19: 2053 | AM19: 2054 | AN19: 2055 | AO19: 2056 | AP19: 2057 | AQ19: 2058 | AR19: 2059 | AS19: 2060 | AT19: 2061 | AU19: 2062 | AV19: 2063 | AW19: 2064 | AX19: 2065 | AY19: 2066 | AZ19: 2067 | BA19: 2068 | BB19: 2069 | BC19: 2070 | BD19: 2071 | BE19: 2072 | BF19: 2073 | BG19: 2074 | BH19: 2075 | BI19: 2076 | BJ19: 2077 | BK19: 2078 | BL19: 2079 | BM19: 2080 | BN19: 2081 | BO19: 2082 | BP19: 2083 | BQ19: 2084 | BR19: Terminal Value
A20: =IF(A14="","",A14) -> 1 | D20: =IF(OR(Table2[[#This Row],[Type of Cash Flow]]<>"Capital Expenditure",D14=""),"",D14) ->  | E20: =IF(E14="","",E14) ->  | G20: =IF(G14="","No Escalation",G14) -> No Escalation | H20: =SUM(Table2[[#This Row],[Period 0]:[Terminal Value]]) -> 0 | I20: =IF(I14="",0,I14)*IF(AND(Table2[[#This Row],[Type of Cash Flow]]="Capital Expenditure",Table2[[#This Row],[CCA Class]]<>"Land"),1+$H$4,1) -> 0 | J20: =IF(J14="",0,J14*INDEX('Finance Input'!$A$40:$AP$44,MATCH($G20,'Finance Input'!$A$40:$A$44,0),MATCH(J$19,'Finance Input'!$A$40:$AO$40,0))*IF(AND(Table2[[#This Row],[Type of Cash Flow]]="Capital Expenditure",Table2[[#This Row],[CCA Class]]<>"Land"),1+$H$4,1)) -> 0 | K20: =IF(K14="",0,K14*INDEX('Finance Input'!$A$40:$AP$44,MATCH($G20,'Finance Input'!$A$40:$A$44,0),MATCH(K$19,'Finance Input'!$A$40:$AO$40,0))*IF(AND(Table2[[#This Row],[Type of Cash Flow]]="Capital Expenditure",Table2[[#This Row],[CCA Class]]<>"Land"),1+$H$4,1)) -> 0 | L20: =IF(L14="",0,L14*INDEX('Finance Input'!$A$40:$AP$44,MATCH($G20,'Finance Input'!$A$40:$A$44,0),MATCH(L$19,'Finance Input'!$A$40:$AO$40,0))*IF(AND(Table2[[#This Row],[Type of Cash Flow]]="Capital Expenditure",Table2[[#This Row],[CCA Class]]<>"Land"),1+$H$4,1)) -> 0 | M20: =IF(M14="",0,M14*INDEX('Finance Input'!$A$40:$AP$44,MATCH($G20,'Finance Input'!$A$40:$A$44,0),MATCH(M$19,'Finance Input'!$A$40:$AO$40,0))*IF(AND(Table2[[#This Row],[Type of Cash Flow]]="Capital Expenditure",Table2[[#This Row],[CCA Class]]<>"Land"),1+$H$4,1)) -> 0 | N20: =IF(N14="",0,N14*INDEX('Finance Input'!$A$40:$AP$44,MATCH($G20,'Finance Input'!$A$40:$A$44,0),MATCH(N$19,'Finance Input'!$A$40:$AO$40,0))*IF(AND(Table2[[#This Row],[Type of Cash Flow]]="Capital Expenditure",Table2[[#This Row],[CCA Class]]<>"Land"),1+$H$4,1)) -> 0 | O20: =IF(O14="",0,O14*INDEX('Finance Input'!$A$40:$AP$44,MATCH($G20,'Finance Input'!$A$40:$A$44,0),MATCH(O$19,'Finance Input'!$A$40:$AO$40,0))*IF(AND(Table2[[#This Row],[Type of Cash Flow]]="Capital Expenditure",Table2[[#This Row],[CCA Class]]<>"Land"),1+$H$4,1)) -> 0 | P20: =IF(P14="",0,P14*INDEX('Finance Input'!$A$40:$AP$44,MATCH($G20,'Finance Input'!$A$40:$A$44,0),MATCH(P$19,'Finance Input'!$A$40:$AO$40,0))*IF(AND(Table2[[#This Row],[Type of Cash Flow]]="Capital Expenditure",Table2[[#This Row],[CCA Class]]<>"Land"),1+$H$4,1)) -> 0 | Q20: =IF(Q14="",0,Q14*INDEX('Finance Input'!$A$40:$AP$44,MATCH($G20,'Finance Input'!$A$40:$A$44,0),MATCH(Q$19,'Finance Input'!$A$40:$AO$40,0))*IF(AND(Table2[[#This Row],[Type of Cash Flow]]="Capital Expenditure",Table2[[#This Row],[CCA Class]]<>"Land"),1+$H$4,1)) -> 0 | R20: =IF(R14="",0,R14*INDEX('Finance Input'!$A$40:$AP$44,MATCH($G20,'Finance Input'!$A$40:$A$44,0),MATCH(R$19,'Finance Input'!$A$40:$AO$40,0))*IF(AND(Table2[[#This Row],[Type of Cash Flow]]="Capital Expenditure",Table2[[#This Row],[CCA Class]]<>"Land"),1+$H$4,1)) -> 0 | S20: =IF(S14="",0,S14*INDEX('Finance Input'!$A$40:$AP$44,MATCH($G20,'Finance Input'!$A$40:$A$44,0),MATCH(S$19,'Finance Input'!$A$40:$AO$40,0))*IF(AND(Table2[[#This Row],[Type of Cash Flow]]="Capital Expenditure",Table2[[#This Row],[CCA Class]]<>"Land"),1+$H$4,1)) -> 0 | T20: =IF(T14="",0,T14*INDEX('Finance Input'!$A$40:$AP$44,MATCH($G20,'Finance Input'!$A$40:$A$44,0),MATCH(T$19,'Finance Input'!$A$40:$AO$40,0))*IF(AND(Table2[[#This Row],[Type of Cash Flow]]="Capital Expenditure",Table2[[#This Row],[CCA Class]]<>"Land"),1+$H$4,1)) -> 0 | U20: =IF(U14="",0,U14*INDEX('Finance Input'!$A$40:$AP$44,MATCH($G20,'Finance Input'!$A$40:$A$44,0),MATCH(U$19,'Finance Input'!$A$40:$AO$40,0))*IF(AND(Table2[[#This Row],[Type of Cash Flow]]="Capital Expenditure",Table2[[#This Row],[CCA Class]]<>"Land"),1+$H$4,1)) -> 0 | V20: =IF(V14="",0,V14*INDEX('Finance Input'!$A$40:$AP$44,MATCH($G20,'Finance Input'!$A$40:$A$44,0),MATCH(V$19,'Finance Input'!$A$40:$AO$40,0))*IF(AND(Table2[[#This Row],[Type of Cash Flow]]="Capital Expenditure",Table2[[#This Row],[CCA Class]]<>"Land"),1+$H$4,1)) -> 0 | W20: =IF(W14="",0,W14*INDEX('Finance Input'!$A$40:$AP$44,MATCH($G20,'Finance Input'!$A$40:$A$44,0),MATCH(W$19,'Finance Input'!$A$40:$AO$40,0))*IF(AND(Table2[[#This Row],[Type of Cash Flow]]="Capital Expenditure",Table2[[#This Row],[CCA Class]]<>"Land"),1+$H$4,1)) -> 0 | X20: =IF(X14="",0,X14*INDEX('Finance Input'!$A$40:$AP$44,MATCH($G20,'Finance Input'!$A$40:$A$44,0),MATCH(X$19,'Finance Input'!$A$40:$AO$40,0))*IF(AND(Table2[[#This Row],[Type of Cash Flow]]="Capital Expenditure",Table2[[#This Row],[CCA Class]]<>"Land"),1+$H$4,1)) -> 0 | Y20: =IF(Y14="",0,Y14*INDEX('Finance Input'!$A$40:$AP$44,MATCH($G20,'Finance Input'!$A$40:$A$44,0),MATCH(Y$19,'Finance Input'!$A$40:$AO$40,0))*IF(AND(Table2[[#This Row],[Type of Cash Flow]]="Capital Expenditure",Table2[[#This Row],[CCA Class]]<>"Land"),1+$H$4,1)) -> 0 | Z20: =IF(Z14="",0,Z14*INDEX('Finance Input'!$A$40:$AP$44,MATCH($G20,'Finance Input'!$A$40:$A$44,0),MATCH(Z$19,'Finance Input'!$A$40:$AO$40,0))*IF(AND(Table2[[#This Row],[Type of Cash Flow]]="Capital Expenditure",Table2[[#This Row],[CCA Class]]<>"Land"),1+$H$4,1)) -> 0 | AA20: =IF(AA14="",0,AA14*INDEX('Finance Input'!$A$40:$AP$44,MATCH($G20,'Finance Input'!$A$40:$A$44,0),MATCH(AA$19,'Finance Input'!$A$40:$AO$40,0))*IF(AND(Table2[[#This Row],[Type of Cash Flow]]="Capital Expenditure",Table2[[#This Row],[CCA Class]]<>"Land"),1+$H$4,1)) -> 0 | AB20: =IF(AB14="",0,AB14*INDEX('Finance Input'!$A$40:$AP$44,MATCH($G20,'Finance Input'!$A$40:$A$44,0),MATCH(AB$19,'Finance Input'!$A$40:$AO$40,0))*IF(AND(Table2[[#This Row],[Type of Cash Flow]]="Capital Expenditure",Table2[[#This Row],[CCA Class]]<>"Land"),1+$H$4,1)) -> 0 | AC20: =IF(AC14="",0,AC14*INDEX('Finance Input'!$A$40:$AP$44,MATCH($G20,'Finance Input'!$A$40:$A$44,0),MATCH(AC$19,'Finance Input'!$A$40:$AO$40,0))*IF(AND(Table2[[#This Row],[Type of Cash Flow]]="Capital Expenditure",Table2[[#This Row],[CCA Class]]<>"Land"),1+$H$4,1)) -> 0 | AD20: =IF(AD14="",0,AD14*INDEX('Finance Input'!$A$40:$AP$44,MATCH($G20,'Finance Input'!$A$40:$A$44,0),MATCH(AD$19,'Finance Input'!$A$40:$AO$40,0))*IF(AND(Table2[[#This Row],[Type of Cash Flow]]="Capital Expenditure",Table2[[#This Row],[CCA Class]]<>"Land"),1+$H$4,1)) -> 0 | AE20: =IF(AE14="",0,AE14*INDEX('Finance Input'!$A$40:$AP$44,MATCH($G20,'Finance Input'!$A$40:$A$44,0),MATCH(AE$19,'Finance Input'!$A$40:$AO$40,0))*IF(AND(Table2[[#This Row],[Type of Cash Flow]]="Capital Expenditure",Table2[[#This Row],[CCA Class]]<>"Land"),1+$H$4,1)) -> 0 | AF20: =IF(AF14="",0,AF14*INDEX('Finance Input'!$A$40:$AP$44,MATCH($G20,'Finance Input'!$A$40:$A$44,0),MATCH(AF$19,'Finance Input'!$A$40:$AO$40,0))*IF(AND(Table2[[#This Row],[Type of Cash Flow]]="Capital Expenditure",Table2[[#This Row],[CCA Class]]<>"Land"),1+$H$4,1)) -> 0 | AG20: =IF(AG14="",0,AG14*INDEX('Finance Input'!$A$40:$AP$44,MATCH($G20,'Finance Input'!$A$40:$A$44,0),MATCH(AG$19,'Finance Input'!$A$40:$AO$40,0))*IF(AND(Table2[[#This Row],[Type of Cash Flow]]="Capital Expenditure",Table2[[#This Row],[CCA Class]]<>"Land"),1+$H$4,1)) -> 0 | AH20: =IF(AH14="",0,AH14*INDEX('Finance Input'!$A$40:$AP$44,MATCH($G20,'Finance Input'!$A$40:$A$44,0),MATCH(AH$19,'Finance Input'!$A$40:$AO$40,0))*IF(AND(Table2[[#This Row],[Type of Cash Flow]]="Capital Expenditure",Table2[[#This Row],[CCA Class]]<>"Land"),1+$H$4,1)) -> 0 | AI20: =IF(AI14="",0,AI14*INDEX('Finance Input'!$A$40:$AP$44,MATCH($G20,'Finance Input'!$A$40:$A$44,0),MATCH(AI$19,'Finance Input'!$A$40:$AO$40,0))*IF(AND(Table2[[#This Row],[Type of Cash Flow]]="Capital Expenditure",Table2[[#This Row],[CCA Class]]<>"Land"),1+$H$4,1)) -> 0 | AJ20: =IF(AJ14="",0,AJ14*INDEX('Finance Input'!$A$40:$AP$44,MATCH($G20,'Finance Input'!$A$40:$A$44,0),MATCH(AJ$19,'Finance Input'!$A$40:$AO$40,0))*IF(AND(Table2[[#This Row],[Type of Cash Flow]]="Capital Expenditure",Table2[[#This Row],[CCA Class]]<>"Land"),1+$H$4,1)) -> 0 | AK20: =IF(AK14="",0,AK14*INDEX('Finance Input'!$A$40:$AP$44,MATCH($G20,'Finance Input'!$A$40:$A$44,0),MATCH(AK$19,'Finance Input'!$A$40:$AO$40,0))*IF(AND(Table2[[#This Row],[Type of Cash Flow]]="Capital Expenditure",Table2[[#This Row],[CCA Class]]<>"Land"),1+$H$4,1)) -> 0 | AL20: =IF(AL14="",0,AL14*INDEX('Finance Input'!$A$40:$AP$44,MATCH($G20,'Finance Input'!$A$40:$A$44,0),MATCH(AL$19,'Finance Input'!$A$40:$AO$40,0))*IF(AND(Table2[[#This Row],[Type of Cash Flow]]="Capital Expenditure",Table2[[#This Row],[CCA Class]]<>"Land"),1+$H$4,1)) -> 0 | AM20: =IF(AM14="",0,AM14*INDEX('Finance Input'!$A$40:$AP$44,MATCH($G20,'Finance Input'!$A$40:$A$44,0),MATCH(AM$19,'Finance Input'!$A$40:$AO$40,0))*IF(AND(Table2[[#This Row],[Type of Cash Flow]]="Capital Expenditure",Table2[[#This Row],[CCA Class]]<>"Land"),1+$H$4,1)) -> 0 | AN20: =IF(AN14="",0,AN14*INDEX('Finance Input'!$A$40:$AP$44,MATCH($G20,'Finance Input'!$A$40:$A$44,0),MATCH(AN$19,'Finance Input'!$A$40:$AO$40,0))*IF(AND(Table2[[#This Row],[Type of Cash Flow]]="Capital Expenditure",Table2[[#This Row],[CCA Class]]<>"Land"),1+$H$4,1)) -> 0 | AO20: =IF(AO14="",0,AO14*INDEX('Finance Input'!$A$40:$AP$44,MATCH($G20,'Finance Input'!$A$40:$A$44,0),MATCH(AO$19,'Finance Input'!$A$40:$AO$40,0))*IF(AND(Table2[[#This Row],[Type of Cash Flow]]="Capital Expenditure",Table2[[#This Row],[CCA Class]]<>"Land"),1+$H$4,1)) -> 0 | AP20: =IF(AP14="",0,AP14*INDEX('Finance Input'!$A$40:$AP$44,MATCH($G20,'Finance Input'!$A$40:$A$44,0),MATCH(AP$19,'Finance Input'!$A$40:$AO$40,0))*IF(AND(Table2[[#This Row],[Type of Cash Flow]]="Capital Expenditure",Table2[[#This Row],[CCA Class]]<>"Land"),1+$H$4,1)) -> 0 | AQ20: =IF(AQ14="",0,AQ14*INDEX('Finance Input'!$A$40:$AP$44,MATCH($G20,'Finance Input'!$A$40:$A$44,0),MATCH(AQ$19,'Finance Input'!$A$40:$AO$40,0))*IF(AND(Table2[[#This Row],[Type of Cash Flow]]="Capital Expenditure",Table2[[#This Row],[CCA Class]]<>"Land"),1+$H$4,1)) -> 0 | AR20: =IF(AR14="",0,AR14*INDEX('Finance Input'!$A$40:$AP$44,MATCH($G20,'Finance Input'!$A$40:$A$44,0),MATCH(AR$19,'Finance Input'!$A$40:$AO$40,0))*IF(AND(Table2[[#This Row],[Type of Cash Flow]]="Capital Expenditure",Table2[[#This Row],[CCA Class]]<>"Land"),1+$H$4,1)) -> 0 | AS20: =IF(AS14="",0,AS14*INDEX('Finance Input'!$A$40:$BV$44,MATCH($G20,'Finance Input'!$A$40:$A$44,0),MATCH(AS$19,'Finance Input'!$A$40:$BV$40,0))*IF(AND(Table2[[#This Row],[Type of Cash Flow]]="Capital Expenditure",Table2[[#This Row],[CCA Class]]<>"Land"),1+$H$4,1)) -> 0 | AT20: =IF(AT14="",0,AT14*INDEX('Finance Input'!$A$40:$BV$44,MATCH($G20,'Finance Input'!$A$40:$A$44,0),MATCH(AT$19,'Finance Input'!$A$40:$BV$40,0))*IF(AND(Table2[[#This Row],[Type of Cash Flow]]="Capital Expenditure",Table2[[#This Row],[CCA Class]]<>"Land"),1+$H$4,1)) -> 0 | AU20: =IF(AU14="",0,AU14*INDEX('Finance Input'!$A$40:$BV$44,MATCH($G20,'Finance Input'!$A$40:$A$44,0),MATCH(AU$19,'Finance Input'!$A$40:$BV$40,0))*IF(AND(Table2[[#This Row],[Type of Cash Flow]]="Capital Expenditure",Table2[[#This Row],[CCA Class]]<>"Land"),1+$H$4,1)) -> 0 | AV20: =IF(AV14="",0,AV14*INDEX('Finance Input'!$A$40:$BV$44,MATCH($G20,'Finance Input'!$A$40:$A$44,0),MATCH(AV$19,'Finance Input'!$A$40:$BV$40,0))*IF(AND(Table2[[#This Row],[Type of Cash Flow]]="Capital Expenditure",Table2[[#This Row],[CCA Class]]<>"Land"),1+$H$4,1)) -> 0 | AW20: =IF(AW14="",0,AW14*INDEX('Finance Input'!$A$40:$BV$44,MATCH($G20,'Finance Input'!$A$40:$A$44,0),MATCH(AW$19,'Finance Input'!$A$40:$BV$40,0))*IF(AND(Table2[[#This Row],[Type of Cash Flow]]="Capital Expenditure",Table2[[#This Row],[CCA Class]]<>"Land"),1+$H$4,1)) -> 0 | AX20: =IF(AX14="",0,AX14*INDEX('Finance Input'!$A$40:$BV$44,MATCH($G20,'Finance Input'!$A$40:$A$44,0),MATCH(AX$19,'Finance Input'!$A$40:$BV$40,0))*IF(AND(Table2[[#This Row],[Type of Cash Flow]]="Capital Expenditure",Table2[[#This Row],[CCA Class]]<>"Land"),1+$H$4,1)) -> 0 | AY20: =IF(AY14="",0,AY14*INDEX('Finance Input'!$A$40:$BV$44,MATCH($G20,'Finance Input'!$A$40:$A$44,0),MATCH(AY$19,'Finance Input'!$A$40:$BV$40,0))*IF(AND(Table2[[#This Row],[Type of Cash Flow]]="Capital Expenditure",Table2[[#This Row],[CCA Class]]<>"Land"),1+$H$4,1)) -> 0 | AZ20: =IF(AZ14="",0,AZ14*INDEX('Finance Input'!$A$40:$BV$44,MATCH($G20,'Finance Input'!$A$40:$A$44,0),MATCH(AZ$19,'Finance Input'!$A$40:$BV$40,0))*IF(AND(Table2[[#This Row],[Type of Cash Flow]]="Capital Expenditure",Table2[[#This Row],[CCA Class]]<>"Land"),1+$H$4,1)) -> 0 | BA20: =IF(BA14="",0,BA14*INDEX('Finance Input'!$A$40:$BV$44,MATCH($G20,'Finance Input'!$A$40:$A$44,0),MATCH(BA$19,'Finance Input'!$A$40:$BV$40,0))*IF(AND(Table2[[#This Row],[CCA Class]]="Capital Expenditure",Table2[[#This Row],[CCA Rate]]<>"Land"),1+$H$4,1)) -> 0 | BB20: =IF(BB14="",0,BB14*INDEX('Finance Input'!$A$40:$BV$44,MATCH($G20,'Finance Input'!$A$40:$A$44,0),MATCH(BB$19,'Finance Input'!$A$40:$BV$40,0))*IF(AND(Table2[[#This Row],[CCA Rate]]="Capital Expenditure",Table2[[#This Row],[Suggested Service Life]]<>"Land"),1+$H$4,1)) -> 0 | BC20: =IF(BC14="",0,BC14*INDEX('Finance Input'!$A$40:$BV$44,MATCH($G20,'Finance Input'!$A$40:$A$44,0),MATCH(BC$19,'Finance Input'!$A$40:$BV$40,0))*IF(AND(Table2[[#This Row],[Suggested Service Life]]="Capital Expenditure",Table2[[#This Row],[Escalator]]<>"Land"),1+$H$4,1)) -> 0 | BD20: =IF(BD14="",0,BD14*INDEX('Finance Input'!$A$40:$BV$44,MATCH($G20,'Finance Input'!$A$40:$A$44,0),MATCH(BD$19,'Finance Input'!$A$40:$BV$40,0))*IF(AND(Table2[[#This Row],[Suggested Service Life]]="Capital Expenditure",Table2[[#This Row],[Escalator]]<>"Land"),1+$H$4,1)) -> 0 | BE20: =IF(BE14="",0,BE14*INDEX('Finance Input'!$A$40:$BV$44,MATCH($G20,'Finance Input'!$A$40:$A$44,0),MATCH(BE$19,'Finance Input'!$A$40:$BV$40,0))*IF(AND(Table2[[#This Row],[Suggested Service Life]]="Capital Expenditure",Table2[[#This Row],[Escalator]]<>"Land"),1+$H$4,1)) -> 0 | BF20: =IF(BF14="",0,BF14*INDEX('Finance Input'!$A$40:$BV$44,MATCH($G20,'Finance Input'!$A$40:$A$44,0),MATCH(BF$19,'Finance Input'!$A$40:$BV$40,0))*IF(AND(Table2[[#This Row],[Suggested Service Life]]="Capital Expenditure",Table2[[#This Row],[Escalator]]<>"Land"),1+$H$4,1)) -> 0 | BG20: =IF(BG14="",0,BG14*INDEX('Finance Input'!$A$40:$BV$44,MATCH($G20,'Finance Input'!$A$40:$A$44,0),MATCH(BG$19,'Finance Input'!$A$40:$BV$40,0))*IF(AND(Table2[[#This Row],[Suggested Service Life]]="Capital Expenditure",Table2[[#This Row],[Escalator]]<>"Land"),1+$H$4,1)) -> 0 | BH20: =IF(BH14="",0,BH14*INDEX('Finance Input'!$A$40:$BV$44,MATCH($G20,'Finance Input'!$A$40:$A$44,0),MATCH(BH$19,'Finance Input'!$A$40:$BV$40,0))*IF(AND(Table2[[#This Row],[Suggested Service Life]]="Capital Expenditure",Table2[[#This Row],[Escalator]]<>"Land"),1+$H$4,1)) -> 0 | BI20: =IF(BI14="",0,BI14*INDEX('Finance Input'!$A$40:$BV$44,MATCH($G20,'Finance Input'!$A$40:$A$44,0),MATCH(BI$19,'Finance Input'!$A$40:$BV$40,0))*IF(AND(Table2[[#This Row],[Suggested Service Life]]="Capital Expenditure",Table2[[#This Row],[Escalator]]<>"Land"),1+$H$4,1)) -> 0 | BJ20: =IF(BJ14="",0,BJ14*INDEX('Finance Input'!$A$40:$BV$44,MATCH($G20,'Finance Input'!$A$40:$A$44,0),MATCH(BJ$19,'Finance Input'!$A$40:$BV$40,0))*IF(AND(Table2[[#This Row],[Suggested Service Life]]="Capital Expenditure",Table2[[#This Row],[Escalator]]<>"Land"),1+$H$4,1)) -> 0 | BK20: =IF(BK14="",0,BK14*INDEX('Finance Input'!$A$40:$BV$44,MATCH($G20,'Finance Input'!$A$40:$A$44,0),MATCH(BK$19,'Finance Input'!$A$40:$BV$40,0))*IF(AND(Table2[[#This Row],[Suggested Service Life]]="Capital Expenditure",Table2[[#This Row],[Escalator]]<>"Land"),1+$H$4,1)) -> 0 | BL20: =IF(BL14="",0,BL14*INDEX('Finance Input'!$A$40:$BV$44,MATCH($G20,'Finance Input'!$A$40:$A$44,0),MATCH(BL$19,'Finance Input'!$A$40:$BV$40,0))*IF(AND(Table2[[#This Row],[Suggested Service Life]]="Capital Expenditure",Table2[[#This Row],[Escalator]]<>"Land"),1+$H$4,1)) -> 0 | BM20: =IF(BM14="",0,BM14*INDEX('Finance Input'!$A$40:$BV$44,MATCH($G20,'Finance Input'!$A$40:$A$44,0),MATCH(BM$19,'Finance Input'!$A$40:$BV$40,0))*IF(AND(Table2[[#This Row],[Suggested Service Life]]="Capital Expenditure",Table2[[#This Row],[Escalator]]<>"Land"),1+$H$4,1)) -> 0 | BN20: =IF(BN14="",0,BN14*INDEX('Finance Input'!$A$40:$BV$44,MATCH($G20,'Finance Input'!$A$40:$A$44,0),MATCH(BN$19,'Finance Input'!$A$40:$BV$40,0))*IF(AND(Table2[[#This Row],[Suggested Service Life]]="Capital Expenditure",Table2[[#This Row],[Escalator]]<>"Land"),1+$H$4,1)) -> 0 | BO20: =IF(BO14="",0,BO14*INDEX('Finance Input'!$A$40:$BV$44,MATCH($G20,'Finance Input'!$A$40:$A$44,0),MATCH(BO$19,'Finance Input'!$A$40:$BV$40,0))*IF(AND(Table2[[#This Row],[Suggested Service Life]]="Capital Expenditure",Table2[[#This Row],[Escalator]]<>"Land"),1+$H$4,1)) -> 0 | BP20: =IF(BP14="",0,BP14*INDEX('Finance Input'!$A$40:$BV$44,MATCH($G20,'Finance Input'!$A$40:$A$44,0),MATCH(BP$19,'Finance Input'!$A$40:$BV$40,0))*IF(AND(Table2[[#This Row],[Suggested Service Life]]="Capital Expenditure",Table2[[#This Row],[Escalator]]<>"Land"),1+$H$4,1)) -> 0 | BQ20: =IF(BQ14="",0,BQ14*INDEX('Finance Input'!$A$40:$BV$44,MATCH($G20,'Finance Input'!$A$40:$A$44,0),MATCH(BQ$19,'Finance Input'!$A$40:$BV$40,0))*IF(AND(Table2[[#This Row],[Suggested Service Life]]="Capital Expenditure",Table2[[#This Row],[Escalator]]<>"Land"),1+$H$4,1)) -> 0 | BR20: =IF(BR14="",0,BR14)*IF(AND(Table2[[#This Row],[Type of Cash Flow]]="Capital Expenditure",Table2[[#This Row],[CCA Class]]<>"Land"),1+$H$4,1) -> 0
A21: 2 | B21: Line Loss cost | C21: Change in Working Capital | D21: =IF(OR(Table2[[#This Row],[Type of Cash Flow]]<>"Capital Expenditure",D15=""),"",D15) ->  | G21: =IF(G15="","No Escalation",G15) -> Ontario CPI | H21: =SUM(Table2[[#This Row],[Period 0]:[Terminal Value]]) -> -32656.25241 | I21: =IF(I15="",0,I15)*IF(AND(Table2[[#This Row],[Type of Cash Flow]]="Capital Expenditure",Table2[[#This Row],[CCA Class]]<>"Land"),1+$H$4,1) -> 0 | J21: =IF(J15="",0,J15*INDEX('Finance Input'!$A$40:$AP$44,MATCH($G21,'Finance Input'!$A$40:$A$44,0),MATCH(J$19,'Finance Input'!$A$40:$AO$40,0))*IF(AND(Table2[[#This Row],[Type of Cash Flow]]="Capital Expenditure",Table2[[#This Row],[CCA Class]]<>"Land"),1+$H$4,1)) -> -395.2876459 | K21: =IF(K15="",0,K15*INDEX('Finance Input'!$A$40:$AP$44,MATCH($G21,'Finance Input'!$A$40:$A$44,0),MATCH(K$19,'Finance Input'!$A$40:$AO$40,0))*IF(AND(Table2[[#This Row],[Type of Cash Flow]]="Capital Expenditure",Table2[[#This Row],[CCA Class]]<>"Land"),1+$H$4,1)) -> -403.1155771 | L21: =IF(L15="",0,L15*INDEX('Finance Input'!$A$40:$AP$44,MATCH($G21,'Finance Input'!$A$40:$A$44,0),MATCH(L$19,'Finance Input'!$A$40:$AO$40,0))*IF(AND(Table2[[#This Row],[Type of Cash Flow]]="Capital Expenditure",Table2[[#This Row],[CCA Class]]<>"Land"),1+$H$4,1)) -> -411.138239 | M21: =IF(M15="",0,M15*INDEX('Finance Input'!$A$40:$AP$44,MATCH($G21,'Finance Input'!$A$40:$A$44,0),MATCH(M$19,'Finance Input'!$A$40:$AO$40,0))*IF(AND(Table2[[#This Row],[Type of Cash Flow]]="Capital Expenditure",Table2[[#This Row],[CCA Class]]<>"Land"),1+$H$4,1)) -> -419.3612711 | N21: =IF(N15="",0,N15*INDEX('Finance Input'!$A$40:$AP$44,MATCH($G21,'Finance Input'!$A$40:$A$44,0),MATCH(N$19,'Finance Input'!$A$40:$AO$40,0))*IF(AND(Table2[[#This Row],[Type of Cash Flow]]="Capital Expenditure",Table2[[#This Row],[CCA Class]]<>"Land"),1+$H$4,1)) -> -427.7487693 | O21: =IF(O15="",0,O15*INDEX('Finance Input'!$A$40:$AP$44,MATCH($G21,'Finance Input'!$A$40:$A$44,0),MATCH(O$19,'Finance Input'!$A$40:$AO$40,0))*IF(AND(Table2[[#This Row],[Type of Cash Flow]]="Capital Expenditure",Table2[[#This Row],[CCA Class]]<>"Land"),1+$H$4,1)) -> -436.3040228 | P21: =IF(P15="",0,P15*INDEX('Finance Input'!$A$40:$AP$44,MATCH($G21,'Finance Input'!$A$40:$A$44,0),MATCH(P$19,'Finance Input'!$A$40:$AO$40,0))*IF(AND(Table2[[#This Row],[Type of Cash Flow]]="Capital Expenditure",Table2[[#This Row],[CCA Class]]<>"Land"),1+$H$4,1)) -> -445.030387 | Q21: =IF(Q15="",0,Q15*INDEX('Finance Input'!$A$40:$AP$44,MATCH($G21,'Finance Input'!$A$40:$A$44,0),MATCH(Q$19,'Finance Input'!$A$40:$AO$40,0))*IF(AND(Table2[[#This Row],[Type of Cash Flow]]="Capital Expenditure",Table2[[#This Row],[CCA Class]]<>"Land"),1+$H$4,1)) -> -453.9312842 | R21: =IF(R15="",0,R15*INDEX('Finance Input'!$A$40:$AP$44,MATCH($G21,'Finance Input'!$A$40:$A$44,0),MATCH(R$19,'Finance Input'!$A$40:$AO$40,0))*IF(AND(Table2[[#This Row],[Type of Cash Flow]]="Capital Expenditure",Table2[[#This Row],[CCA Class]]<>"Land"),1+$H$4,1)) -> -463.010205 | S21: =IF(S15="",0,S15*INDEX('Finance Input'!$A$40:$AP$44,MATCH($G21,'Finance Input'!$A$40:$A$44,0),MATCH(S$19,'Finance Input'!$A$40:$AO$40,0))*IF(AND(Table2[[#This Row],[Type of Cash Flow]]="Capital Expenditure",Table2[[#This Row],[CCA Class]]<>"Land"),1+$H$4,1)) -> -472.2707102 | T21: =IF(T15="",0,T15*INDEX('Finance Input'!$A$40:$AP$44,MATCH($G21,'Finance Input'!$A$40:$A$44,0),MATCH(T$19,'Finance Input'!$A$40:$AO$40,0))*IF(AND(Table2[[#This Row],[Type of Cash Flow]]="Capital Expenditure",Table2[[#This Row],[CCA Class]]<>"Land"),1+$H$4,1)) -> -481.7164316 | U21: =IF(U15="",0,U15*INDEX('Finance Input'!$A$40:$AP$44,MATCH($G21,'Finance Input'!$A$40:$A$44,0),MATCH(U$19,'Finance Input'!$A$40:$AO$40,0))*IF(AND(Table2[[#This Row],[Type of Cash Flow]]="Capital Expenditure",Table2[[#This Row],[CCA Class]]<>"Land"),1+$H$4,1)) -> -491.3510735 | V21: =IF(V15="",0,V15*INDEX('Finance Input'!$A$40:$AP$44,MATCH($G21,'Finance Input'!$A$40:$A$44,0),MATCH(V$19,'Finance Input'!$A$40:$AO$40,0))*IF(AND(Table2[[#This Row],[Type of Cash Flow]]="Capital Expenditure",Table2[[#This Row],[CCA Class]]<>"Land"),1+$H$4,1)) -> -501.1784145 | W21: =IF(W15="",0,W15*INDEX('Finance Input'!$A$40:$AP$44,MATCH($G21,'Finance Input'!$A$40:$A$44,0),MATCH(W$19,'Finance Input'!$A$40:$AO$40,0))*IF(AND(Table2[[#This Row],[Type of Cash Flow]]="Capital Expenditure",Table2[[#This Row],[CCA Class]]<>"Land"),1+$H$4,1)) -> -511.2023087 | X21: =IF(X15="",0,X15*INDEX('Finance Input'!$A$40:$AP$44,MATCH($G21,'Finance Input'!$A$40:$A$44,0),MATCH(X$19,'Finance Input'!$A$40:$AO$40,0))*IF(AND(Table2[[#This Row],[Type of Cash Flow]]="Capital Expenditure",Table2[[#This Row],[CCA Class]]<>"Land"),1+$H$4,1)) -> -521.4266873 | Y21: =IF(Y15="",0,Y15*INDEX('Finance Input'!$A$40:$AP$44,MATCH($G21,'Finance Input'!$A$40:$A$44,0),MATCH(Y$19,'Finance Input'!$A$40:$AO$40,0))*IF(AND(Table2[[#This Row],[Type of Cash Flow]]="Capital Expenditure",Table2[[#This Row],[CCA Class]]<>"Land"),1+$H$4,1)) -> -531.8555601 | Z21: =IF(Z15="",0,Z15*INDEX('Finance Input'!$A$40:$AP$44,MATCH($G21,'Finance Input'!$A$40:$A$44,0),MATCH(Z$19,'Finance Input'!$A$40:$AO$40,0))*IF(AND(Table2[[#This Row],[Type of Cash Flow]]="Capital Expenditure",Table2[[#This Row],[CCA Class]]<>"Land"),1+$H$4,1)) -> -542.4930172 | AA21: =IF(AA15="",0,AA15*INDEX('Finance Input'!$A$40:$AP$44,MATCH($G21,'Finance Input'!$A$40:$A$44,0),MATCH(AA$19,'Finance Input'!$A$40:$AO$40,0))*IF(AND(Table2[[#This Row],[Type of Cash Flow]]="Capital Expenditure",Table2[[#This Row],[CCA Class]]<>"Land"),1+$H$4,1)) -> -553.3432303 | AB21: =IF(AB15="",0,AB15*INDEX('Finance Input'!$A$40:$AP$44,MATCH($G21,'Finance Input'!$A$40:$A$44,0),MATCH(AB$19,'Finance Input'!$A$40:$AO$40,0))*IF(AND(Table2[[#This Row],[Type of Cash Flow]]="Capital Expenditure",Table2[[#This Row],[CCA Class]]<>"Land"),1+$H$4,1)) -> -564.4104548 | AC21: =IF(AC15="",0,AC15*INDEX('Finance Input'!$A$40:$AP$44,MATCH($G21,'Finance Input'!$A$40:$A$44,0),MATCH(AC$19,'Finance Input'!$A$40:$AO$40,0))*IF(AND(Table2[[#This Row],[Type of Cash Flow]]="Capital Expenditure",Table2[[#This Row],[CCA Class]]<>"Land"),1+$H$4,1)) -> -575.6990309 | AD21: =IF(AD15="",0,AD15*INDEX('Finance Input'!$A$40:$AP$44,MATCH($G21,'Finance Input'!$A$40:$A$44,0),MATCH(AD$19,'Finance Input'!$A$40:$AO$40,0))*IF(AND(Table2[[#This Row],[Type of Cash Flow]]="Capital Expenditure",Table2[[#This Row],[CCA Class]]<>"Land"),1+$H$4,1)) -> -587.2133859 | AE21: =IF(AE15="",0,AE15*INDEX('Finance Input'!$A$40:$AP$44,MATCH($G21,'Finance Input'!$A$40:$A$44,0),MATCH(AE$19,'Finance Input'!$A$40:$AO$40,0))*IF(AND(Table2[[#This Row],[Type of Cash Flow]]="Capital Expenditure",Table2[[#This Row],[CCA Class]]<>"Land"),1+$H$4,1)) -> -598.9580355 | AF21: =IF(AF15="",0,AF15*INDEX('Finance Input'!$A$40:$AP$44,MATCH($G21,'Finance Input'!$A$40:$A$44,0),MATCH(AF$19,'Finance Input'!$A$40:$AO$40,0))*IF(AND(Table2[[#This Row],[Type of Cash Flow]]="Capital Expenditure",Table2[[#This Row],[CCA Class]]<>"Land"),1+$H$4,1)) -> -610.9375857 | AG21: =IF(AG15="",0,AG15*INDEX('Finance Input'!$A$40:$AP$44,MATCH($G21,'Finance Input'!$A$40:$A$44,0),MATCH(AG$19,'Finance Input'!$A$40:$AO$40,0))*IF(AND(Table2[[#This Row],[Type of Cash Flow]]="Capital Expenditure",Table2[[#This Row],[CCA Class]]<>"Land"),1+$H$4,1)) -> -623.1567347 | AH21: =IF(AH15="",0,AH15*INDEX('Finance Input'!$A$40:$AP$44,MATCH($G21,'Finance Input'!$A$40:$A$44,0),MATCH(AH$19,'Finance Input'!$A$40:$AO$40,0))*IF(AND(Table2[[#This Row],[Type of Cash Flow]]="Capital Expenditure",Table2[[#This Row],[CCA Class]]<>"Land"),1+$H$4,1)) -> -635.6202746 | AI21: =IF(AI15="",0,AI15*INDEX('Finance Input'!$A$40:$AP$44,MATCH($G21,'Finance Input'!$A$40:$A$44,0),MATCH(AI$19,'Finance Input'!$A$40:$AO$40,0))*IF(AND(Table2[[#This Row],[Type of Cash Flow]]="Capital Expenditure",Table2[[#This Row],[CCA Class]]<>"Land"),1+$H$4,1)) -> -648.3330935 | AJ21: =IF(AJ15="",0,AJ15*INDEX('Finance Input'!$A$40:$AP$44,MATCH($G21,'Finance Input'!$A$40:$A$44,0),MATCH(AJ$19,'Finance Input'!$A$40:$AO$40,0))*IF(AND(Table2[[#This Row],[Type of Cash Flow]]="Capital Expenditure",Table2[[#This Row],[CCA Class]]<>"Land"),1+$H$4,1)) -> -661.300177 | AK21: =IF(AK15="",0,AK15*INDEX('Finance Input'!$A$40:$AP$44,MATCH($G21,'Finance Input'!$A$40:$A$44,0),MATCH(AK$19,'Finance Input'!$A$40:$AO$40,0))*IF(AND(Table2[[#This Row],[Type of Cash Flow]]="Capital Expenditure",Table2[[#This Row],[CCA Class]]<>"Land"),1+$H$4,1)) -> -674.5266105 | AL21: =IF(AL15="",0,AL15*INDEX('Finance Input'!$A$40:$AP$44,MATCH($G21,'Finance Input'!$A$40:$A$44,0),MATCH(AL$19,'Finance Input'!$A$40:$AO$40,0))*IF(AND(Table2[[#This Row],[Type of Cash Flow]]="Capital Expenditure",Table2[[#This Row],[CCA Class]]<>"Land"),1+$H$4,1)) -> -688.0175814 | AM21: =IF(AM15="",0,AM15*INDEX('Finance Input'!$A$40:$AP$44,MATCH($G21,'Finance Input'!$A$40:$A$44,0),MATCH(AM$19,'Finance Input'!$A$40:$AO$40,0))*IF(AND(Table2[[#This Row],[Type of Cash Flow]]="Capital Expenditure",Table2[[#This Row],[CCA Class]]<>"Land"),1+$H$4,1)) -> -701.7783804 | AN21: =IF(AN15="",0,AN15*INDEX('Finance Input'!$A$40:$AP$44,MATCH($G21,'Finance Input'!$A$40:$A$44,0),MATCH(AN$19,'Finance Input'!$A$40:$AO$40,0))*IF(AND(Table2[[#This Row],[Type of Cash Flow]]="Capital Expenditure",Table2[[#This Row],[CCA Class]]<>"Land"),1+$H$4,1)) -> -715.8144044 | AO21: =IF(AO15="",0,AO15*INDEX('Finance Input'!$A$40:$AP$44,MATCH($G21,'Finance Input'!$A$40:$A$44,0),MATCH(AO$19,'Finance Input'!$A$40:$AO$40,0))*IF(AND(Table2[[#This Row],[Type of Cash Flow]]="Capital Expenditure",Table2[[#This Row],[CCA Class]]<>"Land"),1+$H$4,1)) -> -730.131158 | AP21: =IF(AP15="",0,AP15*INDEX('Finance Input'!$A$40:$AP$44,MATCH($G21,'Finance Input'!$A$40:$A$44,0),MATCH(AP$19,'Finance Input'!$A$40:$AO$40,0))*IF(AND(Table2[[#This Row],[Type of Cash Flow]]="Capital Expenditure",Table2[[#This Row],[CCA Class]]<>"Land"),1+$H$4,1)) -> -744.734256 | AQ21: =IF(AQ15="",0,AQ15*INDEX('Finance Input'!$A$40:$AP$44,MATCH($G21,'Finance Input'!$A$40:$A$44,0),MATCH(AQ$19,'Finance Input'!$A$40:$AO$40,0))*IF(AND(Table2[[#This Row],[Type of Cash Flow]]="Capital Expenditure",Table2[[#This Row],[CCA Class]]<>"Land"),1+$H$4,1)) -> -759.6294254 | AR21: =IF(AR15="",0,AR15*INDEX('Finance Input'!$A$40:$AP$44,MATCH($G21,'Finance Input'!$A$40:$A$44,0),MATCH(AR$19,'Finance Input'!$A$40:$AO$40,0))*IF(AND(Table2[[#This Row],[Type of Cash Flow]]="Capital Expenditure",Table2[[#This Row],[CCA Class]]<>"Land"),1+$H$4,1)) -> -778.2802387 | AS21: =IF(AS15="",0,AS15*INDEX('Finance Input'!$A$40:$BV$44,MATCH($G21,'Finance Input'!$A$40:$A$44,0),MATCH(AS$19,'Finance Input'!$A$40:$BV$40,0))*IF(AND(Table2[[#This Row],[Type of Cash Flow]]="Capital Expenditure",Table2[[#This Row],[CCA Class]]<>"Land"),1+$H$4,1)) -> -793.8463496 | AT21: =IF(AT15="",0,AT15*INDEX('Finance Input'!$A$40:$BV$44,MATCH($G21,'Finance Input'!$A$40:$A$44,0),MATCH(AT$19,'Finance Input'!$A$40:$BV$40,0))*IF(AND(Table2[[#This Row],[Type of Cash Flow]]="Capital Expenditure",Table2[[#This Row],[CCA Class]]<>"Land"),1+$H$4,1)) -> -809.7237929 | AU21: =IF(AU15="",0,AU15*INDEX('Finance Input'!$A$40:$BV$44,MATCH($G21,'Finance Input'!$A$40:$A$44,0),MATCH(AU$19,'Finance Input'!$A$40:$BV$40,0))*IF(AND(Table2[[#This Row],[Type of Cash Flow]]="Capital Expenditure",Table2[[#This Row],[CCA Class]]<>"Land"),1+$H$4,1)) -> -825.9187953 | AV21: =IF(AV15="",0,AV15*INDEX('Finance Input'!$A$40:$BV$44,MATCH($G21,'Finance Input'!$A$40:$A$44,0),MATCH(AV$19,'Finance Input'!$A$40:$BV$40,0))*IF(AND(Table2[[#This Row],[Type of Cash Flow]]="Capital Expenditure",Table2[[#This Row],[CCA Class]]<>"Land"),1+$H$4,1)) -> -842.4377083 | AW21: =IF(AW15="",0,AW15*INDEX('Finance Input'!$A$40:$BV$44,MATCH($G21,'Finance Input'!$A$40:$A$44,0),MATCH(AW$19,'Finance Input'!$A$40:$BV$40,0))*IF(AND(Table2[[#This Row],[Type of Cash Flow]]="Capital Expenditure",Table2[[#This Row],[CCA Class]]<>"Land"),1+$H$4,1)) -> -859.2870103 | AX21: =IF(AX15="",0,AX15*INDEX('Finance Input'!$A$40:$BV$44,MATCH($G21,'Finance Input'!$A$40:$A$44,0),MATCH(AX$19,'Finance Input'!$A$40:$BV$40,0))*IF(AND(Table2[[#This Row],[Type of Cash Flow]]="Capital Expenditure",Table2[[#This Row],[CCA Class]]<>"Land"),1+$H$4,1)) -> -876.4733093 | AY21: =IF(AY15="",0,AY15*INDEX('Finance Input'!$A$40:$BV$44,MATCH($G21,'Finance Input'!$A$40:$A$44,0),MATCH(AY$19,'Finance Input'!$A$40:$BV$40,0))*IF(AND(Table2[[#This Row],[Type of Cash Flow]]="Capital Expenditure",Table2[[#This Row],[CCA Class]]<>"Land"),1+$H$4,1)) -> -876.4733093 | AZ21: =IF(AZ15="",0,AZ15*INDEX('Finance Input'!$A$40:$BV$44,MATCH($G21,'Finance Input'!$A$40:$A$44,0),MATCH(AZ$19,'Finance Input'!$A$40:$BV$40,0))*IF(AND(Table2[[#This Row],[Type of Cash Flow]]="Capital Expenditure",Table2[[#This Row],[CCA Class]]<>"Land"),1+$H$4,1)) -> -876.4733093 | BA21: =IF(BA15="",0,BA15*INDEX('Finance Input'!$A$40:$BV$44,MATCH($G21,'Finance Input'!$A$40:$A$44,0),MATCH(BA$19,'Finance Input'!$A$40:$BV$40,0))*IF(AND(Table2[[#This Row],[CCA Class]]="Capital Expenditure",Table2[[#This Row],[CCA Rate]]<>"Land"),1+$H$4,1)) -> -876.4733093 | BB21: =IF(BB15="",0,BB15*INDEX('Finance Input'!$A$40:$BV$44,MATCH($G21,'Finance Input'!$A$40:$A$44,0),MATCH(BB$19,'Finance Input'!$A$40:$BV$40,0))*IF(AND(Table2[[#This Row],[CCA Rate]]="Capital Expenditure",Table2[[#This Row],[Suggested Service Life]]<>"Land"),1+$H$4,1)) -> -876.4733093 | BC21: =IF(BC15="",0,BC15*INDEX('Finance Input'!$A$40:$BV$44,MATCH($G21,'Finance Input'!$A$40:$A$44,0),MATCH(BC$19,'Finance Input'!$A$40:$BV$40,0))*IF(AND(Table2[[#This Row],[Suggested Service Life]]="Capital Expenditure",Table2[[#This Row],[Escalator]]<>"Land"),1+$H$4,1)) -> -876.4733093 | BD21: =IF(BD15="",0,BD15*INDEX('Finance Input'!$A$40:$BV$44,MATCH($G21,'Finance Input'!$A$40:$A$44,0),MATCH(BD$19,'Finance Input'!$A$40:$BV$40,0))*IF(AND(Table2[[#This Row],[Suggested Service Life]]="Capital Expenditure",Table2[[#This Row],[Escalator]]<>"Land"),1+$H$4,1)) -> -876.4733093 | BE21: =IF(BE15="",0,BE15*INDEX('Finance Input'!$A$40:$BV$44,MATCH($G21,'Finance Input'!$A$40:$A$44,0),MATCH(BE$19,'Finance Input'!$A$40:$BV$40,0))*IF(AND(Table2[[#This Row],[Suggested Service Life]]="Capital Expenditure",Table2[[#This Row],[Escalator]]<>"Land"),1+$H$4,1)) -> -876.4733093 | BF21: =IF(BF15="",0,BF15*INDEX('Finance Input'!$A$40:$BV$44,MATCH($G21,'Finance Input'!$A$40:$A$44,0),MATCH(BF$19,'Finance Input'!$A$40:$BV$40,0))*IF(AND(Table2[[#This Row],[Suggested Service Life]]="Capital Expenditure",Table2[[#This Row],[Escalator]]<>"Land"),1+$H$4,1)) -> -876.4733093 | BG21: =IF(BG15="",0,BG15*INDEX('Finance Input'!$A$40:$BV$44,MATCH($G21,'Finance Input'!$A$40:$A$44,0),MATCH(BG$19,'Finance Input'!$A$40:$BV$40,0))*IF(AND(Table2[[#This Row],[Suggested Service Life]]="Capital Expenditure",Table2[[#This Row],[Escalator]]<>"Land"),1+$H$4,1)) -> -876.4733093 | BH21: =IF(BH15="",0,BH15*INDEX('Finance Input'!$A$40:$BV$44,MATCH($G21,'Finance Input'!$A$40:$A$44,0),MATCH(BH$19,'Finance Input'!$A$40:$BV$40,0))*IF(AND(Table2[[#This Row],[Suggested Service Life]]="Capital Expenditure",Table2[[#This Row],[Escalator]]<>"Land"),1+$H$4,1)) -> 0 | BI21: =IF(BI15="",0,BI15*INDEX('Finance Input'!$A$40:$BV$44,MATCH($G21,'Finance Input'!$A$40:$A$44,0),MATCH(BI$19,'Finance Input'!$A$40:$BV$40,0))*IF(AND(Table2[[#This Row],[Suggested Service Life]]="Capital Expenditure",Table2[[#This Row],[Escalator]]<>"Land"),1+$H$4,1)) -> 0 | BJ21: =IF(BJ15="",0,BJ15*INDEX('Finance Input'!$A$40:$BV$44,MATCH($G21,'Finance Input'!$A$40:$A$44,0),MATCH(BJ$19,'Finance Input'!$A$40:$BV$40,0))*IF(AND(Table2[[#This Row],[Suggested Service Life]]="Capital Expenditure",Table2[[#This Row],[Escalator]]<>"Land"),1+$H$4,1)) -> 0 | BK21: =IF(BK15="",0,BK15*INDEX('Finance Input'!$A$40:$BV$44,MATCH($G21,'Finance Input'!$A$40:$A$44,0),MATCH(BK$19,'Finance Input'!$A$40:$BV$40,0))*IF(AND(Table2[[#This Row],[Suggested Service Life]]="Capital Expenditure",Table2[[#This Row],[Escalator]]<>"Land"),1+$H$4,1)) -> 0 | BL21: =IF(BL15="",0,BL15*INDEX('Finance Input'!$A$40:$BV$44,MATCH($G21,'Finance Input'!$A$40:$A$44,0),MATCH(BL$19,'Finance Input'!$A$40:$BV$40,0))*IF(AND(Table2[[#This Row],[Suggested Service Life]]="Capital Expenditure",Table2[[#This Row],[Escalator]]<>"Land"),1+$H$4,1)) -> 0 | BM21: =IF(BM15="",0,BM15*INDEX('Finance Input'!$A$40:$BV$44,MATCH($G21,'Finance Input'!$A$40:$A$44,0),MATCH(BM$19,'Finance Input'!$A$40:$BV$40,0))*IF(AND(Table2[[#This Row],[Suggested Service Life]]="Capital Expenditure",Table2[[#This Row],[Escalator]]<>"Land"),1+$H$4,1)) -> 0 | BN21: =IF(BN15="",0,BN15*INDEX('Finance Input'!$A$40:$BV$44,MATCH($G21,'Finance Input'!$A$40:$A$44,0),MATCH(BN$19,'Finance Input'!$A$40:$BV$40,0))*IF(AND(Table2[[#This Row],[Suggested Service Life]]="Capital Expenditure",Table2[[#This Row],[Escalator]]<>"Land"),1+$H$4,1)) -> 0 | BO21: =IF(BO15="",0,BO15*INDEX('Finance Input'!$A$40:$BV$44,MATCH($G21,'Finance Input'!$A$40:$A$44,0),MATCH(BO$19,'Finance Input'!$A$40:$BV$40,0))*IF(AND(Table2[[#This Row],[Suggested Service Life]]="Capital Expenditure",Table2[[#This Row],[Escalator]]<>"Land"),1+$H$4,1)) -> 0 | BP21: =IF(BP15="",0,BP15*INDEX('Finance Input'!$A$40:$BV$44,MATCH($G21,'Finance Input'!$A$40:$A$44,0),MATCH(BP$19,'Finance Input'!$A$40:$BV$40,0))*IF(AND(Table2[[#This Row],[Suggested Service Life]]="Capital Expenditure",Table2[[#This Row],[Escalator]]<>"Land"),1+$H$4,1)) -> 0 | BQ21: =IF(BQ15="",0,BQ15*INDEX('Finance Input'!$A$40:$BV$44,MATCH($G21,'Finance Input'!$A$40:$A$44,0),MATCH(BQ$19,'Finance Input'!$A$40:$BV$40,0))*IF(AND(Table2[[#This Row],[Suggested Service Life]]="Capital Expenditure",Table2[[#This Row],[Escalator]]<>"Land"),1+$H$4,1)) -> 0 | BR21: =IF(BR15="",0,BR15)*IF(AND(Table2[[#This Row],[Type of Cash Flow]]="Capital Expenditure",Table2[[#This Row],[CCA Class]]<>"Land"),1+$H$4,1) -> 0
A22: 3 | B22: Capital Cost | C22: Capital Expenditure | D22: =IF(OR(Table2[[#This Row],[Type of Cash Flow]]<>"Capital Expenditure",D16=""),"",D16) -> 47 | E22: 0.08 | F22: 50 | G22: =IF(G16="","No Escalation",G16) -> Ontario CPI | H22: =SUM(Table2[[#This Row],[Period 0]:[Terminal Value]]) -> -93000 | I22: =IF(I16="",0,I16)*IF(AND(Table2[[#This Row],[Type of Cash Flow]]="Capital Expenditure",Table2[[#This Row],[CCA Class]]<>"Land"),1+$H$4,1) -> -93000 | J22: =IF(J16="",0,J16*INDEX('Finance Input'!$A$40:$AP$44,MATCH($G22,'Finance Input'!$A$40:$A$44,0),MATCH(J$19,'Finance Input'!$A$40:$AO$40,0))*IF(AND(Table2[[#This Row],[Type of Cash Flow]]="Capital Expenditure",Table2[[#This Row],[CCA Class]]<>"Land"),1+$H$4,1)) -> 0 | K22: =IF(K16="",0,K16*INDEX('Finance Input'!$A$40:$AP$44,MATCH($G22,'Finance Input'!$A$40:$A$44,0),MATCH(K$19,'Finance Input'!$A$40:$AO$40,0))*IF(AND(Table2[[#This Row],[Type of Cash Flow]]="Capital Expenditure",Table2[[#This Row],[CCA Class]]<>"Land"),1+$H$4,1)) -> 0 | L22: =IF(L16="",0,L16*INDEX('Finance Input'!$A$40:$AP$44,MATCH($G22,'Finance Input'!$A$40:$A$44,0),MATCH(L$19,'Finance Input'!$A$40:$AO$40,0))*IF(AND(Table2[[#This Row],[Type of Cash Flow]]="Capital Expenditure",Table2[[#This Row],[CCA Class]]<>"Land"),1+$H$4,1)) -> 0 | M22: =IF(M16="",0,M16*INDEX('Finance Input'!$A$40:$AP$44,MATCH($G22,'Finance Input'!$A$40:$A$44,0),MATCH(M$19,'Finance Input'!$A$40:$AO$40,0))*IF(AND(Table2[[#This Row],[Type of Cash Flow]]="Capital Expenditure",Table2[[#This Row],[CCA Class]]<>"Land"),1+$H$4,1)) -> 0 | N22: =IF(N16="",0,N16*INDEX('Finance Input'!$A$40:$AP$44,MATCH($G22,'Finance Input'!$A$40:$A$44,0),MATCH(N$19,'Finance Input'!$A$40:$AO$40,0))*IF(AND(Table2[[#This Row],[Type of Cash Flow]]="Capital Expenditure",Table2[[#This Row],[CCA Class]]<>"Land"),1+$H$4,1)) -> 0 | O22: =IF(O16="",0,O16*INDEX('Finance Input'!$A$40:$AP$44,MATCH($G22,'Finance Input'!$A$40:$A$44,0),MATCH(O$19,'Finance Input'!$A$40:$AO$40,0))*IF(AND(Table2[[#This Row],[Type of Cash Flow]]="Capital Expenditure",Table2[[#This Row],[CCA Class]]<>"Land"),1+$H$4,1)) -> 0 | P22: =IF(P16="",0,P16*INDEX('Finance Input'!$A$40:$AP$44,MATCH($G22,'Finance Input'!$A$40:$A$44,0),MATCH(P$19,'Finance Input'!$A$40:$AO$40,0))*IF(AND(Table2[[#This Row],[Type of Cash Flow]]="Capital Expenditure",Table2[[#This Row],[CCA Class]]<>"Land"),1+$H$4,1)) -> 0 | Q22: =IF(Q16="",0,Q16*INDEX('Finance Input'!$A$40:$AP$44,MATCH($G22,'Finance Input'!$A$40:$A$44,0),MATCH(Q$19,'Finance Input'!$A$40:$AO$40,0))*IF(AND(Table2[[#This Row],[Type of Cash Flow]]="Capital Expenditure",Table2[[#This Row],[CCA Class]]<>"Land"),1+$H$4,1)) -> 0 | R22: =IF(R16="",0,R16*INDEX('Finance Input'!$A$40:$AP$44,MATCH($G22,'Finance Input'!$A$40:$A$44,0),MATCH(R$19,'Finance Input'!$A$40:$AO$40,0))*IF(AND(Table2[[#This Row],[Type of Cash Flow]]="Capital Expenditure",Table2[[#This Row],[CCA Class]]<>"Land"),1+$H$4,1)) -> 0 | S22: =IF(S16="",0,S16*INDEX('Finance Input'!$A$40:$AP$44,MATCH($G22,'Finance Input'!$A$40:$A$44,0),MATCH(S$19,'Finance Input'!$A$40:$AO$40,0))*IF(AND(Table2[[#This Row],[Type of Cash Flow]]="Capital Expenditure",Table2[[#This Row],[CCA Class]]<>"Land"),1+$H$4,1)) -> 0 | T22: =IF(T16="",0,T16*INDEX('Finance Input'!$A$40:$AP$44,MATCH($G22,'Finance Input'!$A$40:$A$44,0),MATCH(T$19,'Finance Input'!$A$40:$AO$40,0))*IF(AND(Table2[[#This Row],[Type of Cash Flow]]="Capital Expenditure",Table2[[#This Row],[CCA Class]]<>"Land"),1+$H$4,1)) -> 0 | U22: =IF(U16="",0,U16*INDEX('Finance Input'!$A$40:$AP$44,MATCH($G22,'Finance Input'!$A$40:$A$44,0),MATCH(U$19,'Finance Input'!$A$40:$AO$40,0))*IF(AND(Table2[[#This Row],[Type of Cash Flow]]="Capital Expenditure",Table2[[#This Row],[CCA Class]]<>"Land"),1+$H$4,1)) -> 0 | V22: =IF(V16="",0,V16*INDEX('Finance Input'!$A$40:$AP$44,MATCH($G22,'Finance Input'!$A$40:$A$44,0),MATCH(V$19,'Finance Input'!$A$40:$AO$40,0))*IF(AND(Table2[[#This Row],[Type of Cash Flow]]="Capital Expenditure",Table2[[#This Row],[CCA Class]]<>"Land"),1+$H$4,1)) -> 0 | W22: =IF(W16="",0,W16*INDEX('Finance Input'!$A$40:$AP$44,MATCH($G22,'Finance Input'!$A$40:$A$44,0),MATCH(W$19,'Finance Input'!$A$40:$AO$40,0))*IF(AND(Table2[[#This Row],[Type of Cash Flow]]="Capital Expenditure",Table2[[#This Row],[CCA Class]]<>"Land"),1+$H$4,1)) -> 0 | X22: =IF(X16="",0,X16*INDEX('Finance Input'!$A$40:$AP$44,MATCH($G22,'Finance Input'!$A$40:$A$44,0),MATCH(X$19,'Finance Input'!$A$40:$AO$40,0))*IF(AND(Table2[[#This Row],[Type of Cash Flow]]="Capital Expenditure",Table2[[#This Row],[CCA Class]]<>"Land"),1+$H$4,1)) -> 0 | Y22: =IF(Y16="",0,Y16*INDEX('Finance Input'!$A$40:$AP$44,MATCH($G22,'Finance Input'!$A$40:$A$44,0),MATCH(Y$19,'Finance Input'!$A$40:$AO$40,0))*IF(AND(Table2[[#This Row],[Type of Cash Flow]]="Capital Expenditure",Table2[[#This Row],[CCA Class]]<>"Land"),1+$H$4,1)) -> 0 | Z22: =IF(Z16="",0,Z16*INDEX('Finance Input'!$A$40:$AP$44,MATCH($G22,'Finance Input'!$A$40:$A$44,0),MATCH(Z$19,'Finance Input'!$A$40:$AO$40,0))*IF(AND(Table2[[#This Row],[Type of Cash Flow]]="Capital Expenditure",Table2[[#This Row],[CCA Class]]<>"Land"),1+$H$4,1)) -> 0 | AA22: =IF(AA16="",0,AA16*INDEX('Finance Input'!$A$40:$AP$44,MATCH($G22,'Finance Input'!$A$40:$A$44,0),MATCH(AA$19,'Finance Input'!$A$40:$AO$40,0))*IF(AND(Table2[[#This Row],[Type of Cash Flow]]="Capital Expenditure",Table2[[#This Row],[CCA Class]]<>"Land"),1+$H$4,1)) -> 0 | AB22: =IF(AB16="",0,AB16*INDEX('Finance Input'!$A$40:$AP$44,MATCH($G22,'Finance Input'!$A$40:$A$44,0),MATCH(AB$19,'Finance Input'!$A$40:$AO$40,0))*IF(AND(Table2[[#This Row],[Type of Cash Flow]]="Capital Expenditure",Table2[[#This Row],[CCA Class]]<>"Land"),1+$H$4,1)) -> 0 | AC22: =IF(AC16="",0,AC16*INDEX('Finance Input'!$A$40:$AP$44,MATCH($G22,'Finance Input'!$A$40:$A$44,0),MATCH(AC$19,'Finance Input'!$A$40:$AO$40,0))*IF(AND(Table2[[#This Row],[Type of Cash Flow]]="Capital Expenditure",Table2[[#This Row],[CCA Class]]<>"Land"),1+$H$4,1)) -> 0 | AD22: =IF(AD16="",0,AD16*INDEX('Finance Input'!$A$40:$AP$44,MATCH($G22,'Finance Input'!$A$40:$A$44,0),MATCH(AD$19,'Finance Input'!$A$40:$AO$40,0))*IF(AND(Table2[[#This Row],[Type of Cash Flow]]="Capital Expenditure",Table2[[#This Row],[CCA Class]]<>"Land"),1+$H$4,1)) -> 0 | AE22: =IF(AE16="",0,AE16*INDEX('Finance Input'!$A$40:$AP$44,MATCH($G22,'Finance Input'!$A$40:$A$44,0),MATCH(AE$19,'Finance Input'!$A$40:$AO$40,0))*IF(AND(Table2[[#This Row],[Type of Cash Flow]]="Capital Expenditure",Table2[[#This Row],[CCA Class]]<>"Land"),1+$H$4,1)) -> 0 | AF22: =IF(AF16="",0,AF16*INDEX('Finance Input'!$A$40:$AP$44,MATCH($G22,'Finance Input'!$A$40:$A$44,0),MATCH(AF$19,'Finance Input'!$A$40:$AO$40,0))*IF(AND(Table2[[#This Row],[Type of Cash Flow]]="Capital Expenditure",Table2[[#This Row],[CCA Class]]<>"Land"),1+$H$4,1)) -> 0 | AG22: =IF(AG16="",0,AG16*INDEX('Finance Input'!$A$40:$AP$44,MATCH($G22,'Finance Input'!$A$40:$A$44,0),MATCH(AG$19,'Finance Input'!$A$40:$AO$40,0))*IF(AND(Table2[[#This Row],[Type of Cash Flow]]="Capital Expenditure",Table2[[#This Row],[CCA Class]]<>"Land"),1+$H$4,1)) -> 0 | AH22: =IF(AH16="",0,AH16*INDEX('Finance Input'!$A$40:$AP$44,MATCH($G22,'Finance Input'!$A$40:$A$44,0),MATCH(AH$19,'Finance Input'!$A$40:$AO$40,0))*IF(AND(Table2[[#This Row],[Type of Cash Flow]]="Capital Expenditure",Table2[[#This Row],[CCA Class]]<>"Land"),1+$H$4,1)) -> 0 | AI22: =IF(AI16="",0,AI16*INDEX('Finance Input'!$A$40:$AP$44,MATCH($G22,'Finance Input'!$A$40:$A$44,0),MATCH(AI$19,'Finance Input'!$A$40:$AO$40,0))*IF(AND(Table2[[#This Row],[Type of Cash Flow]]="Capital Expenditure",Table2[[#This Row],[CCA Class]]<>"Land"),1+$H$4,1)) -> 0 | AJ22: =IF(AJ16="",0,AJ16*INDEX('Finance Input'!$A$40:$AP$44,MATCH($G22,'Finance Input'!$A$40:$A$44,0),MATCH(AJ$19,'Finance Input'!$A$40:$AO$40,0))*IF(AND(Table2[[#This Row],[Type of Cash Flow]]="Capital Expenditure",Table2[[#This Row],[CCA Class]]<>"Land"),1+$H$4,1)) -> 0 | AK22: =IF(AK16="",0,AK16*INDEX('Finance Input'!$A$40:$AP$44,MATCH($G22,'Finance Input'!$A$40:$A$44,0),MATCH(AK$19,'Finance Input'!$A$40:$AO$40,0))*IF(AND(Table2[[#This Row],[Type of Cash Flow]]="Capital Expenditure",Table2[[#This Row],[CCA Class]]<>"Land"),1+$H$4,1)) -> 0 | AL22: =IF(AL16="",0,AL16*INDEX('Finance Input'!$A$40:$AP$44,MATCH($G22,'Finance Input'!$A$40:$A$44,0),MATCH(AL$19,'Finance Input'!$A$40:$AO$40,0))*IF(AND(Table2[[#This Row],[Type of Cash Flow]]="Capital Expenditure",Table2[[#This Row],[CCA Class]]<>"Land"),1+$H$4,1)) -> 0 | AM22: =IF(AM16="",0,AM16*INDEX('Finance Input'!$A$40:$AP$44,MATCH($G22,'Finance Input'!$A$40:$A$44,0),MATCH(AM$19,'Finance Input'!$A$40:$AO$40,0))*IF(AND(Table2[[#This Row],[Type of Cash Flow]]="Capital Expenditure",Table2[[#This Row],[CCA Class]]<>"Land"),1+$H$4,1)) -> 0 | AN22: =IF(AN16="",0,AN16*INDEX('Finance Input'!$A$40:$AP$44,MATCH($G22,'Finance Input'!$A$40:$A$44,0),MATCH(AN$19,'Finance Input'!$A$40:$AO$40,0))*IF(AND(Table2[[#This Row],[Type of Cash Flow]]="Capital Expenditure",Table2[[#This Row],[CCA Class]]<>"Land"),1+$H$4,1)) -> 0 | AO22: =IF(AO16="",0,AO16*INDEX('Finance Input'!$A$40:$AP$44,MATCH($G22,'Finance Input'!$A$40:$A$44,0),MATCH(AO$19,'Finance Input'!$A$40:$AO$40,0))*IF(AND(Table2[[#This Row],[Type of Cash Flow]]="Capital Expenditure",Table2[[#This Row],[CCA Class]]<>"Land"),1+$H$4,1)) -> 0 | AP22: =IF(AP16="",0,AP16*INDEX('Finance Input'!$A$40:$AP$44,MATCH($G22,'Finance Input'!$A$40:$A$44,0),MATCH(AP$19,'Finance Input'!$A$40:$AO$40,0))*IF(AND(Table2[[#This Row],[Type of Cash Flow]]="Capital Expenditure",Table2[[#This Row],[CCA Class]]<>"Land"),1+$H$4,1)) -> 0 | AQ22: =IF(AQ16="",0,AQ16*INDEX('Finance Input'!$A$40:$AP$44,MATCH($G22,'Finance Input'!$A$40:$A$44,0),MATCH(AQ$19,'Finance Input'!$A$40:$AO$40,0))*IF(AND(Table2[[#This Row],[Type of Cash Flow]]="Capital Expenditure",Table2[[#This Row],[CCA Class]]<>"Land"),1+$H$4,1)) -> 0 | AR22: =IF(AR16="",0,AR16*INDEX('Finance Input'!$A$40:$AP$44,MATCH($G22,'Finance Input'!$A$40:$A$44,0),MATCH(AR$19,'Finance Input'!$A$40:$AO$40,0))*IF(AND(Table2[[#This Row],[Type of Cash Flow]]="Capital Expenditure",Table2[[#This Row],[CCA Class]]<>"Land"),1+$H$4,1)) -> 0 | AS22: =IF(AS16="",0,AS16*INDEX('Finance Input'!$A$40:$BV$44,MATCH($G22,'Finance Input'!$A$40:$A$44,0),MATCH(AS$19,'Finance Input'!$A$40:$BV$40,0))*IF(AND(Table2[[#This Row],[Type of Cash Flow]]="Capital Expenditure",Table2[[#This Row],[CCA Class]]<>"Land"),1+$H$4,1)) -> 0 | AT22: =IF(AT16="",0,AT16*INDEX('Finance Input'!$A$40:$BV$44,MATCH($G22,'Finance Input'!$A$40:$A$44,0),MATCH(AT$19,'Finance Input'!$A$40:$BV$40,0))*IF(AND(Table2[[#This Row],[Type of Cash Flow]]="Capital Expenditure",Table2[[#This Row],[CCA Class]]<>"Land"),1+$H$4,1)) -> 0 | AU22: =IF(AU16="",0,AU16*INDEX('Finance Input'!$A$40:$BV$44,MATCH($G22,'Finance Input'!$A$40:$A$44,0),MATCH(AU$19,'Finance Input'!$A$40:$BV$40,0))*IF(AND(Table2[[#This Row],[Type of Cash Flow]]="Capital Expenditure",Table2[[#This Row],[CCA Class]]<>"Land"),1+$H$4,1)) -> 0 | AV22: =IF(AV16="",0,AV16*INDEX('Finance Input'!$A$40:$BV$44,MATCH($G22,'Finance Input'!$A$40:$A$44,0),MATCH(AV$19,'Finance Input'!$A$40:$BV$40,0))*IF(AND(Table2[[#This Row],[Type of Cash Flow]]="Capital Expenditure",Table2[[#This Row],[CCA Class]]<>"Land"),1+$H$4,1)) -> 0 | AW22: =IF(AW16="",0,AW16*INDEX('Finance Input'!$A$40:$BV$44,MATCH($G22,'Finance Input'!$A$40:$A$44,0),MATCH(AW$19,'Finance Input'!$A$40:$BV$40,0))*IF(AND(Table2[[#This Row],[Type of Cash Flow]]="Capital Expenditure",Table2[[#This Row],[CCA Class]]<>"Land"),1+$H$4,1)) -> 0 | AX22: =IF(AX16="",0,AX16*INDEX('Finance Input'!$A$40:$BV$44,MATCH($G22,'Finance Input'!$A$40:$A$44,0),MATCH(AX$19,'Finance Input'!$A$40:$BV$40,0))*IF(AND(Table2[[#This Row],[Type of Cash Flow]]="Capital Expenditure",Table2[[#This Row],[CCA Class]]<>"Land"),1+$H$4,1)) -> 0 | AY22: =IF(AY16="",0,AY16*INDEX('Finance Input'!$A$40:$BV$44,MATCH($G22,'Finance Input'!$A$40:$A$44,0),MATCH(AY$19,'Finance Input'!$A$40:$BV$40,0))*IF(AND(Table2[[#This Row],[Type of Cash Flow]]="Capital Expenditure",Table2[[#This Row],[CCA Class]]<>"Land"),1+$H$4,1)) -> 0 | AZ22: =IF(AZ16="",0,AZ16*INDEX('Finance Input'!$A$40:$BV$44,MATCH($G22,'Finance Input'!$A$40:$A$44,0),MATCH(AZ$19,'Finance Input'!$A$40:$BV$40,0))*IF(AND(Table2[[#This Row],[Type of Cash Flow]]="Capital Expenditure",Table2[[#This Row],[CCA Class]]<>"Land"),1+$H$4,1)) -> 0 | BA22: =IF(BA16="",0,BA16*INDEX('Finance Input'!$A$40:$BV$44,MATCH($G22,'Finance Input'!$A$40:$A$44,0),MATCH(BA$19,'Finance Input'!$A$40:$BV$40,0))*IF(AND(Table2[[#This Row],[CCA Class]]="Capital Expenditure",Table2[[#This Row],[CCA Rate]]<>"Land"),1+$H$4,1)) -> 0 | BB22: =IF(BB16="",0,BB16*INDEX('Finance Input'!$A$40:$BV$44,MATCH($G22,'Finance Input'!$A$40:$A$44,0),MATCH(BB$19,'Finance Input'!$A$40:$BV$40,0))*IF(AND(Table2[[#This Row],[CCA Rate]]="Capital Expenditure",Table2[[#This Row],[Suggested Service Life]]<>"Land"),1+$H$4,1)) -> 0 | BC22: =IF(BC16="",0,BC16*INDEX('Finance Input'!$A$40:$BV$44,MATCH($G22,'Finance Input'!$A$40:$A$44,0),MATCH(BC$19,'Finance Input'!$A$40:$BV$40,0))*IF(AND(Table2[[#This Row],[Suggested Service Life]]="Capital Expenditure",Table2[[#This Row],[Escalator]]<>"Land"),1+$H$4,1)) -> 0 | BD22: =IF(BD16="",0,BD16*INDEX('Finance Input'!$A$40:$BV$44,MATCH($G22,'Finance Input'!$A$40:$A$44,0),MATCH(BD$19,'Finance Input'!$A$40:$BV$40,0))*IF(AND(Table2[[#This Row],[Suggested Service Life]]="Capital Expenditure",Table2[[#This Row],[Escalator]]<>"Land"),1+$H$4,1)) -> 0 | BE22: =IF(BE16="",0,BE16*INDEX('Finance Input'!$A$40:$BV$44,MATCH($G22,'Finance Input'!$A$40:$A$44,0),MATCH(BE$19,'Finance Input'!$A$40:$BV$40,0))*IF(AND(Table2[[#This Row],[Suggested Service Life]]="Capital Expenditure",Table2[[#This Row],[Escalator]]<>"Land"),1+$H$4,1)) -> 0 | BF22: =IF(BF16="",0,BF16*INDEX('Finance Input'!$A$40:$BV$44,MATCH($G22,'Finance Input'!$A$40:$A$44,0),MATCH(BF$19,'Finance Input'!$A$40:$BV$40,0))*IF(AND(Table2[[#This Row],[Suggested Service Life]]="Capital Expenditure",Table2[[#This Row],[Escalator]]<>"Land"),1+$H$4,1)) -> 0 | BG22: =IF(BG16="",0,BG16*INDEX('Finance Input'!$A$40:$BV$44,MATCH($G22,'Finance Input'!$A$40:$A$44,0),MATCH(BG$19,'Finance Input'!$A$40:$BV$40,0))*IF(AND(Table2[[#This Row],[Suggested Service Life]]="Capital Expenditure",Table2[[#This Row],[Escalator]]<>"Land"),1+$H$4,1)) -> 0 | BH22: =IF(BH16="",0,BH16*INDEX('Finance Input'!$A$40:$BV$44,MATCH($G22,'Finance Input'!$A$40:$A$44,0),MATCH(BH$19,'Finance Input'!$A$40:$BV$40,0))*IF(AND(Table2[[#This Row],[Suggested Service Life]]="Capital Expenditure",Table2[[#This Row],[Escalator]]<>"Land"),1+$H$4,1)) -> 0 | BI22: =IF(BI16="",0,BI16*INDEX('Finance Input'!$A$40:$BV$44,MATCH($G22,'Finance Input'!$A$40:$A$44,0),MATCH(BI$19,'Finance Input'!$A$40:$BV$40,0))*IF(AND(Table2[[#This Row],[Suggested Service Life]]="Capital Expenditure",Table2[[#This Row],[Escalator]]<>"Land"),1+$H$4,1)) -> 0 | BJ22: =IF(BJ16="",0,BJ16*INDEX('Finance Input'!$A$40:$BV$44,MATCH($G22,'Finance Input'!$A$40:$A$44,0),MATCH(BJ$19,'Finance Input'!$A$40:$BV$40,0))*IF(AND(Table2[[#This Row],[Suggested Service Life]]="Capital Expenditure",Table2[[#This Row],[Escalator]]<>"Land"),1+$H$4,1)) -> 0 | BK22: =IF(BK16="",0,BK16*INDEX('Finance Input'!$A$40:$BV$44,MATCH($G22,'Finance Input'!$A$40:$A$44,0),MATCH(BK$19,'Finance Input'!$A$40:$BV$40,0))*IF(AND(Table2[[#This Row],[Suggested Service Life]]="Capital Expenditure",Table2[[#This Row],[Escalator]]<>"Land"),1+$H$4,1)) -> 0 | BL22: =IF(BL16="",0,BL16*INDEX('Finance Input'!$A$40:$BV$44,MATCH($G22,'Finance Input'!$A$40:$A$44,0),MATCH(BL$19,'Finance Input'!$A$40:$BV$40,0))*IF(AND(Table2[[#This Row],[Suggested Service Life]]="Capital Expenditure",Table2[[#This Row],[Escalator]]<>"Land"),1+$H$4,1)) -> 0 | BM22: =IF(BM16="",0,BM16*INDEX('Finance Input'!$A$40:$BV$44,MATCH($G22,'Finance Input'!$A$40:$A$44,0),MATCH(BM$19,'Finance Input'!$A$40:$BV$40,0))*IF(AND(Table2[[#This Row],[Suggested Service Life]]="Capital Expenditure",Table2[[#This Row],[Escalator]]<>"Land"),1+$H$4,1)) -> 0 | BN22: =IF(BN16="",0,BN16*INDEX('Finance Input'!$A$40:$BV$44,MATCH($G22,'Finance Input'!$A$40:$A$44,0),MATCH(BN$19,'Finance Input'!$A$40:$BV$40,0))*IF(AND(Table2[[#This Row],[Suggested Service Life]]="Capital Expenditure",Table2[[#This Row],[Escalator]]<>"Land"),1+$H$4,1)) -> 0 | BO22: =IF(BO16="",0,BO16*INDEX('Finance Input'!$A$40:$BV$44,MATCH($G22,'Finance Input'!$A$40:$A$44,0),MATCH(BO$19,'Finance Input'!$A$40:$BV$40,0))*IF(AND(Table2[[#This Row],[Suggested Service Life]]="Capital Expenditure",Table2[[#This Row],[Escalator]]<>"Land"),1+$H$4,1)) -> 0 | BP22: =IF(BP16="",0,BP16*INDEX('Finance Input'!$A$40:$BV$44,MATCH($G22,'Finance Input'!$A$40:$A$44,0),MATCH(BP$19,'Finance Input'!$A$40:$BV$40,0))*IF(AND(Table2[[#This Row],[Suggested Service Life]]="Capital Expenditure",Table2[[#This Row],[Escalator]]<>"Land"),1+$H$4,1)) -> 0 | BQ22: =IF(BQ16="",0,BQ16*INDEX('Finance Input'!$A$40:$BV$44,MATCH($G22,'Finance Input'!$A$40:$A$44,0),MATCH(BQ$19,'Finance Input'!$A$40:$BV$40,0))*IF(AND(Table2[[#This Row],[Suggested Service Life]]="Capital Expenditure",Table2[[#This Row],[Escalator]]<>"Land"),1+$H$4,1)) -> 0 | BR22: =IF(BR16="",0,BR16)*IF(AND(Table2[[#This Row],[Type of Cash Flow]]="Capital Expenditure",Table2[[#This Row],[CCA Class]]<>"Land"),1+$H$4,1) -> 0
A24: Present Value Calculations
G25: ="Cumulative NPV Jan 1, "&$B$3 -> Cumulative NPV Jan 1, 2025 | H25: Undiscounted Total Cashflow | I25: Period 0 | J25: =Start_Year -> 2025 | K25: =J25+1 -> 2026 | L25: =K25+1 -> 2027 | M25: =L25+1 -> 2028 | N25: 2029 | O25: 2030 | P25: 2031 | Q25: 2032 | R25: 2033 | S25: 2034 | T25: 2035 | U25: 2036 | V25: 2037 | W25: 2038 | X25: 2039 | Y25: 2040 | Z25: 2041 | AA25: 2042 | AB25: 2043 | AC25: 2044 | AD25: 2045 | AE25: 2046 | AF25: 2047 | AG25: 2048 | AH25: 2049 | AI25: 2050 | AJ25: 2051 | AK25: 2052 | AL25: 2053 | AM25: 2054 | AN25: 2055 | AO25: 2056 | AP25: 2057 | AQ25: 2058 | AR25: 2059 | AS25: 2060 | AT25: 2061 | AU25: 2062 | AV25: 2063 | AW25: 2064 | AX25: 2065 | AY25: 2066 | AZ25: 2067 | BA25: 2068 | BB25: 2069 | BC25: 2070 | BD25: 2071 | BE25: 2072 | BF25: 2073 | BG25: 2074 | BH25: 2075 | BI25: 2076 | BJ25: 2077 | BK25: 2078 | BL25: 2079 | BM25: 2080 | BN25: 2081 | BO25: 2082 | BP25: 2083 | BQ25: 2084 | BR25: Terminal Value
B26: Total Incremental Revenue (escalated) | G26: =SUMPRODUCT(OFFSET(I26,,,,$B$2+1),OFFSET($I$43,,,,$B$2+1))+BR26*$BR$43 -> 0 | H26: =SUM(OFFSET(I26,,,,$B$2+1))+BR26 -> 0 | I26: =SUMIF(Table2[[#All],[Type of Cash Flow]:[Type of Cash Flow]],"Revenue",Table2[[#All],[Period 0]]) -> 0 | J26: =SUMIF(Table2[[#All],[Type of Cash Flow]:[Type of Cash Flow]],"Revenue",Table2[[#All],[2025]]) -> 0 | K26: =SUMIF(Table2[[#All],[Type of Cash Flow]:[Type of Cash Flow]],"Revenue",Table2[[#All],[2026]]) -> 0 | L26: =SUMIF(Table2[[#All],[Type of Cash Flow]:[Type of Cash Flow]],"Revenue",Table2[[#All],[2027]]) -> 0 | M26: =SUMIF(Table2[[#All],[Type of Cash Flow]:[Type of Cash Flow]],"Revenue",Table2[[#All],[2028]]) -> 0 | N26: =SUMIF(Table2[[#All],[Type of Cash Flow]:[Type of Cash Flow]],"Revenue",Table2[[#All],[2029]]) -> 0 | O26: =SUMIF(Table2[[#All],[Type of Cash Flow]:[Type of Cash Flow]],"Revenue",Table2[[#All],[2030]]) -> 0 | P26: =SUMIF(Table2[[#All],[Type of Cash Flow]:[Type of Cash Flow]],"Revenue",Table2[[#All],[2031]]) -> 0 | Q26: =SUMIF(Table2[[#All],[Type of Cash Flow]:[Type of Cash Flow]],"Revenue",Table2[[#All],[2032]]) -> 0 | R26: =SUMIF(Table2[[#All],[Type of Cash Flow]:[Type of Cash Flow]],"Revenue",Table2[[#All],[2033]]) -> 0 | S26: =SUMIF(Table2[[#All],[Type of Cash Flow]:[Type of Cash Flow]],"Revenue",Table2[[#All],[2034]]) -> 0 | T26: =SUMIF(Table2[[#All],[Type of Cash Flow]:[Type of Cash Flow]],"Revenue",Table2[[#All],[2035]]) -> 0 | U26: =SUMIF(Table2[[#All],[Type of Cash Flow]:[Type of Cash Flow]],"Revenue",Table2[[#All],[2036]]) -> 0 | V26: =SUMIF(Table2[[#All],[Type of Cash Flow]:[Type of Cash Flow]],"Revenue",Table2[[#All],[2037]]) -> 0 | W26: =SUMIF(Table2[[#All],[Type of Cash Flow]:[Type of Cash Flow]],"Revenue",Table2[[#All],[2038]]) -> 0 | X26: =SUMIF(Table2[[#All],[Type of Cash Flow]:[Type of Cash Flow]],"Revenue",Table2[[#All],[2039]]) -> 0 | Y26: =SUMIF(Table2[[#All],[Type of Cash Flow]:[Type of Cash Flow]],"Revenue",Table2[[#All],[2040]]) -> 0 | Z26: =SUMIF(Table2[[#All],[Type of Cash Flow]:[Type of Cash Flow]],"Revenue",Table2[[#All],[2041]]) -> 0 | AA26: =SUMIF(Table2[[#All],[Type of Cash Flow]:[Type of Cash Flow]],"Revenue",Table2[[#All],[2042]]) -> 0 | AB26: =SUMIF(Table2[[#All],[Type of Cash Flow]:[Type of Cash Flow]],"Revenue",Table2[[#All],[2043]]) -> 0 | AC26: =SUMIF(Table2[[#All],[Type of Cash Flow]:[Type of Cash Flow]],"Revenue",Table2[[#All],[2044]]) -> 0 | AD26: =SUMIF(Table2[[#All],[Type of Cash Flow]:[Type of Cash Flow]],"Revenue",Table2[[#All],[2045]]) -> 0 | AE26: =SUMIF(Table2[[#All],[Type of Cash Flow]:[Type of Cash Flow]],"Revenue",Table2[[#All],[2046]]) -> 0 | AF26: =SUMIF(Table2[[#All],[Type of Cash Flow]:[Type of Cash Flow]],"Revenue",Table2[[#All],[2047]]) -> 0 | AG26: =SUMIF(Table2[[#All],[Type of Cash Flow]:[Type of Cash Flow]],"Revenue",Table2[[#All],[2048]]) -> 0 | AH26: =SUMIF(Table2[[#All],[Type of Cash Flow]:[Type of Cash Flow]],"Revenue",Table2[[#All],[2049]]) -> 0 | AI26: =SUMIF(Table2[[#All],[Type of Cash Flow]:[Type of Cash Flow]],"Revenue",Table2[[#All],[2050]]) -> 0 | AJ26: =SUMIF(Table2[[#All],[Type of Cash Flow]:[Type of Cash Flow]],"Revenue",Table2[[#All],[2051]]) -> 0 | AK26: =SUMIF(Table2[[#All],[Type of Cash Flow]:[Type of Cash Flow]],"Revenue",Table2[[#All],[2052]]) -> 0 | AL26: =SUMIF(Table2[[#All],[Type of Cash Flow]:[Type of Cash Flow]],"Revenue",Table2[[#All],[2053]]) -> 0 | AM26: =SUMIF(Table2[[#All],[Type of Cash Flow]:[Type of Cash Flow]],"Revenue",Table2[[#All],[2054]]) -> 0 | AN26: =SUMIF(Table2[[#All],[Type of Cash Flow]:[Type of Cash Flow]],"Revenue",Table2[[#All],[2055]]) -> 0 | AO26: =SUMIF(Table2[[#All],[Type of Cash Flow]:[Type of Cash Flow]],"Revenue",Table2[[#All],[2056]]) -> 0 | AP26: =SUMIF(Table2[[#All],[Type of Cash Flow]:[Type of Cash Flow]],"Revenue",Table2[[#All],[2057]]) -> 0 | AQ26: =SUMIF(Table2[[#All],[Type of Cash Flow]:[Type of Cash Flow]],"Revenue",Table2[[#All],[2058]]) -> 0 | AR26: =SUMIF(Table2[[#All],[Type of Cash Flow]:[Type of Cash Flow]],"Revenue",Table2[[#All],[2059]]) -> 0 | AS26: =SUMIF(Table2[[#All],[Type of Cash Flow]:[Type of Cash Flow]],"Revenue",Table2[[#All],[2060]]) -> 0 | AT26: =SUMIF(Table2[[#All],[Type of Cash Flow]:[Type of Cash Flow]],"Revenue",Table2[[#All],[2061]]) -> 0 | AU26: =SUMIF(Table2[[#All],[Type of Cash Flow]:[Type of Cash Flow]],"Revenue",Table2[[#All],[2062]]) -> 0 | AV26: =SUMIF(Table2[[#All],[Type of Cash Flow]:[Type of Cash Flow]],"Revenue",Table2[[#All],[2063]]) -> 0 | AW26: =SUMIF(Table2[[#All],[Type of Cash Flow]:[Type of Cash Flow]],"Revenue",Table2[[#All],[2064]]) -> 0 | AX26: =SUMIF(Table2[[#All],[Type of Cash Flow]:[Type of Cash Flow]],"Revenue",Table2[[#All],[2065]]) -> 0 | AY26: =SUMIF(Table2[[#All],[Type of Cash Flow]:[Type of Cash Flow]],"Revenue",Table2[[#All],[2066]]) -> 0 | AZ26: =SUMIF(Table2[[#All],[Type of Cash Flow]:[Type of Cash Flow]],"Revenue",Table2[[#All],[2067]]) -> 0 | BA26: =SUMIF(Table2[[#All],[Type of Cash Flow]:[Type of Cash Flow]],"Revenue",Table2[[#All],[2068]]) -> 0 | BB26: =SUMIF(Table2[[#All],[Type of Cash Flow]:[Type of Cash Flow]],"Revenue",Table2[[#All],[2069]]) -> 0 | BC26: =SUMIF(Table2[[#All],[Type of Cash Flow]:[Type of Cash Flow]],"Revenue",Table2[[#All],[2070]]) -> 0 | BD26: =SUMIF(Table2[[#All],[Type of Cash Flow]:[Type of Cash Flow]],"Revenue",Table2[[#All],[2071]]) -> 0 | BE26: =SUMIF(Table2[[#All],[Type of Cash Flow]:[Type of Cash Flow]],"Revenue",Table2[[#All],[2072]]) -> 0 | BF26: =SUMIF(Table2[[#All],[Type of Cash Flow]:[Type of Cash Flow]],"Revenue",Table2[[#All],[2073]]) -> 0 | BG26: =SUMIF(Table2[[#All],[Type of Cash Flow]:[Type of Cash Flow]],"Revenue",Table2[[#All],[2074]]) -> 0 | BH26: =SUMIF(Table2[[#All],[Type of Cash Flow]:[Type of Cash Flow]],"Revenue",Table2[[#All],[2075]]) -> 0 | BI26: =SUMIF(Table2[[#All],[Type of Cash Flow]:[Type of Cash Flow]],"Revenue",Table2[[#All],[2076]]) -> 0 | BJ26: =SUMIF(Table2[[#All],[Type of Cash Flow]:[Type of Cash Flow]],"Revenue",Table2[[#All],[2077]]) -> 0 | BK26: =SUMIF(Table2[[#All],[Type of Cash Flow]:[Type of Cash Flow]],"Revenue",Table2[[#All],[2078]]) -> 0 | BL26: =SUMIF(Table2[[#All],[Type of Cash Flow]:[Type of Cash Flow]],"Revenue",Table2[[#All],[2079]]) -> 0 | BM26: =SUMIF(Table2[[#All],[Type of Cash Flow]:[Type of Cash Flow]],"Revenue",Table2[[#All],[2080]]) -> 0 | BN26: =SUMIF(Table2[[#All],[Type of Cash Flow]:[Type of Cash Flow]],"Revenue",Table2[[#All],[2081]]) -> 0 | BO26: =SUMIF(Table2[[#All],[Type of Cash Flow]:[Type of Cash Flow]],"Revenue",Table2[[#All],[2082]]) -> 0 | BP26: =SUMIF(Table2[[#All],[Type of Cash Flow]:[Type of Cash Flow]],"Revenue",Table2[[#All],[2083]]) -> 0 | BQ26: =SUMIF(Table2[[#All],[Type of Cash Flow]:[Type of Cash Flow]],"Revenue",Table2[[#All],[2084]]) -> 0 | BR26: =IF($D$4="User-Defined",SUMIF(Table2[[#All],[Type of Cash Flow]:[Type of Cash Flow]],"Revenue",Table2[[#All],[Terminal Value]]),IF($D$4="Steady State",HLOOKUP(End_Year,$I$25:$BQ26,2,0)/WACC,IF($D$4="NBV of assets",SUMIF($A$50:$A$222,"Net Book Value, end of year",OFFSET($I$50:$I$222,,Study_Length,,)),0))) -> 0
B27: Total Incremental OM&A Costs (escalated) | G27: =SUMPRODUCT(OFFSET(I27,,,,$B$2+1),OFFSET($I$43,,,,$B$2+1))+BR27*$BR$43 -> 0 | H27: =SUM(OFFSET(I27,,,,$B$2+1))+BR27 -> 0 | I27: =SUMIF(Table2[[#All],[Type of Cash Flow]:[Type of Cash Flow]],"OM&A Costs",Table2[[#All],[Period 0]]) -> 0 | J27: =SUMIF(Table2[[#All],[Type of Cash Flow]:[Type of Cash Flow]],"OM&A Costs",Table2[[#All],[2025]]) -> 0 | K27: =SUMIF(Table2[[#All],[Type of Cash Flow]:[Type of Cash Flow]],"OM&A Costs",Table2[[#All],[2026]]) -> 0 | L27: =SUMIF(Table2[[#All],[Type of Cash Flow]:[Type of Cash Flow]],"OM&A Costs",Table2[[#All],[2027]]) -> 0 | M27: =SUMIF(Table2[[#All],[Type of Cash Flow]:[Type of Cash Flow]],"OM&A Costs",Table2[[#All],[2028]]) -> 0 | N27: =SUMIF(Table2[[#All],[Type of Cash Flow]:[Type of Cash Flow]],"OM&A Costs",Table2[[#All],[2029]]) -> 0 | O27: =SUMIF(Table2[[#All],[Type of Cash Flow]:[Type of Cash Flow]],"OM&A Costs",Table2[[#All],[2030]]) -> 0 | P27: =SUMIF(Table2[[#All],[Type of Cash Flow]:[Type of Cash Flow]],"OM&A Costs",Table2[[#All],[2031]]) -> 0 | Q27: =SUMIF(Table2[[#All],[Type of Cash Flow]:[Type of Cash Flow]],"OM&A Costs",Table2[[#All],[2032]]) -> 0 | R27: =SUMIF(Table2[[#All],[Type of Cash Flow]:[Type of Cash Flow]],"OM&A Costs",Table2[[#All],[2033]]) -> 0 | S27: =SUMIF(Table2[[#All],[Type of Cash Flow]:[Type of Cash Flow]],"OM&A Costs",Table2[[#All],[2034]]) -> 0 | T27: =SUMIF(Table2[[#All],[Type of Cash Flow]:[Type of Cash Flow]],"OM&A Costs",Table2[[#All],[2035]]) -> 0 | U27: =SUMIF(Table2[[#All],[Type of Cash Flow]:[Type of Cash Flow]],"OM&A Costs",Table2[[#All],[2036]]) -> 0 | V27: =SUMIF(Table2[[#All],[Type of Cash Flow]:[Type of Cash Flow]],"OM&A Costs",Table2[[#All],[2037]]) -> 0 | W27: =SUMIF(Table2[[#All],[Type of Cash Flow]:[Type of Cash Flow]],"OM&A Costs",Table2[[#All],[2038]]) -> 0 | X27: =SUMIF(Table2[[#All],[Type of Cash Flow]:[Type of Cash Flow]],"OM&A Costs",Table2[[#All],[2039]]) -> 0 | Y27: =SUMIF(Table2[[#All],[Type of Cash Flow]:[Type of Cash Flow]],"OM&A Costs",Table2[[#All],[2040]]) -> 0 | Z27: =SUMIF(Table2[[#All],[Type of Cash Flow]:[Type of Cash Flow]],"OM&A Costs",Table2[[#All],[2041]]) -> 0 | AA27: =SUMIF(Table2[[#All],[Type of Cash Flow]:[Type of Cash Flow]],"OM&A Costs",Table2[[#All],[2042]]) -> 0 | AB27: =SUMIF(Table2[[#All],[Type of Cash Flow]:[Type of Cash Flow]],"OM&A Costs",Table2[[#All],[2043]]) -> 0 | AC27: =SUMIF(Table2[[#All],[Type of Cash Flow]:[Type of Cash Flow]],"OM&A Costs",Table2[[#All],[2044]]) -> 0 | AD27: =SUMIF(Table2[[#All],[Type of Cash Flow]:[Type of Cash Flow]],"OM&A Costs",Table2[[#All],[2045]]) -> 0 | AE27: =SUMIF(Table2[[#All],[Type of Cash Flow]:[Type of Cash Flow]],"OM&A Costs",Table2[[#All],[2046]]) -> 0 | AF27: =SUMIF(Table2[[#All],[Type of Cash Flow]:[Type of Cash Flow]],"OM&A Costs",Table2[[#All],[2047]]) -> 0 | AG27: =SUMIF(Table2[[#All],[Type of Cash Flow]:[Type of Cash Flow]],"OM&A Costs",Table2[[#All],[2048]]) -> 0 | AH27: =SUMIF(Table2[[#All],[Type of Cash Flow]:[Type of Cash Flow]],"OM&A Costs",Table2[[#All],[2049]]) -> 0 | AI27: =SUMIF(Table2[[#All],[Type of Cash Flow]:[Type of Cash Flow]],"OM&A Costs",Table2[[#All],[2050]]) -> 0 | AJ27: =SUMIF(Table2[[#All],[Type of Cash Flow]:[Type of Cash Flow]],"OM&A Costs",Table2[[#All],[2051]]) -> 0 | AK27: =SUMIF(Table2[[#All],[Type of Cash Flow]:[Type of Cash Flow]],"OM&A Costs",Table2[[#All],[2052]]) -> 0 | AL27: =SUMIF(Table2[[#All],[Type of Cash Flow]:[Type of Cash Flow]],"OM&A Costs",Table2[[#All],[2053]]) -> 0 | AM27: =SUMIF(Table2[[#All],[Type of Cash Flow]:[Type of Cash Flow]],"OM&A Costs",Table2[[#All],[2054]]) -> 0 | AN27: =SUMIF(Table2[[#All],[Type of Cash Flow]:[Type of Cash Flow]],"OM&A Costs",Table2[[#All],[2055]]) -> 0 | AO27: =SUMIF(Table2[[#All],[Type of Cash Flow]:[Type of Cash Flow]],"OM&A Costs",Table2[[#All],[2056]]) -> 0 | AP27: =SUMIF(Table2[[#All],[Type of Cash Flow]:[Type of Cash Flow]],"OM&A Costs",Table2[[#All],[2057]]) -> 0 | AQ27: =SUMIF(Table2[[#All],[Type of Cash Flow]:[Type of Cash Flow]],"OM&A Costs",Table2[[#All],[2058]]) -> 0 | AR27: =SUMIF(Table2[[#All],[Type of Cash Flow]:[Type of Cash Flow]],"OM&A Costs",Table2[[#All],[2059]]) -> 0 | AS27: =SUMIF(Table2[[#All],[Type of Cash Flow]:[Type of Cash Flow]],"OM&A Costs",Table2[[#All],[2060]]) -> 0 | AT27: =SUMIF(Table2[[#All],[Type of Cash Flow]:[Type of Cash Flow]],"OM&A Costs",Table2[[#All],[2061]]) -> 0 | AU27: =SUMIF(Table2[[#All],[Type of Cash Flow]:[Type of Cash Flow]],"OM&A Costs",Table2[[#All],[2062]]) -> 0 | AV27: =SUMIF(Table2[[#All],[Type of Cash Flow]:[Type of Cash Flow]],"OM&A Costs",Table2[[#All],[2063]]) -> 0 | AW27: =SUMIF(Table2[[#All],[Type of Cash Flow]:[Type of Cash Flow]],"OM&A Costs",Table2[[#All],[2064]]) -> 0 | AX27: =SUMIF(Table2[[#All],[Type of Cash Flow]:[Type of Cash Flow]],"OM&A Costs",Table2[[#All],[2065]]) -> 0 | AY27: =SUMIF(Table2[[#All],[Type of Cash Flow]:[Type of Cash Flow]],"OM&A Costs",Table2[[#All],[2066]]) -> 0 | AZ27: =SUMIF(Table2[[#All],[Type of Cash Flow]:[Type of Cash Flow]],"OM&A Costs",Table2[[#All],[2067]]) -> 0 | BA27: =SUMIF(Table2[[#All],[Type of Cash Flow]:[Type of Cash Flow]],"OM&A Costs",Table2[[#All],[2068]]) -> 0 | BB27: =SUMIF(Table2[[#All],[Type of Cash Flow]:[Type of Cash Flow]],"OM&A Costs",Table2[[#All],[2069]]) -> 0 | BC27: =SUMIF(Table2[[#All],[Type of Cash Flow]:[Type of Cash Flow]],"OM&A Costs",Table2[[#All],[2070]]) -> 0 | BD27: =SUMIF(Table2[[#All],[Type of Cash Flow]:[Type of Cash Flow]],"OM&A Costs",Table2[[#All],[2071]]) -> 0 | BE27: =SUMIF(Table2[[#All],[Type of Cash Flow]:[Type of Cash Flow]],"OM&A Costs",Table2[[#All],[2072]]) -> 0 | BF27: =SUMIF(Table2[[#All],[Type of Cash Flow]:[Type of Cash Flow]],"OM&A Costs",Table2[[#All],[2073]]) -> 0 | BG27: =SUMIF(Table2[[#All],[Type of Cash Flow]:[Type of Cash Flow]],"OM&A Costs",Table2[[#All],[2074]]) -> 0 | BH27: =SUMIF(Table2[[#All],[Type of Cash Flow]:[Type of Cash Flow]],"OM&A Costs",Table2[[#All],[2075]]) -> 0 | BI27: =SUMIF(Table2[[#All],[Type of Cash Flow]:[Type of Cash Flow]],"OM&A Costs",Table2[[#All],[2076]]) -> 0 | BJ27: =SUMIF(Table2[[#All],[Type of Cash Flow]:[Type of Cash Flow]],"OM&A Costs",Table2[[#All],[2077]]) -> 0 | BK27: =SUMIF(Table2[[#All],[Type of Cash Flow]:[Type of Cash Flow]],"OM&A Costs",Table2[[#All],[2078]]) -> 0 | BL27: =SUMIF(Table2[[#All],[Type of Cash Flow]:[Type of Cash Flow]],"OM&A Costs",Table2[[#All],[2079]]) -> 0 | BM27: =SUMIF(Table2[[#All],[Type of Cash Flow]:[Type of Cash Flow]],"OM&A Costs",Table2[[#All],[2080]]) -> 0 | BN27: =SUMIF(Table2[[#All],[Type of Cash Flow]:[Type of Cash Flow]],"OM&A Costs",Table2[[#All],[2081]]) -> 0 | BO27: =SUMIF(Table2[[#All],[Type of Cash Flow]:[Type of Cash Flow]],"OM&A Costs",Table2[[#All],[2082]]) -> 0 | BP27: =SUMIF(Table2[[#All],[Type of Cash Flow]:[Type of Cash Flow]],"OM&A Costs",Table2[[#All],[2083]]) -> 0 | BQ27: =SUMIF(Table2[[#All],[Type of Cash Flow]:[Type of Cash Flow]],"OM&A Costs",Table2[[#All],[2084]]) -> 0 | BR27: =IF($D$4="User-Defined",SUMIF(Table2[[#All],[Type of Cash Flow]:[Type of Cash Flow]],"OM&A Costs",Table2[[#All],[Terminal Value]]),IF($D$4="Steady State",HLOOKUP(End_Year,$I$25:$BQ27,3,0)/WACC,0)) -> 0
B28: Net Income Before CCA (escalated) | G28: =SUMPRODUCT(OFFSET(I28,,,,$B$2+1),OFFSET($I$43,,,,$B$2+1))+BR28*$BR$43 -> 0 | H28: =SUM(OFFSET(I28,,,,$B$2+1))+BR28 -> 0 | I28: =SUM(I26:I27) -> 0 | J28: =SUM(J26:J27) -> 0 | K28: =SUM(K26:K27) -> 0 | L28: 0 | M28: 0 | N28: 0 | O28: 0 | P28: 0 | Q28: 0 | R28: 0 | S28: 0 | T28: 0 | U28: 0 | V28: 0 | W28: 0 | X28: 0 | Y28: 0 | Z28: 0 | AA28: 0 | AB28: 0 | AC28: 0 | AD28: 0 | AE28: 0 | AF28: 0 | AG28: 0 | AH28: 0 | AI28: 0 | AJ28: 0 | AK28: 0 | AL28: 0 | AM28: 0 | AN28: 0 | AO28: 0 | AP28: 0 | AQ28: 0 | AR28: 0 | AS28: 0 | AT28: 0 | AU28: 0 | AV28: 0 | AW28: 0 | AX28: 0 | AY28: 0 | AZ28: 0 | BA28: 0 | BB28: 0 | BC28: 0 | BD28: 0 | BE28: 0 | BF28: 0 | BG28: 0 | BH28: 0 | BI28: 0 | BJ28: 0 | BK28: 0 | BL28: 0 | BM28: 0 | BN28: 0 | BO28: 0 | BP28: 0 | BQ28: 0 | BR28: 0
B31: Capital Gain on Sale (escalated) | G31: =SUMPRODUCT(OFFSET(I31,,,,$B$2+1),OFFSET($I$43,,,,$B$2+1))+BR31*$BR$43 -> 0 | H31: =SUM(OFFSET(I31,,,,$B$2+1))+BR31 -> 0 | I31: =SUM(I54,I68,I84,I100,I132,I148,I164,I196,I212)*(-1) -> 0 | J31: 0 | K31: 0 | L31: 0 | M31: 0 | N31: 0 | O31: 0 | P31: 0 | Q31: 0 | R31: 0 | S31: 0 | T31: 0 | U31: 0 | V31: 0 | W31: 0 | X31: 0 | Y31: 0 | Z31: 0 | AA31: 0 | AB31: 0 | AC31: 0 | AD31: 0 | AE31: 0 | AF31: 0 | AG31: 0 | AH31: 0 | AI31: 0 | AJ31: 0 | AK31: 0 | AL31: 0 | AM31: 0 | AN31: 0 | AO31: =SUM(AO54,AO68,AO84,AO100,AO132,AO148,AO164,AO196,AO212)*(-1) -> 0 | AP31: 0 | AQ31: 0 | AR31: 0 | AS31: 0 | AT31: 0 | AU31: 0 | AV31: 0 | AW31: 0 | AX31: 0 | AY31: 0 | AZ31: 0 | BA31: 0 | BB31: 0 | BC31: 0 | BD31: 0 | BE31: 0 | BF31: 0 | BG31: 0 | BH31: 0 | BI31: 0 | BJ31: 0 | BK31: 0 | BL31: 0 | BM31: 0 | BN31: 0 | BO31: 0 | BP31: 0 | BQ31: 0 | BR31: 0
B32: CCA Claimed | C32: Include Recapture: | D32: No (Pooled Asset Dep.) | G32: =SUMPRODUCT(OFFSET(I32,,,,$B$2+1),OFFSET($I$43,,,,$B$2+1))+BR32*$BR$43 -> -55905.70931 | H32: =SUM(OFFSET(I32,,,,$B$2+1))+BR32 -> -92426.28205 | I32: =SUM(I65,I66,I81,I82,I97,I98,I113,I114,I129,I130,I145,I146,I161,I162,I177,I178,I193,I194,I209,I210) -> 0 | J32: =SUM(J65,J66,J81,J82,J97,J98,J113,J114,J129,J130,J145,J146,J161,J162,J177,J178,J193,J194,J209,J210) -> -7440 | K32: =SUM(K65,K66,K81,K82,K97,K98,K113,K114,K129,K130,K145,K146,K161,K162,K177,K178,K193,K194,K209,K210) -> -6844.8 | L32: -6297.216 | M32: -5793.43872 | N32: -5329.963622 | O32: -4903.566533 | P32: -4511.28121 | Q32: -4150.378713 | R32: -3818.348416 | S32: -3512.880543 | T32: -3231.850099 | U32: -2973.302091 | V32: -2735.437924 | W32: -2516.60289 | X32: -2315.274659 | Y32: -2130.052686 | Z32: -1959.648471 | AA32: -1802.876594 | AB32: -1658.646466 | AC32: -1525.954749 | AD32: -1403.878369 | AE32: -1291.568099 | AF32: -1188.242651 | AG32: -1093.183239 | AH32: -1005.72858 | AI32: -925.2702938 | AJ32: -851.2486703 | AK32: -783.1487767 | AL32: -720.4968745 | AM32: -662.8571246 | AN32: -609.8285546 | AO32: -561.0422702 | AP32: -516.1588886 | AQ32: -474.8661775 | AR32: -436.8768833 | AS32: -401.9267327 | AT32: -369.7725941 | AU32: -340.1907865 | AV32: -312.9755236 | AW32: -287.9374817 | AX32: -264.9024832 | AY32: -243.7102845 | AZ32: -224.2134618 | BA32: -206.2763848 | BB32: -189.774274 | BC32: -174.5923321 | BD32: -160.6249455 | BE32: -147.7749499 | BF32: -135.9529539 | BG32: -125.0767176 | BH32: -115.0705802 | BI32: -105.8649338 | BJ32: -97.39573907 | BK32: -89.60407995 | BL32: -82.43575355 | BM32: -75.84089327 | BN32: -69.77362181 | BO32: -64.19173206 | BP32: -59.0563935 | BQ32: -54.33188202 | BR32: -864.6643019
B33: Taxable Income Before Income Taxes | G33: =SUMPRODUCT(OFFSET(I33,,,,$B$2+1),OFFSET($I$43,,,,$B$2+1))+BR33*$BR$43 -> -55905.70931 | H33: =SUM(I33:INDEX(I33:BQ33,1,MATCH(End_Year,$I$25:$BQ$25,0)))+BR33 -> -92426.28205 | I33: =SUM(I28:I32) -> 0 | J33: =SUM(J28:J32) -> -7440 | K33: -6844.8 | L33: -6297.216 | M33: -5793.43872 | N33: -5329.963622 | O33: -4903.566533 | P33: -4511.28121 | Q33: -4150.378713 | R33: -3818.348416 | S33: -3512.880543 | T33: -3231.850099 | U33: -2973.302091 | V33: -2735.437924 | W33: -2516.60289 | X33: -2315.274659 | Y33: -2130.052686 | Z33: -1959.648471 | AA33: -1802.876594 | AB33: -1658.646466 | AC33: -1525.954749 | AD33: -1403.878369 | AE33: -1291.568099 | AF33: -1188.242651 | AG33: -1093.183239 | AH33: -1005.72858 | AI33: -925.2702938 | AJ33: -851.2486703 | AK33: -783.1487767 | AL33: -720.4968745 | AM33: -662.8571246 | AN33: -609.8285546 | AO33: =SUM(AO28:AO32) -> -561.0422702 | AP33: -516.1588886 | AQ33: -474.8661775 | AR33: -436.8768833 | AS33: -401.9267327 | AT33: -369.7725941 | AU33: -340.1907865 | AV33: -312.9755236 | AW33: -287.9374817 | AX33: -264.9024832 | AY33: -243.7102845 | AZ33: -224.2134618 | BA33: -206.2763848 | BB33: -189.774274 | BC33: -174.5923321 | BD33: -160.6249455 | BE33: -147.7749499 | BF33: -135.9529539 | BG33: -125.0767176 | BH33: -115.0705802 | BI33: -105.8649338 | BJ33: -97.39573907 | BK33: -89.60407995 | BL33: -82.43575355 | BM33: -75.84089327 | BN33: -69.77362181 | BO33: -64.19173206 | BP33: -59.0563935 | BQ33: -54.33188202 | BR33: -864.6643019
B35: Capital Gains Tax Discount (50% if Recapture included) | I35: =IF($D$32="No (pooled Asset Dep.)",0,0.5)*I31*IFERROR(HLOOKUP(I25,'Finance Input'!$B$2:$C$7,6,0),Tax_Rate) -> 0 | J35: =IF($D$32="No (pooled Asset Dep.)",0,0.5)*J31*IFERROR(HLOOKUP(J25,'Finance Input'!$B$2:$C$7,6,0),Tax_Rate) -> 0 | K35: =IF($D$32="No (pooled Asset Dep.)",0,0.5)*K31*IFERROR(HLOOKUP(K25,'Finance Input'!$B$2:$C$7,6,0),Tax_Rate) -> 0 | L35: =IF($D$32="No (pooled Asset Dep.)",0,0.5)*L31*IFERROR(HLOOKUP(L25,'Finance Input'!$B$2:$C$7,6,0),Tax_Rate) -> 0 | M35: =IF($D$32="No (pooled Asset Dep.)",0,0.5)*M31*IFERROR(HLOOKUP(M25,'Finance Input'!$B$2:$C$7,6,0),Tax_Rate) -> 0 | N35: =IF($D$32="No (pooled Asset Dep.)",0,0.5)*N31*IFERROR(HLOOKUP(N25,'Finance Input'!$B$2:$C$7,6,0),Tax_Rate) -> 0 | O35: =IF($D$32="No (pooled Asset Dep.)",0,0.5)*O31*IFERROR(HLOOKUP(O25,'Finance Input'!$B$2:$C$7,6,0),Tax_Rate) -> 0 | P35: =IF($D$32="No (pooled Asset Dep.)",0,0.5)*P31*IFERROR(HLOOKUP(P25,'Finance Input'!$B$2:$C$7,6,0),Tax_Rate) -> 0 | Q35: =IF($D$32="No (pooled Asset Dep.)",0,0.5)*Q31*IFERROR(HLOOKUP(Q25,'Finance Input'!$B$2:$C$7,6,0),Tax_Rate) -> 0 | R35: =IF($D$32="No (pooled Asset Dep.)",0,0.5)*R31*IFERROR(HLOOKUP(R25,'Finance Input'!$B$2:$C$7,6,0),Tax_Rate) -> 0 | S35: =IF($D$32="No (pooled Asset Dep.)",0,0.5)*S31*IFERROR(HLOOKUP(S25,'Finance Input'!$B$2:$C$7,6,0),Tax_Rate) -> 0 | T35: =IF($D$32="No (pooled Asset Dep.)",0,0.5)*T31*IFERROR(HLOOKUP(T25,'Finance Input'!$B$2:$C$7,6,0),Tax_Rate) -> 0 | U35: =IF($D$32="No (pooled Asset Dep.)",0,0.5)*U31*IFERROR(HLOOKUP(U25,'Finance Input'!$B$2:$C$7,6,0),Tax_Rate) -> 0 | V35: =IF($D$32="No (pooled Asset Dep.)",0,0.5)*V31*IFERROR(HLOOKUP(V25,'Finance Input'!$B$2:$C$7,6,0),Tax_Rate) -> 0 | W35: =IF($D$32="No (pooled Asset Dep.)",0,0.5)*W31*IFERROR(HLOOKUP(W25,'Finance Input'!$B$2:$C$7,6,0),Tax_Rate) -> 0 | X35: =IF($D$32="No (pooled Asset Dep.)",0,0.5)*X31*IFERROR(HLOOKUP(X25,'Finance Input'!$B$2:$C$7,6,0),Tax_Rate) -> 0 | Y35: =IF($D$32="No (pooled Asset Dep.)",0,0.5)*Y31*IFERROR(HLOOKUP(Y25,'Finance Input'!$B$2:$C$7,6,0),Tax_Rate) -> 0 | Z35: =IF($D$32="No (pooled Asset Dep.)",0,0.5)*Z31*IFERROR(HLOOKUP(Z25,'Finance Input'!$B$2:$C$7,6,0),Tax_Rate) -> 0 | AA35: =IF($D$32="No (pooled Asset Dep.)",0,0.5)*AA31*IFERROR(HLOOKUP(AA25,'Finance Input'!$B$2:$C$7,6,0),Tax_Rate) -> 0 | AB35: =IF($D$32="No (pooled Asset Dep.)",0,0.5)*AB31*IFERROR(HLOOKUP(AB25,'Finance Input'!$B$2:$C$7,6,0),Tax_Rate) -> 0 | AC35: =IF($D$32="No (pooled Asset Dep.)",0,0.5)*AC31*IFERROR(HLOOKUP(AC25,'Finance Input'!$B$2:$C$7,6,0),Tax_Rate) -> 0 | AD35: =IF($D$32="No (pooled Asset Dep.)",0,0.5)*AD31*IFERROR(HLOOKUP(AD25,'Finance Input'!$B$2:$C$7,6,0),Tax_Rate) -> 0 | AE35: =IF($D$32="No (pooled Asset Dep.)",0,0.5)*AE31*IFERROR(HLOOKUP(AE25,'Finance Input'!$B$2:$C$7,6,0),Tax_Rate) -> 0 | AF35: =IF($D$32="No (pooled Asset Dep.)",0,0.5)*AF31*IFERROR(HLOOKUP(AF25,'Finance Input'!$B$2:$C$7,6,0),Tax_Rate) -> 0 | AG35: =IF($D$32="No (pooled Asset Dep.)",0,0.5)*AG31*IFERROR(HLOOKUP(AG25,'Finance Input'!$B$2:$C$7,6,0),Tax_Rate) -> 0 | AH35: =IF($D$32="No (pooled Asset Dep.)",0,0.5)*AH31*IFERROR(HLOOKUP(AH25,'Finance Input'!$B$2:$C$7,6,0),Tax_Rate) -> 0 | AI35: =IF($D$32="No (pooled Asset Dep.)",0,0.5)*AI31*IFERROR(HLOOKUP(AI25,'Finance Input'!$B$2:$C$7,6,0),Tax_Rate) -> 0 | AJ35: =IF($D$32="No (pooled Asset Dep.)",0,0.5)*AJ31*IFERROR(HLOOKUP(AJ25,'Finance Input'!$B$2:$C$7,6,0),Tax_Rate) -> 0 | AK35: =IF($D$32="No (pooled Asset Dep.)",0,0.5)*AK31*IFERROR(HLOOKUP(AK25,'Finance Input'!$B$2:$C$7,6,0),Tax_Rate) -> 0 | AL35: =IF($D$32="No (pooled Asset Dep.)",0,0.5)*AL31*IFERROR(HLOOKUP(AL25,'Finance Input'!$B$2:$C$7,6,0),Tax_Rate) -> 0 | AM35: =IF($D$32="No (pooled Asset Dep.)",0,0.5)*AM31*IFERROR(HLOOKUP(AM25,'Finance Input'!$B$2:$C$7,6,0),Tax_Rate) -> 0 | AN35: =IF($D$32="No (pooled Asset Dep.)",0,0.5)*AN31*IFERROR(HLOOKUP(AN25,'Finance Input'!$B$2:$C$7,6,0),Tax_Rate) -> 0 | AO35: =IF($D$32="No (pooled Asset Dep.)",0,0.5)*AO31*IFERROR(HLOOKUP(AO25,'Finance Input'!$B$2:$C$7,6,0),Tax_Rate) -> 0 | AP35: =IF($D$32="No (pooled Asset Dep.)",0,0.5)*AP31*IFERROR(HLOOKUP(AP25,'Finance Input'!$B$2:$C$7,6,0),Tax_Rate) -> 0 | AQ35: =IF($D$32="No (pooled Asset Dep.)",0,0.5)*AQ31*IFERROR(HLOOKUP(AQ25,'Finance Input'!$B$2:$C$7,6,0),Tax_Rate) -> 0 | AR35: =IF($D$32="No (pooled Asset Dep.)",0,0.5)*AR31*IFERROR(HLOOKUP(AR25,'Finance Input'!$B$2:$C$7,6,0),Tax_Rate) -> 0 | AS35: =IF($D$32="No (pooled Asset Dep.)",0,0.5)*AS31*IFERROR(HLOOKUP(AS25,'Finance Input'!$B$2:$C$7,6,0),Tax_Rate) -> 0 | AT35: =IF($D$32="No (pooled Asset Dep.)",0,0.5)*AT31*IFERROR(HLOOKUP(AT25,'Finance Input'!$B$2:$C$7,6,0),Tax_Rate) -> 0 | AU35: =IF($D$32="No (pooled Asset Dep.)",0,0.5)*AU31*IFERROR(HLOOKUP(AU25,'Finance Input'!$B$2:$C$7,6,0),Tax_Rate) -> 0 | AV35: =IF($D$32="No (pooled Asset Dep.)",0,0.5)*AV31*IFERROR(HLOOKUP(AV25,'Finance Input'!$B$2:$C$7,6,0),Tax_Rate) -> 0 | AW35: =IF($D$32="No (pooled Asset Dep.)",0,0.5)*AW31*IFERROR(HLOOKUP(AW25,'Finance Input'!$B$2:$C$7,6,0),Tax_Rate) -> 0 | AX35: =IF($D$32="No (pooled Asset Dep.)",0,0.5)*AX31*IFERROR(HLOOKUP(AX25,'Finance Input'!$B$2:$C$7,6,0),Tax_Rate) -> 0 | AY35: =IF($D$32="No (pooled Asset Dep.)",0,0.5)*AY31*IFERROR(HLOOKUP(AY25,'Finance Input'!$B$2:$C$7,6,0),Tax_Rate) -> 0 | AZ35: =IF($D$32="No (pooled Asset Dep.)",0,0.5)*AZ31*IFERROR(HLOOKUP(AZ25,'Finance Input'!$B$2:$C$7,6,0),Tax_Rate) -> 0 | BA35: =IF($D$32="No (pooled Asset Dep.)",0,0.5)*BA31*IFERROR(HLOOKUP(BA25,'Finance Input'!$B$2:$C$7,6,0),Tax_Rate) -> 0 | BB35: =IF($D$32="No (pooled Asset Dep.)",0,0.5)*BB31*IFERROR(HLOOKUP(BB25,'Finance Input'!$B$2:$C$7,6,0),Tax_Rate) -> 0 | BC35: =IF($D$32="No (pooled Asset Dep.)",0,0.5)*BC31*IFERROR(HLOOKUP(BC25,'Finance Input'!$B$2:$C$7,6,0),Tax_Rate) -> 0 | BD35: =IF($D$32="No (pooled Asset Dep.)",0,0.5)*BD31*IFERROR(HLOOKUP(BD25,'Finance Input'!$B$2:$C$7,6,0),Tax_Rate) -> 0 | BE35: =IF($D$32="No (pooled Asset Dep.)",0,0.5)*BE31*IFERROR(HLOOKUP(BE25,'Finance Input'!$B$2:$C$7,6,0),Tax_Rate) -> 0 | BF35: =IF($D$32="No (pooled Asset Dep.)",0,0.5)*BF31*IFERROR(HLOOKUP(BF25,'Finance Input'!$B$2:$C$7,6,0),Tax_Rate) -> 0 | BG35: =IF($D$32="No (pooled Asset Dep.)",0,0.5)*BG31*IFERROR(HLOOKUP(BG25,'Finance Input'!$B$2:$C$7,6,0),Tax_Rate) -> 0 | BH35: =IF($D$32="No (pooled Asset Dep.)",0,0.5)*BH31*IFERROR(HLOOKUP(BH25,'Finance Input'!$B$2:$C$7,6,0),Tax_Rate) -> 0 | BI35: =IF($D$32="No (pooled Asset Dep.)",0,0.5)*BI31*IFERROR(HLOOKUP(BI25,'Finance Input'!$B$2:$C$7,6,0),Tax_Rate) -> 0 | BJ35: =IF($D$32="No (pooled Asset Dep.)",0,0.5)*BJ31*IFERROR(HLOOKUP(BJ25,'Finance Input'!$B$2:$C$7,6,0),Tax_Rate) -> 0 | BK35: =IF($D$32="No (pooled Asset Dep.)",0,0.5)*BK31*IFERROR(HLOOKUP(BK25,'Finance Input'!$B$2:$C$7,6,0),Tax_Rate) -> 0 | BL35: =IF($D$32="No (pooled Asset Dep.)",0,0.5)*BL31*IFERROR(HLOOKUP(BL25,'Finance Input'!$B$2:$C$7,6,0),Tax_Rate) -> 0 | BM35: =IF($D$32="No (pooled Asset Dep.)",0,0.5)*BM31*IFERROR(HLOOKUP(BM25,'Finance Input'!$B$2:$C$7,6,0),Tax_Rate) -> 0 | BN35: =IF($D$32="No (pooled Asset Dep.)",0,0.5)*BN31*IFERROR(HLOOKUP(BN25,'Finance Input'!$B$2:$C$7,6,0),Tax_Rate) -> 0 | BO35: =IF($D$32="No (pooled Asset Dep.)",0,0.5)*BO31*IFERROR(HLOOKUP(BO25,'Finance Input'!$B$2:$C$7,6,0),Tax_Rate) -> 0 | BP35: =IF($D$32="No (pooled Asset Dep.)",0,0.5)*BP31*IFERROR(HLOOKUP(BP25,'Finance Input'!$B$2:$C$7,6,0),Tax_Rate) -> 0 | BQ35: =IF($D$32="No (pooled Asset Dep.)",0,0.5)*BQ31*IFERROR(HLOOKUP(BQ25,'Finance Input'!$B$2:$C$7,6,0),Tax_Rate) -> 0 | BR35: =IF($D$32="No (pooled Asset Dep.)",0,0.5)*BR31*IFERROR(HLOOKUP(BR25,'Finance Input'!$B$2:$C$7,6,0),Tax_Rate) -> 0
B36: Tax Provision | G36: =SUMPRODUCT(OFFSET(I36,,,,$B$2+1),OFFSET($I$43,,,,$B$2+1))+BR36*$BR$43 -> 14815.01297 | H36: =SUM(I36:INDEX(I36:BQ36,1,MATCH(End_Year,$I$25:$BQ$25,0)))+BR36 -> 24492.96474 | I36: =-I33*IFERROR(HLOOKUP(J25-1,'Finance Input'!$B$2:$C$7,6,0),Tax_Rate) -> 0 | J36: =-J33*IFERROR(HLOOKUP(J25,'Finance Input'!$B$2:$C$7,6,0),Tax_Rate) -> 1971.6 | K36: =-K33*IFERROR(HLOOKUP(K25,'Finance Input'!$B$2:$C$7,6,0),Tax_Rate) -> 1813.872 | L36: =-L33*IFERROR(HLOOKUP(L25,'Finance Input'!$B$2:$C$7,6,0),Tax_Rate) -> 1668.76224 | M36: =-M33*IFERROR(HLOOKUP(M25,'Finance Input'!$B$2:$C$7,6,0),Tax_Rate) -> 1535.261261 | N36: =-N33*IFERROR(HLOOKUP(N25,'Finance Input'!$B$2:$C$7,6,0),Tax_Rate) -> 1412.44036 | O36: =-O33*IFERROR(HLOOKUP(O25,'Finance Input'!$B$2:$C$7,6,0),Tax_Rate) -> 1299.445131 | P36: =-P33*IFERROR(HLOOKUP(P25,'Finance Input'!$B$2:$C$7,6,0),Tax_Rate) -> 1195.489521 | Q36: =-Q33*IFERROR(HLOOKUP(Q25,'Finance Input'!$B$2:$C$7,6,0),Tax_Rate) -> 1099.850359 | R36: =-R33*IFERROR(HLOOKUP(R25,'Finance Input'!$B$2:$C$7,6,0),Tax_Rate) -> 1011.86233 | S36: =-S33*IFERROR(HLOOKUP(S25,'Finance Input'!$B$2:$C$7,6,0),Tax_Rate) -> 930.9133439 | T36: =-T33*IFERROR(HLOOKUP(T25,'Finance Input'!$B$2:$C$7,6,0),Tax_Rate) -> 856.4402763 | U36: =-U33*IFERROR(HLOOKUP(U25,'Finance Input'!$B$2:$C$7,6,0),Tax_Rate) -> 787.9250542 | V36: =-V33*IFERROR(HLOOKUP(V25,'Finance Input'!$B$2:$C$7,6,0),Tax_Rate) -> 724.8910499 | W36: =-W33*IFERROR(HLOOKUP(W25,'Finance Input'!$B$2:$C$7,6,0),Tax_Rate) -> 666.8997659 | X36: =-X33*IFERROR(HLOOKUP(X25,'Finance Input'!$B$2:$C$7,6,0),Tax_Rate) -> 613.5477846 | Y36: =-Y33*IFERROR(HLOOKUP(Y25,'Finance Input'!$B$2:$C$7,6,0),Tax_Rate) -> 564.4639619 | Z36: =-Z33*IFERROR(HLOOKUP(Z25,'Finance Input'!$B$2:$C$7,6,0),Tax_Rate) -> 519.3068449 | AA36: =-AA33*IFERROR(HLOOKUP(AA25,'Finance Input'!$B$2:$C$7,6,0),Tax_Rate) -> 477.7622973 | AB36: =-AB33*IFERROR(HLOOKUP(AB25,'Finance Input'!$B$2:$C$7,6,0),Tax_Rate) -> 439.5413135 | AC36: =-AC33*IFERROR(HLOOKUP(AC25,'Finance Input'!$B$2:$C$7,6,0),Tax_Rate) -> 404.3780085 | AD36: =-AD33*IFERROR(HLOOKUP(AD25,'Finance Input'!$B$2:$C$7,6,0),Tax_Rate) -> 372.0277678 | AE36: =-AE33*IFERROR(HLOOKUP(AE25,'Finance Input'!$B$2:$C$7,6,0),Tax_Rate) -> 342.2655464 | AF36: =-AF33*IFERROR(HLOOKUP(AF25,'Finance Input'!$B$2:$C$7,6,0),Tax_Rate) -> 314.8843026 | AG36: =-AG33*IFERROR(HLOOKUP(AG25,'Finance Input'!$B$2:$C$7,6,0),Tax_Rate) -> 289.6935584 | AH36: =-AH33*IFERROR(HLOOKUP(AH25,'Finance Input'!$B$2:$C$7,6,0),Tax_Rate) -> 266.5180738 | AI36: =-AI33*IFERROR(HLOOKUP(AI25,'Finance Input'!$B$2:$C$7,6,0),Tax_Rate) -> 245.1966279 | AJ36: =-AJ33*IFERROR(HLOOKUP(AJ25,'Finance Input'!$B$2:$C$7,6,0),Tax_Rate) -> 225.5808976 | AK36: =-AK33*IFERROR(HLOOKUP(AK25,'Finance Input'!$B$2:$C$7,6,0),Tax_Rate) -> 207.5344258 | AL36: =-AL33*IFERROR(HLOOKUP(AL25,'Finance Input'!$B$2:$C$7,6,0),Tax_Rate) -> 190.9316718 | AM36: =-AM33*IFERROR(HLOOKUP(AM25,'Finance Input'!$B$2:$C$7,6,0),Tax_Rate) -> 175.657138 | AN36: =-AN33*IFERROR(HLOOKUP(AN25,'Finance Input'!$B$2:$C$7,6,0),Tax_Rate) -> 161.604567 | AO36: =-AO33*IFERROR(HLOOKUP(AO25,'Finance Input'!$B$2:$C$7,6,0),Tax_Rate) -> 148.6762016 | AP36: =-AP33*IFERROR(HLOOKUP(AP25,'Finance Input'!$B$2:$C$7,6,0),Tax_Rate) -> 136.7821055 | AQ36: =-AQ33*IFERROR(HLOOKUP(AQ25,'Finance Input'!$B$2:$C$7,6,0),Tax_Rate) -> 125.839537 | AR36: =-AR33*IFERROR(HLOOKUP(AR25,'Finance Input'!$B$2:$C$7,6,0),Tax_Rate) -> 115.7723741 | AS36: =-AS33*IFERROR(HLOOKUP(AS25,'Finance Input'!$B$2:$C$7,6,0),Tax_Rate) -> 106.5105842 | AT36: =-AT33*IFERROR(HLOOKUP(AT25,'Finance Input'!$B$2:$C$7,6,0),Tax_Rate) -> 97.98973742 | AU36: =-AU33*IFERROR(HLOOKUP(AU25,'Finance Input'!$B$2:$C$7,6,0),Tax_Rate) -> 90.15055843 | AV36: =-AV33*IFERROR(HLOOKUP(AV25,'Finance Input'!$B$2:$C$7,6,0),Tax_Rate) -> 82.93851376 | AW36: =-AW33*IFERROR(HLOOKUP(AW25,'Finance Input'!$B$2:$C$7,6,0),Tax_Rate) -> 76.30343266 | AX36: =-AX33*IFERROR(HLOOKUP(AX25,'Finance Input'!$B$2:$C$7,6,0),Tax_Rate) -> 70.19915804 | AY36: =-AY33*IFERROR(HLOOKUP(AY25,'Finance Input'!$B$2:$C$7,6,0),Tax_Rate) -> 64.5832254 | AZ36: =-AZ33*IFERROR(HLOOKUP(AZ25,'Finance Input'!$B$2:$C$7,6,0),Tax_Rate) -> 59.41656737 | BA36: =-BA33*IFERROR(HLOOKUP(BA25,'Finance Input'!$B$2:$C$7,6,0),Tax_Rate) -> 54.66324198 | BB36: =-BB33*IFERROR(HLOOKUP(BB25,'Finance Input'!$B$2:$C$7,6,0),Tax_Rate) -> 50.29018262 | BC36: =-BC33*IFERROR(HLOOKUP(BC25,'Finance Input'!$B$2:$C$7,6,0),Tax_Rate) -> 46.26696801 | BD36: =-BD33*IFERROR(HLOOKUP(BD25,'Finance Input'!$B$2:$C$7,6,0),Tax_Rate) -> 42.56561057 | BE36: =-BE33*IFERROR(HLOOKUP(BE25,'Finance Input'!$B$2:$C$7,6,0),Tax_Rate) -> 39.16036172 | BF36: =-BF33*IFERROR(HLOOKUP(BF25,'Finance Input'!$B$2:$C$7,6,0),Tax_Rate) -> 36.02753279 | BG36: =-BG33*IFERROR(HLOOKUP(BG25,'Finance Input'!$B$2:$C$7,6,0),Tax_Rate) -> 33.14533016 | BH36: =-BH33*IFERROR(HLOOKUP(BH25,'Finance Input'!$B$2:$C$7,6,0),Tax_Rate) -> 30.49370375 | BI36: =-BI33*IFERROR(HLOOKUP(BI25,'Finance Input'!$B$2:$C$7,6,0),Tax_Rate) -> 28.05420745 | BJ36: =-BJ33*IFERROR(HLOOKUP(BJ25,'Finance Input'!$B$2:$C$7,6,0),Tax_Rate) -> 25.80987085 | BK36: =-BK33*IFERROR(HLOOKUP(BK25,'Finance Input'!$B$2:$C$7,6,0),Tax_Rate) -> 23.74508119 | BL36: =-BL33*IFERROR(HLOOKUP(BL25,'Finance Input'!$B$2:$C$7,6,0),Tax_Rate) -> 21.84547469 | BM36: =-BM33*IFERROR(HLOOKUP(BM25,'Finance Input'!$B$2:$C$7,6,0),Tax_Rate) -> 20.09783672 | BN36: =-BN33*IFERROR(HLOOKUP(BN25,'Finance Input'!$B$2:$C$7,6,0),Tax_Rate) -> 18.49000978 | BO36: =-BO33*IFERROR(HLOOKUP(BO25,'Finance Input'!$B$2:$C$7,6,0),Tax_Rate) -> 17.010809 | BP36: =-BP33*IFERROR(HLOOKUP(BP25,'Finance Input'!$B$2:$C$7,6,0),Tax_Rate) -> 15.64994428 | BQ36: =-BQ33*IFERROR(HLOOKUP(BQ25,'Finance Input'!$B$2:$C$7,6,0),Tax_Rate) -> 14.39794873 | BR36: =IF(D4="NBV of Assets",0,-BR33*IFERROR(HLOOKUP(BR25,'Finance Input'!$B$2:$C$7,6,0),Tax_Rate)) -> 229.13604
B37: Sub-total of after-tax cash flow before the following: | G37: -41090.69634 | H37: =SUM(I37:INDEX(I37:BQ37,1,MATCH(End_Year,$I$25:$BQ$25,0)))+BR37 -> -67933.31731 | I37: =SUM(I33:I36) -> 0 | J37: -5468.4 | K37: -5030.928 | L37: -4628.45376 | M37: -4258.177459 | N37: -3917.523262 | O37: -3604.121401 | P37: -3315.791689 | Q37: -3050.528354 | R37: -2806.486086 | S37: -2581.967199 | T37: -2375.409823 | U37: -2185.377037 | V37: -2010.546874 | W37: -1849.703124 | X37: -1701.726874 | Y37: -1565.588724 | Z37: -1440.341626 | AA37: -1325.114296 | AB37: -1219.105153 | AC37: -1121.57674 | AD37: -1031.850601 | AE37: -949.3025531 | AF37: -873.3583489 | AG37: -803.4896809 | AH37: -739.2105065 | AI37: -680.0736659 | AJ37: -625.6677727 | AK37: -575.6143509 | AL37: -529.5652028 | AM37: -487.1999866 | AN37: -448.2239876 | AO37: =SUM(AO33:AO36) -> -412.3660686 | AP37: -379.3767831 | AQ37: -349.0266405 | AR37: -321.1045093 | AS37: -295.4161485 | AT37: -271.7828566 | AU37: -250.0402281 | AV37: -230.0370099 | AW37: -211.6340491 | AX37: -194.7033251 | AY37: -179.1270591 | AZ37: -164.7968944 | BA37: -151.6131428 | BB37: -139.4840914 | BC37: -128.3253641 | BD37: -118.059335 | BE37: -108.6145882 | BF37: -99.92542112 | BG37: -91.93138743 | BH37: -84.57687644 | BI37: -77.81072632 | BJ37: -71.58586822 | BK37: -65.85899876 | BL37: -60.59027886 | BM37: -55.74305655 | BN37: -51.28361203 | BO37: -47.18092306 | BP37: -43.40644922 | BQ37: -39.93393328 | BR37: -635.5282619
B38: CCA Claimed | G38: 55905.70931 | H38: =SUM(I38:INDEX(I38:BQ38,1,MATCH(End_Year,$I$25:$BQ$25,0)))+BR38 -> 92426.28205 | I38: =I32*(-1) -> 0 | J38: 7440 | K38: 6844.8 | L38: 6297.216 | M38: 5793.43872 | N38: 5329.963622 | O38: 4903.566533 | P38: 4511.28121 | Q38: 4150.378713 | R38: 3818.348416 | S38: 3512.880543 | T38: 3231.850099 | U38: 2973.302091 | V38: 2735.437924 | W38: 2516.60289 | X38: 2315.274659 | Y38: 2130.052686 | Z38: 1959.648471 | AA38: 1802.876594 | AB38: 1658.646466 | AC38: 1525.954749 | AD38: 1403.878369 | AE38: 1291.568099 | AF38: 1188.242651 | AG38: 1093.183239 | AH38: 1005.72858 | AI38: 925.2702938 | AJ38: 851.2486703 | AK38: 783.1487767 | AL38: 720.4968745 | AM38: 662.8571246 | AN38: 609.8285546 | AO38: =AO32*(-1) -> 561.0422702 | AP38: 516.1588886 | AQ38: 474.8661775 | AR38: 436.8768833 | AS38: 401.9267327 | AT38: 369.7725941 | AU38: 340.1907865 | AV38: 312.9755236 | AW38: 287.9374817 | AX38: 264.9024832 | AY38: 243.7102845 | AZ38: 224.2134618 | BA38: 206.2763848 | BB38: 189.774274 | BC38: 174.5923321 | BD38: 160.6249455 | BE38: 147.7749499 | BF38: 135.9529539 | BG38: 125.0767176 | BH38: 115.0705802 | BI38: 105.8649338 | BJ38: 97.39573907 | BK38: 89.60407995 | BL38: 82.43575355 | BM38: 75.84089327 | BN38: 69.77362181 | BO38: 64.19173206 | BP38: 59.0563935 | BQ38: 54.33188202 | BR38: 864.6643019
B39: Capital Expenditures (escalated) | G39: -93000 | H39: =SUM(I39:INDEX(I39:BQ39,1,MATCH(End_Year,$I$25:$BQ$25,0)))+BR39 -> -93000 | I39: =SUMIF(Table2[[#All],[Type of Cash Flow]:[Type of Cash Flow]],"Capital Expenditure",Table2[[#All],[Period 0]])-I31 -> -93000 | J39: =SUMIF(Table2[[#All],[Type of Cash Flow]:[Type of Cash Flow]],"Capital Expenditure",Table2[[#All],[2025]])-J31 -> 0 | K39: =SUMIF(Table2[[#All],[Type of Cash Flow]:[Type of Cash Flow]],"Capital Expenditure",Table2[[#All],[2026]])-K31 -> 0 | L39: =SUMIF(Table2[[#All],[Type of Cash Flow]:[Type of Cash Flow]],"Capital Expenditure",Table2[[#All],[2027]])-L31 -> 0 | M39: =SUMIF(Table2[[#All],[Type of Cash Flow]:[Type of Cash Flow]],"Capital Expenditure",Table2[[#All],[2028]])-M31 -> 0 | N39: =SUMIF(Table2[[#All],[Type of Cash Flow]:[Type of Cash Flow]],"Capital Expenditure",Table2[[#All],[2029]])-N31 -> 0 | O39: =SUMIF(Table2[[#All],[Type of Cash Flow]:[Type of Cash Flow]],"Capital Expenditure",Table2[[#All],[2030]])-O31 -> 0 | P39: =SUMIF(Table2[[#All],[Type of Cash Flow]:[Type of Cash Flow]],"Capital Expenditure",Table2[[#All],[2031]])-P31 -> 0 | Q39: =SUMIF(Table2[[#All],[Type of Cash Flow]:[Type of Cash Flow]],"Capital Expenditure",Table2[[#All],[2032]])-Q31 -> 0 | R39: =SUMIF(Table2[[#All],[Type of Cash Flow]:[Type of Cash Flow]],"Capital Expenditure",Table2[[#All],[2033]])-R31 -> 0 | S39: =SUMIF(Table2[[#All],[Type of Cash Flow]:[Type of Cash Flow]],"Capital Expenditure",Table2[[#All],[2034]])-S31 -> 0 | T39: =SUMIF(Table2[[#All],[Type of Cash Flow]:[Type of Cash Flow]],"Capital Expenditure",Table2[[#All],[2035]])-T31 -> 0 | U39: =SUMIF(Table2[[#All],[Type of Cash Flow]:[Type of Cash Flow]],"Capital Expenditure",Table2[[#All],[2036]])-U31 -> 0 | V39: =SUMIF(Table2[[#All],[Type of Cash Flow]:[Type of Cash Flow]],"Capital Expenditure",Table2[[#All],[2037]])-V31 -> 0 | W39: =SUMIF(Table2[[#All],[Type of Cash Flow]:[Type of Cash Flow]],"Capital Expenditure",Table2[[#All],[2038]])-W31 -> 0 | X39: =SUMIF(Table2[[#All],[Type of Cash Flow]:[Type of Cash Flow]],"Capital Expenditure",Table2[[#All],[2039]])-X31 -> 0 | Y39: =SUMIF(Table2[[#All],[Type of Cash Flow]:[Type of Cash Flow]],"Capital Expenditure",Table2[[#All],[2040]])-Y31 -> 0 | Z39: =SUMIF(Table2[[#All],[Type of Cash Flow]:[Type of Cash Flow]],"Capital Expenditure",Table2[[#All],[2041]])-Z31 -> 0 | AA39: =SUMIF(Table2[[#All],[Type of Cash Flow]:[Type of Cash Flow]],"Capital Expenditure",Table2[[#All],[2042]])-AA31 -> 0 | AB39: =SUMIF(Table2[[#All],[Type of Cash Flow]:[Type of Cash Flow]],"Capital Expenditure",Table2[[#All],[2043]])-AB31 -> 0 | AC39: =SUMIF(Table2[[#All],[Type of Cash Flow]:[Type of Cash Flow]],"Capital Expenditure",Table2[[#All],[2044]])-AC31 -> 0 | AD39: =SUMIF(Table2[[#All],[Type of Cash Flow]:[Type of Cash Flow]],"Capital Expenditure",Table2[[#All],[2045]])-AD31 -> 0 | AE39: =SUMIF(Table2[[#All],[Type of Cash Flow]:[Type of Cash Flow]],"Capital Expenditure",Table2[[#All],[2046]])-AE31 -> 0 | AF39: =SUMIF(Table2[[#All],[Type of Cash Flow]:[Type of Cash Flow]],"Capital Expenditure",Table2[[#All],[2047]])-AF31 -> 0 | AG39: =SUMIF(Table2[[#All],[Type of Cash Flow]:[Type of Cash Flow]],"Capital Expenditure",Table2[[#All],[2048]])-AG31 -> 0 | AH39: =SUMIF(Table2[[#All],[Type of Cash Flow]:[Type of Cash Flow]],"Capital Expenditure",Table2[[#All],[2049]])-AH31 -> 0 | AI39: =SUMIF(Table2[[#All],[Type of Cash Flow]:[Type of Cash Flow]],"Capital Expenditure",Table2[[#All],[2050]])-AI31 -> 0 | AJ39: =SUMIF(Table2[[#All],[Type of Cash Flow]:[Type of Cash Flow]],"Capital Expenditure",Table2[[#All],[2051]])-AJ31 -> 0 | AK39: =SUMIF(Table2[[#All],[Type of Cash Flow]:[Type of Cash Flow]],"Capital Expenditure",Table2[[#All],[2052]])-AK31 -> 0 | AL39: =SUMIF(Table2[[#All],[Type of Cash Flow]:[Type of Cash Flow]],"Capital Expenditure",Table2[[#All],[2053]])-AL31 -> 0 | AM39: =SUMIF(Table2[[#All],[Type of Cash Flow]:[Type of Cash Flow]],"Capital Expenditure",Table2[[#All],[2054]])-AM31 -> 0 | AN39: =SUMIF(Table2[[#All],[Type of Cash Flow]:[Type of Cash Flow]],"Capital Expenditure",Table2[[#All],[2055]])-AN31 -> 0 | AO39: =SUMIF(Table2[[#All],[Type of Cash Flow]:[Type of Cash Flow]],"Capital Expenditure",Table2[[#All],[2056]])-AO31 -> 0 | AP39: =SUMIF(Table2[[#All],[Type of Cash Flow]:[Type of Cash Flow]],"Capital Expenditure",Table2[[#All],[2057]])-AP31 -> 0 | AQ39: =SUMIF(Table2[[#All],[Type of Cash Flow]:[Type of Cash Flow]],"Capital Expenditure",Table2[[#All],[2058]])-AQ31 -> 0 | AR39: =SUMIF(Table2[[#All],[Type of Cash Flow]:[Type of Cash Flow]],"Capital Expenditure",Table2[[#All],[2059]])-AR31 -> 0 | AS39: =SUMIF(Table2[[#All],[Type of Cash Flow]:[Type of Cash Flow]],"Capital Expenditure",Table2[[#All],[2060]])-AS31 -> 0 | AT39: =SUMIF(Table2[[#All],[Type of Cash Flow]:[Type of Cash Flow]],"Capital Expenditure",Table2[[#All],[2061]])-AT31 -> 0 | AU39: =SUMIF(Table2[[#All],[Type of Cash Flow]:[Type of Cash Flow]],"Capital Expenditure",Table2[[#All],[2062]])-AU31 -> 0 | AV39: =SUMIF(Table2[[#All],[Type of Cash Flow]:[Type of Cash Flow]],"Capital Expenditure",Table2[[#All],[2063]])-AV31 -> 0 | AW39: =SUMIF(Table2[[#All],[Type of Cash Flow]:[Type of Cash Flow]],"Capital Expenditure",Table2[[#All],[2064]])-AW31 -> 0 | AX39: =SUMIF(Table2[[#All],[Type of Cash Flow]:[Type of Cash Flow]],"Capital Expenditure",Table2[[#All],[2065]])-AX31 -> 0 | AY39: =SUMIF(Table2[[#All],[Type of Cash Flow]:[Type of Cash Flow]],"Capital Expenditure",Table2[[#All],[2066]])-AY31 -> 0 | AZ39: =SUMIF(Table2[[#All],[Type of Cash Flow]:[Type of Cash Flow]],"Capital Expenditure",Table2[[#All],[2067]])-AZ31 -> 0 | BA39: =SUMIF(Table2[[#All],[Type of Cash Flow]:[Type of Cash Flow]],"Capital Expenditure",Table2[[#All],[2068]])-BA31 -> 0 | BB39: =SUMIF(Table2[[#All],[Type of Cash Flow]:[Type of Cash Flow]],"Capital Expenditure",Table2[[#All],[2069]])-BB31 -> 0 | BC39: =SUMIF(Table2[[#All],[Type of Cash Flow]:[Type of Cash Flow]],"Capital Expenditure",Table2[[#All],[2070]])-BC31 -> 0 | BD39: =SUMIF(Table2[[#All],[Type of Cash Flow]:[Type of Cash Flow]],"Capital Expenditure",Table2[[#All],[2071]])-BD31 -> 0 | BE39: =SUMIF(Table2[[#All],[Type of Cash Flow]:[Type of Cash Flow]],"Capital Expenditure",Table2[[#All],[2072]])-BE31 -> 0 | BF39: =SUMIF(Table2[[#All],[Type of Cash Flow]:[Type of Cash Flow]],"Capital Expenditure",Table2[[#All],[2073]])-BF31 -> 0 | BG39: =SUMIF(Table2[[#All],[Type of Cash Flow]:[Type of Cash Flow]],"Capital Expenditure",Table2[[#All],[2074]])-BG31 -> 0 | BH39: =SUMIF(Table2[[#All],[Type of Cash Flow]:[Type of Cash Flow]],"Capital Expenditure",Table2[[#All],[2075]])-BH31 -> 0 | BI39: =SUMIF(Table2[[#All],[Type of Cash Flow]:[Type of Cash Flow]],"Capital Expenditure",Table2[[#All],[2076]])-BI31 -> 0 | BJ39: =SUMIF(Table2[[#All],[Type of Cash Flow]:[Type of Cash Flow]],"Capital Expenditure",Table2[[#All],[2077]])-BJ31 -> 0 | BK39: =SUMIF(Table2[[#All],[Type of Cash Flow]:[Type of Cash Flow]],"Capital Expenditure",Table2[[#All],[2078]])-BK31 -> 0 | BL39: =SUMIF(Table2[[#All],[Type of Cash Flow]:[Type of Cash Flow]],"Capital Expenditure",Table2[[#All],[2079]])-BL31 -> 0 | BM39: =SUMIF(Table2[[#All],[Type of Cash Flow]:[Type of Cash Flow]],"Capital Expenditure",Table2[[#All],[2080]])-BM31 -> 0 | BN39: =SUMIF(Table2[[#All],[Type of Cash Flow]:[Type of Cash Flow]],"Capital Expenditure",Table2[[#All],[2081]])-BN31 -> 0 | BO39: =SUMIF(Table2[[#All],[Type of Cash Flow]:[Type of Cash Flow]],"Capital Expenditure",Table2[[#All],[2082]])-BO31 -> 0 | BP39: =SUMIF(Table2[[#All],[Type of Cash Flow]:[Type of Cash Flow]],"Capital Expenditure",Table2[[#All],[2083]])-BP31 -> 0 | BQ39: =SUMIF(Table2[[#All],[Type of Cash Flow]:[Type of Cash Flow]],"Capital Expenditure",Table2[[#All],[2084]])-BQ31 -> 0 | BR39: =SUMIF(Table2[[#All],[Type of Cash Flow]:[Type of Cash Flow]],"Capital Expenditure",Table2[[#All],[Terminal Value]])-BR31 -> 0
B40: Change in working capital | G40: -9459.022554 | H40: =SUM(I40:INDEX(I40:BQ40,1,MATCH(End_Year,$I$25:$BQ$25,0)))+BR40 -> -32656.25241 | I40: =SUMIF(Table2[[#All],[Type of Cash Flow]:[Type of Cash Flow]],"Change in working capital",Table2[[#All],[Period 0]]) -> 0 | J40: =SUMIF(Table2[[#All],[Type of Cash Flow]:[Type of Cash Flow]],"Change in working capital",Table2[[#All],[2025]]) -> -395.2876459 | K40: =SUMIF(Table2[[#All],[Type of Cash Flow]:[Type of Cash Flow]],"Change in working capital",Table2[[#All],[2026]]) -> -403.1155771 | L40: =SUMIF(Table2[[#All],[Type of Cash Flow]:[Type of Cash Flow]],"Change in working capital",Table2[[#All],[2027]]) -> -411.138239 | M40: =SUMIF(Table2[[#All],[Type of Cash Flow]:[Type of Cash Flow]],"Change in working capital",Table2[[#All],[2028]]) -> -419.3612711 | N40: =SUMIF(Table2[[#All],[Type of Cash Flow]:[Type of Cash Flow]],"Change in working capital",Table2[[#All],[2029]]) -> -427.7487693 | O40: =SUMIF(Table2[[#All],[Type of Cash Flow]:[Type of Cash Flow]],"Change in working capital",Table2[[#All],[2030]]) -> -436.3040228 | P40: =SUMIF(Table2[[#All],[Type of Cash Flow]:[Type of Cash Flow]],"Change in working capital",Table2[[#All],[2031]]) -> -445.030387 | Q40: =SUMIF(Table2[[#All],[Type of Cash Flow]:[Type of Cash Flow]],"Change in working capital",Table2[[#All],[2032]]) -> -453.9312842 | R40: =SUMIF(Table2[[#All],[Type of Cash Flow]:[Type of Cash Flow]],"Change in working capital",Table2[[#All],[2033]]) -> -463.010205 | S40: =SUMIF(Table2[[#All],[Type of Cash Flow]:[Type of Cash Flow]],"Change in working capital",Table2[[#All],[2034]]) -> -472.2707102 | T40: =SUMIF(Table2[[#All],[Type of Cash Flow]:[Type of Cash Flow]],"Change in working capital",Table2[[#All],[2035]]) -> -481.7164316 | U40: =SUMIF(Table2[[#All],[Type of Cash Flow]:[Type of Cash Flow]],"Change in working capital",Table2[[#All],[2036]]) -> -491.3510735 | V40: =SUMIF(Table2[[#All],[Type of Cash Flow]:[Type of Cash Flow]],"Change in working capital",Table2[[#All],[2037]]) -> -501.1784145 | W40: =SUMIF(Table2[[#All],[Type of Cash Flow]:[Type of Cash Flow]],"Change in working capital",Table2[[#All],[2038]]) -> -511.2023087 | X40: =SUMIF(Table2[[#All],[Type of Cash Flow]:[Type of Cash Flow]],"Change in working capital",Table2[[#All],[2039]]) -> -521.4266873 | Y40: =SUMIF(Table2[[#All],[Type of Cash Flow]:[Type of Cash Flow]],"Change in working capital",Table2[[#All],[2040]]) -> -531.8555601 | Z40: =SUMIF(Table2[[#All],[Type of Cash Flow]:[Type of Cash Flow]],"Change in working capital",Table2[[#All],[2041]]) -> -542.4930172 | AA40: =SUMIF(Table2[[#All],[Type of Cash Flow]:[Type of Cash Flow]],"Change in working capital",Table2[[#All],[2042]]) -> -553.3432303 | AB40: =SUMIF(Table2[[#All],[Type of Cash Flow]:[Type of Cash Flow]],"Change in working capital",Table2[[#All],[2043]]) -> -564.4104548 | AC40: =SUMIF(Table2[[#All],[Type of Cash Flow]:[Type of Cash Flow]],"Change in working capital",Table2[[#All],[2044]]) -> -575.6990309 | AD40: =SUMIF(Table2[[#All],[Type of Cash Flow]:[Type of Cash Flow]],"Change in working capital",Table2[[#All],[2045]]) -> -587.2133859 | AE40: =SUMIF(Table2[[#All],[Type of Cash Flow]:[Type of Cash Flow]],"Change in working capital",Table2[[#All],[2046]]) -> -598.9580355 | AF40: =SUMIF(Table2[[#All],[Type of Cash Flow]:[Type of Cash Flow]],"Change in working capital",Table2[[#All],[2047]]) -> -610.9375857 | AG40: =SUMIF(Table2[[#All],[Type of Cash Flow]:[Type of Cash Flow]],"Change in working capital",Table2[[#All],[2048]]) -> -623.1567347 | AH40: =SUMIF(Table2[[#All],[Type of Cash Flow]:[Type of Cash Flow]],"Change in working capital",Table2[[#All],[2049]]) -> -635.6202746 | AI40: =SUMIF(Table2[[#All],[Type of Cash Flow]:[Type of Cash Flow]],"Change in working capital",Table2[[#All],[2050]]) -> -648.3330935 | AJ40: =SUMIF(Table2[[#All],[Type of Cash Flow]:[Type of Cash Flow]],"Change in working capital",Table2[[#All],[2051]]) -> -661.300177 | AK40: =SUMIF(Table2[[#All],[Type of Cash Flow]:[Type of Cash Flow]],"Change in working capital",Table2[[#All],[2052]]) -> -674.5266105 | AL40: =SUMIF(Table2[[#All],[Type of Cash Flow]:[Type of Cash Flow]],"Change in working capital",Table2[[#All],[2053]]) -> -688.0175814 | AM40: =SUMIF(Table2[[#All],[Type of Cash Flow]:[Type of Cash Flow]],"Change in working capital",Table2[[#All],[2054]]) -> -701.7783804 | AN40: =SUMIF(Table2[[#All],[Type of Cash Flow]:[Type of Cash Flow]],"Change in working capital",Table2[[#All],[2055]]) -> -715.8144044 | AO40: =SUMIF(Table2[[#All],[Type of Cash Flow]:[Type of Cash Flow]],"Change in working capital",Table2[[#All],[2056]]) -> -730.131158 | AP40: =SUMIF(Table2[[#All],[Type of Cash Flow]:[Type of Cash Flow]],"Change in working capital",Table2[[#All],[2057]]) -> -744.734256 | AQ40: =SUMIF(Table2[[#All],[Type of Cash Flow]:[Type of Cash Flow]],"Change in working capital",Table2[[#All],[2058]]) -> -759.6294254 | AR40: =SUMIF(Table2[[#All],[Type of Cash Flow]:[Type of Cash Flow]],"Change in working capital",Table2[[#All],[2059]]) -> -778.2802387 | AS40: =SUMIF(Table2[[#All],[Type of Cash Flow]:[Type of Cash Flow]],"Change in working capital",Table2[[#All],[2060]]) -> -793.8463496 | AT40: =SUMIF(Table2[[#All],[Type of Cash Flow]:[Type of Cash Flow]],"Change in working capital",Table2[[#All],[2061]]) -> -809.7237929 | AU40: =SUMIF(Table2[[#All],[Type of Cash Flow]:[Type of Cash Flow]],"Change in working capital",Table2[[#All],[2062]]) -> -825.9187953 | AV40: =SUMIF(Table2[[#All],[Type of Cash Flow]:[Type of Cash Flow]],"Change in working capital",Table2[[#All],[2063]]) -> -842.4377083 | AW40: =SUMIF(Table2[[#All],[Type of Cash Flow]:[Type of Cash Flow]],"Change in working capital",Table2[[#All],[2064]]) -> -859.2870103 | AX40: =SUMIF(Table2[[#All],[Type of Cash Flow]:[Type of Cash Flow]],"Change in working capital",Table2[[#All],[2065]]) -> -876.4733093 | AY40: =SUMIF(Table2[[#All],[Type of Cash Flow]:[Type of Cash Flow]],"Change in working capital",Table2[[#All],[2066]]) -> -876.4733093 | AZ40: =SUMIF(Table2[[#All],[Type of Cash Flow]:[Type of Cash Flow]],"Change in working capital",Table2[[#All],[2067]]) -> -876.4733093 | BA40: =SUMIF(Table2[[#All],[Type of Cash Flow]:[Type of Cash Flow]],"Change in working capital",Table2[[#All],[2068]]) -> -876.4733093 | BB40: =SUMIF(Table2[[#All],[Type of Cash Flow]:[Type of Cash Flow]],"Change in working capital",Table2[[#All],[2069]]) -> -876.4733093 | BC40: =SUMIF(Table2[[#All],[Type of Cash Flow]:[Type of Cash Flow]],"Change in working capital",Table2[[#All],[2070]]) -> -876.4733093 | BD40: =SUMIF(Table2[[#All],[Type of Cash Flow]:[Type of Cash Flow]],"Change in working capital",Table2[[#All],[2071]]) -> -876.4733093 | BE40: =SUMIF(Table2[[#All],[Type of Cash Flow]:[Type of Cash Flow]],"Change in working capital",Table2[[#All],[2072]]) -> -876.4733093 | BF40: =SUMIF(Table2[[#All],[Type of Cash Flow]:[Type of Cash Flow]],"Change in working capital",Table2[[#All],[2073]]) -> -876.4733093 | BG40: =SUMIF(Table2[[#All],[Type of Cash Flow]:[Type of Cash Flow]],"Change in working capital",Table2[[#All],[2074]]) -> -876.4733093 | BH40: =SUMIF(Table2[[#All],[Type of Cash Flow]:[Type of Cash Flow]],"Change in working capital",Table2[[#All],[2075]]) -> 0 | BI40: =SUMIF(Table2[[#All],[Type of Cash Flow]:[Type of Cash Flow]],"Change in working capital",Table2[[#All],[2076]]) -> 0 | BJ40: =SUMIF(Table2[[#All],[Type of Cash Flow]:[Type of Cash Flow]],"Change in working capital",Table2[[#All],[2077]]) -> 0 | BK40: =SUMIF(Table2[[#All],[Type of Cash Flow]:[Type of Cash Flow]],"Change in working capital",Table2[[#All],[2078]]) -> 0 | BL40: =SUMIF(Table2[[#All],[Type of Cash Flow]:[Type of Cash Flow]],"Change in working capital",Table2[[#All],[2079]]) -> 0 | BM40: =SUMIF(Table2[[#All],[Type of Cash Flow]:[Type of Cash Flow]],"Change in working capital",Table2[[#All],[2080]]) -> 0 | BN40: =SUMIF(Table2[[#All],[Type of Cash Flow]:[Type of Cash Flow]],"Change in working capital",Table2[[#All],[2081]]) -> 0 | BO40: =SUMIF(Table2[[#All],[Type of Cash Flow]:[Type of Cash Flow]],"Change in working capital",Table2[[#All],[2082]]) -> 0 | BP40: =SUMIF(Table2[[#All],[Type of Cash Flow]:[Type of Cash Flow]],"Change in working capital",Table2[[#All],[2083]]) -> 0 | BQ40: =SUMIF(Table2[[#All],[Type of Cash Flow]:[Type of Cash Flow]],"Change in working capital",Table2[[#All],[2084]]) -> 0 | BR40: =SUMIF(Table2[[#All],[Type of Cash Flow]:[Type of Cash Flow]],"Change in working capital",Table2[[#All],[Terminal Value]]) -> 0
B41: Cash Flow from operations | G41: -87644.00959 | H41: =SUM(I41:INDEX(I41:BQ41,1,MATCH(End_Year,$I$25:$BQ$25,0)))+BR41 -> -101163.2877 | I41: =SUM(I37:I40) -> -93000 | J41: 1576.312354 | K41: 1410.756423 | L41: 1257.624001 | M41: 1115.89999 | N41: 984.6915907 | O41: 863.1411083 | P41: 750.4591336 | Q41: 645.9190748 | R41: 548.8521252 | S41: 458.6426336 | T41: 374.7238448 | U41: 296.5739808 | V41: 223.7126354 | W41: 155.6974572 | X41: 92.12109736 | Y41: 32.60840176 | Z41: -23.18617226 | AA41: -75.58093299 | AB41: -124.8691412 | AC41: -171.3210224 | AD41: -215.1856181 | AE41: -256.6924891 | AF41: -296.053283 | AG41: -333.4631763 | AH41: -369.1022009 | AI41: -403.1364656 | AJ41: -435.7192793 | AK41: -466.9921847 | AL41: -497.0859096 | AM41: -526.1212424 | AN41: -554.2098374 | AO41: =SUM(AO37:AO40) -> -581.4549564 | AP41: -607.9521505 | AQ41: -633.7898884 | AR41: -662.5078646 | AS41: -687.3357655 | AT41: -711.7340554 | AU41: -735.7682368 | AV41: -759.4991945 | AW41: -782.9835776 | AX41: -806.2741512 | AY41: -811.8900839 | AZ41: -817.0567419 | BA41: -821.8100673 | BB41: -826.1831267 | BC41: -830.2063413 | BD41: -833.9076987 | BE41: -837.3129476 | BF41: -840.4457765 | BG41: -843.3279791 | BH41: 30.49370375 | BI41: 28.05420745 | BJ41: 25.80987085 | BK41: 23.74508119 | BL41: 21.84547469 | BM41: 20.09783672 | BN41: 18.49000978 | BO41: 17.010809 | BP41: 15.64994428 | BQ41: 14.39794873 | BR41: 229.13604
B43: Present Value Factor Applied | C43: Discount timing: | D43: Full Year Discount | I43: 1 | J43: =IF($D$43="Full Year Discount",I43/(1+WACC),IF($D$43="Mid-Year Discount",(1+WACC)^(Start_Year-J25-0.5),(1+WACC)^(Start_Year-J25))) -> 0.9495943722 | K43: 0.9017294717 | L43: 0.8562772316 | M43: 0.8131160402 | N43: 0.7721304158 | O43: 0.7332106974 | P43: 0.6962527519 | Q43: 0.6611576949 | R43: 0.6278316262 | S43: 0.5961853789 | T43: 0.5661342806 | U43: 0.5375979268 | V43: 0.5104999658 | W43: 0.4847678945 | X43: 0.4603328645 | Y43: 0.4371294975 | Z43: 0.4150957107 | AA43: 0.3941725508 | AB43: 0.374304036 | AC43: 0.355437006 | AD43: 0.3375209806 | AE43: 0.3205080237 | AF43: 0.3043526156 | AG43: 0.2890115309 | AH43: 0.2744437233 | AI43: 0.2606102151 | AJ43: 0.2474739936 | AK43: 0.2349999116 | AL43: 0.2231545935 | AM43: 0.2119063461 | AN43: 0.2012250737 | AO43: 0.1910821976 | AP43: =IF($D$43="Full Year Discount",AO43/(1+WACC),IF($D$43="Mid-Year Discount",(1+WACC)^(Start_Year-AP25-0.5),(1+WACC)^(Start_Year-AP25))) -> 0.1814505794 | AQ43: 0.1723044491 | AR43: 0.1636193351 | AS43: 0.1553719998 | AT43: 0.1475403766 | AU43: 0.1401035113 | AV43: 0.1330415059 | AW43: 0.1263354653 | AX43: 0.1199674468 | AY43: 0.1139204124 | AZ43: 0.1081781825 | BA43: 0.1027253933 | BB43: 0.09754745532 | BC43: 0.0926305146 | BD43: 0.08796141536 | BE43: 0.08352766499 | BF43: 0.0793174006 | BG43: 0.07531935723 | BH43: 0.07152283775 | BI43: 0.06791768421 | BJ43: 0.0644942507 | BK43: 0.0612433775 | BL43: 0.05815636661 | BM43: 0.05522495845 | BN43: 0.05244130975 | BO43: 0.04979797261 | BP43: 0.04728787453 | BQ43: 0.04490429953 | BR43: =OFFSET(I43,,B2,,) -> 0.07531935723
B45: Present Value by Year | G45: =SUM(I45:OFFSET(I45,,B2))+BR45 -> -87644.00959 | I45: =I43*I41 -> -93000 | J45: =J43*J41 -> 1496.85734 | K45: 1272.120644 | L45: 1076.874798 | M45: 907.3561809 | N45: 760.3103273 | O45: 632.864294 | P45: 522.509237 | Q45: 427.0543666 | R45: 344.5867223 | S45: 273.4360323 | T45: 212.1440143 | U45: 159.4375572 | V45: 114.2052927 | W45: 75.47712853 | X45: 42.40636863 | Y45: 14.25409427 | Z45: -9.624480655 | AA45: -29.79192915 | AB45: -46.73902352 | AC45: -60.89383129 | AD45: -72.62966084 | AE45: -82.27200239 | AF45: -90.10459104 | AG45: -96.37470307 | AH45: -101.2977823 | AI45: -105.061481 | AJ45: -107.8291901 | AK45: -109.7431221 | AL45: -110.9270041 | AM45: -111.4884301 | AN45: -111.5209154 | AO45: -111.1056908 | AP45: -110.31327 | AQ45: -109.2048175 | AR45: -108.3990963 | AS45: -106.7927324 | AT45: -105.0095106 | AU45: -103.0837135 | AV45: -101.0449166 | AW45: -98.91859458 | AX45: -96.72665137 | AY45: -92.49085315 | AZ45: -88.3877133 | BA45: -84.42076235 | BB45: -80.59206164 | BC45: -76.90244061 | BD45: -73.35170146 | BE45: -69.93879538 | BF45: -66.66197434 | BG45: -63.51892132 | BH45: 2.180996226 | BI45: 1.905376802 | BJ45: 1.664588281 | BK45: 1.454228971 | BL45: 1.270453435 | BM45: 1.109902197 | BN45: 0.96964033 | BO45: 0.8471038004 | BP45: 0.7400526014 | BQ45: 0.6465298026 | BR45: 17.25837925
B46: Accumulated Present Value | G46: =BR46 -> -87644.00959 | I46: =I45 -> -93000 | J46: =J45+I46 -> -91503.14266 | K46: =K45+J46 -> -90231.02202 | L46: -89154.14722 | M46: -88246.79104 | N46: -87486.48071 | O46: -86853.61642 | P46: -86331.10718 | Q46: -85904.05281 | R46: -85559.46609 | S46: -85286.03006 | T46: -85073.88604 | U46: -84914.44849 | V46: -84800.24319 | W46: -84724.76606 | X46: -84682.3597 | Y46: -84668.1056 | Z46: -84677.73008 | AA46: -84707.52201 | AB46: -84754.26103 | AC46: -84815.15487 | AD46: -84887.78453 | AE46: -84970.05653 | AF46: -85060.16112 | AG46: -85156.53582 | AH46: -85257.83361 | AI46: -85362.89509 | AJ46: -85470.72428 | AK46: -85580.4674 | AL46: -85691.3944 | AM46: -85802.88283 | AN46: -85914.40375 | AO46: -86025.50944 | AP46: -86135.82271 | AQ46: -86245.02753 | AR46: -86353.42662 | AS46: -86460.21936 | AT46: -86565.22887 | AU46: -86668.31258 | AV46: -86769.3575 | AW46: -86868.27609 | AX46: -86965.00274 | AY46: -87057.4936 | AZ46: -87145.88131 | BA46: -87230.30207 | BB46: -87310.89413 | BC46: -87387.79657 | BD46: -87461.14828 | BE46: -87531.08707 | BF46: -87597.74904 | BG46: -87661.26797 | BH46: -87659.08697 | BI46: -87657.18159 | BJ46: -87655.517 | BK46: -87654.06278 | BL46: -87652.79232 | BM46: -87651.68242 | BN46: -87650.71278 | BO46: -87649.86568 | BP46: -87649.12562 | BQ46: -87648.47909 | BR46: =OFFSET(I46,,B2,,)+BR45 -> -87644.00959
A48: Capital Expenditures & CCA Calculations
D49: CCA Class | E49: CCA Rate | F49: Suggested Service Life | H49: Undiscounted Total Cashflow | I49: 0 | J49: =Start_Year -> 2025 | K49: =J49+1 -> 2026 | L49: =K49+1 -> 2027 | M49: 2028 | N49: 2029 | O49: 2030 | P49: 2031 | Q49: 2032 | R49: 2033 | S49: 2034 | T49: 2035 | U49: 2036 | V49: 2037 | W49: 2038 | X49: 2039 | Y49: 2040 | Z49: 2041 | AA49: 2042 | AB49: 2043 | AC49: 2044 | AD49: 2045 | AE49: 2046 | AF49: 2047 | AG49: 2048 | AH49: 2049 | AI49: 2050 | AJ49: 2051 | AK49: 2052 | AL49: 2053 | AM49: 2054 | AN49: 2055 | AO49: 2056 | AP49: 2057 | AQ49: 2058 | AR49: 2059 | AS49: 2060 | AT49: 2061 | AU49: 2062 | AV49: 2063 | AW49: 2064 | AX49: 2065 | AY49: 2066 | AZ49: 2067 | BA49: 2068 | BB49: 2069 | BC49: 2070 | BD49: 2071 | BE49: 2072 | BF49: 2073 | BG49: 2074 | BH49: 2075 | BI49: 2076 | BJ49: 2077 | BK49: 2078 | BL49: 2079 | BM49: 2080 | BN49: 2081 | BO49: 2082 | BP49: 2083 | BQ49: 2084 | BR49: Terminal Value
A50: Land | I50: =SUMIF(Table2[[#All],[CCA Class]:[CCA Class]],"Land",Table2[[#All],[Period 0]])*(-1) -> 0 | J50: =SUMIF(Table2[[#All],[CCA Class]:[CCA Class]],"Land",Table2[[#All],[2025]])*(-1) -> 0 | K50: =SUMIF(Table2[[#All],[CCA Class]:[CCA Class]],"Land",Table2[[#All],[2026]])*(-1) -> 0 | L50: =SUMIF(Table2[[#All],[CCA Class]:[CCA Class]],"Land",Table2[[#All],[2027]])*(-1) -> 0 | M50: =SUMIF(Table2[[#All],[CCA Class]:[CCA Class]],"Land",Table2[[#All],[2028]])*(-1) -> 0 | N50: =SUMIF(Table2[[#All],[CCA Class]:[CCA Class]],"Land",Table2[[#All],[2029]])*(-1) -> 0 | O50: =SUMIF(Table2[[#All],[CCA Class]:[CCA Class]],"Land",Table2[[#All],[2030]])*(-1) -> 0 | P50: =SUMIF(Table2[[#All],[CCA Class]:[CCA Class]],"Land",Table2[[#All],[2031]])*(-1) -> 0 | Q50: =SUMIF(Table2[[#All],[CCA Class]:[CCA Class]],"Land",Table2[[#All],[2032]])*(-1) -> 0 | R50: =SUMIF(Table2[[#All],[CCA Class]:[CCA Class]],"Land",Table2[[#All],[2033]])*(-1) -> 0 | S50: =SUMIF(Table2[[#All],[CCA Class]:[CCA Class]],"Land",Table2[[#All],[2034]])*(-1) -> 0 | T50: =SUMIF(Table2[[#All],[CCA Class]:[CCA Class]],"Land",Table2[[#All],[2035]])*(-1) -> 0 | U50: =SUMIF(Table2[[#All],[CCA Class]:[CCA Class]],"Land",Table2[[#All],[2036]])*(-1) -> 0 | V50: =SUMIF(Table2[[#All],[CCA Class]:[CCA Class]],"Land",Table2[[#All],[2037]])*(-1) -> 0 | W50: =SUMIF(Table2[[#All],[CCA Class]:[CCA Class]],"Land",Table2[[#All],[2038]])*(-1) -> 0 | X50: =SUMIF(Table2[[#All],[CCA Class]:[CCA Class]],"Land",Table2[[#All],[2039]])*(-1) -> 0 | Y50: =SUMIF(Table2[[#All],[CCA Class]:[CCA Class]],"Land",Table2[[#All],[2040]])*(-1) -> 0 | Z50: =SUMIF(Table2[[#All],[CCA Class]:[CCA Class]],"Land",Table2[[#All],[2041]])*(-1) -> 0 | AA50: =SUMIF(Table2[[#All],[CCA Class]:[CCA Class]],"Land",Table2[[#All],[2042]])*(-1) -> 0 | AB50: =SUMIF(Table2[[#All],[CCA Class]:[CCA Class]],"Land",Table2[[#All],[2043]])*(-1) -> 0 | AC50: =SUMIF(Table2[[#All],[CCA Class]:[CCA Class]],"Land",Table2[[#All],[2044]])*(-1) -> 0 | AD50: =SUMIF(Table2[[#All],[CCA Class]:[CCA Class]],"Land",Table2[[#All],[2045]])*(-1) -> 0 | AE50: =SUMIF(Table2[[#All],[CCA Class]:[CCA Class]],"Land",Table2[[#All],[2046]])*(-1) -> 0 | AF50: =SUMIF(Table2[[#All],[CCA Class]:[CCA Class]],"Land",Table2[[#All],[2047]])*(-1) -> 0 | AG50: =SUMIF(Table2[[#All],[CCA Class]:[CCA Class]],"Land",Table2[[#All],[2048]])*(-1) -> 0 | AH50: =SUMIF(Table2[[#All],[CCA Class]:[CCA Class]],"Land",Table2[[#All],[2049]])*(-1) -> 0 | AI50: =SUMIF(Table2[[#All],[CCA Class]:[CCA Class]],"Land",Table2[[#All],[2050]])*(-1) -> 0 | AJ50: =SUMIF(Table2[[#All],[CCA Class]:[CCA Class]],"Land",Table2[[#All],[2051]])*(-1) -> 0 | AK50: =SUMIF(Table2[[#All],[CCA Class]:[CCA Class]],"Land",Table2[[#All],[2052]])*(-1) -> 0 | AL50: =SUMIF(Table2[[#All],[CCA Class]:[CCA Class]],"Land",Table2[[#All],[2053]])*(-1) -> 0 | AM50: =SUMIF(Table2[[#All],[CCA Class]:[CCA Class]],"Land",Table2[[#All],[2054]])*(-1) -> 0 | AN50: =SUMIF(Table2[[#All],[CCA Class]:[CCA Class]],"Land",Table2[[#All],[2055]])*(-1) -> 0 | AO50: =SUMIF(Table2[[#All],[CCA Class]:[CCA Class]],"Land",Table2[[#All],[2056]])*(-1) -> 0 | AP50: =SUMIF(Table2[[#All],[CCA Class]:[CCA Class]],"Land",Table2[[#All],[2057]])*(-1) -> 0 | AQ50: =SUMIF(Table2[[#All],[CCA Class]:[CCA Class]],"Land",Table2[[#All],[2058]])*(-1) -> 0 | AR50: =SUMIF(Table2[[#All],[CCA Class]:[CCA Class]],"Land",Table2[[#All],[2059]])*(-1) -> 0 | AS50: =SUMIF(Table2[[#All],[CCA Class]:[CCA Class]],"Land",Table2[[#All],[2060]])*(-1) -> 0 | AT50: =SUMIF(Table2[[#All],[CCA Class]:[CCA Class]],"Land",Table2[[#All],[2061]])*(-1) -> 0 | AU50: =SUMIF(Table2[[#All],[CCA Class]:[CCA Class]],"Land",Table2[[#All],[2062]])*(-1) -> 0 | AV50: =SUMIF(Table2[[#All],[CCA Class]:[CCA Class]],"Land",Table2[[#All],[2063]])*(-1) -> 0 | AW50: =SUMIF(Table2[[#All],[CCA Class]:[CCA Class]],"Land",Table2[[#All],[2064]])*(-1) -> 0 | AX50: =SUMIF(Table2[[#All],[CCA Class]:[CCA Class]],"Land",Table2[[#All],[2065]])*(-1) -> 0 | AY50: =SUMIF(Table2[[#All],[CCA Class]:[CCA Class]],"Land",Table2[[#All],[2066]])*(-1) -> 0 | AZ50: =SUMIF(Table2[[#All],[CCA Class]:[CCA Class]],"Land",Table2[[#All],[2067]])*(-1) -> 0 | BA50: =SUMIF(Table2[[#All],[CCA Class]:[CCA Class]],"Land",Table2[[#All],[2068]])*(-1) -> 0 | BB50: =SUMIF(Table2[[#All],[CCA Class]:[CCA Class]],"Land",Table2[[#All],[2069]])*(-1) -> 0 | BC50: =SUMIF(Table2[[#All],[CCA Class]:[CCA Class]],"Land",Table2[[#All],[2070]])*(-1) -> 0 | BD50: =SUMIF(Table2[[#All],[CCA Class]:[CCA Class]],"Land",Table2[[#All],[2071]])*(-1) -> 0 | BE50: =SUMIF(Table2[[#All],[CCA Class]:[CCA Class]],"Land",Table2[[#All],[2072]])*(-1) -> 0 | BF50: =SUMIF(Table2[[#All],[CCA Class]:[CCA Class]],"Land",Table2[[#All],[2073]])*(-1) -> 0 | BG50: =SUMIF(Table2[[#All],[CCA Class]:[CCA Class]],"Land",Table2[[#All],[2074]])*(-1) -> 0 | BH50: =SUMIF(Table2[[#All],[CCA Class]:[CCA Class]],"Land",Table2[[#All],[2075]])*(-1) -> 0 | BI50: =SUMIF(Table2[[#All],[CCA Class]:[CCA Class]],"Land",Table2[[#All],[2076]])*(-1) -> 0 | BJ50: =SUMIF(Table2[[#All],[CCA Class]:[CCA Class]],"Land",Table2[[#All],[2077]])*(-1) -> 0 | BK50: =SUMIF(Table2[[#All],[CCA Class]:[CCA Class]],"Land",Table2[[#All],[2078]])*(-1) -> 0 | BL50: =SUMIF(Table2[[#All],[CCA Class]:[CCA Class]],"Land",Table2[[#All],[2079]])*(-1) -> 0 | BM50: =SUMIF(Table2[[#All],[CCA Class]:[CCA Class]],"Land",Table2[[#All],[2080]])*(-1) -> 0 | BN50: =SUMIF(Table2[[#All],[CCA Class]:[CCA Class]],"Land",Table2[[#All],[2081]])*(-1) -> 0 | BO50: =SUMIF(Table2[[#All],[CCA Class]:[CCA Class]],"Land",Table2[[#All],[2082]])*(-1) -> 0 | BP50: =SUMIF(Table2[[#All],[CCA Class]:[CCA Class]],"Land",Table2[[#All],[2083]])*(-1) -> 0 | BQ50: =SUMIF(Table2[[#All],[CCA Class]:[CCA Class]],"Land",Table2[[#All],[2084]])*(-1) -> 0 | BR50: =SUMIF(Table2[[#All],[CCA Class]:[CCA Class]],"Land",Table2[[#All],[Terminal Value]])*(-1) -> 0
A51: UCC, beginning of year | I51: 0 | J51: =I53 -> 0 | K51: =J53 -> 0 | L51: 0 | M51: 0 | N51: 0 | O51: 0 | P51: 0 | Q51: 0 | R51: =Q53 -> 0 | S51: 0 | T51: 0 | U51: 0 | V51: 0 | W51: 0 | X51: 0 | Y51: 0 | Z51: 0 | AA51: 0 | AB51: 0 | AC51: 0 | AD51: 0 | AE51: 0 | AF51: 0 | AG51: 0 | AH51: 0 | AI51: 0 | AJ51: 0 | AK51: 0 | AL51: 0 | AM51: 0 | AN51: 0 | AO51: 0 | AP51: 0 | AQ51: 0 | AR51: 0 | AS51: 0 | AT51: 0 | AU51: 0 | AV51: 0 | AW51: 0 | AX51: =AW53 -> 0 | AY51: 0 | AZ51: 0 | BA51: 0 | BB51: 0 | BC51: 0 | BD51: 0 | BE51: 0 | BF51: 0 | BG51: 0 | BH51: 0 | BI51: 0 | BJ51: 0 | BK51: 0 | BL51: 0 | BM51: 0 | BN51: 0 | BO51: 0 | BP51: 0 | BQ51: 0 | BR51: =OFFSET(I53,,Study_Length,,) -> 0
A52: Additions during the year | H52: =SUM(I52:INDEX(I52:BR52,1,MATCH(End_Year,$I$49:$BR$49,0))) -> 0 | I52: =SUMIF(Table2[[#All],[CCA Class]:[CCA Class]],"Land",Table2[[#All],[Period 0]])-I54 -> 0 | J52: =SUMIF(Table2[[#All],[CCA Class]:[CCA Class]],"Land",Table2[[#All],[2025]])-J54 -> 0 | K52: =SUMIF(Table2[[#All],[CCA Class]:[CCA Class]],"Land",Table2[[#All],[2026]])-K54 -> 0 | L52: =SUMIF(Table2[[#All],[CCA Class]:[CCA Class]],"Land",Table2[[#All],[2027]])-L54 -> 0 | M52: =SUMIF(Table2[[#All],[CCA Class]:[CCA Class]],"Land",Table2[[#All],[2028]])-M54 -> 0 | N52: =SUMIF(Table2[[#All],[CCA Class]:[CCA Class]],"Land",Table2[[#All],[2029]])-N54 -> 0 | O52: =SUMIF(Table2[[#All],[CCA Class]:[CCA Class]],"Land",Table2[[#All],[2030]])-O54 -> 0 | P52: =SUMIF(Table2[[#All],[CCA Class]:[CCA Class]],"Land",Table2[[#All],[2031]])-P54 -> 0 | Q52: =SUMIF(Table2[[#All],[CCA Class]:[CCA Class]],"Land",Table2[[#All],[2032]])-Q54 -> 0 | R52: =SUMIF(Table2[[#All],[CCA Class]:[CCA Class]],"Land",Table2[[#All],[2033]])-R54 -> 0 | S52: =SUMIF(Table2[[#All],[CCA Class]:[CCA Class]],"Land",Table2[[#All],[2034]])-S54 -> 0 | T52: =SUMIF(Table2[[#All],[CCA Class]:[CCA Class]],"Land",Table2[[#All],[2035]])-T54 -> 0 | U52: =SUMIF(Table2[[#All],[CCA Class]:[CCA Class]],"Land",Table2[[#All],[2036]])-U54 -> 0 | V52: =SUMIF(Table2[[#All],[CCA Class]:[CCA Class]],"Land",Table2[[#All],[2037]])-V54 -> 0 | W52: =SUMIF(Table2[[#All],[CCA Class]:[CCA Class]],"Land",Table2[[#All],[2038]])-W54 -> 0 | X52: =SUMIF(Table2[[#All],[CCA Class]:[CCA Class]],"Land",Table2[[#All],[2039]])-X54 -> 0 | Y52: =SUMIF(Table2[[#All],[CCA Class]:[CCA Class]],"Land",Table2[[#All],[2040]])-Y54 -> 0 | Z52: =SUMIF(Table2[[#All],[CCA Class]:[CCA Class]],"Land",Table2[[#All],[2041]])-Z54 -> 0 | AA52: =SUMIF(Table2[[#All],[CCA Class]:[CCA Class]],"Land",Table2[[#All],[2042]])-AA54 -> 0 | AB52: =SUMIF(Table2[[#All],[CCA Class]:[CCA Class]],"Land",Table2[[#All],[2043]])-AB54 -> 0 | AC52: =SUMIF(Table2[[#All],[CCA Class]:[CCA Class]],"Land",Table2[[#All],[2044]])-AC54 -> 0 | AD52: =SUMIF(Table2[[#All],[CCA Class]:[CCA Class]],"Land",Table2[[#All],[2045]])-AD54 -> 0 | AE52: =SUMIF(Table2[[#All],[CCA Class]:[CCA Class]],"Land",Table2[[#All],[2046]])-AE54 -> 0 | AF52: =SUMIF(Table2[[#All],[CCA Class]:[CCA Class]],"Land",Table2[[#All],[2047]])-AF54 -> 0 | AG52: =SUMIF(Table2[[#All],[CCA Class]:[CCA Class]],"Land",Table2[[#All],[2048]])-AG54 -> 0 | AH52: =SUMIF(Table2[[#All],[CCA Class]:[CCA Class]],"Land",Table2[[#All],[2049]])-AH54 -> 0 | AI52: =SUMIF(Table2[[#All],[CCA Class]:[CCA Class]],"Land",Table2[[#All],[2050]])-AI54 -> 0 | AJ52: =SUMIF(Table2[[#All],[CCA Class]:[CCA Class]],"Land",Table2[[#All],[2051]])-AJ54 -> 0 | AK52: =SUMIF(Table2[[#All],[CCA Class]:[CCA Class]],"Land",Table2[[#All],[2052]])-AK54 -> 0 | AL52: =SUMIF(Table2[[#All],[CCA Class]:[CCA Class]],"Land",Table2[[#All],[2053]])-AL54 -> 0 | AM52: =SUMIF(Table2[[#All],[CCA Class]:[CCA Class]],"Land",Table2[[#All],[2054]])-AM54 -> 0 | AN52: =SUMIF(Table2[[#All],[CCA Class]:[CCA Class]],"Land",Table2[[#All],[2055]])-AN54 -> 0 | AO52: =SUMIF(Table2[[#All],[CCA Class]:[CCA Class]],"Land",Table2[[#All],[2056]])-AO54 -> 0 | AP52: =SUMIF(Table2[[#All],[CCA Class]:[CCA Class]],"Land",Table2[[#All],[2057]])-AP54 -> 0 | AQ52: =SUMIF(Table2[[#All],[CCA Class]:[CCA Class]],"Land",Table2[[#All],[2058]])-AQ54 -> 0 | AR52: =SUMIF(Table2[[#All],[CCA Class]:[CCA Class]],"Land",Table2[[#All],[2059]])-AR54 -> 0 | AS52: =SUMIF(Table2[[#All],[CCA Class]:[CCA Class]],"Land",Table2[[#All],[2060]])-AS54 -> 0 | AT52: =SUMIF(Table2[[#All],[CCA Class]:[CCA Class]],"Land",Table2[[#All],[2061]])-AT54 -> 0 | AU52: =SUMIF(Table2[[#All],[CCA Class]:[CCA Class]],"Land",Table2[[#All],[2062]])-AU54 -> 0 | AV52: =SUMIF(Table2[[#All],[CCA Class]:[CCA Class]],"Land",Table2[[#All],[2063]])-AV54 -> 0 | AW52: =SUMIF(Table2[[#All],[CCA Class]:[CCA Class]],"Land",Table2[[#All],[2064]])-AW54 -> 0 | AX52: =SUMIF(Table2[[#All],[CCA Class]:[CCA Class]],"Land",Table2[[#All],[2065]])-AX54 -> 0 | AY52: =SUMIF(Table2[[#All],[CCA Class]:[CCA Class]],"Land",Table2[[#All],[2066]])-AY54 -> 0 | AZ52: =SUMIF(Table2[[#All],[CCA Class]:[CCA Class]],"Land",Table2[[#All],[2067]])-AZ54 -> 0 | BA52: =SUMIF(Table2[[#All],[CCA Class]:[CCA Class]],"Land",Table2[[#All],[2068]])-BA54 -> 0 | BB52: =SUMIF(Table2[[#All],[CCA Class]:[CCA Class]],"Land",Table2[[#All],[2069]])-BB54 -> 0 | BC52: =SUMIF(Table2[[#All],[CCA Class]:[CCA Class]],"Land",Table2[[#All],[2070]])-BC54 -> 0 | BD52: =SUMIF(Table2[[#All],[CCA Class]:[CCA Class]],"Land",Table2[[#All],[2071]])-BD54 -> 0 | BE52: =SUMIF(Table2[[#All],[CCA Class]:[CCA Class]],"Land",Table2[[#All],[2072]])-BE54 -> 0 | BF52: =SUMIF(Table2[[#All],[CCA Class]:[CCA Class]],"Land",Table2[[#All],[2073]])-BF54 -> 0 | BG52: =SUMIF(Table2[[#All],[CCA Class]:[CCA Class]],"Land",Table2[[#All],[2074]])-BG54 -> 0 | BH52: =SUMIF(Table2[[#All],[CCA Class]:[CCA Class]],"Land",Table2[[#All],[2075]])-BH54 -> 0 | BI52: =SUMIF(Table2[[#All],[CCA Class]:[CCA Class]],"Land",Table2[[#All],[2076]])-BI54 -> 0 | BJ52: =SUMIF(Table2[[#All],[CCA Class]:[CCA Class]],"Land",Table2[[#All],[2077]])-BJ54 -> 0 | BK52: =SUMIF(Table2[[#All],[CCA Class]:[CCA Class]],"Land",Table2[[#All],[2078]])-BK54 -> 0 | BL52: =SUMIF(Table2[[#All],[CCA Class]:[CCA Class]],"Land",Table2[[#All],[2079]])-BL54 -> 0 | BM52: =SUMIF(Table2[[#All],[CCA Class]:[CCA Class]],"Land",Table2[[#All],[2080]])-BM54 -> 0 | BN52: =SUMIF(Table2[[#All],[CCA Class]:[CCA Class]],"Land",Table2[[#All],[2081]])-BN54 -> 0 | BO52: =SUMIF(Table2[[#All],[CCA Class]:[CCA Class]],"Land",Table2[[#All],[2082]])-BO54 -> 0 | BP52: =SUMIF(Table2[[#All],[CCA Class]:[CCA Class]],"Land",Table2[[#All],[2083]])-BP54 -> 0 | BQ52: =SUMIF(Table2[[#All],[CCA Class]:[CCA Class]],"Land",Table2[[#All],[2084]])-BQ54 -> 0 | BR52: =SUMIF(Table2[[#All],[CCA Class]:[CCA Class]],"Land",Table2[[#All],[Terminal Value]])-BR54 -> 0
A53: UCC, end of year | I53: =MAX(I51+I52,0) -> 0 | J53: =MAX(SUM(J51:J52),0) -> 0 | K53: 0 | L53: 0 | M53: 0 | N53: 0 | O53: 0 | P53: 0 | Q53: 0 | R53: 0 | S53: 0 | T53: 0 | U53: 0 | V53: 0 | W53: 0 | X53: 0 | Y53: 0 | Z53: 0 | AA53: 0 | AB53: 0 | AC53: 0 | AD53: 0 | AE53: 0 | AF53: 0 | AG53: 0 | AH53: 0 | AI53: 0 | AJ53: 0 | AK53: 0 | AL53: 0 | AM53: 0 | AN53: 0 | AO53: 0 | AP53: 0 | AQ53: 0 | AR53: 0 | AS53: 0 | AT53: 0 | AU53: 0 | AV53: 0 | AW53: 0 | AX53: 0 | AY53: 0 | AZ53: 0 | BA53: 0 | BB53: 0 | BC53: 0 | BD53: 0 | BE53: 0 | BF53: 0 | BG53: 0 | BH53: 0 | BI53: 0 | BJ53: 0 | BK53: 0 | BL53: 0 | BM53: 0 | BN53: 0 | BO53: 0 | BP53: 0 | BQ53: 0 | BR53: 0
A54: Capital Gain on Sale of Asset | I54: 0 | J54: =IF(J50=0,0,IF(J50*(-1)>SUM(I50:$I50),J50+SUM(I50:$I50),0)) -> 0 | K54: =IF(K50=0,0,IF(K50*(-1)>SUM($I50:J50),K50+SUM($I50:J50),0)) -> 0 | L54: =IF(L50=0,0,IF(L50*(-1)>SUM($I50:K50),L50+SUM($I50:K50),0)) -> 0 | M54: =IF(M50=0,0,IF(M50*(-1)>SUM($I50:L50),M50+SUM($I50:L50),0)) -> 0 | N54: =IF(N50=0,0,IF(N50*(-1)>SUM($I50:M50),N50+SUM($I50:M50),0)) -> 0 | O54: =IF(O50=0,0,IF(O50*(-1)>SUM($I50:N50),O50+SUM($I50:N50),0)) -> 0 | P54: =IF(P50=0,0,IF(P50*(-1)>SUM($I50:O50),P50+SUM($I50:O50),0)) -> 0 | Q54: =IF(Q50=0,0,IF(Q50*(-1)>SUM($I50:P50),Q50+SUM($I50:P50),0)) -> 0 | R54: =IF(R50=0,0,IF(R50*(-1)>SUM($I50:Q50),R50+SUM($I50:Q50),0)) -> 0 | S54: =IF(S50=0,0,IF(S50*(-1)>SUM($I50:R50),S50+SUM($I50:R50),0)) -> 0 | T54: =IF(T50=0,0,IF(T50*(-1)>SUM($I50:S50),T50+SUM($I50:S50),0)) -> 0 | U54: =IF(U50=0,0,IF(U50*(-1)>SUM($I50:T50),U50+SUM($I50:T50),0)) -> 0 | V54: =IF(V50=0,0,IF(V50*(-1)>SUM($I50:U50),V50+SUM($I50:U50),0)) -> 0 | W54: =IF(W50=0,0,IF(W50*(-1)>SUM($I50:V50),W50+SUM($I50:V50),0)) -> 0 | X54: =IF(X50=0,0,IF(X50*(-1)>SUM($I50:W50),X50+SUM($I50:W50),0)) -> 0 | Y54: =IF(Y50=0,0,IF(Y50*(-1)>SUM($I50:X50),Y50+SUM($I50:X50),0)) -> 0 | Z54: =IF(Z50=0,0,IF(Z50*(-1)>SUM($I50:Y50),Z50+SUM($I50:Y50),0)) -> 0 | AA54: =IF(AA50=0,0,IF(AA50*(-1)>SUM($I50:Z50),AA50+SUM($I50:Z50),0)) -> 0 | AB54: =IF(AB50=0,0,IF(AB50*(-1)>SUM($I50:AA50),AB50+SUM($I50:AA50),0)) -> 0 | AC54: =IF(AC50=0,0,IF(AC50*(-1)>SUM($I50:AB50),AC50+SUM($I50:AB50),0)) -> 0 | AD54: =IF(AD50=0,0,IF(AD50*(-1)>SUM($I50:AC50),AD50+SUM($I50:AC50),0)) -> 0 | AE54: =IF(AE50=0,0,IF(AE50*(-1)>SUM($I50:AD50),AE50+SUM($I50:AD50),0)) -> 0 | AF54: =IF(AF50=0,0,IF(AF50*(-1)>SUM($I50:AE50),AF50+SUM($I50:AE50),0)) -> 0 | AG54: =IF(AG50=0,0,IF(AG50*(-1)>SUM($I50:AF50),AG50+SUM($I50:AF50),0)) -> 0 | AH54: =IF(AH50=0,0,IF(AH50*(-1)>SUM($I50:AG50),AH50+SUM($I50:AG50),0)) -> 0 | AI54: =IF(AI50=0,0,IF(AI50*(-1)>SUM($I50:AH50),AI50+SUM($I50:AH50),0)) -> 0 | AJ54: =IF(AJ50=0,0,IF(AJ50*(-1)>SUM($I50:AI50),AJ50+SUM($I50:AI50),0)) -> 0 | AK54: =IF(AK50=0,0,IF(AK50*(-1)>SUM($I50:AJ50),AK50+SUM($I50:AJ50),0)) -> 0 | AL54: =IF(AL50=0,0,IF(AL50*(-1)>SUM($I50:AK50),AL50+SUM($I50:AK50),0)) -> 0 | AM54: =IF(AM50=0,0,IF(AM50*(-1)>SUM($I50:AL50),AM50+SUM($I50:AL50),0)) -> 0 | AN54: =IF(AN50=0,0,IF(AN50*(-1)>SUM($I50:AM50),AN50+SUM($I50:AM50),0)) -> 0 | AO54: =IF(AO50=0,0,IF(AO50*(-1)>SUM($I50:AN50),AO50+SUM($I50:AN50),0)) -> 0 | AP54: =IF(AP50=0,0,IF(AP50*(-1)>SUM($I50:AO50),AP50+SUM($I50:AO50),0)) -> 0 | AQ54: =IF(AQ50=0,0,IF(AQ50*(-1)>SUM($I50:AP50),AQ50+SUM($I50:AP50),0)) -> 0 | AR54: =IF(AR50=0,0,IF(AR50*(-1)>SUM($I50:AQ50),AR50+SUM($I50:AQ50),0)) -> 0 | AS54: =IF(AS50=0,0,IF(AS50*(-1)>SUM($I50:AR50),AS50+SUM($I50:AR50),0)) -> 0 | AT54: =IF(AT50=0,0,IF(AT50*(-1)>SUM($I50:AS50),AT50+SUM($I50:AS50),0)) -> 0 | AU54: =IF(AU50=0,0,IF(AU50*(-1)>SUM($I50:AT50),AU50+SUM($I50:AT50),0)) -> 0 | AV54: =IF(AV50=0,0,IF(AV50*(-1)>SUM($I50:AU50),AV50+SUM($I50:AU50),0)) -> 0 | AW54: =IF(AW50=0,0,IF(AW50*(-1)>SUM($I50:AV50),AW50+SUM($I50:AV50),0)) -> 0 | AX54: =IF(AX50=0,0,IF(AX50*(-1)>SUM($I50:AW50),AX50+SUM($I50:AW50),0)) -> 0 | AY54: =IF(AY50=0,0,IF(AY50*(-1)>SUM($I50:AX50),AY50+SUM($I50:AX50),0)) -> 0 | AZ54: =IF(AZ50=0,0,IF(AZ50*(-1)>SUM($I50:AY50),AZ50+SUM($I50:AY50),0)) -> 0 | BA54: =IF(BA50=0,0,IF(BA50*(-1)>SUM($I50:AZ50),BA50+SUM($I50:AZ50),0)) -> 0 | BB54: =IF(BB50=0,0,IF(BB50*(-1)>SUM($I50:BA50),BB50+SUM($I50:BA50),0)) -> 0 | BC54: =IF(BC50=0,0,IF(BC50*(-1)>SUM($I50:BB50),BC50+SUM($I50:BB50),0)) -> 0 | BD54: =IF(BD50=0,0,IF(BD50*(-1)>SUM($I50:BC50),BD50+SUM($I50:BC50),0)) -> 0 | BE54: =IF(BE50=0,0,IF(BE50*(-1)>SUM($I50:BD50),BE50+SUM($I50:BD50),0)) -> 0 | BF54: =IF(BF50=0,0,IF(BF50*(-1)>SUM($I50:BE50),BF50+SUM($I50:BE50),0)) -> 0 | BG54: =IF(BG50=0,0,IF(BG50*(-1)>SUM($I50:BF50),BG50+SUM($I50:BF50),0)) -> 0 | BH54: =IF(BH50=0,0,IF(BH50*(-1)>SUM($I50:BG50),BH50+SUM($I50:BG50),0)) -> 0 | BI54: =IF(BI50=0,0,IF(BI50*(-1)>SUM($I50:BH50),BI50+SUM($I50:BH50),0)) -> 0 | BJ54: =IF(BJ50=0,0,IF(BJ50*(-1)>SUM($I50:BI50),BJ50+SUM($I50:BI50),0)) -> 0 | BK54: =IF(BK50=0,0,IF(BK50*(-1)>SUM($I50:BJ50),BK50+SUM($I50:BJ50),0)) -> 0 | BL54: =IF(BL50=0,0,IF(BL50*(-1)>SUM($I50:BK50),BL50+SUM($I50:BK50),0)) -> 0 | BM54: =IF(BM50=0,0,IF(BM50*(-1)>SUM($I50:BL50),BM50+SUM($I50:BL50),0)) -> 0 | BN54: =IF(BN50=0,0,IF(BN50*(-1)>SUM($I50:BM50),BN50+SUM($I50:BM50),0)) -> 0 | BO54: =IF(BO50=0,0,IF(BO50*(-1)>SUM($I50:BN50),BO50+SUM($I50:BN50),0)) -> 0 | BP54: =IF(BP50=0,0,IF(BP50*(-1)>SUM($I50:BO50),BP50+SUM($I50:BO50),0)) -> 0 | BQ54: =IF(BQ50=0,0,IF(BQ50*(-1)>SUM($I50:BP50),BQ50+SUM($I50:BP50),0)) -> 0 | BR54: =IF(BR50=0,0,IF(BR50*(-1)>SUM($I50:BQ50),BR50+SUM($I50:BQ50),0)) -> 0
N55: =IF(AND(2023<N49,N49<2028),1,0) -> 0
A56: Gross Capital Cost, at beginning of year | I56: 0 | J56: =I56+I58 -> 0 | K56: 0 | L56: 0 | M56: 0 | N56: 0 | O56: 0 | P56: 0 | Q56: 0 | R56: 0 | S56: 0 | T56: 0 | U56: 0 | V56: 0 | W56: 0 | X56: 0 | Y56: 0 | Z56: 0 | AA56: 0 | AB56: 0 | AC56: 0 | AD56: 0 | AE56: 0 | AF56: 0 | AG56: 0 | AH56: 0 | AI56: 0 | AJ56: 0 | AK56: 0 | AL56: 0 | AM56: 0 | AN56: 0 | AO56: 0 | AP56: =AO56+AO58 -> 0 | AQ56: 0 | AR56: 0 | AS56: 0 | AT56: 0 | AU56: 0 | AV56: 0 | AW56: 0 | AX56: 0 | AY56: 0 | AZ56: 0 | BA56: 0 | BB56: 0 | BC56: 0 | BD56: 0 | BE56: 0 | BF56: 0 | BG56: 0 | BH56: 0 | BI56: 0 | BJ56: 0 | BK56: 0 | BL56: 0 | BM56: 0 | BN56: 0 | BO56: 0 | BP56: 0 | BQ56: 0
A57: Net Book Value, beginning of year | I57: =G59 -> 0 | J57: =I59 -> 0 | K57: =J59 -> 0 | L57: 0 | M57: 0 | N57: 0 | O57: 0 | P57: 0 | Q57: 0 | R57: =Q59 -> 0 | S57: 0 | T57: 0 | U57: 0 | V57: 0 | W57: 0 | X57: 0 | Y57: 0 | Z57: 0 | AA57: 0 | AB57: 0 | AC57: 0 | AD57: 0 | AE57: 0 | AF57: 0 | AG57: 0 | AH57: 0 | AI57: 0 | AJ57: 0 | AK57: 0 | AL57: 0 | AM57: 0 | AN57: 0 | AO57: 0 | AP57: 0 | AQ57: 0 | AR57: 0 | AS57: 0 | AT57: 0 | AU57: 0 | AV57: 0 | AW57: 0 | AX57: =AW59 -> 0 | AY57: 0 | AZ57: 0 | BA57: 0 | BB57: 0 | BC57: 0 | BD57: 0 | BE57: 0 | BF57: 0 | BG57: 0 | BH57: 0 | BI57: 0 | BJ57: 0 | BK57: 0 | BL57: 0 | BM57: 0 | BN57: 0 | BO57: 0 | BP57: 0 | BQ57: 0
A58: Additions during year | H58: =SUM(I58:INDEX(I58:BR58,1,MATCH(End_Year,$I$49:$BR$49,0))) -> 0 | I58: =I52 -> 0 | J58: 0 | K58: 0 | L58: 0 | M58: 0 | N58: 0 | O58: 0 | P58: 0 | Q58: 0 | R58: 0 | S58: 0 | T58: 0 | U58: 0 | V58: 0 | W58: 0 | X58: 0 | Y58: 0 | Z58: 0 | AA58: 0 | AB58: 0 | AC58: 0 | AD58: 0 | AE58: 0 | AF58: 0 | AG58: 0 | AH58: 0 | AI58: 0 | AJ58: 0 | AK58: 0 | AL58: 0 | AM58: 0 | AN58: 0 | AO58: =AO52 -> 0 | AP58: 0 | AQ58: 0 | AR58: 0 | AS58: 0 | AT58: 0 | AU58: 0 | AV58: 0 | AW58: 0 | AX58: 0 | AY58: 0 | AZ58: 0 | BA58: 0 | BB58: 0 | BC58: 0 | BD58: 0 | BE58: 0 | BF58: 0 | BG58: 0 | BH58: 0 | BI58: 0 | BJ58: 0 | BK58: 0 | BL58: 0 | BM58: 0 | BN58: 0 | BO58: 0 | BP58: 0 | BQ58: 0
A59: Net Book Value, end of year | I59: =I58+I57 -> 0 | J59: =MAX(0,SUM(J57:J58)) -> 0 | K59: 0 | L59: 0 | M59: 0 | N59: 0 | O59: 0 | P59: 0 | Q59: 0 | R59: 0 | S59: 0 | T59: 0 | U59: 0 | V59: 0 | W59: 0 | X59: 0 | Y59: 0 | Z59: 0 | AA59: 0 | AB59: 0 | AC59: 0 | AD59: 0 | AE59: 0 | AF59: 0 | AG59: 0 | AH59: 0 | AI59: 0 | AJ59: 0 | AK59: 0 | AL59: 0 | AM59: 0 | AN59: 0 | AO59: 0 | AP59: =MAX(0,SUM(AP57:AP58)) -> 0 | AQ59: 0 | AR59: 0 | AS59: 0 | AT59: 0 | AU59: 0 | AV59: 0 | AW59: 0 | AX59: 0 | AY59: 0 | AZ59: 0 | BA59: 0 | BB59: 0 | BC59: 0 | BD59: 0 | BE59: 0 | BF59: 0 | BG59: 0 | BH59: 0 | BI59: 0 | BJ59: 0 | BK59: 0 | BL59: 0 | BM59: 0 | BN59: 0 | BO59: 0 | BP59: 0 | BQ59: 0
A60: Average Net Book Value for the year, i.e. Average Rate Base | I60: =(I57+I59)/2 -> 0 | J60: 0 | K60: 0 | L60: 0 | M60: 0 | N60: 0 | O60: 0 | P60: 0 | Q60: 0 | R60: 0 | S60: 0 | T60: 0 | U60: 0 | V60: 0 | W60: 0 | X60: 0 | Y60: 0 | Z60: 0 | AA60: 0 | AB60: 0 | AC60: 0 | AD60: 0 | AE60: 0 | AF60: 0 | AG60: 0 | AH60: 0 | AI60: 0 | AJ60: 0 | AK60: 0 | AL60: 0 | AM60: 0 | AN60: 0 | AO60: =(AO57+AO59)/2 -> 0 | AP60: 0 | AQ60: 0 | AR60: 0 | AS60: 0 | AT60: 0 | AU60: 0 | AV60: 0 | AW60: 0 | AX60: 0 | AY60: 0 | AZ60: 0 | BA60: 0 | BB60: 0 | BC60: 0 | BD60: 0 | BE60: 0 | BF60: 0 | BG60: 0 | BH60: 0 | BI60: 0 | BJ60: 0 | BK60: 0 | BL60: 0 | BM60: 0 | BN60: 0 | BO60: 0 | BP60: 0 | BQ60: 0
A62: Class 47 Capital Expenditures | D62: 47 | E62: =VLOOKUP($D62,'Finance Input'!$B$26:$D$37,2,0) -> 0.08 | F62: =VLOOKUP($D62,'Finance Input'!$B$26:$D$37,3,0) -> 50 | H62: =SUM(I62:INDEX(I62:BR62,1,MATCH(End_Year,$I$49:$BR$49,0))) -> 93000 | I62: =SUMIF(Table2[[#All],[CCA Class]:[CCA Class]],$D62,Table2[[#All],[Period 0]])*(-1) -> 93000 | J62: =SUMIF(Table2[[#All],[CCA Class]:[CCA Class]],$D62,Table2[[#All],[2025]])*(-1) -> 0 | K62: =SUMIF(Table2[[#All],[CCA Class]:[CCA Class]],$D62,Table2[[#All],[2026]])*(-1) -> 0 | L62: =SUMIF(Table2[[#All],[CCA Class]:[CCA Class]],$D62,Table2[[#All],[2027]])*(-1) -> 0 | M62: =SUMIF(Table2[[#All],[CCA Class]:[CCA Class]],$D62,Table2[[#All],[2028]])*(-1) -> 0 | N62: =SUMIF(Table2[[#All],[CCA Class]:[CCA Class]],$D62,Table2[[#All],[2029]])*(-1) -> 0 | O62: =SUMIF(Table2[[#All],[CCA Class]:[CCA Class]],$D62,Table2[[#All],[2030]])*(-1) -> 0 | P62: =SUMIF(Table2[[#All],[CCA Class]:[CCA Class]],$D62,Table2[[#All],[2031]])*(-1) -> 0 | Q62: =SUMIF(Table2[[#All],[CCA Class]:[CCA Class]],$D62,Table2[[#All],[2032]])*(-1) -> 0 | R62: =SUMIF(Table2[[#All],[CCA Class]:[CCA Class]],$D62,Table2[[#All],[2033]])*(-1) -> 0 | S62: =SUMIF(Table2[[#All],[CCA Class]:[CCA Class]],$D62,Table2[[#All],[2034]])*(-1) -> 0 | T62: =SUMIF(Table2[[#All],[CCA Class]:[CCA Class]],$D62,Table2[[#All],[2035]])*(-1) -> 0 | U62: =SUMIF(Table2[[#All],[CCA Class]:[CCA Class]],$D62,Table2[[#All],[2036]])*(-1) -> 0 | V62: =SUMIF(Table2[[#All],[CCA Class]:[CCA Class]],$D62,Table2[[#All],[2037]])*(-1) -> 0 | W62: =SUMIF(Table2[[#All],[CCA Class]:[CCA Class]],$D62,Table2[[#All],[2038]])*(-1) -> 0 | X62: =SUMIF(Table2[[#All],[CCA Class]:[CCA Class]],$D62,Table2[[#All],[2039]])*(-1) -> 0 | Y62: =SUMIF(Table2[[#All],[CCA Class]:[CCA Class]],$D62,Table2[[#All],[2040]])*(-1) -> 0 | Z62: =SUMIF(Table2[[#All],[CCA Class]:[CCA Class]],$D62,Table2[[#All],[2041]])*(-1) -> 0 | AA62: =SUMIF(Table2[[#All],[CCA Class]:[CCA Class]],$D62,Table2[[#All],[2042]])*(-1) -> 0 | AB62: =SUMIF(Table2[[#All],[CCA Class]:[CCA Class]],$D62,Table2[[#All],[2043]])*(-1) -> 0 | AC62: =SUMIF(Table2[[#All],[CCA Class]:[CCA Class]],$D62,Table2[[#All],[2044]])*(-1) -> 0 | AD62: =SUMIF(Table2[[#All],[CCA Class]:[CCA Class]],$D62,Table2[[#All],[2045]])*(-1) -> 0 | AE62: =SUMIF(Table2[[#All],[CCA Class]:[CCA Class]],$D62,Table2[[#All],[2046]])*(-1) -> 0 | AF62: =SUMIF(Table2[[#All],[CCA Class]:[CCA Class]],$D62,Table2[[#All],[2047]])*(-1) -> 0 | AG62: =SUMIF(Table2[[#All],[CCA Class]:[CCA Class]],$D62,Table2[[#All],[2048]])*(-1) -> 0 | AH62: =SUMIF(Table2[[#All],[CCA Class]:[CCA Class]],$D62,Table2[[#All],[2049]])*(-1) -> 0 | AI62: =SUMIF(Table2[[#All],[CCA Class]:[CCA Class]],$D62,Table2[[#All],[2050]])*(-1) -> 0 | AJ62: =SUMIF(Table2[[#All],[CCA Class]:[CCA Class]],$D62,Table2[[#All],[2051]])*(-1) -> 0 | AK62: =SUMIF(Table2[[#All],[CCA Class]:[CCA Class]],$D62,Table2[[#All],[2052]])*(-1) -> 0 | AL62: =SUMIF(Table2[[#All],[CCA Class]:[CCA Class]],$D62,Table2[[#All],[2053]])*(-1) -> 0 | AM62: =SUMIF(Table2[[#All],[CCA Class]:[CCA Class]],$D62,Table2[[#All],[2054]])*(-1) -> 0 | AN62: =SUMIF(Table2[[#All],[CCA Class]:[CCA Class]],$D62,Table2[[#All],[2055]])*(-1) -> 0 | AO62: =SUMIF(Table2[[#All],[CCA Class]:[CCA Class]],$D62,Table2[[#All],[2056]])*(-1) -> 0 | AP62: =SUMIF(Table2[[#All],[CCA Class]:[CCA Class]],$D62,Table2[[#All],[2057]])*(-1) -> 0 | AQ62: =SUMIF(Table2[[#All],[CCA Class]:[CCA Class]],$D62,Table2[[#All],[2058]])*(-1) -> 0 | AR62: =SUMIF(Table2[[#All],[CCA Class]:[CCA Class]],$D62,Table2[[#All],[2059]])*(-1) -> 0 | AS62: =SUMIF(Table2[[#All],[CCA Class]:[CCA Class]],$D62,Table2[[#All],[2060]])*(-1) -> 0 | AT62: =SUMIF(Table2[[#All],[CCA Class]:[CCA Class]],$D62,Table2[[#All],[2061]])*(-1) -> 0 | AU62: =SUMIF(Table2[[#All],[CCA Class]:[CCA Class]],$D62,Table2[[#All],[2062]])*(-1) -> 0 | AV62: =SUMIF(Table2[[#All],[CCA Class]:[CCA Class]],$D62,Table2[[#All],[2063]])*(-1) -> 0 | AW62: =SUMIF(Table2[[#All],[CCA Class]:[CCA Class]],$D62,Table2[[#All],[2064]])*(-1) -> 0 | AX62: =SUMIF(Table2[[#All],[CCA Class]:[CCA Class]],$D62,Table2[[#All],[2065]])*(-1) -> 0 | AY62: =SUMIF(Table2[[#All],[CCA Class]:[CCA Class]],$D62,Table2[[#All],[2066]])*(-1) -> 0 | AZ62: =SUMIF(Table2[[#All],[CCA Class]:[CCA Class]],$D62,Table2[[#All],[2067]])*(-1) -> 0 | BA62: =SUMIF(Table2[[#All],[CCA Class]:[CCA Class]],$D62,Table2[[#All],[2068]])*(-1) -> 0 | BB62: =SUMIF(Table2[[#All],[CCA Class]:[CCA Class]],$D62,Table2[[#All],[2069]])*(-1) -> 0 | BC62: =SUMIF(Table2[[#All],[CCA Class]:[CCA Class]],$D62,Table2[[#All],[2070]])*(-1) -> 0 | BD62: =SUMIF(Table2[[#All],[CCA Class]:[CCA Class]],$D62,Table2[[#All],[2071]])*(-1) -> 0 | BE62: =SUMIF(Table2[[#All],[CCA Class]:[CCA Class]],$D62,Table2[[#All],[2072]])*(-1) -> 0 | BF62: =SUMIF(Table2[[#All],[CCA Class]:[CCA Class]],$D62,Table2[[#All],[2073]])*(-1) -> 0 | BG62: =SUMIF(Table2[[#All],[CCA Class]:[CCA Class]],$D62,Table2[[#All],[2074]])*(-1) -> 0 | BH62: =SUMIF(Table2[[#All],[CCA Class]:[CCA Class]],$D62,Table2[[#All],[2075]])*(-1) -> 0 | BI62: =SUMIF(Table2[[#All],[CCA Class]:[CCA Class]],$D62,Table2[[#All],[2076]])*(-1) -> 0 | BJ62: =SUMIF(Table2[[#All],[CCA Class]:[CCA Class]],$D62,Table2[[#All],[2077]])*(-1) -> 0 | BK62: =SUMIF(Table2[[#All],[CCA Class]:[CCA Class]],$D62,Table2[[#All],[2078]])*(-1) -> 0 | BL62: =SUMIF(Table2[[#All],[CCA Class]:[CCA Class]],$D62,Table2[[#All],[2079]])*(-1) -> 0 | BM62: =SUMIF(Table2[[#All],[CCA Class]:[CCA Class]],$D62,Table2[[#All],[2080]])*(-1) -> 0 | BN62: =SUMIF(Table2[[#All],[CCA Class]:[CCA Class]],$D62,Table2[[#All],[2081]])*(-1) -> 0 | BO62: =SUMIF(Table2[[#All],[CCA Class]:[CCA Class]],$D62,Table2[[#All],[2082]])*(-1) -> 0 | BP62: =SUMIF(Table2[[#All],[CCA Class]:[CCA Class]],$D62,Table2[[#All],[2083]])*(-1) -> 0 | BQ62: =SUMIF(Table2[[#All],[CCA Class]:[CCA Class]],$D62,Table2[[#All],[2084]])*(-1) -> 0 | BR62: =SUMIF(Table2[[#All],[CCA Class]:[CCA Class]],$D62,Table2[[#All],[Terminal Value]])*(-1) -> 0
A63: UCC, beginning of year | I63: 0 | J63: =I67 -> 0 | K63: =J67 -> 85560 | L63: =K67 -> 78715.2 | M63: 72417.984 | N63: 66624.54528 | O63: 61294.58166 | P63: 56391.01512 | Q63: 51879.73391 | R63: =Q67 -> 47729.3552 | S63: 43911.00679 | T63: 40398.12624 | U63: 37166.27614 | V63: 34192.97405 | W63: 31457.53613 | X63: 28940.93324 | Y63: 26625.65858 | Z63: 24495.60589 | AA63: 22535.95742 | AB63: 20733.08083 | AC63: 19074.43436 | AD63: =AC67 -> 17548.47961 | AE63: =AD67 -> 16144.60124 | AF63: =AE67 -> 14853.03314 | AG63: =AF67 -> 13664.79049 | AH63: =AG67 -> 12571.60725 | AI63: =AH67 -> 11565.87867 | AJ63: =AI67 -> 10640.60838 | AK63: =AJ67 -> 9789.359709 | AL63: =AK67 -> 9006.210932 | AM63: =AL67 -> 8285.714057 | AN63: =AM67 -> 7622.856933 | AO63: =AN67 -> 7013.028378 | AP63: =AO67 -> 6451.986108 | AQ63: =AP67 -> 5935.827219 | AR63: =AQ67 -> 5460.961042 | AS63: =AR67 -> 5024.084158 | AT63: =AS67 -> 4622.157426 | AU63: =AT67 -> 4252.384832 | AV63: =AU67 -> 3912.194045 | AW63: =AV67 -> 3599.218521 | AX63: =AW67 -> 3311.28104 | AY63: =AX67 -> 3046.378557 | AZ63: =AY67 -> 2802.668272 | BA63: =AZ67 -> 2578.45481 | BB63: =BA67 -> 2372.178425 | BC63: =BB67 -> 2182.404151 | BD63: =BC67 -> 2007.811819 | BE63: =BD67 -> 1847.186874 | BF63: =BE67 -> 1699.411924 | BG63: =BF67 -> 1563.45897 | BH63: =BG67 -> 1438.382252 | BI63: =BH67 -> 1323.311672 | BJ63: =BI67 -> 1217.446738 | BK63: =BJ67 -> 1120.050999 | BL63: =BK67 -> 1030.446919 | BM63: =BL67 -> 948.0111658 | BN63: =BM67 -> 872.1702726 | BO63: =BN67 -> 802.3966508 | BP63: =BO67 -> 738.2049187 | BQ63: =BP67 -> 679.1485252 | BR63: =OFFSET(I67,,Study_Length,,) -> 1438.382252
A64: Additions to UCC pool - Only recorded beyond in-service date | H64: =SUM(I64:INDEX(I64:BR64,1,MATCH(End_Year,$I$49:$BR$49,0))) -> 93000 | I64: =IF(YEAR(IS_Date)>I$49,0,IF(SUM(H64:$I64)=0,SUM($I62:I62),I62)) -> 0 | J64: =IF(YEAR(IS_Date)>J$49,0,IF(SUM($I64:I64,$I68:I68)=0,SUM($I62:J62),J62))-J68 -> 93000 | K64: =IF(YEAR(IS_Date)>K$49,0,IF(SUM($I64:J64,$I68:J68)=0,SUM($I62:K62),K62))-K68 -> 0 | L64: =IF(YEAR(IS_Date)>L$49,0,IF(SUM($I64:K64,$I68:K68)=0,SUM($I62:L62),L62))-L68 -> 0 | M64: =IF(YEAR(IS_Date)>M$49,0,IF(SUM($I64:L64,$I68:L68)=0,SUM($I62:M62),M62))-M68 -> 0 | N64: =IF(YEAR(IS_Date)>N$49,0,IF(SUM($I64:M64,$I68:M68)=0,SUM($I62:N62),N62))-N68 -> 0 | O64: =IF(YEAR(IS_Date)>O$49,0,IF(SUM($I64:N64,$I68:N68)=0,SUM($I62:O62),O62))-O68 -> 0 | P64: =IF(YEAR(IS_Date)>P$49,0,IF(SUM($I64:O64,$I68:O68)=0,SUM($I62:P62),P62))-P68 -> 0 | Q64: =IF(YEAR(IS_Date)>Q$49,0,IF(SUM($I64:P64,$I68:P68)=0,SUM($I62:Q62),Q62))-Q68 -> 0 | R64: =IF(YEAR(IS_Date)>R$49,0,IF(SUM($I64:Q64,$I68:Q68)=0,SUM($I62:R62),R62))-R68 -> 0 | S64: =IF(YEAR(IS_Date)>S$49,0,IF(SUM($I64:R64,$I68:R68)=0,SUM($I62:S62),S62))-S68 -> 0 | T64: =IF(YEAR(IS_Date)>T$49,0,IF(SUM($I64:S64,$I68:S68)=0,SUM($I62:T62),T62))-T68 -> 0 | U64: =IF(YEAR(IS_Date)>U$49,0,IF(SUM($I64:T64,$I68:T68)=0,SUM($I62:U62),U62))-U68 -> 0 | V64: =IF(YEAR(IS_Date)>V$49,0,IF(SUM($I64:U64,$I68:U68)=0,SUM($I62:V62),V62))-V68 -> 0 | W64: =IF(YEAR(IS_Date)>W$49,0,IF(SUM($I64:V64,$I68:V68)=0,SUM($I62:W62),W62))-W68 -> 0 | X64: =IF(YEAR(IS_Date)>X$49,0,IF(SUM($I64:W64,$I68:W68)=0,SUM($I62:X62),X62))-X68 -> 0 | Y64: =IF(YEAR(IS_Date)>Y$49,0,IF(SUM($I64:X64,$I68:X68)=0,SUM($I62:Y62),Y62))-Y68 -> 0 | Z64: =IF(YEAR(IS_Date)>Z$49,0,IF(SUM($I64:Y64,$I68:Y68)=0,SUM($I62:Z62),Z62))-Z68 -> 0 | AA64: =IF(YEAR(IS_Date)>AA$49,0,IF(SUM($I64:Z64,$I68:Z68)=0,SUM($I62:AA62),AA62))-AA68 -> 0 | AB64: =IF(YEAR(IS_Date)>AB$49,0,IF(SUM($I64:AA64,$I68:AA68)=0,SUM($I62:AB62),AB62))-AB68 -> 0 | AC64: =IF(YEAR(IS_Date)>AC$49,0,IF(SUM($I64:AB64,$I68:AB68)=0,SUM($I62:AC62),AC62))-AC68 -> 0 | AD64: =IF(YEAR(IS_Date)>AD$49,0,IF(SUM($I64:AC64,$I68:AC68)=0,SUM($I62:AD62),AD62))-AD68 -> 0 | AE64: =IF(YEAR(IS_Date)>AE$49,0,IF(SUM($I64:AD64,$I68:AD68)=0,SUM($I62:AE62),AE62))-AE68 -> 0 | AF64: =IF(YEAR(IS_Date)>AF$49,0,IF(SUM($I64:AE64,$I68:AE68)=0,SUM($I62:AF62),AF62))-AF68 -> 0 | AG64: =IF(YEAR(IS_Date)>AG$49,0,IF(SUM($I64:AF64,$I68:AF68)=0,SUM($I62:AG62),AG62))-AG68 -> 0 | AH64: =IF(YEAR(IS_Date)>AH$49,0,IF(SUM($I64:AG64,$I68:AG68)=0,SUM($I62:AH62),AH62))-AH68 -> 0 | AI64: =IF(YEAR(IS_Date)>AI$49,0,IF(SUM($I64:AH64,$I68:AH68)=0,SUM($I62:AI62),AI62))-AI68 -> 0 | AJ64: =IF(YEAR(IS_Date)>AJ$49,0,IF(SUM($I64:AI64,$I68:AI68)=0,SUM($I62:AJ62),AJ62))-AJ68 -> 0 | AK64: =IF(YEAR(IS_Date)>AK$49,0,IF(SUM($I64:AJ64,$I68:AJ68)=0,SUM($I62:AK62),AK62))-AK68 -> 0 | AL64: =IF(YEAR(IS_Date)>AL$49,0,IF(SUM($I64:AK64,$I68:AK68)=0,SUM($I62:AL62),AL62))-AL68 -> 0 | AM64: =IF(YEAR(IS_Date)>AM$49,0,IF(SUM($I64:AL64,$I68:AL68)=0,SUM($I62:AM62),AM62))-AM68 -> 0 | AN64: =IF(YEAR(IS_Date)>AN$49,0,IF(SUM($I64:AM64,$I68:AM68)=0,SUM($I62:AN62),AN62))-AN68 -> 0 | AO64: =IF(YEAR(IS_Date)>AO$49,0,IF(SUM($I64:AN64,$I68:AN68)=0,SUM($I62:AO62),AO62))-AO68 -> 0 | AP64: =IF(YEAR(IS_Date)>AP$49,0,IF(SUM($I64:AO64,$I68:AO68)=0,SUM($I62:AP62),AP62))-AP68 -> 0 | AQ64: =IF(YEAR(IS_Date)>AQ$49,0,IF(SUM($I64:AP64,$I68:AP68)=0,SUM($I62:AQ62),AQ62))-AQ68 -> 0 | AR64: =IF(YEAR(IS_Date)>AR$49,0,IF(SUM($I64:AQ64,$I68:AQ68)=0,SUM($I62:AR62),AR62))-AR68 -> 0 | AS64: =IF(YEAR(IS_Date)>AS$49,0,IF(SUM($I64:AR64,$I68:AR68)=0,SUM($I62:AS62),AS62))-AS68 -> 0 | AT64: =IF(YEAR(IS_Date)>AT$49,0,IF(SUM($I64:AS64,$I68:AS68)=0,SUM($I62:AT62),AT62))-AT68 -> 0 | AU64: =IF(YEAR(IS_Date)>AU$49,0,IF(SUM($I64:AT64,$I68:AT68)=0,SUM($I62:AU62),AU62))-AU68 -> 0 | AV64: =IF(YEAR(IS_Date)>AV$49,0,IF(SUM($I64:AU64,$I68:AU68)=0,SUM($I62:AV62),AV62))-AV68 -> 0 | AW64: =IF(YEAR(IS_Date)>AW$49,0,IF(SUM($I64:AV64,$I68:AV68)=0,SUM($I62:AW62),AW62))-AW68 -> 0 | AX64: =IF(YEAR(IS_Date)>AX$49,0,IF(SUM($I64:AW64,$I68:AW68)=0,SUM($I62:AX62),AX62))-AX68 -> 0 | AY64: =IF(YEAR(IS_Date)>AY$49,0,IF(SUM($I64:AX64,$I68:AX68)=0,SUM($I62:AY62),AY62))-AY68 -> 0 | AZ64: =IF(YEAR(IS_Date)>AZ$49,0,IF(SUM($I64:AY64,$I68:AY68)=0,SUM($I62:AZ62),AZ62))-AZ68 -> 0 | BA64: =IF(YEAR(IS_Date)>BA$49,0,IF(SUM($I64:AZ64,$I68:AZ68)=0,SUM($I62:BA62),BA62))-BA68 -> 0 | BB64: =IF(YEAR(IS_Date)>BB$49,0,IF(SUM($I64:BA64,$I68:BA68)=0,SUM($I62:BB62),BB62))-BB68 -> 0 | BC64: =IF(YEAR(IS_Date)>BC$49,0,IF(SUM($I64:BB64,$I68:BB68)=0,SUM($I62:BC62),BC62))-BC68 -> 0 | BD64: =IF(YEAR(IS_Date)>BD$49,0,IF(SUM($I64:BC64,$I68:BC68)=0,SUM($I62:BD62),BD62))-BD68 -> 0 | BE64: =IF(YEAR(IS_Date)>BE$49,0,IF(SUM($I64:BD64,$I68:BD68)=0,SUM($I62:BE62),BE62))-BE68 -> 0 | BF64: =IF(YEAR(IS_Date)>BF$49,0,IF(SUM($I64:BE64,$I68:BE68)=0,SUM($I62:BF62),BF62))-BF68 -> 0 | BG64: =IF(YEAR(IS_Date)>BG$49,0,IF(SUM($I64:BF64,$I68:BF68)=0,SUM($I62:BG62),BG62))-BG68 -> 0 | BH64: =IF(YEAR(IS_Date)>BH$49,0,IF(SUM($I64:BG64,$I68:BG68)=0,SUM($I62:BH62),BH62))-BH68 -> 0 | BI64: =IF(YEAR(IS_Date)>BI$49,0,IF(SUM($I64:BH64,$I68:BH68)=0,SUM($I62:BI62),BI62))-BI68 -> 0 | BJ64: =IF(YEAR(IS_Date)>BJ$49,0,IF(SUM($I64:BI64,$I68:BI68)=0,SUM($I62:BJ62),BJ62))-BJ68 -> 0 | BK64: =IF(YEAR(IS_Date)>BK$49,0,IF(SUM($I64:BJ64,$I68:BJ68)=0,SUM($I62:BK62),BK62))-BK68 -> 0 | BL64: =IF(YEAR(IS_Date)>BL$49,0,IF(SUM($I64:BK64,$I68:BK68)=0,SUM($I62:BL62),BL62))-BL68 -> 0 | BM64: =IF(YEAR(IS_Date)>BM$49,0,IF(SUM($I64:BL64,$I68:BL68)=0,SUM($I62:BM62),BM62))-BM68 -> 0 | BN64: =IF(YEAR(IS_Date)>BN$49,0,IF(SUM($I64:BM64,$I68:BM68)=0,SUM($I62:BN62),BN62))-BN68 -> 0 | BO64: =IF(YEAR(IS_Date)>BO$49,0,IF(SUM($I64:BN64,$I68:BN68)=0,SUM($I62:BO62),BO62))-BO68 -> 0 | BP64: =IF(YEAR(IS_Date)>BP$49,0,IF(SUM($I64:BO64,$I68:BO68)=0,SUM($I62:BP62),BP62))-BP68 -> 0 | BQ64: =IF(YEAR(IS_Date)>BQ$49,0,IF(SUM($I64:BP64,$I68:BP68)=0,SUM($I62:BQ62),BQ62))-BQ68 -> 0 | BR64: =IF(YEAR(IS_Date)>BR$49,0,IF(SUM($I64:BQ64,$I68:BQ68)=0,SUM($I62:BR62),BR62))-BR68 -> 0
A65: CCA declining balance - Standard CCA with 1/2 rule | H65: =SUM(I65:INDEX(I65:BR65,1,MATCH(End_Year,$I$49:$BR$49,0))) -> -87841.61775 | I65: =IF(AND(I63+I64<0,$D$32="Yes (Separate Entity)"),(I64+I63)*(-1),MIN(0,((I63+I64)-ABS(0.5*I64))*$E62*(-1))) -> 0 | J65: -3720 | K65: -6844.8 | L65: -6297.216 | M65: -5793.43872 | N65: =IF(AND(N63+N64<0,$D$32="Yes (Separate Entity)"),(N64+N63)*(-1),MIN(0,((N63+N64)-ABS(0.5*N64))*$E62*(-1))) -> -5329.963622 | O65: =IF(AND(O63+O64<0,$D$32="Yes (Separate Entity)"),(O64+O63)*(-1),MIN(0,((O63+O64)-ABS(0.5*O64))*$E62*(-1))) -> -4903.566533 | P65: -4511.28121 | Q65: -4150.378713 | R65: -3818.348416 | S65: -3512.880543 | T65: -3231.850099 | U65: -2973.302091 | V65: -2735.437924 | W65: -2516.60289 | X65: -2315.274659 | Y65: -2130.052686 | Z65: -1959.648471 | AA65: -1802.876594 | AB65: -1658.646466 | AC65: =IF(AND(AC63+AC64<0,$D$32="Yes (Separate Entity)"),(AC64+AC63)*(-1),MIN(0,((AC63+AC64)-ABS(0.5*AC64))*$E62*(-1))) -> -1525.954749 | AD65: =IF(AND(AD63+AD64<0,$D$32="Yes (Separate Entity)"),(AD64+AD63)*(-1),MIN(0,((AD63+AD64)-ABS(0.5*AD64))*$E62*(-1))) -> -1403.878369 | AE65: -1291.568099 | AF65: -1188.242651 | AG65: -1093.183239 | AH65: -1005.72858 | AI65: -925.2702938 | AJ65: -851.2486703 | AK65: -783.1487767 | AL65: -720.4968745 | AM65: -662.8571246 | AN65: -609.8285546 | AO65: -561.0422702 | AP65: -516.1588886 | AQ65: -474.8661775 | AR65: -436.8768833 | AS65: -401.9267327 | AT65: -369.7725941 | AU65: -340.1907865 | AV65: -312.9755236 | AW65: -287.9374817 | AX65: -264.9024832 | AY65: -243.7102845 | AZ65: -224.2134618 | BA65: -206.2763848 | BB65: -189.774274 | BC65: -174.5923321 | BD65: -160.6249455 | BE65: -147.7749499 | BF65: -135.9529539 | BG65: -125.0767176 | BH65: -115.0705802 | BI65: -105.8649338 | BJ65: -97.39573907 | BK65: -89.60407995 | BL65: -82.43575355 | BM65: -75.84089327 | BN65: -69.77362181 | BO65: -64.19173206 | BP65: -59.0563935 | BQ65: -54.33188202 | BR65: =IF(AND(BR63+BR64<0,$D$32="Yes (Separate Entity)"),(BR64+BR63)*(-1),MIN(0,((BR63+BR64)-ABS(0.5*BR64))*(-1))*($E62/($E62+WACC))) -> -864.6643019
A66: Accelerated CCA - In first year add 2x CCA (pre2024); 1x CCA (pre2028) | H66: =SUM(I66:INDEX(I66:BR66,1,MATCH(End_Year,$I$49:$BR$49,0))) -> -3720 | I66: =MIN(MAX(IF(AND(2018<I$49,I$49<2024),I64*$E62,IF(AND(2023<I$49,I$49<2028),I64*$E62*0.5,0))*(-1),-I64+I64*$E62*0.5),0) -> 0 | J66: =MIN(MAX(IF(AND(2018<J$49,J$49<2024),J64*$E62,IF(AND(2023<J$49,J$49<2028),J64*$E62*0.5,0))*(-1),-J64+J64*$E62*0.5),0) -> -3720 | K66: =MIN(MAX(IF(AND(2018<K$49,K$49<2024),K64*$E62,IF(AND(2023<K$49,K$49<2028),K64*$E62*0.5,0))*(-1),-K64+K64*$E62*0.5),0) -> 0 | L66: 0 | M66: 0 | N66: 0 | O66: 0 | P66: 0 | Q66: 0 | R66: 0 | S66: 0 | T66: 0 | U66: 0 | V66: 0 | W66: 0 | X66: 0 | Y66: 0 | Z66: 0 | AA66: 0 | AB66: 0 | AC66: 0 | AD66: 0 | AE66: 0 | AF66: 0 | AG66: 0 | AH66: 0 | AI66: 0 | AJ66: 0 | AK66: 0 | AL66: 0 | AM66: 0 | AN66: 0 | AO66: 0 | AP66: 0 | AQ66: 0 | AR66: 0 | AS66: 0 | AT66: 0 | AU66: 0 | AV66: 0 | AW66: 0 | AX66: 0 | AY66: 0 | AZ66: 0 | BA66: 0 | BB66: 0 | BC66: 0 | BD66: 0 | BE66: 0 | BF66: 0 | BG66: 0 | BH66: 0 | BI66: 0 | BJ66: 0 | BK66: 0 | BL66: 0 | BM66: 0 | BN66: 0 | BO66: 0 | BP66: 0 | BQ66: 0
A67: UCC, end of year | I67: =MAX(SUM(I63:I66),0) -> 0 | J67: =MAX(SUM(J63:J66),0) -> 85560 | K67: =MAX(SUM(K63:K66),0) -> 78715.2 | L67: 72417.984 | M67: 66624.54528 | N67: 61294.58166 | O67: 56391.01512 | P67: 51879.73391 | Q67: 47729.3552 | R67: 43911.00679 | S67: 40398.12624 | T67: 37166.27614 | U67: 34192.97405 | V67: 31457.53613 | W67: 28940.93324 | X67: 26625.65858 | Y67: 24495.60589 | Z67: 22535.95742 | AA67: 20733.08083 | AB67: 19074.43436 | AC67: 17548.47961 | AD67: 16144.60124 | AE67: 14853.03314 | AF67: 13664.79049 | AG67: 12571.60725 | AH67: 11565.87867 | AI67: 10640.60838 | AJ67: 9789.359709 | AK67: 9006.210932 | AL67: 8285.714057 | AM67: 7622.856933 | AN67: 7013.028378 | AO67: 6451.986108 | AP67: 5935.827219 | AQ67: 5460.961042 | AR67: 5024.084158 | AS67: 4622.157426 | AT67: 4252.384832 | AU67: 3912.194045 | AV67: 3599.218521 | AW67: 3311.28104 | AX67: 3046.378557 | AY67: 2802.668272 | AZ67: 2578.45481 | BA67: 2372.178425 | BB67: 2182.404151 | BC67: 2007.811819 | BD67: 1847.186874 | BE67: 1699.411924 | BF67: 1563.45897 | BG67: 1438.382252 | BH67: 1323.311672 | BI67: 1217.446738 | BJ67: 1120.050999 | BK67: 1030.446919 | BL67: 948.0111658 | BM67: 872.1702726 | BN67: 802.3966508 | BO67: 738.2049187 | BP67: 679.1485252 | BQ67: 624.8166432
A68: Capital Gain on Sale of Asset | I68: =IF(I62>=0,0,IF(I62*(-1)>SUM(H62:$I62),I62+SUM(H62:$I62),0)) -> 0 | J68: =IF(J62>=0,0,IF(J62*(-1)>SUM($I62:I62),J62+SUM($I62:I62),0)) -> 0 | K68: =IF(K62>=0,0,IF(K62*(-1)>SUM($I62:J62),K62+SUM($I62:J62),0)) -> 0 | L68: =IF(L62>=0,0,IF(L62*(-1)>SUM($I62:K62),L62+SUM($I62:K62),0)) -> 0 | M68: =IF(M62>=0,0,IF(M62*(-1)>SUM($I62:L62),M62+SUM($I62:L62),0)) -> 0 | N68: =IF(N62>=0,0,IF(N62*(-1)>SUM($I62:M62),N62+SUM($I62:M62),0)) -> 0 | O68: =IF(O62>=0,0,IF(O62*(-1)>SUM($I62:N62),O62+SUM($I62:N62),0)) -> 0 | P68: =IF(P62>=0,0,IF(P62*(-1)>SUM($I62:O62),P62+SUM($I62:O62),0)) -> 0 | Q68: =IF(Q62>=0,0,IF(Q62*(-1)>SUM($I62:P62),Q62+SUM($I62:P62),0)) -> 0 | R68: =IF(R62>=0,0,IF(R62*(-1)>SUM($I62:Q62),R62+SUM($I62:Q62),0)) -> 0 | S68: =IF(S62>=0,0,IF(S62*(-1)>SUM($I62:R62),S62+SUM($I62:R62),0)) -> 0 | T68: =IF(T62>=0,0,IF(T62*(-1)>SUM($I62:S62),T62+SUM($I62:S62),0)) -> 0 | U68: =IF(U62>=0,0,IF(U62*(-1)>SUM($I62:T62),U62+SUM($I62:T62),0)) -> 0 | V68: =IF(V62>=0,0,IF(V62*(-1)>SUM($I62:U62),V62+SUM($I62:U62),0)) -> 0 | W68: =IF(W62>=0,0,IF(W62*(-1)>SUM($I62:V62),W62+SUM($I62:V62),0)) -> 0 | X68: =IF(X62>=0,0,IF(X62*(-1)>SUM($I62:W62),X62+SUM($I62:W62),0)) -> 0 | Y68: =IF(Y62>=0,0,IF(Y62*(-1)>SUM($I62:X62),Y62+SUM($I62:X62),0)) -> 0 | Z68: =IF(Z62>=0,0,IF(Z62*(-1)>SUM($I62:Y62),Z62+SUM($I62:Y62),0)) -> 0 | AA68: =IF(AA62>=0,0,IF(AA62*(-1)>SUM($I62:Z62),AA62+SUM($I62:Z62),0)) -> 0 | AB68: =IF(AB62>=0,0,IF(AB62*(-1)>SUM($I62:AA62),AB62+SUM($I62:AA62),0)) -> 0 | AC68: =IF(AC62>=0,0,IF(AC62*(-1)>SUM($I62:AB62),AC62+SUM($I62:AB62),0)) -> 0 | AD68: =IF(AD62>=0,0,IF(AD62*(-1)>SUM($I62:AC62),AD62+SUM($I62:AC62),0)) -> 0 | AE68: =IF(AE62>=0,0,IF(AE62*(-1)>SUM($I62:AD62),AE62+SUM($I62:AD62),0)) -> 0 | AF68: =IF(AF62>=0,0,IF(AF62*(-1)>SUM($I62:AE62),AF62+SUM($I62:AE62),0)) -> 0 | AG68: =IF(AG62>=0,0,IF(AG62*(-1)>SUM($I62:AF62),AG62+SUM($I62:AF62),0)) -> 0 | AH68: =IF(AH62>=0,0,IF(AH62*(-1)>SUM($I62:AG62),AH62+SUM($I62:AG62),0)) -> 0 | AI68: =IF(AI62>=0,0,IF(AI62*(-1)>SUM($I62:AH62),AI62+SUM($I62:AH62),0)) -> 0 | AJ68: =IF(AJ62>=0,0,IF(AJ62*(-1)>SUM($I62:AI62),AJ62+SUM($I62:AI62),0)) -> 0 | AK68: =IF(AK62>=0,0,IF(AK62*(-1)>SUM($I62:AJ62),AK62+SUM($I62:AJ62),0)) -> 0 | AL68: =IF(AL62>=0,0,IF(AL62*(-1)>SUM($I62:AK62),AL62+SUM($I62:AK62),0)) -> 0 | AM68: =IF(AM62>=0,0,IF(AM62*(-1)>SUM($I62:AL62),AM62+SUM($I62:AL62),0)) -> 0 | AN68: =IF(AN62>=0,0,IF(AN62*(-1)>SUM($I62:AM62),AN62+SUM($I62:AM62),0)) -> 0 | AO68: =IF(AO62>=0,0,IF(AO62*(-1)>SUM($I62:AN62),AO62+SUM($I62:AN62),0)) -> 0 | AP68: =IF(AP62>=0,0,IF(AP62*(-1)>SUM($I62:AO62),AP62+SUM($I62:AO62),0)) -> 0 | AQ68: =IF(AQ62>=0,0,IF(AQ62*(-1)>SUM($I62:AP62),AQ62+SUM($I62:AP62),0)) -> 0 | AR68: =IF(AR62>=0,0,IF(AR62*(-1)>SUM($I62:AQ62),AR62+SUM($I62:AQ62),0)) -> 0 | AS68: =IF(AS62>=0,0,IF(AS62*(-1)>SUM($I62:AR62),AS62+SUM($I62:AR62),0)) -> 0 | AT68: =IF(AT62>=0,0,IF(AT62*(-1)>SUM($I62:AS62),AT62+SUM($I62:AS62),0)) -> 0 | AU68: =IF(AU62>=0,0,IF(AU62*(-1)>SUM($I62:AT62),AU62+SUM($I62:AT62),0)) -> 0 | AV68: =IF(AV62>=0,0,IF(AV62*(-1)>SUM($I62:AU62),AV62+SUM($I62:AU62),0)) -> 0 | AW68: =IF(AW62>=0,0,IF(AW62*(-1)>SUM($I62:AV62),AW62+SUM($I62:AV62),0)) -> 0 | AX68: =IF(AX62>=0,0,IF(AX62*(-1)>SUM($I62:AW62),AX62+SUM($I62:AW62),0)) -> 0 | AY68: =IF(AY62>=0,0,IF(AY62*(-1)>SUM($I62:AX62),AY62+SUM($I62:AX62),0)) -> 0 | AZ68: =IF(AZ62>=0,0,IF(AZ62*(-1)>SUM($I62:AY62),AZ62+SUM($I62:AY62),0)) -> 0 | BA68: =IF(BA62>=0,0,IF(BA62*(-1)>SUM($I62:AZ62),BA62+SUM($I62:AZ62),0)) -> 0 | BB68: =IF(BB62>=0,0,IF(BB62*(-1)>SUM($I62:BA62),BB62+SUM($I62:BA62),0)) -> 0 | BC68: =IF(BC62>=0,0,IF(BC62*(-1)>SUM($I62:BB62),BC62+SUM($I62:BB62),0)) -> 0 | BD68: =IF(BD62>=0,0,IF(BD62*(-1)>SUM($I62:BC62),BD62+SUM($I62:BC62),0)) -> 0 | BE68: =IF(BE62>=0,0,IF(BE62*(-1)>SUM($I62:BD62),BE62+SUM($I62:BD62),0)) -> 0 | BF68: =IF(BF62>=0,0,IF(BF62*(-1)>SUM($I62:BE62),BF62+SUM($I62:BE62),0)) -> 0 | BG68: =IF(BG62>=0,0,IF(BG62*(-1)>SUM($I62:BF62),BG62+SUM($I62:BF62),0)) -> 0 | BH68: =IF(BH62>=0,0,IF(BH62*(-1)>SUM($I62:BG62),BH62+SUM($I62:BG62),0)) -> 0 | BI68: =IF(BI62>=0,0,IF(BI62*(-1)>SUM($I62:BH62),BI62+SUM($I62:BH62),0)) -> 0 | BJ68: =IF(BJ62>=0,0,IF(BJ62*(-1)>SUM($I62:BI62),BJ62+SUM($I62:BI62),0)) -> 0 | BK68: =IF(BK62>=0,0,IF(BK62*(-1)>SUM($I62:BJ62),BK62+SUM($I62:BJ62),0)) -> 0 | BL68: =IF(BL62>=0,0,IF(BL62*(-1)>SUM($I62:BK62),BL62+SUM($I62:BK62),0)) -> 0 | BM68: =IF(BM62>=0,0,IF(BM62*(-1)>SUM($I62:BL62),BM62+SUM($I62:BL62),0)) -> 0 | BN68: =IF(BN62>=0,0,IF(BN62*(-1)>SUM($I62:BM62),BN62+SUM($I62:BM62),0)) -> 0 | BO68: =IF(BO62>=0,0,IF(BO62*(-1)>SUM($I62:BN62),BO62+SUM($I62:BN62),0)) -> 0 | BP68: =IF(BP62>=0,0,IF(BP62*(-1)>SUM($I62:BO62),BP62+SUM($I62:BO62),0)) -> 0 | BQ68: =IF(BQ62>=0,0,IF(BQ62*(-1)>SUM($I62:BP62),BQ62+SUM($I62:BP62),0)) -> 0 | BR68: =IF(BR62>=0,0,IF(BR62*(-1)>SUM($I62:BQ62),BR62+SUM($I62:BQ62),0)) -> 0
A70: Year Addition Comes off Book | J70: =J$49+$F62 -> 2075 | K70: 2076 | L70: 2077 | M70: 2078 | N70: 2079 | O70: 2080 | P70: 2081 | Q70: 2082 | R70: 2083 | S70: 2084 | T70: 2085 | U70: 2086 | V70: 2087 | W70: 2088 | X70: 2089 | Y70: 2090 | Z70: 2091 | AA70: 2092 | AB70: 2093 | AC70: 2094 | AD70: 2095 | AE70: 2096 | AF70: 2097 | AG70: 2098 | AH70: 2099 | AI70: 2100 | AJ70: 2101 | AK70: 2102 | AL70: 2103 | AM70: 2104 | AN70: 2105 | AO70: 2106 | AP70: =AP$49+$F62 -> 2107 | AQ70: 2108 | AR70: 2109 | AS70: 2110 | AT70: 2111 | AU70: 2112 | AV70: 2113 | AW70: 2114 | AX70: 2115 | AY70: 2116 | AZ70: 2117 | BA70: 2118 | BB70: 2119 | BC70: 2120 | BD70: 2121 | BE70: 2122 | BF70: 2123 | BG70: 2124 | BH70: 2125 | BI70: 2126 | BJ70: 2127 | BK70: 2128 | BL70: 2129 | BM70: 2130 | BN70: 2131 | BO70: 2132 | BP70: 2133 | BQ70: 2134
A71: Gross Capital Cost, at beginning of year | I71: 0 | J71: =MAX(0,IF(J$49>=$J70,ROUND(I71+I73-ABS(HLOOKUP(J$49,$J70:$BR73,4,0)),2),I71+I73)) -> 0 | K71: =MAX(0,IF(K$49>=$J70,ROUND(J71+J73-ABS(HLOOKUP(K$49,$J70:$BR73,4,0)),2),J71+J73)) -> 93000 | L71: =MAX(0,IF(L$49>=$J70,ROUND(K71+K73-ABS(HLOOKUP(L$49,$J70:$BR73,4,0)),2),K71+K73)) -> 93000 | M71: =MAX(0,IF(M$49>=$J70,ROUND(L71+L73-ABS(HLOOKUP(M$49,$J70:$BR73,4,0)),2),L71+L73)) -> 93000 | N71: =MAX(0,IF(N$49>=$J70,ROUND(M71+M73-ABS(HLOOKUP(N$49,$J70:$BR73,4,0)),2),M71+M73)) -> 93000 | O71: =MAX(0,IF(O$49>=$J70,ROUND(N71+N73-ABS(HLOOKUP(O$49,$J70:$BR73,4,0)),2),N71+N73)) -> 93000 | P71: =MAX(0,IF(P$49>=$J70,ROUND(O71+O73-ABS(HLOOKUP(P$49,$J70:$BR73,4,0)),2),O71+O73)) -> 93000 | Q71: =MAX(0,IF(Q$49>=$J70,ROUND(P71+P73-ABS(HLOOKUP(Q$49,$J70:$BR73,4,0)),2),P71+P73)) -> 93000 | R71: =MAX(0,IF(R$49>=$J70,ROUND(Q71+Q73-ABS(HLOOKUP(R$49,$J70:$BR73,4,0)),2),Q71+Q73)) -> 93000 | S71: =MAX(0,IF(S$49>=$J70,ROUND(R71+R73-ABS(HLOOKUP(S$49,$J70:$BR73,4,0)),2),R71+R73)) -> 93000 | T71: =MAX(0,IF(T$49>=$J70,ROUND(S71+S73-ABS(HLOOKUP(T$49,$J70:$BR73,4,0)),2),S71+S73)) -> 93000 | U71: =MAX(0,IF(U$49>=$J70,ROUND(T71+T73-ABS(HLOOKUP(U$49,$J70:$BR73,4,0)),2),T71+T73)) -> 93000 | V71: =MAX(0,IF(V$49>=$J70,ROUND(U71+U73-ABS(HLOOKUP(V$49,$J70:$BR73,4,0)),2),U71+U73)) -> 93000 | W71: =MAX(0,IF(W$49>=$J70,ROUND(V71+V73-ABS(HLOOKUP(W$49,$J70:$BR73,4,0)),2),V71+V73)) -> 93000 | X71: =MAX(0,IF(X$49>=$J70,ROUND(W71+W73-ABS(HLOOKUP(X$49,$J70:$BR73,4,0)),2),W71+W73)) -> 93000 | Y71: =MAX(0,IF(Y$49>=$J70,ROUND(X71+X73-ABS(HLOOKUP(Y$49,$J70:$BR73,4,0)),2),X71+X73)) -> 93000 | Z71: =MAX(0,IF(Z$49>=$J70,ROUND(Y71+Y73-ABS(HLOOKUP(Z$49,$J70:$BR73,4,0)),2),Y71+Y73)) -> 93000 | AA71: =MAX(0,IF(AA$49>=$J70,ROUND(Z71+Z73-ABS(HLOOKUP(AA$49,$J70:$BR73,4,0)),2),Z71+Z73)) -> 93000 | AB71: =MAX(0,IF(AB$49>=$J70,ROUND(AA71+AA73-ABS(HLOOKUP(AB$49,$J70:$BR73,4,0)),2),AA71+AA73)) -> 93000 | AC71: =MAX(0,IF(AC$49>=$J70,ROUND(AB71+AB73-ABS(HLOOKUP(AC$49,$J70:$BR73,4,0)),2),AB71+AB73)) -> 93000 | AD71: =MAX(0,IF(AD$49>=$J70,ROUND(AC71+AC73-ABS(HLOOKUP(AD$49,$J70:$BR73,4,0)),2),AC71+AC73)) -> 93000 | AE71: =MAX(0,IF(AE$49>=$J70,ROUND(AD71+AD73-ABS(HLOOKUP(AE$49,$J70:$BR73,4,0)),2),AD71+AD73)) -> 93000 | AF71: =MAX(0,IF(AF$49>=$J70,ROUND(AE71+AE73-ABS(HLOOKUP(AF$49,$J70:$BR73,4,0)),2),AE71+AE73)) -> 93000 | AG71: =MAX(0,IF(AG$49>=$J70,ROUND(AF71+AF73-ABS(HLOOKUP(AG$49,$J70:$BR73,4,0)),2),AF71+AF73)) -> 93000 | AH71: =MAX(0,IF(AH$49>=$J70,ROUND(AG71+AG73-ABS(HLOOKUP(AH$49,$J70:$BR73,4,0)),2),AG71+AG73)) -> 93000 | AI71: =MAX(0,IF(AI$49>=$J70,ROUND(AH71+AH73-ABS(HLOOKUP(AI$49,$J70:$BR73,4,0)),2),AH71+AH73)) -> 93000 | AJ71: =MAX(0,IF(AJ$49>=$J70,ROUND(AI71+AI73-ABS(HLOOKUP(AJ$49,$J70:$BR73,4,0)),2),AI71+AI73)) -> 93000 | AK71: =MAX(0,IF(AK$49>=$J70,ROUND(AJ71+AJ73-ABS(HLOOKUP(AK$49,$J70:$BR73,4,0)),2),AJ71+AJ73)) -> 93000 | AL71: =MAX(0,IF(AL$49>=$J70,ROUND(AK71+AK73-ABS(HLOOKUP(AL$49,$J70:$BR73,4,0)),2),AK71+AK73)) -> 93000 | AM71: =MAX(0,IF(AM$49>=$J70,ROUND(AL71+AL73-ABS(HLOOKUP(AM$49,$J70:$BR73,4,0)),2),AL71+AL73)) -> 93000 | AN71: =MAX(0,IF(AN$49>=$J70,ROUND(AM71+AM73-ABS(HLOOKUP(AN$49,$J70:$BR73,4,0)),2),AM71+AM73)) -> 93000 | AO71: =MAX(0,IF(AO$49>=$J70,ROUND(AN71+AN73-ABS(HLOOKUP(AO$49,$J70:$BR73,4,0)),2),AN71+AN73)) -> 93000 | AP71: =MAX(0,IF(AP$49>=$J70,ROUND(AO71+AO73-ABS(HLOOKUP(AP$49,$J70:$BR73,4,0)),2),AO71+AO73)) -> 93000 | AQ71: =MAX(0,IF(AQ$49>=$J70,ROUND(AP71+AP73-ABS(HLOOKUP(AQ$49,$J70:$BR73,4,0)),2),AP71+AP73)) -> 93000 | AR71: =MAX(0,IF(AR$49>=$J70,ROUND(AQ71+AQ73-ABS(HLOOKUP(AR$49,$J70:$BR73,4,0)),2),AQ71+AQ73)) -> 93000 | AS71: =MAX(0,IF(AS$49>=$J70,ROUND(AR71+AR73-ABS(HLOOKUP(AS$49,$J70:$BR73,4,0)),2),AR71+AR73)) -> 93000 | AT71: =MAX(0,IF(AT$49>=$J70,ROUND(AS71+AS73-ABS(HLOOKUP(AT$49,$J70:$BR73,4,0)),2),AS71+AS73)) -> 93000 | AU71: =MAX(0,IF(AU$49>=$J70,ROUND(AT71+AT73-ABS(HLOOKUP(AU$49,$J70:$BR73,4,0)),2),AT71+AT73)) -> 93000 | AV71: =MAX(0,IF(AV$49>=$J70,ROUND(AU71+AU73-ABS(HLOOKUP(AV$49,$J70:$BR73,4,0)),2),AU71+AU73)) -> 93000 | AW71: =MAX(0,IF(AW$49>=$J70,ROUND(AV71+AV73-ABS(HLOOKUP(AW$49,$J70:$BR73,4,0)),2),AV71+AV73)) -> 93000 | AX71: =MAX(0,IF(AX$49>=$J70,ROUND(AW71+AW73-ABS(HLOOKUP(AX$49,$J70:$BR73,4,0)),2),AW71+AW73)) -> 93000 | AY71: =MAX(0,IF(AY$49>=$J70,ROUND(AX71+AX73-ABS(HLOOKUP(AY$49,$J70:$BR73,4,0)),2),AX71+AX73)) -> 93000 | AZ71: =MAX(0,IF(AZ$49>=$J70,ROUND(AY71+AY73-ABS(HLOOKUP(AZ$49,$J70:$BR73,4,0)),2),AY71+AY73)) -> 93000 | BA71: =MAX(0,IF(BA$49>=$J70,ROUND(AZ71+AZ73-ABS(HLOOKUP(BA$49,$J70:$BR73,4,0)),2),AZ71+AZ73)) -> 93000 | BB71: =MAX(0,IF(BB$49>=$J70,ROUND(BA71+BA73-ABS(HLOOKUP(BB$49,$J70:$BR73,4,0)),2),BA71+BA73)) -> 93000 | BC71: =MAX(0,IF(BC$49>=$J70,ROUND(BB71+BB73-ABS(HLOOKUP(BC$49,$J70:$BR73,4,0)),2),BB71+BB73)) -> 93000 | BD71: =MAX(0,IF(BD$49>=$J70,ROUND(BC71+BC73-ABS(HLOOKUP(BD$49,$J70:$BR73,4,0)),2),BC71+BC73)) -> 93000 | BE71: =MAX(0,IF(BE$49>=$J70,ROUND(BD71+BD73-ABS(HLOOKUP(BE$49,$J70:$BR73,4,0)),2),BD71+BD73)) -> 93000 | BF71: =MAX(0,IF(BF$49>=$J70,ROUND(BE71+BE73-ABS(HLOOKUP(BF$49,$J70:$BR73,4,0)),2),BE71+BE73)) -> 93000 | BG71: =MAX(0,IF(BG$49>=$J70,ROUND(BF71+BF73-ABS(HLOOKUP(BG$49,$J70:$BR73,4,0)),2),BF71+BF73)) -> 93000 | BH71: =MAX(0,IF(BH$49>=$J70,ROUND(BG71+BG73-ABS(HLOOKUP(BH$49,$J70:$BR73,4,0)),2),BG71+BG73)) -> 0 | BI71: =MAX(0,IF(BI$49>=$J70,ROUND(BH71+BH73-ABS(HLOOKUP(BI$49,$J70:$BR73,4,0)),2),BH71+BH73)) -> 0 | BJ71: =MAX(0,IF(BJ$49>=$J70,ROUND(BI71+BI73-ABS(HLOOKUP(BJ$49,$J70:$BR73,4,0)),2),BI71+BI73)) -> 0 | BK71: =MAX(0,IF(BK$49>=$J70,ROUND(BJ71+BJ73-ABS(HLOOKUP(BK$49,$J70:$BR73,4,0)),2),BJ71+BJ73)) -> 0 | BL71: =MAX(0,IF(BL$49>=$J70,ROUND(BK71+BK73-ABS(HLOOKUP(BL$49,$J70:$BR73,4,0)),2),BK71+BK73)) -> 0 | BM71: =MAX(0,IF(BM$49>=$J70,ROUND(BL71+BL73-ABS(HLOOKUP(BM$49,$J70:$BR73,4,0)),2),BL71+BL73)) -> 0 | BN71: =MAX(0,IF(BN$49>=$J70,ROUND(BM71+BM73-ABS(HLOOKUP(BN$49,$J70:$BR73,4,0)),2),BM71+BM73)) -> 0 | BO71: =MAX(0,IF(BO$49>=$J70,ROUND(BN71+BN73-ABS(HLOOKUP(BO$49,$J70:$BR73,4,0)),2),BN71+BN73)) -> 0 | BP71: =MAX(0,IF(BP$49>=$J70,ROUND(BO71+BO73-ABS(HLOOKUP(BP$49,$J70:$BR73,4,0)),2),BO71+BO73)) -> 0 | BQ71: =MAX(0,IF(BQ$49>=$J70,ROUND(BP71+BP73-ABS(HLOOKUP(BQ$49,$J70:$BR73,4,0)),2),BP71+BP73)) -> 0
A72: Net Book Value, beginning of year | I72: =MAX(0,H75) -> 0 | J72: =MAX(0,I75) -> 0 | K72: =MAX(0,J75) -> 92845 | L72: =MAX(0,K75) -> 90985 | M72: =MAX(0,L75) -> 89125 | N72: =MAX(0,M75) -> 87265 | O72: 85405 | P72: 83545 | Q72: 81685 | R72: 79825 | S72: 77965 | T72: 76105 | U72: 74245 | V72: 72385 | W72: 70525 | X72: 68665 | Y72: 66805 | Z72: 64945 | AA72: 63085 | AB72: 61225 | AC72: 59365 | AD72: 57505 | AE72: 55645 | AF72: 53785 | AG72: 51925 | AH72: 50065 | AI72: 48205 | AJ72: 46345 | AK72: 44485 | AL72: 42625 | AM72: 40765 | AN72: 38905 | AO72: 37045 | AP72: 35185 | AQ72: 33325 | AR72: 31465 | AS72: 29605 | AT72: 27745 | AU72: 25885 | AV72: 24025 | AW72: 22165 | AX72: 20305 | AY72: 18445 | AZ72: 16585 | BA72: 14725 | BB72: 12865 | BC72: 11005 | BD72: 9145 | BE72: 7285 | BF72: 5425 | BG72: 3565 | BH72: 1705 | BI72: 0 | BJ72: 0 | BK72: 0 | BL72: 0 | BM72: 0 | BN72: 0 | BO72: 0 | BP72: 0 | BQ72: 0
A73: Additions during year | H73: =SUM(I73:INDEX(I73:BR73,1,MATCH(End_Year,$I$49:$BR$49,0))) -> 93000 | I73: =I64 -> 0 | J73: =J64 -> 93000 | K73: =K64 -> 0 | L73: 0 | M73: 0 | N73: 0 | O73: 0 | P73: 0 | Q73: 0 | R73: 0 | S73: 0 | T73: 0 | U73: 0 | V73: 0 | W73: 0 | X73: 0 | Y73: 0 | Z73: 0 | AA73: 0 | AB73: 0 | AC73: 0 | AD73: 0 | AE73: 0 | AF73: 0 | AG73: 0 | AH73: 0 | AI73: 0 | AJ73: 0 | AK73: 0 | AL73: 0 | AM73: 0 | AN73: 0 | AO73: 0 | AP73: 0 | AQ73: 0 | AR73: 0 | AS73: 0 | AT73: 0 | AU73: 0 | AV73: 0 | AW73: 0 | AX73: 0 | AY73: 0 | AZ73: 0 | BA73: 0 | BB73: 0 | BC73: 0 | BD73: 0 | BE73: 0 | BF73: 0 | BG73: 0 | BH73: 0 | BI73: 0 | BJ73: 0 | BK73: 0 | BL73: 0 | BM73: 0 | BN73: 0 | BO73: 0 | BP73: 0 | BQ73: 0 | BR73: 0
A74: Depreciation (for in-service year, proportion to number of months since in-service) | H74: =SUM(I74:INDEX(I74:BR74,1,MATCH(End_Year,$I$49:$BR$49,0))) -> -91295 | I74: =(-1)*IF(I$49=YEAR(IS_Date),I73/$F62*((12-MONTH(IS_Date)+1)/12),IF(I$49>YEAR(IS_Date),IF(I71=0,I72,I71/$F62+I73/2/$F62),0)) -> 0 | J74: -155 | K74: -1860 | L74: -1860 | M74: -1860 | N74: -1860 | O74: -1860 | P74: -1860 | Q74: -1860 | R74: -1860 | S74: -1860 | T74: -1860 | U74: -1860 | V74: -1860 | W74: -1860 | X74: -1860 | Y74: -1860 | Z74: -1860 | AA74: -1860 | AB74: -1860 | AC74: -1860 | AD74: -1860 | AE74: -1860 | AF74: -1860 | AG74: -1860 | AH74: -1860 | AI74: -1860 | AJ74: -1860 | AK74: -1860 | AL74: -1860 | AM74: -1860 | AN74: -1860 | AO74: =(-1)*IF(AO$49=YEAR(IS_Date),AO73/$F62*((12-MONTH(IS_Date)+1)/12),IF(AO$49>YEAR(IS_Date),IF(AO71=0,AO72,AO71/$F62+AO73/2/$F62),0)) -> -1860 | AP74: -1860 | AQ74: -1860 | AR74: -1860 | AS74: -1860 | AT74: -1860 | AU74: -1860 | AV74: -1860 | AW74: -1860 | AX74: -1860 | AY74: -1860 | AZ74: -1860 | BA74: -1860 | BB74: -1860 | BC74: -1860 | BD74: -1860 | BE74: -1860 | BF74: -1860 | BG74: -1860 | BH74: -1705 | BI74: 0 | BJ74: 0 | BK74: 0 | BL74: 0 | BM74: 0 | BN74: 0 | BO74: 0 | BP74: 0 | BQ74: 0 | BR74: =(-1)*OFFSET(I75,,Study_Length,,) -> -1705
A75: Net Book Value, end of year | I75: =SUM(I72:I74) -> 0 | J75: =MAX(0,SUM(J72:J74)) -> 92845 | K75: =MAX(0,SUM(K72:K74)) -> 90985 | L75: =MAX(0,SUM(L72:L74)) -> 89125 | M75: =MAX(0,SUM(M72:M74)) -> 87265 | N75: 85405 | O75: 83545 | P75: 81685 | Q75: 79825 | R75: 77965 | S75: 76105 | T75: 74245 | U75: 72385 | V75: 70525 | W75: 68665 | X75: 66805 | Y75: 64945 | Z75: 63085 | AA75: 61225 | AB75: 59365 | AC75: 57505 | AD75: 55645 | AE75: 53785 | AF75: 51925 | AG75: 50065 | AH75: 48205 | AI75: 46345 | AJ75: 44485 | AK75: 42625 | AL75: 40765 | AM75: 38905 | AN75: 37045 | AO75: 35185 | AP75: 33325 | AQ75: 31465 | AR75: 29605 | AS75: 27745 | AT75: 25885 | AU75: 24025 | AV75: 22165 | AW75: 20305 | AX75: 18445 | AY75: 16585 | AZ75: 14725 | BA75: 12865 | BB75: 11005 | BC75: 9145 | BD75: 7285 | BE75: 5425 | BF75: 3565 | BG75: 1705 | BH75: 0 | BI75: 0 | BJ75: 0 | BK75: 0 | BL75: 0 | BM75: 0 | BN75: 0 | BO75: 0 | BP75: 0 | BQ75: 0 | BR75: =OFFSET(I75,,Study_Length,,)+BR74 -> 0
A76: Average Net Book Value for the year, i.e. Average Rate Base | I76: =(I75+I72)/2 -> 0 | J76: 46422.5 | K76: 91915 | L76: 90055 | M76: 88195 | N76: 86335 | O76: 84475 | P76: 82615 | Q76: 80755 | R76: 78895 | S76: 77035 | T76: 75175 | U76: 73315 | V76: 71455 | W76: 69595 | X76: 67735 | Y76: 65875 | Z76: 64015 | AA76: 62155 | AB76: 60295 | AC76: 58435 | AD76: 56575 | AE76: 54715 | AF76: 52855 | AG76: 50995 | AH76: 49135 | AI76: 47275 | AJ76: 45415 | AK76: 43555 | AL76: 41695 | AM76: 39835 | AN76: 37975 | AO76: =(AO75+AO72)/2 -> 36115 | AP76: 34255 | AQ76: 32395 | AR76: 30535 | AS76: 28675 | AT76: 26815 | AU76: 24955 | AV76: 23095 | AW76: 21235 | AX76: 19375 | AY76: 17515 | AZ76: 15655 | BA76: 13795 | BB76: 11935 | BC76: 10075 | BD76: 8215 | BE76: 6355 | BF76: 4495 | BG76: 2635 | BH76: 852.5 | BI76: 0 | BJ76: 0 | BK76: 0 | BL76: 0 | BM76: 0 | BN76: 0 | BO76: 0 | BP76: 0 | BQ76: 0 | BR76: =(BR75+OFFSET(I72,,Study_Length,,))/2 -> 1782.5
A78: Class 8 Capital Expenditures | D78: 8 | E78: =VLOOKUP($D78,'Finance Input'!$B$26:$D$37,2,0) -> 0.2 | F78: =VLOOKUP($D78,'Finance Input'!$B$26:$D$37,3,0) -> 15 | H78: =SUM(I78:INDEX(I78:BR78,1,MATCH(End_Year,$I$49:$BR$49,0))) -> 0 | I78: =SUMIF(Table2[[#All],[CCA Class]:[CCA Class]],$D78,Table2[[#All],[Period 0]])*(-1) -> 0 | J78: =SUMIF(Table2[[#All],[CCA Class]:[CCA Class]],$D78,Table2[[#All],[2025]])*(-1) -> 0 | K78: =SUMIF(Table2[[#All],[CCA Class]:[CCA Class]],$D78,Table2[[#All],[2026]])*(-1) -> 0 | L78: =SUMIF(Table2[[#All],[CCA Class]:[CCA Class]],$D78,Table2[[#All],[2027]])*(-1) -> 0 | M78: =SUMIF(Table2[[#All],[CCA Class]:[CCA Class]],$D78,Table2[[#All],[2028]])*(-1) -> 0 | N78: =SUMIF(Table2[[#All],[CCA Class]:[CCA Class]],$D78,Table2[[#All],[2029]])*(-1) -> 0 | O78: =SUMIF(Table2[[#All],[CCA Class]:[CCA Class]],$D78,Table2[[#All],[2030]])*(-1) -> 0 | P78: =SUMIF(Table2[[#All],[CCA Class]:[CCA Class]],$D78,Table2[[#All],[2031]])*(-1) -> 0 | Q78: =SUMIF(Table2[[#All],[CCA Class]:[CCA Class]],$D78,Table2[[#All],[2032]])*(-1) -> 0 | R78: =SUMIF(Table2[[#All],[CCA Class]:[CCA Class]],$D78,Table2[[#All],[2033]])*(-1) -> 0 | S78: =SUMIF(Table2[[#All],[CCA Class]:[CCA Class]],$D78,Table2[[#All],[2034]])*(-1) -> 0 | T78: =SUMIF(Table2[[#All],[CCA Class]:[CCA Class]],$D78,Table2[[#All],[2035]])*(-1) -> 0 | U78: =SUMIF(Table2[[#All],[CCA Class]:[CCA Class]],$D78,Table2[[#All],[2036]])*(-1) -> 0 | V78: =SUMIF(Table2[[#All],[CCA Class]:[CCA Class]],$D78,Table2[[#All],[2037]])*(-1) -> 0 | W78: =SUMIF(Table2[[#All],[CCA Class]:[CCA Class]],$D78,Table2[[#All],[2038]])*(-1) -> 0 | X78: =SUMIF(Table2[[#All],[CCA Class]:[CCA Class]],$D78,Table2[[#All],[2039]])*(-1) -> 0 | Y78: =SUMIF(Table2[[#All],[CCA Class]:[CCA Class]],$D78,Table2[[#All],[2040]])*(-1) -> 0 | Z78: =SUMIF(Table2[[#All],[CCA Class]:[CCA Class]],$D78,Table2[[#All],[2041]])*(-1) -> 0 | AA78: =SUMIF(Table2[[#All],[CCA Class]:[CCA Class]],$D78,Table2[[#All],[2042]])*(-1) -> 0 | AB78: =SUMIF(Table2[[#All],[CCA Class]:[CCA Class]],$D78,Table2[[#All],[2043]])*(-1) -> 0 | AC78: =SUMIF(Table2[[#All],[CCA Class]:[CCA Class]],$D78,Table2[[#All],[2044]])*(-1) -> 0 | AD78: =SUMIF(Table2[[#All],[CCA Class]:[CCA Class]],$D78,Table2[[#All],[2045]])*(-1) -> 0 | AE78: =SUMIF(Table2[[#All],[CCA Class]:[CCA Class]],$D78,Table2[[#All],[2046]])*(-1) -> 0 | AF78: =SUMIF(Table2[[#All],[CCA Class]:[CCA Class]],$D78,Table2[[#All],[2047]])*(-1) -> 0 | AG78: =SUMIF(Table2[[#All],[CCA Class]:[CCA Class]],$D78,Table2[[#All],[2048]])*(-1) -> 0 | AH78: =SUMIF(Table2[[#All],[CCA Class]:[CCA Class]],$D78,Table2[[#All],[2049]])*(-1) -> 0 | AI78: =SUMIF(Table2[[#All],[CCA Class]:[CCA Class]],$D78,Table2[[#All],[2050]])*(-1) -> 0 | AJ78: =SUMIF(Table2[[#All],[CCA Class]:[CCA Class]],$D78,Table2[[#All],[2051]])*(-1) -> 0 | AK78: =SUMIF(Table2[[#All],[CCA Class]:[CCA Class]],$D78,Table2[[#All],[2052]])*(-1) -> 0 | AL78: =SUMIF(Table2[[#All],[CCA Class]:[CCA Class]],$D78,Table2[[#All],[2053]])*(-1) -> 0 | AM78: =SUMIF(Table2[[#All],[CCA Class]:[CCA Class]],$D78,Table2[[#All],[2054]])*(-1) -> 0 | AN78: =SUMIF(Table2[[#All],[CCA Class]:[CCA Class]],$D78,Table2[[#All],[2055]])*(-1) -> 0 | AO78: =SUMIF(Table2[[#All],[CCA Class]:[CCA Class]],$D78,Table2[[#All],[2056]])*(-1) -> 0 | AP78: =SUMIF(Table2[[#All],[CCA Class]:[CCA Class]],$D78,Table2[[#All],[2057]])*(-1) -> 0 | AQ78: =SUMIF(Table2[[#All],[CCA Class]:[CCA Class]],$D78,Table2[[#All],[2058]])*(-1) -> 0 | AR78: =SUMIF(Table2[[#All],[CCA Class]:[CCA Class]],$D78,Table2[[#All],[2059]])*(-1) -> 0 | AS78: =SUMIF(Table2[[#All],[CCA Class]:[CCA Class]],$D78,Table2[[#All],[2060]])*(-1) -> 0 | AT78: =SUMIF(Table2[[#All],[CCA Class]:[CCA Class]],$D78,Table2[[#All],[2061]])*(-1) -> 0 | AU78: =SUMIF(Table2[[#All],[CCA Class]:[CCA Class]],$D78,Table2[[#All],[2062]])*(-1) -> 0 | AV78: =SUMIF(Table2[[#All],[CCA Class]:[CCA Class]],$D78,Table2[[#All],[2063]])*(-1) -> 0 | AW78: =SUMIF(Table2[[#All],[CCA Class]:[CCA Class]],$D78,Table2[[#All],[2064]])*(-1) -> 0 | AX78: =SUMIF(Table2[[#All],[CCA Class]:[CCA Class]],$D78,Table2[[#All],[2065]])*(-1) -> 0 | AY78: =SUMIF(Table2[[#All],[CCA Class]:[CCA Class]],$D78,Table2[[#All],[2066]])*(-1) -> 0 | AZ78: =SUMIF(Table2[[#All],[CCA Class]:[CCA Class]],$D78,Table2[[#All],[2067]])*(-1) -> 0 | BA78: =SUMIF(Table2[[#All],[CCA Class]:[CCA Class]],$D78,Table2[[#All],[2068]])*(-1) -> 0 | BB78: =SUMIF(Table2[[#All],[CCA Class]:[CCA Class]],$D78,Table2[[#All],[2069]])*(-1) -> 0 | BC78: =SUMIF(Table2[[#All],[CCA Class]:[CCA Class]],$D78,Table2[[#All],[2070]])*(-1) -> 0 | BD78: =SUMIF(Table2[[#All],[CCA Class]:[CCA Class]],$D78,Table2[[#All],[2071]])*(-1) -> 0 | BE78: =SUMIF(Table2[[#All],[CCA Class]:[CCA Class]],$D78,Table2[[#All],[2072]])*(-1) -> 0 | BF78: =SUMIF(Table2[[#All],[CCA Class]:[CCA Class]],$D78,Table2[[#All],[2073]])*(-1) -> 0 | BG78: =SUMIF(Table2[[#All],[CCA Class]:[CCA Class]],$D78,Table2[[#All],[2074]])*(-1) -> 0 | BH78: =SUMIF(Table2[[#All],[CCA Class]:[CCA Class]],$D78,Table2[[#All],[2075]])*(-1) -> 0 | BI78: =SUMIF(Table2[[#All],[CCA Class]:[CCA Class]],$D78,Table2[[#All],[2076]])*(-1) -> 0 | BJ78: =SUMIF(Table2[[#All],[CCA Class]:[CCA Class]],$D78,Table2[[#All],[2077]])*(-1) -> 0 | BK78: =SUMIF(Table2[[#All],[CCA Class]:[CCA Class]],$D78,Table2[[#All],[2078]])*(-1) -> 0 | BL78: =SUMIF(Table2[[#All],[CCA Class]:[CCA Class]],$D78,Table2[[#All],[2079]])*(-1) -> 0 | BM78: =SUMIF(Table2[[#All],[CCA Class]:[CCA Class]],$D78,Table2[[#All],[2080]])*(-1) -> 0 | BN78: =SUMIF(Table2[[#All],[CCA Class]:[CCA Class]],$D78,Table2[[#All],[2081]])*(-1) -> 0 | BO78: =SUMIF(Table2[[#All],[CCA Class]:[CCA Class]],$D78,Table2[[#All],[2082]])*(-1) -> 0 | BP78: =SUMIF(Table2[[#All],[CCA Class]:[CCA Class]],$D78,Table2[[#All],[2083]])*(-1) -> 0 | BQ78: =SUMIF(Table2[[#All],[CCA Class]:[CCA Class]],$D78,Table2[[#All],[2084]])*(-1) -> 0 | BR78: =SUMIF(Table2[[#All],[CCA Class]:[CCA Class]],$D78,Table2[[#All],[Terminal Value]])*(-1) -> 0
A79: UCC, beginning of year | I79: 0 | J79: =I83 -> 0 | K79: 0 | L79: 0 | M79: 0 | N79: 0 | O79: 0 | P79: 0 | Q79: 0 | R79: 0 | S79: 0 | T79: 0 | U79: 0 | V79: 0 | W79: 0 | X79: 0 | Y79: 0 | Z79: 0 | AA79: 0 | AB79: 0 | AC79: 0 | AD79: 0 | AE79: 0 | AF79: 0 | AG79: 0 | AH79: 0 | AI79: 0 | AJ79: 0 | AK79: 0 | AL79: 0 | AM79: 0 | AN79: 0 | AO79: 0 | AP79: =AO83 -> 0 | AQ79: 0 | AR79: 0 | AS79: 0 | AT79: 0 | AU79: 0 | AV79: 0 | AW79: 0 | AX79: 0 | AY79: 0 | AZ79: 0 | BA79: 0 | BB79: 0 | BC79: 0 | BD79: 0 | BE79: 0 | BF79: 0 | BG79: 0 | BH79: 0 | BI79: 0 | BJ79: 0 | BK79: 0 | BL79: 0 | BM79: 0 | BN79: 0 | BO79: 0 | BP79: 0 | BQ79: 0 | BR79: =OFFSET(I83,,Study_Length,,) -> 0
A80: Additions to UCC pool - Only recorded beyond in-service date | H80: =SUM(I80:INDEX(I80:BR80,1,MATCH(End_Year,$I$49:$BR$49,0))) -> 0 | I80: =IF(YEAR(IS_Date)>I$49,0,IF(SUM(H80:$I80)=0,SUM($I78:I78),I78)) -> 0 | J80: =IF(YEAR(IS_Date)>J$49,0,IF(SUM($I80:I80,$I84:I84)=0,SUM($I78:J78),J78))-J84 -> 0 | K80: =IF(YEAR(IS_Date)>K$49,0,IF(SUM($I80:J80,$I84:J84)=0,SUM($I78:K78),K78))-K84 -> 0 | L80: =IF(YEAR(IS_Date)>L$49,0,IF(SUM($I80:K80,$I84:K84)=0,SUM($I78:L78),L78))-L84 -> 0 | M80: =IF(YEAR(IS_Date)>M$49,0,IF(SUM($I80:L80,$I84:L84)=0,SUM($I78:M78),M78))-M84 -> 0 | N80: =IF(YEAR(IS_Date)>N$49,0,IF(SUM($I80:M80,$I84:M84)=0,SUM($I78:N78),N78))-N84 -> 0 | O80: =IF(YEAR(IS_Date)>O$49,0,IF(SUM($I80:N80,$I84:N84)=0,SUM($I78:O78),O78))-O84 -> 0 | P80: =IF(YEAR(IS_Date)>P$49,0,IF(SUM($I80:O80,$I84:O84)=0,SUM($I78:P78),P78))-P84 -> 0 | Q80: =IF(YEAR(IS_Date)>Q$49,0,IF(SUM($I80:P80,$I84:P84)=0,SUM($I78:Q78),Q78))-Q84 -> 0 | R80: =IF(YEAR(IS_Date)>R$49,0,IF(SUM($I80:Q80,$I84:Q84)=0,SUM($I78:R78),R78))-R84 -> 0 | S80: =IF(YEAR(IS_Date)>S$49,0,IF(SUM($I80:R80,$I84:R84)=0,SUM($I78:S78),S78))-S84 -> 0 | T80: =IF(YEAR(IS_Date)>T$49,0,IF(SUM($I80:S80,$I84:S84)=0,SUM($I78:T78),T78))-T84 -> 0 | U80: =IF(YEAR(IS_Date)>U$49,0,IF(SUM($I80:T80,$I84:T84)=0,SUM($I78:U78),U78))-U84 -> 0 | V80: =IF(YEAR(IS_Date)>V$49,0,IF(SUM($I80:U80,$I84:U84)=0,SUM($I78:V78),V78))-V84 -> 0 | W80: =IF(YEAR(IS_Date)>W$49,0,IF(SUM($I80:V80,$I84:V84)=0,SUM($I78:W78),W78))-W84 -> 0 | X80: =IF(YEAR(IS_Date)>X$49,0,IF(SUM($I80:W80,$I84:W84)=0,SUM($I78:X78),X78))-X84 -> 0 | Y80: =IF(YEAR(IS_Date)>Y$49,0,IF(SUM($I80:X80,$I84:X84)=0,SUM($I78:Y78),Y78))-Y84 -> 0 | Z80: =IF(YEAR(IS_Date)>Z$49,0,IF(SUM($I80:Y80,$I84:Y84)=0,SUM($I78:Z78),Z78))-Z84 -> 0 | AA80: =IF(YEAR(IS_Date)>AA$49,0,IF(SUM($I80:Z80,$I84:Z84)=0,SUM($I78:AA78),AA78))-AA84 -> 0 | AB80: =IF(YEAR(IS_Date)>AB$49,0,IF(SUM($I80:AA80,$I84:AA84)=0,SUM($I78:AB78),AB78))-AB84 -> 0 | AC80: =IF(YEAR(IS_Date)>AC$49,0,IF(SUM($I80:AB80,$I84:AB84)=0,SUM($I78:AC78),AC78))-AC84 -> 0 | AD80: =IF(YEAR(IS_Date)>AD$49,0,IF(SUM($I80:AC80,$I84:AC84)=0,SUM($I78:AD78),AD78))-AD84 -> 0 | AE80: =IF(YEAR(IS_Date)>AE$49,0,IF(SUM($I80:AD80,$I84:AD84)=0,SUM($I78:AE78),AE78))-AE84 -> 0 | AF80: =IF(YEAR(IS_Date)>AF$49,0,IF(SUM($I80:AE80,$I84:AE84)=0,SUM($I78:AF78),AF78))-AF84 -> 0 | AG80: =IF(YEAR(IS_Date)>AG$49,0,IF(SUM($I80:AF80,$I84:AF84)=0,SUM($I78:AG78),AG78))-AG84 -> 0 | AH80: =IF(YEAR(IS_Date)>AH$49,0,IF(SUM($I80:AG80,$I84:AG84)=0,SUM($I78:AH78),AH78))-AH84 -> 0 | AI80: =IF(YEAR(IS_Date)>AI$49,0,IF(SUM($I80:AH80,$I84:AH84)=0,SUM($I78:AI78),AI78))-AI84 -> 0 | AJ80: =IF(YEAR(IS_Date)>AJ$49,0,IF(SUM($I80:AI80,$I84:AI84)=0,SUM($I78:AJ78),AJ78))-AJ84 -> 0 | AK80: =IF(YEAR(IS_Date)>AK$49,0,IF(SUM($I80:AJ80,$I84:AJ84)=0,SUM($I78:AK78),AK78))-AK84 -> 0 | AL80: =IF(YEAR(IS_Date)>AL$49,0,IF(SUM($I80:AK80,$I84:AK84)=0,SUM($I78:AL78),AL78))-AL84 -> 0 | AM80: =IF(YEAR(IS_Date)>AM$49,0,IF(SUM($I80:AL80,$I84:AL84)=0,SUM($I78:AM78),AM78))-AM84 -> 0 | AN80: =IF(YEAR(IS_Date)>AN$49,0,IF(SUM($I80:AM80,$I84:AM84)=0,SUM($I78:AN78),AN78))-AN84 -> 0 | AO80: =IF(YEAR(IS_Date)>AO$49,0,IF(SUM($I80:AN80)=0,SUM($I78:AO78),AO78)) -> 0 | AP80: =IF(YEAR(IS_Date)>AP$49,0,IF(SUM($I80:AO80)=0,SUM($I78:AP78),AP78)) -> 0 | AQ80: =IF(YEAR(IS_Date)>AQ$49,0,IF(SUM($I80:AP80)=0,SUM($I78:AQ78),AQ78)) -> 0 | AR80: =IF(YEAR(IS_Date)>AR$49,0,IF(SUM($I80:AQ80)=0,SUM($I78:AR78),AR78)) -> 0 | AS80: =IF(YEAR(IS_Date)>AS$49,0,IF(SUM($I80:AR80)=0,SUM($I78:AS78),AS78)) -> 0 | AT80: =IF(YEAR(IS_Date)>AT$49,0,IF(SUM($I80:AS80)=0,SUM($I78:AT78),AT78)) -> 0 | AU80: =IF(YEAR(IS_Date)>AU$49,0,IF(SUM($I80:AT80)=0,SUM($I78:AU78),AU78)) -> 0 | AV80: =IF(YEAR(IS_Date)>AV$49,0,IF(SUM($I80:AU80)=0,SUM($I78:AV78),AV78)) -> 0 | AW80: =IF(YEAR(IS_Date)>AW$49,0,IF(SUM($I80:AV80)=0,SUM($I78:AW78),AW78)) -> 0 | AX80: =IF(YEAR(IS_Date)>AX$49,0,IF(SUM($I80:AW80)=0,SUM($I78:AX78),AX78)) -> 0 | AY80: =IF(YEAR(IS_Date)>AY$49,0,IF(SUM($I80:AX80)=0,SUM($I78:AY78),AY78)) -> 0 | AZ80: =IF(YEAR(IS_Date)>AZ$49,0,IF(SUM($I80:AY80)=0,SUM($I78:AZ78),AZ78)) -> 0 | BA80: =IF(YEAR(IS_Date)>BA$49,0,IF(SUM($I80:AZ80)=0,SUM($I78:BA78),BA78)) -> 0 | BB80: =IF(YEAR(IS_Date)>BB$49,0,IF(SUM($I80:BA80)=0,SUM($I78:BB78),BB78)) -> 0 | BC80: =IF(YEAR(IS_Date)>BC$49,0,IF(SUM($I80:BB80)=0,SUM($I78:BC78),BC78)) -> 0 | BD80: =IF(YEAR(IS_Date)>BD$49,0,IF(SUM($I80:BC80)=0,SUM($I78:BD78),BD78)) -> 0 | BE80: =IF(YEAR(IS_Date)>BE$49,0,IF(SUM($I80:BD80)=0,SUM($I78:BE78),BE78)) -> 0 | BF80: =IF(YEAR(IS_Date)>BF$49,0,IF(SUM($I80:BE80)=0,SUM($I78:BF78),BF78)) -> 0 | BG80: =IF(YEAR(IS_Date)>BG$49,0,IF(SUM($I80:BF80)=0,SUM($I78:BG78),BG78)) -> 0 | BH80: =IF(YEAR(IS_Date)>BH$49,0,IF(SUM($I80:BG80)=0,SUM($I78:BH78),BH78)) -> 0 | BI80: =IF(YEAR(IS_Date)>BI$49,0,IF(SUM($I80:BH80)=0,SUM($I78:BI78),BI78)) -> 0 | BJ80: =IF(YEAR(IS_Date)>BJ$49,0,IF(SUM($I80:BI80)=0,SUM($I78:BJ78),BJ78)) -> 0 | BK80: =IF(YEAR(IS_Date)>BK$49,0,IF(SUM($I80:BJ80)=0,SUM($I78:BK78),BK78)) -> 0 | BL80: =IF(YEAR(IS_Date)>BL$49,0,IF(SUM($I80:BK80)=0,SUM($I78:BL78),BL78)) -> 0 | BM80: =IF(YEAR(IS_Date)>BM$49,0,IF(SUM($I80:BL80)=0,SUM($I78:BM78),BM78)) -> 0 | BN80: =IF(YEAR(IS_Date)>BN$49,0,IF(SUM($I80:BM80)=0,SUM($I78:BN78),BN78)) -> 0 | BO80: =IF(YEAR(IS_Date)>BO$49,0,IF(SUM($I80:BN80)=0,SUM($I78:BO78),BO78)) -> 0 | BP80: =IF(YEAR(IS_Date)>BP$49,0,IF(SUM($I80:BO80)=0,SUM($I78:BP78),BP78)) -> 0 | BQ80: =IF(YEAR(IS_Date)>BQ$49,0,IF(SUM($I80:BP80)=0,SUM($I78:BQ78),BQ78)) -> 0 | BR80: =IF(YEAR(IS_Date)>BR$49,0,IF(SUM($I80:BQ80,$I84:BQ84)=0,SUM($I78:BR78),BR78))-BR84 -> 0
A81: CCA declining balance - Standard CCA with 1/2 rule | H81: =SUM(I81:INDEX(I81:BR81,1,MATCH(End_Year,$I$49:$BR$49,0))) -> 0 | I81: =IF(AND(I79+I80<0,$D$32="Yes (Separate Entity)"),(I80+I79)*(-1),MIN(0,((I79+I80)-ABS(0.5*I80))*$E78*(-1))) -> 0 | J81: =IF(AND(J79+J80<0,$D$32="Yes (Separate Entity)"),(J80+J79)*(-1),MIN(0,((J79+J80)-ABS(0.5*J80))*$E78*(-1))) -> 0 | K81: =IF(AND(K79+K80<0,$D$32="Yes (Separate Entity)"),(K80+K79)*(-1),MIN(0,((K79+K80)-ABS(0.5*K80))*$E78*(-1))) -> 0 | L81: =IF(AND(L79+L80<0,$D$32="Yes (Separate Entity)"),(L80+L79)*(-1),MIN(0,((L79+L80)-ABS(0.5*L80))*$E78*(-1))) -> 0 | M81: =IF(AND(M79+M80<0,$D$32="Yes (Separate Entity)"),(M80+M79)*(-1),MIN(0,((M79+M80)-ABS(0.5*M80))*$E78*(-1))) -> 0 | N81: =IF(AND(N79+N80<0,$D$32="Yes (Separate Entity)"),(N80+N79)*(-1),MIN(0,((N79+N80)-ABS(0.5*N80))*$E78*(-1))) -> 0 | O81: =IF(AND(O79+O80<0,$D$32="Yes (Separate Entity)"),(O80+O79)*(-1),MIN(0,((O79+O80)-ABS(0.5*O80))*$E78*(-1))) -> 0 | P81: =IF(AND(P79+P80<0,$D$32="Yes (Separate Entity)"),(P80+P79)*(-1),MIN(0,((P79+P80)-ABS(0.5*P80))*$E78*(-1))) -> 0 | Q81: =IF(AND(Q79+Q80<0,$D$32="Yes (Separate Entity)"),(Q80+Q79)*(-1),MIN(0,((Q79+Q80)-ABS(0.5*Q80))*$E78*(-1))) -> 0 | R81: =IF(AND(R79+R80<0,$D$32="Yes (Separate Entity)"),(R80+R79)*(-1),MIN(0,((R79+R80)-ABS(0.5*R80))*$E78*(-1))) -> 0 | S81: =IF(AND(S79+S80<0,$D$32="Yes (Separate Entity)"),(S80+S79)*(-1),MIN(0,((S79+S80)-ABS(0.5*S80))*$E78*(-1))) -> 0 | T81: =IF(AND(T79+T80<0,$D$32="Yes (Separate Entity)"),(T80+T79)*(-1),MIN(0,((T79+T80)-ABS(0.5*T80))*$E78*(-1))) -> 0 | U81: =IF(AND(U79+U80<0,$D$32="Yes (Separate Entity)"),(U80+U79)*(-1),MIN(0,((U79+U80)-ABS(0.5*U80))*$E78*(-1))) -> 0 | V81: =IF(AND(V79+V80<0,$D$32="Yes (Separate Entity)"),(V80+V79)*(-1),MIN(0,((V79+V80)-ABS(0.5*V80))*$E78*(-1))) -> 0 | W81: =IF(AND(W79+W80<0,$D$32="Yes (Separate Entity)"),(W80+W79)*(-1),MIN(0,((W79+W80)-ABS(0.5*W80))*$E78*(-1))) -> 0 | X81: =IF(AND(X79+X80<0,$D$32="Yes (Separate Entity)"),(X80+X79)*(-1),MIN(0,((X79+X80)-ABS(0.5*X80))*$E78*(-1))) -> 0 | Y81: =IF(AND(Y79+Y80<0,$D$32="Yes (Separate Entity)"),(Y80+Y79)*(-1),MIN(0,((Y79+Y80)-ABS(0.5*Y80))*$E78*(-1))) -> 0 | Z81: =IF(AND(Z79+Z80<0,$D$32="Yes (Separate Entity)"),(Z80+Z79)*(-1),MIN(0,((Z79+Z80)-ABS(0.5*Z80))*$E78*(-1))) -> 0 | AA81: =IF(AND(AA79+AA80<0,$D$32="Yes (Separate Entity)"),(AA80+AA79)*(-1),MIN(0,((AA79+AA80)-ABS(0.5*AA80))*$E78*(-1))) -> 0 | AB81: =IF(AND(AB79+AB80<0,$D$32="Yes (Separate Entity)"),(AB80+AB79)*(-1),MIN(0,((AB79+AB80)-ABS(0.5*AB80))*$E78*(-1))) -> 0 | AC81: =IF(AND(AC79+AC80<0,$D$32="Yes (Separate Entity)"),(AC80+AC79)*(-1),MIN(0,((AC79+AC80)-ABS(0.5*AC80))*$E78*(-1))) -> 0 | AD81: =IF(AND(AD79+AD80<0,$D$32="Yes (Separate Entity)"),(AD80+AD79)*(-1),MIN(0,((AD79+AD80)-ABS(0.5*AD80))*$E78*(-1))) -> 0 | AE81: =IF(AND(AE79+AE80<0,$D$32="Yes (Separate Entity)"),(AE80+AE79)*(-1),MIN(0,((AE79+AE80)-ABS(0.5*AE80))*$E78*(-1))) -> 0 | AF81: =IF(AND(AF79+AF80<0,$D$32="Yes (Separate Entity)"),(AF80+AF79)*(-1),MIN(0,((AF79+AF80)-ABS(0.5*AF80))*$E78*(-1))) -> 0 | AG81: =IF(AND(AG79+AG80<0,$D$32="Yes (Separate Entity)"),(AG80+AG79)*(-1),MIN(0,((AG79+AG80)-ABS(0.5*AG80))*$E78*(-1))) -> 0 | AH81: =IF(AND(AH79+AH80<0,$D$32="Yes (Separate Entity)"),(AH80+AH79)*(-1),MIN(0,((AH79+AH80)-ABS(0.5*AH80))*$E78*(-1))) -> 0 | AI81: =IF(AND(AI79+AI80<0,$D$32="Yes (Separate Entity)"),(AI80+AI79)*(-1),MIN(0,((AI79+AI80)-ABS(0.5*AI80))*$E78*(-1))) -> 0 | AJ81: =IF(AND(AJ79+AJ80<0,$D$32="Yes (Separate Entity)"),(AJ80+AJ79)*(-1),MIN(0,((AJ79+AJ80)-ABS(0.5*AJ80))*$E78*(-1))) -> 0 | AK81: =IF(AND(AK79+AK80<0,$D$32="Yes (Separate Entity)"),(AK80+AK79)*(-1),MIN(0,((AK79+AK80)-ABS(0.5*AK80))*$E78*(-1))) -> 0 | AL81: =IF(AND(AL79+AL80<0,$D$32="Yes (Separate Entity)"),(AL80+AL79)*(-1),MIN(0,((AL79+AL80)-ABS(0.5*AL80))*$E78*(-1))) -> 0 | AM81: =IF(AND(AM79+AM80<0,$D$32="Yes (Separate Entity)"),(AM80+AM79)*(-1),MIN(0,((AM79+AM80)-ABS(0.5*AM80))*$E78*(-1))) -> 0 | AN81: =IF(AND(AN79+AN80<0,$D$32="Yes (Separate Entity)"),(AN80+AN79)*(-1),MIN(0,((AN79+AN80)-ABS(0.5*AN80))*$E78*(-1))) -> 0 | AO81: =IF(AND(AO79+AO80<0,$D$32="Yes (Separate Entity)"),(AO80+AO79)*(-1),MIN(0,((AO79+AO80)-ABS(0.5*AO80))*$E78*(-1))) -> 0 | AP81: =IF(AND(AP79+AP80<0,$D$32="Yes (Separate Entity)"),(AP80+AP79)*(-1),MIN(0,((AP79+AP80)-ABS(0.5*AP80))*$E78*(-1))) -> 0 | AQ81: =IF(AND(AQ79+AQ80<0,$D$32="Yes (Separate Entity)"),(AQ80+AQ79)*(-1),MIN(0,((AQ79+AQ80)-ABS(0.5*AQ80))*$E78*(-1))) -> 0 | AR81: =IF(AND(AR79+AR80<0,$D$32="Yes (Separate Entity)"),(AR80+AR79)*(-1),MIN(0,((AR79+AR80)-ABS(0.5*AR80))*$E78*(-1))) -> 0 | AS81: =IF(AND(AS79+AS80<0,$D$32="Yes (Separate Entity)"),(AS80+AS79)*(-1),MIN(0,((AS79+AS80)-ABS(0.5*AS80))*$E78*(-1))) -> 0 | AT81: =IF(AND(AT79+AT80<0,$D$32="Yes (Separate Entity)"),(AT80+AT79)*(-1),MIN(0,((AT79+AT80)-ABS(0.5*AT80))*$E78*(-1))) -> 0 | AU81: =IF(AND(AU79+AU80<0,$D$32="Yes (Separate Entity)"),(AU80+AU79)*(-1),MIN(0,((AU79+AU80)-ABS(0.5*AU80))*$E78*(-1))) -> 0 | AV81: =IF(AND(AV79+AV80<0,$D$32="Yes (Separate Entity)"),(AV80+AV79)*(-1),MIN(0,((AV79+AV80)-ABS(0.5*AV80))*$E78*(-1))) -> 0 | AW81: =IF(AND(AW79+AW80<0,$D$32="Yes (Separate Entity)"),(AW80+AW79)*(-1),MIN(0,((AW79+AW80)-ABS(0.5*AW80))*$E78*(-1))) -> 0 | AX81: =IF(AND(AX79+AX80<0,$D$32="Yes (Separate Entity)"),(AX80+AX79)*(-1),MIN(0,((AX79+AX80)-ABS(0.5*AX80))*$E78*(-1))) -> 0 | AY81: =IF(AND(AY79+AY80<0,$D$32="Yes (Separate Entity)"),(AY80+AY79)*(-1),MIN(0,((AY79+AY80)-ABS(0.5*AY80))*$E78*(-1))) -> 0 | AZ81: =IF(AND(AZ79+AZ80<0,$D$32="Yes (Separate Entity)"),(AZ80+AZ79)*(-1),MIN(0,((AZ79+AZ80)-ABS(0.5*AZ80))*$E78*(-1))) -> 0 | BA81: =IF(AND(BA79+BA80<0,$D$32="Yes (Separate Entity)"),(BA80+BA79)*(-1),MIN(0,((BA79+BA80)-ABS(0.5*BA80))*$E78*(-1))) -> 0 | BB81: =IF(AND(BB79+BB80<0,$D$32="Yes (Separate Entity)"),(BB80+BB79)*(-1),MIN(0,((BB79+BB80)-ABS(0.5*BB80))*$E78*(-1))) -> 0 | BC81: =IF(AND(BC79+BC80<0,$D$32="Yes (Separate Entity)"),(BC80+BC79)*(-1),MIN(0,((BC79+BC80)-ABS(0.5*BC80))*$E78*(-1))) -> 0 | BD81: =IF(AND(BD79+BD80<0,$D$32="Yes (Separate Entity)"),(BD80+BD79)*(-1),MIN(0,((BD79+BD80)-ABS(0.5*BD80))*$E78*(-1))) -> 0 | BE81: =IF(AND(BE79+BE80<0,$D$32="Yes (Separate Entity)"),(BE80+BE79)*(-1),MIN(0,((BE79+BE80)-ABS(0.5*BE80))*$E78*(-1))) -> 0 | BF81: =IF(AND(BF79+BF80<0,$D$32="Yes (Separate Entity)"),(BF80+BF79)*(-1),MIN(0,((BF79+BF80)-ABS(0.5*BF80))*$E78*(-1))) -> 0 | BG81: =IF(AND(BG79+BG80<0,$D$32="Yes (Separate Entity)"),(BG80+BG79)*(-1),MIN(0,((BG79+BG80)-ABS(0.5*BG80))*$E78*(-1))) -> 0 | BH81: =IF(AND(BH79+BH80<0,$D$32="Yes (Separate Entity)"),(BH80+BH79)*(-1),MIN(0,((BH79+BH80)-ABS(0.5*BH80))*$E78*(-1))) -> 0 | BI81: =IF(AND(BI79+BI80<0,$D$32="Yes (Separate Entity)"),(BI80+BI79)*(-1),MIN(0,((BI79+BI80)-ABS(0.5*BI80))*$E78*(-1))) -> 0 | BJ81: =IF(AND(BJ79+BJ80<0,$D$32="Yes (Separate Entity)"),(BJ80+BJ79)*(-1),MIN(0,((BJ79+BJ80)-ABS(0.5*BJ80))*$E78*(-1))) -> 0 | BK81: =IF(AND(BK79+BK80<0,$D$32="Yes (Separate Entity)"),(BK80+BK79)*(-1),MIN(0,((BK79+BK80)-ABS(0.5*BK80))*$E78*(-1))) -> 0 | BL81: =IF(AND(BL79+BL80<0,$D$32="Yes (Separate Entity)"),(BL80+BL79)*(-1),MIN(0,((BL79+BL80)-ABS(0.5*BL80))*$E78*(-1))) -> 0 | BM81: =IF(AND(BM79+BM80<0,$D$32="Yes (Separate Entity)"),(BM80+BM79)*(-1),MIN(0,((BM79+BM80)-ABS(0.5*BM80))*$E78*(-1))) -> 0 | BN81: =IF(AND(BN79+BN80<0,$D$32="Yes (Separate Entity)"),(BN80+BN79)*(-1),MIN(0,((BN79+BN80)-ABS(0.5*BN80))*$E78*(-1))) -> 0 | BO81: =IF(AND(BO79+BO80<0,$D$32="Yes (Separate Entity)"),(BO80+BO79)*(-1),MIN(0,((BO79+BO80)-ABS(0.5*BO80))*$E78*(-1))) -> 0 | BP81: =IF(AND(BP79+BP80<0,$D$32="Yes (Separate Entity)"),(BP80+BP79)*(-1),MIN(0,((BP79+BP80)-ABS(0.5*BP80))*$E78*(-1))) -> 0 | BQ81: =IF(AND(BQ79+BQ80<0,$D$32="Yes (Separate Entity)"),(BQ80+BQ79)*(-1),MIN(0,((BQ79+BQ80)-ABS(0.5*BQ80))*$E78*(-1))) -> 0 | BR81: =IF(AND(BR79+BR80<0,$D$32="Yes (Separate Entity)"),(BR80+BR79)*(-1),MIN(0,((BR79+BR80)*(-1))*($E78/($E78+WACC)))) -> 0
A82: Accelerated CCA - In first year add 2x CCA (pre2024); 1x CCA (pre2028) | H82: =SUM(I82:INDEX(I82:BR82,1,MATCH(End_Year,$I$49:$BR$49,0))) -> 0 | I82: =MIN(MAX(IF(AND(2018<I$49,I$49<2024),I80*$E78,IF(AND(2023<I$49,I$49<2028),I80*$E78*0.5,0))*(-1),-I80+I80*$E78*0.5),0) -> 0 | J82: =MIN(MAX(IF(AND(2018<J$49,J$49<2024),J80*$E78,IF(AND(2023<J$49,J$49<2028),J80*$E78*0.5,0))*(-1),-J80+J80*$E78*0.5),0) -> 0 | K82: =MIN(MAX(IF(AND(2018<K$49,K$49<2024),K80*$E78,IF(AND(2023<K$49,K$49<2028),K80*$E78*0.5,0))*(-1),-K80+K80*$E78*0.5),0) -> 0 | L82: 0 | M82: 0 | N82: 0 | O82: 0 | P82: 0 | Q82: 0 | R82: 0 | S82: 0 | T82: 0 | U82: 0 | V82: 0 | W82: 0 | X82: 0 | Y82: 0 | Z82: 0 | AA82: 0 | AB82: 0 | AC82: 0 | AD82: 0 | AE82: 0 | AF82: 0 | AG82: 0 | AH82: 0 | AI82: 0 | AJ82: 0 | AK82: 0 | AL82: 0 | AM82: 0 | AN82: 0 | AO82: 0 | AP82: 0 | AQ82: 0 | AR82: 0 | AS82: 0 | AT82: 0 | AU82: 0 | AV82: 0 | AW82: 0 | AX82: 0 | AY82: 0 | AZ82: 0 | BA82: 0 | BB82: 0 | BC82: 0 | BD82: 0 | BE82: 0 | BF82: 0 | BG82: 0 | BH82: 0 | BI82: 0 | BJ82: 0 | BK82: 0 | BL82: 0 | BM82: 0 | BN82: 0 | BO82: 0 | BP82: 0 | BQ82: 0
A83: UCC, end of year | I83: =MAX(SUM(I79:I82),0) -> 0 | J83: =MAX(SUM(J79:J82),0) -> 0 | K83: =MAX(SUM(K79:K82),0) -> 0 | L83: =MAX(SUM(L79:L82),0) -> 0 | M83: =MAX(SUM(M79:M82),0) -> 0 | N83: =MAX(SUM(N79:N82),0) -> 0 | O83: =MAX(SUM(O79:O82),0) -> 0 | P83: =MAX(SUM(P79:P82),0) -> 0 | Q83: =MAX(SUM(Q79:Q82),0) -> 0 | R83: =MAX(SUM(R79:R82),0) -> 0 | S83: =MAX(SUM(S79:S82),0) -> 0 | T83: =MAX(SUM(T79:T82),0) -> 0 | U83: =MAX(SUM(U79:U82),0) -> 0 | V83: =MAX(SUM(V79:V82),0) -> 0 | W83: =MAX(SUM(W79:W82),0) -> 0 | X83: =MAX(SUM(X79:X82),0) -> 0 | Y83: =MAX(SUM(Y79:Y82),0) -> 0 | Z83: =MAX(SUM(Z79:Z82),0) -> 0 | AA83: =MAX(SUM(AA79:AA82),0) -> 0 | AB83: =MAX(SUM(AB79:AB82),0) -> 0 | AC83: =MAX(SUM(AC79:AC82),0) -> 0 | AD83: =MAX(SUM(AD79:AD82),0) -> 0 | AE83: =MAX(SUM(AE79:AE82),0) -> 0 | AF83: =MAX(SUM(AF79:AF82),0) -> 0 | AG83: =MAX(SUM(AG79:AG82),0) -> 0 | AH83: =MAX(SUM(AH79:AH82),0) -> 0 | AI83: =MAX(SUM(AI79:AI82),0) -> 0 | AJ83: =MAX(SUM(AJ79:AJ82),0) -> 0 | AK83: =MAX(SUM(AK79:AK82),0) -> 0 | AL83: =MAX(SUM(AL79:AL82),0) -> 0 | AM83: =MAX(SUM(AM79:AM82),0) -> 0 | AN83: =MAX(SUM(AN79:AN82),0) -> 0 | AO83: =MAX(SUM(AO79:AO82),0) -> 0 | AP83: =MAX(SUM(AP79:AP82),0) -> 0 | AQ83: =MAX(SUM(AQ79:AQ82),0) -> 0 | AR83: =MAX(SUM(AR79:AR82),0) -> 0 | AS83: =MAX(SUM(AS79:AS82),0) -> 0 | AT83: =MAX(SUM(AT79:AT82),0) -> 0 | AU83: =MAX(SUM(AU79:AU82),0) -> 0 | AV83: =MAX(SUM(AV79:AV82),0) -> 0 | AW83: =MAX(SUM(AW79:AW82),0) -> 0 | AX83: =MAX(SUM(AX79:AX82),0) -> 0 | AY83: =MAX(SUM(AY79:AY82),0) -> 0 | AZ83: =MAX(SUM(AZ79:AZ82),0) -> 0 | BA83: =MAX(SUM(BA79:BA82),0) -> 0 | BB83: =MAX(SUM(BB79:BB82),0) -> 0 | BC83: =MAX(SUM(BC79:BC82),0) -> 0 | BD83: =MAX(SUM(BD79:BD82),0) -> 0 | BE83: =MAX(SUM(BE79:BE82),0) -> 0 | BF83: =MAX(SUM(BF79:BF82),0) -> 0 | BG83: =MAX(SUM(BG79:BG82),0) -> 0 | BH83: =MAX(SUM(BH79:BH82),0) -> 0 | BI83: =MAX(SUM(BI79:BI82),0) -> 0 | BJ83: =MAX(SUM(BJ79:BJ82),0) -> 0 | BK83: =MAX(SUM(BK79:BK82),0) -> 0 | BL83: =MAX(SUM(BL79:BL82),0) -> 0 | BM83: =MAX(SUM(BM79:BM82),0) -> 0 | BN83: =MAX(SUM(BN79:BN82),0) -> 0 | BO83: =MAX(SUM(BO79:BO82),0) -> 0 | BP83: =MAX(SUM(BP79:BP82),0) -> 0 | BQ83: =MAX(SUM(BQ79:BQ82),0) -> 0
A84: Capital Gain on Sale of Asset | I84: 0 | J84: =IF(J78>=0,0,IF(J78*(-1)>SUM($I78:I78),J78+SUM($I78:I78),0)) -> 0 | K84: =IF(K78>=0,0,IF(K78*(-1)>SUM($I78:J78),K78+SUM($I78:J78),0)) -> 0 | L84: =IF(L78>=0,0,IF(L78*(-1)>SUM($I78:K78),L78+SUM($I78:K78),0)) -> 0 | M84: =IF(M78>=0,0,IF(M78*(-1)>SUM($I78:L78),M78+SUM($I78:L78),0)) -> 0 | N84: =IF(N78>=0,0,IF(N78*(-1)>SUM($I78:M78),N78+SUM($I78:M78),0)) -> 0 | O84: =IF(O78>=0,0,IF(O78*(-1)>SUM($I78:N78),O78+SUM($I78:N78),0)) -> 0 | P84: =IF(P78>=0,0,IF(P78*(-1)>SUM($I78:O78),P78+SUM($I78:O78),0)) -> 0 | Q84: =IF(Q78>=0,0,IF(Q78*(-1)>SUM($I78:P78),Q78+SUM($I78:P78),0)) -> 0 | R84: =IF(R78>=0,0,IF(R78*(-1)>SUM($I78:Q78),R78+SUM($I78:Q78),0)) -> 0 | S84: =IF(S78>=0,0,IF(S78*(-1)>SUM($I78:R78),S78+SUM($I78:R78),0)) -> 0 | T84: =IF(T78>=0,0,IF(T78*(-1)>SUM($I78:S78),T78+SUM($I78:S78),0)) -> 0 | U84: =IF(U78>=0,0,IF(U78*(-1)>SUM($I78:T78),U78+SUM($I78:T78),0)) -> 0 | V84: =IF(V78>=0,0,IF(V78*(-1)>SUM($I78:U78),V78+SUM($I78:U78),0)) -> 0 | W84: =IF(W78>=0,0,IF(W78*(-1)>SUM($I78:V78),W78+SUM($I78:V78),0)) -> 0 | X84: =IF(X78>=0,0,IF(X78*(-1)>SUM($I78:W78),X78+SUM($I78:W78),0)) -> 0 | Y84: =IF(Y78>=0,0,IF(Y78*(-1)>SUM($I78:X78),Y78+SUM($I78:X78),0)) -> 0 | Z84: =IF(Z78>=0,0,IF(Z78*(-1)>SUM($I78:Y78),Z78+SUM($I78:Y78),0)) -> 0 | AA84: =IF(AA78>=0,0,IF(AA78*(-1)>SUM($I78:Z78),AA78+SUM($I78:Z78),0)) -> 0 | AB84: =IF(AB78>=0,0,IF(AB78*(-1)>SUM($I78:AA78),AB78+SUM($I78:AA78),0)) -> 0 | AC84: =IF(AC78>=0,0,IF(AC78*(-1)>SUM($I78:AB78),AC78+SUM($I78:AB78),0)) -> 0 | AD84: =IF(AD78>=0,0,IF(AD78*(-1)>SUM($I78:AC78),AD78+SUM($I78:AC78),0)) -> 0 | AE84: =IF(AE78>=0,0,IF(AE78*(-1)>SUM($I78:AD78),AE78+SUM($I78:AD78),0)) -> 0 | AF84: =IF(AF78>=0,0,IF(AF78*(-1)>SUM($I78:AE78),AF78+SUM($I78:AE78),0)) -> 0 | AG84: =IF(AG78>=0,0,IF(AG78*(-1)>SUM($I78:AF78),AG78+SUM($I78:AF78),0)) -> 0 | AH84: =IF(AH78>=0,0,IF(AH78*(-1)>SUM($I78:AG78),AH78+SUM($I78:AG78),0)) -> 0 | AI84: =IF(AI78>=0,0,IF(AI78*(-1)>SUM($I78:AH78),AI78+SUM($I78:AH78),0)) -> 0 | AJ84: =IF(AJ78>=0,0,IF(AJ78*(-1)>SUM($I78:AI78),AJ78+SUM($I78:AI78),0)) -> 0 | AK84: =IF(AK78>=0,0,IF(AK78*(-1)>SUM($I78:AJ78),AK78+SUM($I78:AJ78),0)) -> 0 | AL84: =IF(AL78>=0,0,IF(AL78*(-1)>SUM($I78:AK78),AL78+SUM($I78:AK78),0)) -> 0 | AM84: =IF(AM78>=0,0,IF(AM78*(-1)>SUM($I78:AL78),AM78+SUM($I78:AL78),0)) -> 0 | AN84: =IF(AN78>=0,0,IF(AN78*(-1)>SUM($I78:AM78),AN78+SUM($I78:AM78),0)) -> 0 | AO84: =IF(AO78>=0,0,IF(AO78*(-1)>SUM($I78:AN78),AO78+SUM($I78:AN78),0)) -> 0 | AP84: =IF(AP78>=0,0,IF(AP78*(-1)>SUM($I78:AO78),AP78+SUM($I78:AO78),0)) -> 0 | AQ84: =IF(AQ78>=0,0,IF(AQ78*(-1)>SUM($I78:AP78),AQ78+SUM($I78:AP78),0)) -> 0 | AR84: =IF(AR78>=0,0,IF(AR78*(-1)>SUM($I78:AQ78),AR78+SUM($I78:AQ78),0)) -> 0 | AS84: =IF(AS78>=0,0,IF(AS78*(-1)>SUM($I78:AR78),AS78+SUM($I78:AR78),0)) -> 0 | AT84: =IF(AT78>=0,0,IF(AT78*(-1)>SUM($I78:AS78),AT78+SUM($I78:AS78),0)) -> 0 | AU84: =IF(AU78>=0,0,IF(AU78*(-1)>SUM($I78:AT78),AU78+SUM($I78:AT78),0)) -> 0 | AV84: =IF(AV78>=0,0,IF(AV78*(-1)>SUM($I78:AU78),AV78+SUM($I78:AU78),0)) -> 0 | AW84: =IF(AW78>=0,0,IF(AW78*(-1)>SUM($I78:AV78),AW78+SUM($I78:AV78),0)) -> 0 | AX84: =IF(AX78>=0,0,IF(AX78*(-1)>SUM($I78:AW78),AX78+SUM($I78:AW78),0)) -> 0 | AY84: =IF(AY78>=0,0,IF(AY78*(-1)>SUM($I78:AX78),AY78+SUM($I78:AX78),0)) -> 0 | AZ84: =IF(AZ78>=0,0,IF(AZ78*(-1)>SUM($I78:AY78),AZ78+SUM($I78:AY78),0)) -> 0 | BA84: =IF(BA78>=0,0,IF(BA78*(-1)>SUM($I78:AZ78),BA78+SUM($I78:AZ78),0)) -> 0 | BB84: =IF(BB78>=0,0,IF(BB78*(-1)>SUM($I78:BA78),BB78+SUM($I78:BA78),0)) -> 0 | BC84: =IF(BC78>=0,0,IF(BC78*(-1)>SUM($I78:BB78),BC78+SUM($I78:BB78),0)) -> 0 | BD84: =IF(BD78>=0,0,IF(BD78*(-1)>SUM($I78:BC78),BD78+SUM($I78:BC78),0)) -> 0 | BE84: =IF(BE78>=0,0,IF(BE78*(-1)>SUM($I78:BD78),BE78+SUM($I78:BD78),0)) -> 0 | BF84: =IF(BF78>=0,0,IF(BF78*(-1)>SUM($I78:BE78),BF78+SUM($I78:BE78),0)) -> 0 | BG84: =IF(BG78>=0,0,IF(BG78*(-1)>SUM($I78:BF78),BG78+SUM($I78:BF78),0)) -> 0 | BH84: =IF(BH78>=0,0,IF(BH78*(-1)>SUM($I78:BG78),BH78+SUM($I78:BG78),0)) -> 0 | BI84: =IF(BI78>=0,0,IF(BI78*(-1)>SUM($I78:BH78),BI78+SUM($I78:BH78),0)) -> 0 | BJ84: =IF(BJ78>=0,0,IF(BJ78*(-1)>SUM($I78:BI78),BJ78+SUM($I78:BI78),0)) -> 0 | BK84: =IF(BK78>=0,0,IF(BK78*(-1)>SUM($I78:BJ78),BK78+SUM($I78:BJ78),0)) -> 0 | BL84: =IF(BL78>=0,0,IF(BL78*(-1)>SUM($I78:BK78),BL78+SUM($I78:BK78),0)) -> 0 | BM84: =IF(BM78>=0,0,IF(BM78*(-1)>SUM($I78:BL78),BM78+SUM($I78:BL78),0)) -> 0 | BN84: =IF(BN78>=0,0,IF(BN78*(-1)>SUM($I78:BM78),BN78+SUM($I78:BM78),0)) -> 0 | BO84: =IF(BO78>=0,0,IF(BO78*(-1)>SUM($I78:BN78),BO78+SUM($I78:BN78),0)) -> 0 | BP84: =IF(BP78>=0,0,IF(BP78*(-1)>SUM($I78:BO78),BP78+SUM($I78:BO78),0)) -> 0 | BQ84: =IF(BQ78>=0,0,IF(BQ78*(-1)>SUM($I78:BP78),BQ78+SUM($I78:BP78),0)) -> 0 | BR84: =IF(BR78>=0,0,IF(BR78*(-1)>SUM($I78:BQ78),BR78+SUM($I78:BQ78),0)) -> 0
A86: Year Addition Comes off Book | J86: =J$49+$F78 -> 2040 | K86: 2041 | L86: 2042 | M86: 2043 | N86: 2044 | O86: 2045 | P86: 2046 | Q86: 2047 | R86: 2048 | S86: 2049 | T86: 2050 | U86: 2051 | V86: 2052 | W86: 2053 | X86: 2054 | Y86: 2055 | Z86: 2056 | AA86: 2057 | AB86: 2058 | AC86: 2059 | AD86: 2060 | AE86: 2061 | AF86: 2062 | AG86: 2063 | AH86: 2064 | AI86: 2065 | AJ86: 2066 | AK86: 2067 | AL86: 2068 | AM86: 2069 | AN86: 2070 | AO86: 2071 | AP86: =AP$49+$F78 -> 2072 | AQ86: 2073 | AR86: 2074 | AS86: 2075 | AT86: 2076 | AU86: 2077 | AV86: 2078 | AW86: 2079 | AX86: 2080 | AY86: 2081 | AZ86: 2082 | BA86: 2083 | BB86: 2084 | BC86: 2085 | BD86: 2086 | BE86: 2087 | BF86: 2088 | BG86: 2089 | BH86: 2090 | BI86: 2091 | BJ86: 2092 | BK86: 2093 | BL86: 2094 | BM86: 2095 | BN86: 2096 | BO86: 2097 | BP86: 2098 | BQ86: 2099
A87: Gross Capital Cost, at beginning of year | I87: 0 | J87: =MAX(0,IF(J$49>=$J86,ROUND(I87+I89-ABS(HLOOKUP(J$49,$J86:$BR89,4,0)),2),I87+I89)) -> 0 | K87: =MAX(0,IF(K$49>=$J86,ROUND(J87+J89-ABS(HLOOKUP(K$49,$J86:$BR89,4,0)),2),J87+J89)) -> 0 | L87: =MAX(0,IF(L$49>=$J86,ROUND(K87+K89-ABS(HLOOKUP(L$49,$J86:$BR89,4,0)),2),K87+K89)) -> 0 | M87: =MAX(0,IF(M$49>=$J86,ROUND(L87+L89-ABS(HLOOKUP(M$49,$J86:$BR89,4,0)),2),L87+L89)) -> 0 | N87: =MAX(0,IF(N$49>=$J86,ROUND(M87+M89-ABS(HLOOKUP(N$49,$J86:$BR89,4,0)),2),M87+M89)) -> 0 | O87: =MAX(0,IF(O$49>=$J86,ROUND(N87+N89-ABS(HLOOKUP(O$49,$J86:$BR89,4,0)),2),N87+N89)) -> 0 | P87: =MAX(0,IF(P$49>=$J86,ROUND(O87+O89-ABS(HLOOKUP(P$49,$J86:$BR89,4,0)),2),O87+O89)) -> 0 | Q87: =MAX(0,IF(Q$49>=$J86,ROUND(P87+P89-ABS(HLOOKUP(Q$49,$J86:$BR89,4,0)),2),P87+P89)) -> 0 | R87: =MAX(0,IF(R$49>=$J86,ROUND(Q87+Q89-ABS(HLOOKUP(R$49,$J86:$BR89,4,0)),2),Q87+Q89)) -> 0 | S87: =MAX(0,IF(S$49>=$J86,ROUND(R87+R89-ABS(HLOOKUP(S$49,$J86:$BR89,4,0)),2),R87+R89)) -> 0 | T87: =MAX(0,IF(T$49>=$J86,ROUND(S87+S89-ABS(HLOOKUP(T$49,$J86:$BR89,4,0)),2),S87+S89)) -> 0 | U87: =MAX(0,IF(U$49>=$J86,ROUND(T87+T89-ABS(HLOOKUP(U$49,$J86:$BR89,4,0)),2),T87+T89)) -> 0 | V87: =MAX(0,IF(V$49>=$J86,ROUND(U87+U89-ABS(HLOOKUP(V$49,$J86:$BR89,4,0)),2),U87+U89)) -> 0 | W87: =MAX(0,IF(W$49>=$J86,ROUND(V87+V89-ABS(HLOOKUP(W$49,$J86:$BR89,4,0)),2),V87+V89)) -> 0 | X87: =MAX(0,IF(X$49>=$J86,ROUND(W87+W89-ABS(HLOOKUP(X$49,$J86:$BR89,4,0)),2),W87+W89)) -> 0 | Y87: =MAX(0,IF(Y$49>=$J86,ROUND(X87+X89-ABS(HLOOKUP(Y$49,$J86:$BR89,4,0)),2),X87+X89)) -> 0 | Z87: =MAX(0,IF(Z$49>=$J86,ROUND(Y87+Y89-ABS(HLOOKUP(Z$49,$J86:$BR89,4,0)),2),Y87+Y89)) -> 0 | AA87: =MAX(0,IF(AA$49>=$J86,ROUND(Z87+Z89-ABS(HLOOKUP(AA$49,$J86:$BR89,4,0)),2),Z87+Z89)) -> 0 | AB87: =MAX(0,IF(AB$49>=$J86,ROUND(AA87+AA89-ABS(HLOOKUP(AB$49,$J86:$BR89,4,0)),2),AA87+AA89)) -> 0 | AC87: =MAX(0,IF(AC$49>=$J86,ROUND(AB87+AB89-ABS(HLOOKUP(AC$49,$J86:$BR89,4,0)),2),AB87+AB89)) -> 0 | AD87: =MAX(0,IF(AD$49>=$J86,ROUND(AC87+AC89-ABS(HLOOKUP(AD$49,$J86:$BR89,4,0)),2),AC87+AC89)) -> 0 | AE87: =MAX(0,IF(AE$49>=$J86,ROUND(AD87+AD89-ABS(HLOOKUP(AE$49,$J86:$BR89,4,0)),2),AD87+AD89)) -> 0 | AF87: =MAX(0,IF(AF$49>=$J86,ROUND(AE87+AE89-ABS(HLOOKUP(AF$49,$J86:$BR89,4,0)),2),AE87+AE89)) -> 0 | AG87: =MAX(0,IF(AG$49>=$J86,ROUND(AF87+AF89-ABS(HLOOKUP(AG$49,$J86:$BR89,4,0)),2),AF87+AF89)) -> 0 | AH87: =MAX(0,IF(AH$49>=$J86,ROUND(AG87+AG89-ABS(HLOOKUP(AH$49,$J86:$BR89,4,0)),2),AG87+AG89)) -> 0 | AI87: =MAX(0,IF(AI$49>=$J86,ROUND(AH87+AH89-ABS(HLOOKUP(AI$49,$J86:$BR89,4,0)),2),AH87+AH89)) -> 0 | AJ87: =MAX(0,IF(AJ$49>=$J86,ROUND(AI87+AI89-ABS(HLOOKUP(AJ$49,$J86:$BR89,4,0)),2),AI87+AI89)) -> 0 | AK87: =MAX(0,IF(AK$49>=$J86,ROUND(AJ87+AJ89-ABS(HLOOKUP(AK$49,$J86:$BR89,4,0)),2),AJ87+AJ89)) -> 0 | AL87: =MAX(0,IF(AL$49>=$J86,ROUND(AK87+AK89-ABS(HLOOKUP(AL$49,$J86:$BR89,4,0)),2),AK87+AK89)) -> 0 | AM87: =MAX(0,IF(AM$49>=$J86,ROUND(AL87+AL89-ABS(HLOOKUP(AM$49,$J86:$BR89,4,0)),2),AL87+AL89)) -> 0 | AN87: =MAX(0,IF(AN$49>=$J86,ROUND(AM87+AM89-ABS(HLOOKUP(AN$49,$J86:$BR89,4,0)),2),AM87+AM89)) -> 0 | AO87: =MAX(0,IF(AO$49>=$J86,ROUND(AN87+AN89-ABS(HLOOKUP(AO$49,$J86:$BR89,4,0)),2),AN87+AN89)) -> 0 | AP87: =MAX(0,IF(AP$49>=$J86,ROUND(AO87+AO89-ABS(HLOOKUP(AP$49,$J86:$BR89,4,0)),2),AO87+AO89)) -> 0 | AQ87: =MAX(0,IF(AQ$49>=$J86,ROUND(AP87+AP89-ABS(HLOOKUP(AQ$49,$J86:$BR89,4,0)),2),AP87+AP89)) -> 0 | AR87: =MAX(0,IF(AR$49>=$J86,ROUND(AQ87+AQ89-ABS(HLOOKUP(AR$49,$J86:$BR89,4,0)),2),AQ87+AQ89)) -> 0 | AS87: =MAX(0,IF(AS$49>=$J86,ROUND(AR87+AR89-ABS(HLOOKUP(AS$49,$J86:$BR89,4,0)),2),AR87+AR89)) -> 0 | AT87: =MAX(0,IF(AT$49>=$J86,ROUND(AS87+AS89-ABS(HLOOKUP(AT$49,$J86:$BR89,4,0)),2),AS87+AS89)) -> 0 | AU87: =MAX(0,IF(AU$49>=$J86,ROUND(AT87+AT89-ABS(HLOOKUP(AU$49,$J86:$BR89,4,0)),2),AT87+AT89)) -> 0 | AV87: =MAX(0,IF(AV$49>=$J86,ROUND(AU87+AU89-ABS(HLOOKUP(AV$49,$J86:$BR89,4,0)),2),AU87+AU89)) -> 0 | AW87: =MAX(0,IF(AW$49>=$J86,ROUND(AV87+AV89-ABS(HLOOKUP(AW$49,$J86:$BR89,4,0)),2),AV87+AV89)) -> 0 | AX87: =MAX(0,IF(AX$49>=$J86,ROUND(AW87+AW89-ABS(HLOOKUP(AX$49,$J86:$BR89,4,0)),2),AW87+AW89)) -> 0 | AY87: =MAX(0,IF(AY$49>=$J86,ROUND(AX87+AX89-ABS(HLOOKUP(AY$49,$J86:$BR89,4,0)),2),AX87+AX89)) -> 0 | AZ87: =MAX(0,IF(AZ$49>=$J86,ROUND(AY87+AY89-ABS(HLOOKUP(AZ$49,$J86:$BR89,4,0)),2),AY87+AY89)) -> 0 | BA87: =MAX(0,IF(BA$49>=$J86,ROUND(AZ87+AZ89-ABS(HLOOKUP(BA$49,$J86:$BR89,4,0)),2),AZ87+AZ89)) -> 0 | BB87: =MAX(0,IF(BB$49>=$J86,ROUND(BA87+BA89-ABS(HLOOKUP(BB$49,$J86:$BR89,4,0)),2),BA87+BA89)) -> 0 | BC87: =MAX(0,IF(BC$49>=$J86,ROUND(BB87+BB89-ABS(HLOOKUP(BC$49,$J86:$BR89,4,0)),2),BB87+BB89)) -> 0 | BD87: =MAX(0,IF(BD$49>=$J86,ROUND(BC87+BC89-ABS(HLOOKUP(BD$49,$J86:$BR89,4,0)),2),BC87+BC89)) -> 0 | BE87: =MAX(0,IF(BE$49>=$J86,ROUND(BD87+BD89-ABS(HLOOKUP(BE$49,$J86:$BR89,4,0)),2),BD87+BD89)) -> 0 | BF87: =MAX(0,IF(BF$49>=$J86,ROUND(BE87+BE89-ABS(HLOOKUP(BF$49,$J86:$BR89,4,0)),2),BE87+BE89)) -> 0 | BG87: =MAX(0,IF(BG$49>=$J86,ROUND(BF87+BF89-ABS(HLOOKUP(BG$49,$J86:$BR89,4,0)),2),BF87+BF89)) -> 0 | BH87: =MAX(0,IF(BH$49>=$J86,ROUND(BG87+BG89-ABS(HLOOKUP(BH$49,$J86:$BR89,4,0)),2),BG87+BG89)) -> 0 | BI87: =MAX(0,IF(BI$49>=$J86,ROUND(BH87+BH89-ABS(HLOOKUP(BI$49,$J86:$BR89,4,0)),2),BH87+BH89)) -> 0 | BJ87: =MAX(0,IF(BJ$49>=$J86,ROUND(BI87+BI89-ABS(HLOOKUP(BJ$49,$J86:$BR89,4,0)),2),BI87+BI89)) -> 0 | BK87: =MAX(0,IF(BK$49>=$J86,ROUND(BJ87+BJ89-ABS(HLOOKUP(BK$49,$J86:$BR89,4,0)),2),BJ87+BJ89)) -> 0 | BL87: =MAX(0,IF(BL$49>=$J86,ROUND(BK87+BK89-ABS(HLOOKUP(BL$49,$J86:$BR89,4,0)),2),BK87+BK89)) -> 0 | BM87: =MAX(0,IF(BM$49>=$J86,ROUND(BL87+BL89-ABS(HLOOKUP(BM$49,$J86:$BR89,4,0)),2),BL87+BL89)) -> 0 | BN87: =MAX(0,IF(BN$49>=$J86,ROUND(BM87+BM89-ABS(HLOOKUP(BN$49,$J86:$BR89,4,0)),2),BM87+BM89)) -> 0 | BO87: =MAX(0,IF(BO$49>=$J86,ROUND(BN87+BN89-ABS(HLOOKUP(BO$49,$J86:$BR89,4,0)),2),BN87+BN89)) -> 0 | BP87: =MAX(0,IF(BP$49>=$J86,ROUND(BO87+BO89-ABS(HLOOKUP(BP$49,$J86:$BR89,4,0)),2),BO87+BO89)) -> 0 | BQ87: =MAX(0,IF(BQ$49>=$J86,ROUND(BP87+BP89-ABS(HLOOKUP(BQ$49,$J86:$BR89,4,0)),2),BP87+BP89)) -> 0
A88: Net Book Value, beginning of year | I88: =MAX(0,H91) -> 0 | J88: =MAX(0,I91) -> 0 | K88: =MAX(0,J91) -> 0 | L88: =MAX(0,K91) -> 0 | M88: =MAX(0,L91) -> 0 | N88: =MAX(0,M91) -> 0 | O88: 0 | P88: 0 | Q88: 0 | R88: 0 | S88: 0 | T88: 0 | U88: 0 | V88: 0 | W88: 0 | X88: 0 | Y88: 0 | Z88: 0 | AA88: 0 | AB88: 0 | AC88: 0 | AD88: 0 | AE88: 0 | AF88: 0 | AG88: 0 | AH88: 0 | AI88: 0 | AJ88: 0 | AK88: 0 | AL88: 0 | AM88: 0 | AN88: 0 | AO88: 0 | AP88: 0 | AQ88: 0 | AR88: 0 | AS88: 0 | AT88: 0 | AU88: 0 | AV88: 0 | AW88: 0 | AX88: 0 | AY88: 0 | AZ88: 0 | BA88: 0 | BB88: 0 | BC88: 0 | BD88: 0 | BE88: 0 | BF88: 0 | BG88: 0 | BH88: 0 | BI88: 0 | BJ88: 0 | BK88: 0 | BL88: 0 | BM88: 0 | BN88: 0 | BO88: 0 | BP88: 0 | BQ88: 0
A89: Additions during year | H89: =SUM(I89:INDEX(I89:BR89,1,MATCH(End_Year,$I$49:$BR$49,0))) -> 0 | I89: =I80 -> 0 | J89: 0 | K89: 0 | L89: 0 | M89: 0 | N89: 0 | O89: 0 | P89: 0 | Q89: 0 | R89: 0 | S89: 0 | T89: 0 | U89: 0 | V89: 0 | W89: 0 | X89: 0 | Y89: 0 | Z89: 0 | AA89: 0 | AB89: 0 | AC89: 0 | AD89: 0 | AE89: 0 | AF89: 0 | AG89: 0 | AH89: 0 | AI89: 0 | AJ89: 0 | AK89: 0 | AL89: 0 | AM89: 0 | AN89: 0 | AO89: =AO80 -> 0 | AP89: 0 | AQ89: 0 | AR89: 0 | AS89: 0 | AT89: 0 | AU89: 0 | AV89: 0 | AW89: 0 | AX89: 0 | AY89: 0 | AZ89: 0 | BA89: 0 | BB89: 0 | BC89: 0 | BD89: 0 | BE89: 0 | BF89: 0 | BG89: 0 | BH89: 0 | BI89: 0 | BJ89: 0 | BK89: 0 | BL89: 0 | BM89: 0 | BN89: 0 | BO89: 0 | BP89: 0 | BQ89: 0 | BR89: 0
A90: Depreciation (for in-service year, proportion to number of months since in-service) | H90: =SUM(I90:INDEX(I90:BR90,1,MATCH(End_Year,$I$49:$BR$49,0))) -> 0 | I90: =(-1)*IF(I$49=YEAR(IS_Date),I89/$F78*((12-MONTH(IS_Date)+1)/12),IF(I$49>YEAR(IS_Date),IF(I87=0,I88,I87/$F78+I89/2/$F78),0)) -> 0 | J90: 0 | K90: 0 | L90: 0 | M90: 0 | N90: 0 | O90: 0 | P90: 0 | Q90: 0 | R90: 0 | S90: 0 | T90: 0 | U90: 0 | V90: 0 | W90: 0 | X90: 0 | Y90: 0 | Z90: 0 | AA90: 0 | AB90: 0 | AC90: 0 | AD90: 0 | AE90: 0 | AF90: 0 | AG90: 0 | AH90: 0 | AI90: 0 | AJ90: 0 | AK90: 0 | AL90: 0 | AM90: 0 | AN90: 0 | AO90: =(-1)*IF(AO$49=YEAR(IS_Date),AO89/$F78*((12-MONTH(IS_Date)+1)/12),IF(AO$49>YEAR(IS_Date),IF(AO87=0,AO88,AO87/$F78+AO89/2/$F78),0)) -> 0 | AP90: 0 | AQ90: 0 | AR90: 0 | AS90: 0 | AT90: 0 | AU90: 0 | AV90: 0 | AW90: 0 | AX90: 0 | AY90: 0 | AZ90: 0 | BA90: 0 | BB90: 0 | BC90: 0 | BD90: 0 | BE90: 0 | BF90: 0 | BG90: 0 | BH90: 0 | BI90: 0 | BJ90: 0 | BK90: 0 | BL90: 0 | BM90: 0 | BN90: 0 | BO90: 0 | BP90: 0 | BQ90: 0 | BR90: =(-1)*OFFSET(I91,,Study_Length,,) -> 0
A91: Net Book Value, end of year | I91: =SUM(I88:I90) -> 0 | J91: =MAX(0,SUM(J88:J90)) -> 0 | K91: 0 | L91: 0 | M91: 0 | N91: 0 | O91: 0 | P91: 0 | Q91: 0 | R91: 0 | S91: 0 | T91: 0 | U91: 0 | V91: 0 | W91: 0 | X91: 0 | Y91: 0 | Z91: 0 | AA91: 0 | AB91: 0 | AC91: 0 | AD91: 0 | AE91: 0 | AF91: 0 | AG91: 0 | AH91: 0 | AI91: 0 | AJ91: 0 | AK91: 0 | AL91: 0 | AM91: 0 | AN91: 0 | AO91: 0 | AP91: =MAX(0,SUM(AP88:AP90)) -> 0 | AQ91: 0 | AR91: 0 | AS91: 0 | AT91: 0 | AU91: 0 | AV91: 0 | AW91: 0 | AX91: 0 | AY91: 0 | AZ91: 0 | BA91: 0 | BB91: 0 | BC91: 0 | BD91: 0 | BE91: 0 | BF91: 0 | BG91: 0 | BH91: 0 | BI91: 0 | BJ91: 0 | BK91: 0 | BL91: 0 | BM91: 0 | BN91: 0 | BO91: 0 | BP91: 0 | BQ91: 0 | BR91: =OFFSET(I91,,Study_Length,,)+BR90 -> 0
A92: Average Net Book Value for the year, i.e. Average Rate Base | I92: =(I91+I88)/2 -> 0 | J92: 0 | K92: 0 | L92: 0 | M92: 0 | N92: 0 | O92: 0 | P92: 0 | Q92: 0 | R92: 0 | S92: 0 | T92: 0 | U92: 0 | V92: 0 | W92: 0 | X92: 0 | Y92: 0 | Z92: 0 | AA92: 0 | AB92: 0 | AC92: 0 | AD92: 0 | AE92: 0 | AF92: 0 | AG92: 0 | AH92: 0 | AI92: 0 | AJ92: 0 | AK92: 0 | AL92: 0 | AM92: 0 | AN92: 0 | AO92: 0 | AP92: 0 | AQ92: 0 | AR92: 0 | AS92: 0 | AT92: 0 | AU92: 0 | AV92: 0 | AW92: 0 | AX92: 0 | AY92: 0 | AZ92: 0 | BA92: 0 | BB92: 0 | BC92: 0 | BD92: 0 | BE92: 0 | BF92: 0 | BG92: 0 | BH92: 0 | BI92: 0 | BJ92: 0 | BK92: 0 | BL92: 0 | BM92: 0 | BN92: 0 | BO92: 0 | BP92: 0 | BQ92: 0 | BR92: =(BR91+OFFSET(I88,,Study_Length,,))/2 -> 0
A94: Class 10 Capital Expenditures | D94: 10 | E94: =VLOOKUP($D94,'Finance Input'!$B$26:$D$37,2,0) -> 0.3 | F94: =VLOOKUP($D94,'Finance Input'!$B$26:$D$37,3,0) -> 10 | H94: =SUM(I94:INDEX(I94:BR94,1,MATCH(End_Year,$I$49:$BR$49,0))) -> 0 | I94: =SUMIF(Table2[[#All],[CCA Class]:[CCA Class]],$D94,Table2[[#All],[Period 0]])*(-1) -> 0 | J94: =SUMIF(Table2[[#All],[CCA Class]:[CCA Class]],$D94,Table2[[#All],[2025]])*(-1) -> 0 | K94: =SUMIF(Table2[[#All],[CCA Class]:[CCA Class]],$D94,Table2[[#All],[2026]])*(-1) -> 0 | L94: =SUMIF(Table2[[#All],[CCA Class]:[CCA Class]],$D94,Table2[[#All],[2027]])*(-1) -> 0 | M94: =SUMIF(Table2[[#All],[CCA Class]:[CCA Class]],$D94,Table2[[#All],[2028]])*(-1) -> 0 | N94: =SUMIF(Table2[[#All],[CCA Class]:[CCA Class]],$D94,Table2[[#All],[2029]])*(-1) -> 0 | O94: =SUMIF(Table2[[#All],[CCA Class]:[CCA Class]],$D94,Table2[[#All],[2030]])*(-1) -> 0 | P94: =SUMIF(Table2[[#All],[CCA Class]:[CCA Class]],$D94,Table2[[#All],[2031]])*(-1) -> 0 | Q94: =SUMIF(Table2[[#All],[CCA Class]:[CCA Class]],$D94,Table2[[#All],[2032]])*(-1) -> 0 | R94: =SUMIF(Table2[[#All],[CCA Class]:[CCA Class]],$D94,Table2[[#All],[2033]])*(-1) -> 0 | S94: =SUMIF(Table2[[#All],[CCA Class]:[CCA Class]],$D94,Table2[[#All],[2034]])*(-1) -> 0 | T94: =SUMIF(Table2[[#All],[CCA Class]:[CCA Class]],$D94,Table2[[#All],[2035]])*(-1) -> 0 | U94: =SUMIF(Table2[[#All],[CCA Class]:[CCA Class]],$D94,Table2[[#All],[2036]])*(-1) -> 0 | V94: =SUMIF(Table2[[#All],[CCA Class]:[CCA Class]],$D94,Table2[[#All],[2037]])*(-1) -> 0 | W94: =SUMIF(Table2[[#All],[CCA Class]:[CCA Class]],$D94,Table2[[#All],[2038]])*(-1) -> 0 | X94: =SUMIF(Table2[[#All],[CCA Class]:[CCA Class]],$D94,Table2[[#All],[2039]])*(-1) -> 0 | Y94: =SUMIF(Table2[[#All],[CCA Class]:[CCA Class]],$D94,Table2[[#All],[2040]])*(-1) -> 0 | Z94: =SUMIF(Table2[[#All],[CCA Class]:[CCA Class]],$D94,Table2[[#All],[2041]])*(-1) -> 0 | AA94: =SUMIF(Table2[[#All],[CCA Class]:[CCA Class]],$D94,Table2[[#All],[2042]])*(-1) -> 0 | AB94: =SUMIF(Table2[[#All],[CCA Class]:[CCA Class]],$D94,Table2[[#All],[2043]])*(-1) -> 0 | AC94: =SUMIF(Table2[[#All],[CCA Class]:[CCA Class]],$D94,Table2[[#All],[2044]])*(-1) -> 0 | AD94: =SUMIF(Table2[[#All],[CCA Class]:[CCA Class]],$D94,Table2[[#All],[2045]])*(-1) -> 0 | AE94: =SUMIF(Table2[[#All],[CCA Class]:[CCA Class]],$D94,Table2[[#All],[2046]])*(-1) -> 0 | AF94: =SUMIF(Table2[[#All],[CCA Class]:[CCA Class]],$D94,Table2[[#All],[2047]])*(-1) -> 0 | AG94: =SUMIF(Table2[[#All],[CCA Class]:[CCA Class]],$D94,Table2[[#All],[2048]])*(-1) -> 0 | AH94: =SUMIF(Table2[[#All],[CCA Class]:[CCA Class]],$D94,Table2[[#All],[2049]])*(-1) -> 0 | AI94: =SUMIF(Table2[[#All],[CCA Class]:[CCA Class]],$D94,Table2[[#All],[2050]])*(-1) -> 0 | AJ94: =SUMIF(Table2[[#All],[CCA Class]:[CCA Class]],$D94,Table2[[#All],[2051]])*(-1) -> 0 | AK94: =SUMIF(Table2[[#All],[CCA Class]:[CCA Class]],$D94,Table2[[#All],[2052]])*(-1) -> 0 | AL94: =SUMIF(Table2[[#All],[CCA Class]:[CCA Class]],$D94,Table2[[#All],[2053]])*(-1) -> 0 | AM94: =SUMIF(Table2[[#All],[CCA Class]:[CCA Class]],$D94,Table2[[#All],[2054]])*(-1) -> 0 | AN94: =SUMIF(Table2[[#All],[CCA Class]:[CCA Class]],$D94,Table2[[#All],[2055]])*(-1) -> 0 | AO94: =SUMIF(Table2[[#All],[CCA Class]:[CCA Class]],$D94,Table2[[#All],[2056]])*(-1) -> 0 | AP94: =SUMIF(Table2[[#All],[CCA Class]:[CCA Class]],$D94,Table2[[#All],[2057]])*(-1) -> 0 | AQ94: =SUMIF(Table2[[#All],[CCA Class]:[CCA Class]],$D94,Table2[[#All],[2058]])*(-1) -> 0 | AR94: =SUMIF(Table2[[#All],[CCA Class]:[CCA Class]],$D94,Table2[[#All],[2059]])*(-1) -> 0 | AS94: =SUMIF(Table2[[#All],[CCA Class]:[CCA Class]],$D94,Table2[[#All],[2060]])*(-1) -> 0 | AT94: =SUMIF(Table2[[#All],[CCA Class]:[CCA Class]],$D94,Table2[[#All],[2061]])*(-1) -> 0 | AU94: =SUMIF(Table2[[#All],[CCA Class]:[CCA Class]],$D94,Table2[[#All],[2062]])*(-1) -> 0 | AV94: =SUMIF(Table2[[#All],[CCA Class]:[CCA Class]],$D94,Table2[[#All],[2063]])*(-1) -> 0 | AW94: =SUMIF(Table2[[#All],[CCA Class]:[CCA Class]],$D94,Table2[[#All],[2064]])*(-1) -> 0 | AX94: =SUMIF(Table2[[#All],[CCA Class]:[CCA Class]],$D94,Table2[[#All],[2065]])*(-1) -> 0 | AY94: =SUMIF(Table2[[#All],[CCA Class]:[CCA Class]],$D94,Table2[[#All],[2066]])*(-1) -> 0 | AZ94: =SUMIF(Table2[[#All],[CCA Class]:[CCA Class]],$D94,Table2[[#All],[2067]])*(-1) -> 0 | BA94: =SUMIF(Table2[[#All],[CCA Class]:[CCA Class]],$D94,Table2[[#All],[2068]])*(-1) -> 0 | BB94: =SUMIF(Table2[[#All],[CCA Class]:[CCA Class]],$D94,Table2[[#All],[2069]])*(-1) -> 0 | BC94: =SUMIF(Table2[[#All],[CCA Class]:[CCA Class]],$D94,Table2[[#All],[2070]])*(-1) -> 0 | BD94: =SUMIF(Table2[[#All],[CCA Class]:[CCA Class]],$D94,Table2[[#All],[2071]])*(-1) -> 0 | BE94: =SUMIF(Table2[[#All],[CCA Class]:[CCA Class]],$D94,Table2[[#All],[2072]])*(-1) -> 0 | BF94: =SUMIF(Table2[[#All],[CCA Class]:[CCA Class]],$D94,Table2[[#All],[2073]])*(-1) -> 0 | BG94: =SUMIF(Table2[[#All],[CCA Class]:[CCA Class]],$D94,Table2[[#All],[2074]])*(-1) -> 0 | BH94: =SUMIF(Table2[[#All],[CCA Class]:[CCA Class]],$D94,Table2[[#All],[2075]])*(-1) -> 0 | BI94: =SUMIF(Table2[[#All],[CCA Class]:[CCA Class]],$D94,Table2[[#All],[2076]])*(-1) -> 0 | BJ94: =SUMIF(Table2[[#All],[CCA Class]:[CCA Class]],$D94,Table2[[#All],[2077]])*(-1) -> 0 | BK94: =SUMIF(Table2[[#All],[CCA Class]:[CCA Class]],$D94,Table2[[#All],[2078]])*(-1) -> 0 | BL94: =SUMIF(Table2[[#All],[CCA Class]:[CCA Class]],$D94,Table2[[#All],[2079]])*(-1) -> 0 | BM94: =SUMIF(Table2[[#All],[CCA Class]:[CCA Class]],$D94,Table2[[#All],[2080]])*(-1) -> 0 | BN94: =SUMIF(Table2[[#All],[CCA Class]:[CCA Class]],$D94,Table2[[#All],[2081]])*(-1) -> 0 | BO94: =SUMIF(Table2[[#All],[CCA Class]:[CCA Class]],$D94,Table2[[#All],[2082]])*(-1) -> 0 | BP94: =SUMIF(Table2[[#All],[CCA Class]:[CCA Class]],$D94,Table2[[#All],[2083]])*(-1) -> 0 | BQ94: =SUMIF(Table2[[#All],[CCA Class]:[CCA Class]],$D94,Table2[[#All],[2084]])*(-1) -> 0 | BR94: =SUMIF(Table2[[#All],[CCA Class]:[CCA Class]],$D94,Table2[[#All],[Terminal Value]])*(-1) -> 0
A95: UCC, beginning of year | I95: 0 | J95: =I99 -> 0 | K95: 0 | L95: 0 | M95: 0 | N95: 0 | O95: 0 | P95: 0 | Q95: 0 | R95: 0 | S95: 0 | T95: 0 | U95: 0 | V95: 0 | W95: 0 | X95: 0 | Y95: 0 | Z95: 0 | AA95: 0 | AB95: 0 | AC95: 0 | AD95: 0 | AE95: 0 | AF95: 0 | AG95: 0 | AH95: 0 | AI95: 0 | AJ95: 0 | AK95: 0 | AL95: 0 | AM95: 0 | AN95: 0 | AO95: 0 | AP95: =AO99 -> 0 | AQ95: 0 | AR95: 0 | AS95: 0 | AT95: 0 | AU95: 0 | AV95: 0 | AW95: 0 | AX95: 0 | AY95: 0 | AZ95: 0 | BA95: 0 | BB95: 0 | BC95: 0 | BD95: 0 | BE95: 0 | BF95: 0 | BG95: 0 | BH95: 0 | BI95: 0 | BJ95: 0 | BK95: 0 | BL95: 0 | BM95: 0 | BN95: 0 | BO95: 0 | BP95: 0 | BQ95: 0 | BR95: =OFFSET(I99,,Study_Length,,) -> 0
A96: Additions to UCC pool - Only recorded beyond in-service date | H96: =SUM(I96:INDEX(I96:BR96,1,MATCH(End_Year,$I$49:$BR$49,0))) -> 0 | I96: =IF(YEAR(IS_Date)>I$49,0,IF(SUM(H96:$I96)=0,SUM($I94:I94),I94)) -> 0 | J96: =IF(YEAR(IS_Date)>J$49,0,IF(SUM($I96:I96,$I100:I100)=0,SUM($I94:J94),J94))-J100 -> 0 | K96: =IF(YEAR(IS_Date)>K$49,0,IF(SUM($I96:J96,$I100:J100)=0,SUM($I94:K94),K94))-K100 -> 0 | L96: =IF(YEAR(IS_Date)>L$49,0,IF(SUM($I96:K96,$I100:K100)=0,SUM($I94:L94),L94))-L100 -> 0 | M96: =IF(YEAR(IS_Date)>M$49,0,IF(SUM($I96:L96,$I100:L100)=0,SUM($I94:M94),M94))-M100 -> 0 | N96: =IF(YEAR(IS_Date)>N$49,0,IF(SUM($I96:M96,$I100:M100)=0,SUM($I94:N94),N94))-N100 -> 0 | O96: =IF(YEAR(IS_Date)>O$49,0,IF(SUM($I96:N96,$I100:N100)=0,SUM($I94:O94),O94))-O100 -> 0 | P96: =IF(YEAR(IS_Date)>P$49,0,IF(SUM($I96:O96,$I100:O100)=0,SUM($I94:P94),P94))-P100 -> 0 | Q96: =IF(YEAR(IS_Date)>Q$49,0,IF(SUM($I96:P96,$I100:P100)=0,SUM($I94:Q94),Q94))-Q100 -> 0 | R96: =IF(YEAR(IS_Date)>R$49,0,IF(SUM($I96:Q96,$I100:Q100)=0,SUM($I94:R94),R94))-R100 -> 0 | S96: =IF(YEAR(IS_Date)>S$49,0,IF(SUM($I96:R96,$I100:R100)=0,SUM($I94:S94),S94))-S100 -> 0 | T96: =IF(YEAR(IS_Date)>T$49,0,IF(SUM($I96:S96,$I100:S100)=0,SUM($I94:T94),T94))-T100 -> 0 | U96: =IF(YEAR(IS_Date)>U$49,0,IF(SUM($I96:T96,$I100:T100)=0,SUM($I94:U94),U94))-U100 -> 0 | V96: =IF(YEAR(IS_Date)>V$49,0,IF(SUM($I96:U96,$I100:U100)=0,SUM($I94:V94),V94))-V100 -> 0 | W96: =IF(YEAR(IS_Date)>W$49,0,IF(SUM($I96:V96,$I100:V100)=0,SUM($I94:W94),W94))-W100 -> 0 | X96: =IF(YEAR(IS_Date)>X$49,0,IF(SUM($I96:W96,$I100:W100)=0,SUM($I94:X94),X94))-X100 -> 0 | Y96: =IF(YEAR(IS_Date)>Y$49,0,IF(SUM($I96:X96,$I100:X100)=0,SUM($I94:Y94),Y94))-Y100 -> 0 | Z96: =IF(YEAR(IS_Date)>Z$49,0,IF(SUM($I96:Y96,$I100:Y100)=0,SUM($I94:Z94),Z94))-Z100 -> 0 | AA96: =IF(YEAR(IS_Date)>AA$49,0,IF(SUM($I96:Z96,$I100:Z100)=0,SUM($I94:AA94),AA94))-AA100 -> 0 | AB96: =IF(YEAR(IS_Date)>AB$49,0,IF(SUM($I96:AA96,$I100:AA100)=0,SUM($I94:AB94),AB94))-AB100 -> 0 | AC96: =IF(YEAR(IS_Date)>AC$49,0,IF(SUM($I96:AB96,$I100:AB100)=0,SUM($I94:AC94),AC94))-AC100 -> 0 | AD96: =IF(YEAR(IS_Date)>AD$49,0,IF(SUM($I96:AC96,$I100:AC100)=0,SUM($I94:AD94),AD94))-AD100 -> 0 | AE96: =IF(YEAR(IS_Date)>AE$49,0,IF(SUM($I96:AD96,$I100:AD100)=0,SUM($I94:AE94),AE94))-AE100 -> 0 | AF96: =IF(YEAR(IS_Date)>AF$49,0,IF(SUM($I96:AE96,$I100:AE100)=0,SUM($I94:AF94),AF94))-AF100 -> 0 | AG96: =IF(YEAR(IS_Date)>AG$49,0,IF(SUM($I96:AF96,$I100:AF100)=0,SUM($I94:AG94),AG94))-AG100 -> 0 | AH96: =IF(YEAR(IS_Date)>AH$49,0,IF(SUM($I96:AG96,$I100:AG100)=0,SUM($I94:AH94),AH94))-AH100 -> 0 | AI96: =IF(YEAR(IS_Date)>AI$49,0,IF(SUM($I96:AH96,$I100:AH100)=0,SUM($I94:AI94),AI94))-AI100 -> 0 | AJ96: =IF(YEAR(IS_Date)>AJ$49,0,IF(SUM($I96:AI96,$I100:AI100)=0,SUM($I94:AJ94),AJ94))-AJ100 -> 0 | AK96: =IF(YEAR(IS_Date)>AK$49,0,IF(SUM($I96:AJ96,$I100:AJ100)=0,SUM($I94:AK94),AK94))-AK100 -> 0 | AL96: =IF(YEAR(IS_Date)>AL$49,0,IF(SUM($I96:AK96,$I100:AK100)=0,SUM($I94:AL94),AL94))-AL100 -> 0 | AM96: =IF(YEAR(IS_Date)>AM$49,0,IF(SUM($I96:AL96,$I100:AL100)=0,SUM($I94:AM94),AM94))-AM100 -> 0 | AN96: =IF(YEAR(IS_Date)>AN$49,0,IF(SUM($I96:AM96,$I100:AM100)=0,SUM($I94:AN94),AN94))-AN100 -> 0 | AO96: =IF(YEAR(IS_Date)>AO$49,0,IF(SUM($I96:AN96,$I100:AN100)=0,SUM($I94:AO94),AO94))-AO100 -> 0 | AP96: =IF(YEAR(IS_Date)>AP$49,0,IF(SUM($I96:AO96,$I100:AO100)=0,SUM($I94:AP94),AP94))-AP100 -> 0 | AQ96: =IF(YEAR(IS_Date)>AQ$49,0,IF(SUM($I96:AP96,$I100:AP100)=0,SUM($I94:AQ94),AQ94))-AQ100 -> 0 | AR96: =IF(YEAR(IS_Date)>AR$49,0,IF(SUM($I96:AQ96,$I100:AQ100)=0,SUM($I94:AR94),AR94))-AR100 -> 0 | AS96: =IF(YEAR(IS_Date)>AS$49,0,IF(SUM($I96:AR96,$I100:AR100)=0,SUM($I94:AS94),AS94))-AS100 -> 0 | AT96: =IF(YEAR(IS_Date)>AT$49,0,IF(SUM($I96:AS96,$I100:AS100)=0,SUM($I94:AT94),AT94))-AT100 -> 0 | AU96: =IF(YEAR(IS_Date)>AU$49,0,IF(SUM($I96:AT96,$I100:AT100)=0,SUM($I94:AU94),AU94))-AU100 -> 0 | AV96: =IF(YEAR(IS_Date)>AV$49,0,IF(SUM($I96:AU96,$I100:AU100)=0,SUM($I94:AV94),AV94))-AV100 -> 0 | AW96: =IF(YEAR(IS_Date)>AW$49,0,IF(SUM($I96:AV96,$I100:AV100)=0,SUM($I94:AW94),AW94))-AW100 -> 0 | AX96: =IF(YEAR(IS_Date)>AX$49,0,IF(SUM($I96:AW96,$I100:AW100)=0,SUM($I94:AX94),AX94))-AX100 -> 0 | AY96: =IF(YEAR(IS_Date)>AY$49,0,IF(SUM($I96:AX96,$I100:AX100)=0,SUM($I94:AY94),AY94))-AY100 -> 0 | AZ96: =IF(YEAR(IS_Date)>AZ$49,0,IF(SUM($I96:AY96,$I100:AY100)=0,SUM($I94:AZ94),AZ94))-AZ100 -> 0 | BA96: =IF(YEAR(IS_Date)>BA$49,0,IF(SUM($I96:AZ96,$I100:AZ100)=0,SUM($I94:BA94),BA94))-BA100 -> 0 | BB96: =IF(YEAR(IS_Date)>BB$49,0,IF(SUM($I96:BA96,$I100:BA100)=0,SUM($I94:BB94),BB94))-BB100 -> 0 | BC96: =IF(YEAR(IS_Date)>BC$49,0,IF(SUM($I96:BB96,$I100:BB100)=0,SUM($I94:BC94),BC94))-BC100 -> 0 | BD96: =IF(YEAR(IS_Date)>BD$49,0,IF(SUM($I96:BC96,$I100:BC100)=0,SUM($I94:BD94),BD94))-BD100 -> 0 | BE96: =IF(YEAR(IS_Date)>BE$49,0,IF(SUM($I96:BD96,$I100:BD100)=0,SUM($I94:BE94),BE94))-BE100 -> 0 | BF96: =IF(YEAR(IS_Date)>BF$49,0,IF(SUM($I96:BE96,$I100:BE100)=0,SUM($I94:BF94),BF94))-BF100 -> 0 | BG96: =IF(YEAR(IS_Date)>BG$49,0,IF(SUM($I96:BF96,$I100:BF100)=0,SUM($I94:BG94),BG94))-BG100 -> 0 | BH96: =IF(YEAR(IS_Date)>BH$49,0,IF(SUM($I96:BG96,$I100:BG100)=0,SUM($I94:BH94),BH94))-BH100 -> 0 | BI96: =IF(YEAR(IS_Date)>BI$49,0,IF(SUM($I96:BH96,$I100:BH100)=0,SUM($I94:BI94),BI94))-BI100 -> 0 | BJ96: =IF(YEAR(IS_Date)>BJ$49,0,IF(SUM($I96:BI96,$I100:BI100)=0,SUM($I94:BJ94),BJ94))-BJ100 -> 0 | BK96: =IF(YEAR(IS_Date)>BK$49,0,IF(SUM($I96:BJ96,$I100:BJ100)=0,SUM($I94:BK94),BK94))-BK100 -> 0 | BL96: =IF(YEAR(IS_Date)>BL$49,0,IF(SUM($I96:BK96,$I100:BK100)=0,SUM($I94:BL94),BL94))-BL100 -> 0 | BM96: =IF(YEAR(IS_Date)>BM$49,0,IF(SUM($I96:BL96,$I100:BL100)=0,SUM($I94:BM94),BM94))-BM100 -> 0 | BN96: =IF(YEAR(IS_Date)>BN$49,0,IF(SUM($I96:BM96,$I100:BM100)=0,SUM($I94:BN94),BN94))-BN100 -> 0 | BO96: =IF(YEAR(IS_Date)>BO$49,0,IF(SUM($I96:BN96,$I100:BN100)=0,SUM($I94:BO94),BO94))-BO100 -> 0 | BP96: =IF(YEAR(IS_Date)>BP$49,0,IF(SUM($I96:BO96,$I100:BO100)=0,SUM($I94:BP94),BP94))-BP100 -> 0 | BQ96: =IF(YEAR(IS_Date)>BQ$49,0,IF(SUM($I96:BP96,$I100:BP100)=0,SUM($I94:BQ94),BQ94))-BQ100 -> 0 | BR96: =IF(YEAR(IS_Date)>BR$49,0,IF(SUM($I96:BQ96,$I100:BQ100)=0,SUM($I94:BR94),BR94))-BR100 -> 0
A97: CCA declining balance - Standard CCA with 1/2 rule | H97: =SUM(I97:INDEX(I97:BR97,1,MATCH(End_Year,$I$49:$BR$49,0))) -> 0 | I97: =IF(AND(I95+I96<0,$D$32="Yes (Separate Entity)"),(I96+I95)*(-1),MIN(0,((I95+I96)-ABS(0.5*I96))*$E94*(-1))) -> 0 | J97: =IF(AND(J95+J96<0,$D$32="Yes (Separate Entity)"),(J96+J95)*(-1),MIN(0,((J95+J96)-ABS(0.5*J96))*$E94*(-1))) -> 0 | K97: =IF(AND(K95+K96<0,$D$32="Yes (Separate Entity)"),(K96+K95)*(-1),MIN(0,((K95+K96)-ABS(0.5*K96))*$E94*(-1))) -> 0 | L97: =IF(AND(L95+L96<0,$D$32="Yes (Separate Entity)"),(L96+L95)*(-1),MIN(0,((L95+L96)-ABS(0.5*L96))*$E94*(-1))) -> 0 | M97: =IF(AND(M95+M96<0,$D$32="Yes (Separate Entity)"),(M96+M95)*(-1),MIN(0,((M95+M96)-ABS(0.5*M96))*$E94*(-1))) -> 0 | N97: =IF(AND(N95+N96<0,$D$32="Yes (Separate Entity)"),(N96+N95)*(-1),MIN(0,((N95+N96)-ABS(0.5*N96))*$E94*(-1))) -> 0 | O97: =IF(AND(O95+O96<0,$D$32="Yes (Separate Entity)"),(O96+O95)*(-1),MIN(0,((O95+O96)-ABS(0.5*O96))*$E94*(-1))) -> 0 | P97: =IF(AND(P95+P96<0,$D$32="Yes (Separate Entity)"),(P96+P95)*(-1),MIN(0,((P95+P96)-ABS(0.5*P96))*$E94*(-1))) -> 0 | Q97: =IF(AND(Q95+Q96<0,$D$32="Yes (Separate Entity)"),(Q96+Q95)*(-1),MIN(0,((Q95+Q96)-ABS(0.5*Q96))*$E94*(-1))) -> 0 | R97: =IF(AND(R95+R96<0,$D$32="Yes (Separate Entity)"),(R96+R95)*(-1),MIN(0,((R95+R96)-ABS(0.5*R96))*$E94*(-1))) -> 0 | S97: =IF(AND(S95+S96<0,$D$32="Yes (Separate Entity)"),(S96+S95)*(-1),MIN(0,((S95+S96)-ABS(0.5*S96))*$E94*(-1))) -> 0 | T97: =IF(AND(T95+T96<0,$D$32="Yes (Separate Entity)"),(T96+T95)*(-1),MIN(0,((T95+T96)-ABS(0.5*T96))*$E94*(-1))) -> 0 | U97: =IF(AND(U95+U96<0,$D$32="Yes (Separate Entity)"),(U96+U95)*(-1),MIN(0,((U95+U96)-ABS(0.5*U96))*$E94*(-1))) -> 0 | V97: =IF(AND(V95+V96<0,$D$32="Yes (Separate Entity)"),(V96+V95)*(-1),MIN(0,((V95+V96)-ABS(0.5*V96))*$E94*(-1))) -> 0 | W97: =IF(AND(W95+W96<0,$D$32="Yes (Separate Entity)"),(W96+W95)*(-1),MIN(0,((W95+W96)-ABS(0.5*W96))*$E94*(-1))) -> 0 | X97: =IF(AND(X95+X96<0,$D$32="Yes (Separate Entity)"),(X96+X95)*(-1),MIN(0,((X95+X96)-ABS(0.5*X96))*$E94*(-1))) -> 0 | Y97: =IF(AND(Y95+Y96<0,$D$32="Yes (Separate Entity)"),(Y96+Y95)*(-1),MIN(0,((Y95+Y96)-ABS(0.5*Y96))*$E94*(-1))) -> 0 | Z97: =IF(AND(Z95+Z96<0,$D$32="Yes (Separate Entity)"),(Z96+Z95)*(-1),MIN(0,((Z95+Z96)-ABS(0.5*Z96))*$E94*(-1))) -> 0 | AA97: =IF(AND(AA95+AA96<0,$D$32="Yes (Separate Entity)"),(AA96+AA95)*(-1),MIN(0,((AA95+AA96)-ABS(0.5*AA96))*$E94*(-1))) -> 0 | AB97: =IF(AND(AB95+AB96<0,$D$32="Yes (Separate Entity)"),(AB96+AB95)*(-1),MIN(0,((AB95+AB96)-ABS(0.5*AB96))*$E94*(-1))) -> 0 | AC97: =IF(AND(AC95+AC96<0,$D$32="Yes (Separate Entity)"),(AC96+AC95)*(-1),MIN(0,((AC95+AC96)-ABS(0.5*AC96))*$E94*(-1))) -> 0 | AD97: =IF(AND(AD95+AD96<0,$D$32="Yes (Separate Entity)"),(AD96+AD95)*(-1),MIN(0,((AD95+AD96)-ABS(0.5*AD96))*$E94*(-1))) -> 0 | AE97: =IF(AND(AE95+AE96<0,$D$32="Yes (Separate Entity)"),(AE96+AE95)*(-1),MIN(0,((AE95+AE96)-ABS(0.5*AE96))*$E94*(-1))) -> 0 | AF97: =IF(AND(AF95+AF96<0,$D$32="Yes (Separate Entity)"),(AF96+AF95)*(-1),MIN(0,((AF95+AF96)-ABS(0.5*AF96))*$E94*(-1))) -> 0 | AG97: =IF(AND(AG95+AG96<0,$D$32="Yes (Separate Entity)"),(AG96+AG95)*(-1),MIN(0,((AG95+AG96)-ABS(0.5*AG96))*$E94*(-1))) -> 0 | AH97: =IF(AND(AH95+AH96<0,$D$32="Yes (Separate Entity)"),(AH96+AH95)*(-1),MIN(0,((AH95+AH96)-ABS(0.5*AH96))*$E94*(-1))) -> 0 | AI97: =IF(AND(AI95+AI96<0,$D$32="Yes (Separate Entity)"),(AI96+AI95)*(-1),MIN(0,((AI95+AI96)-ABS(0.5*AI96))*$E94*(-1))) -> 0 | AJ97: =IF(AND(AJ95+AJ96<0,$D$32="Yes (Separate Entity)"),(AJ96+AJ95)*(-1),MIN(0,((AJ95+AJ96)-ABS(0.5*AJ96))*$E94*(-1))) -> 0 | AK97: =IF(AND(AK95+AK96<0,$D$32="Yes (Separate Entity)"),(AK96+AK95)*(-1),MIN(0,((AK95+AK96)-ABS(0.5*AK96))*$E94*(-1))) -> 0 | AL97: =IF(AND(AL95+AL96<0,$D$32="Yes (Separate Entity)"),(AL96+AL95)*(-1),MIN(0,((AL95+AL96)-ABS(0.5*AL96))*$E94*(-1))) -> 0 | AM97: =IF(AND(AM95+AM96<0,$D$32="Yes (Separate Entity)"),(AM96+AM95)*(-1),MIN(0,((AM95+AM96)-ABS(0.5*AM96))*$E94*(-1))) -> 0 | AN97: =IF(AND(AN95+AN96<0,$D$32="Yes (Separate Entity)"),(AN96+AN95)*(-1),MIN(0,((AN95+AN96)-ABS(0.5*AN96))*$E94*(-1))) -> 0 | AO97: =IF(AND(AO95+AO96<0,$D$32="Yes (Separate Entity)"),(AO96+AO95)*(-1),MIN(0,((AO95+AO96)-ABS(0.5*AO96))*$E94*(-1))) -> 0 | AP97: =IF(AND(AP95+AP96<0,$D$32="Yes (Separate Entity)"),(AP96+AP95)*(-1),MIN(0,((AP95+AP96)-ABS(0.5*AP96))*$E94*(-1))) -> 0 | AQ97: =IF(AND(AQ95+AQ96<0,$D$32="Yes (Separate Entity)"),(AQ96+AQ95)*(-1),MIN(0,((AQ95+AQ96)-ABS(0.5*AQ96))*$E94*(-1))) -> 0 | AR97: =IF(AND(AR95+AR96<0,$D$32="Yes (Separate Entity)"),(AR96+AR95)*(-1),MIN(0,((AR95+AR96)-ABS(0.5*AR96))*$E94*(-1))) -> 0 | AS97: =IF(AND(AS95+AS96<0,$D$32="Yes (Separate Entity)"),(AS96+AS95)*(-1),MIN(0,((AS95+AS96)-ABS(0.5*AS96))*$E94*(-1))) -> 0 | AT97: =IF(AND(AT95+AT96<0,$D$32="Yes (Separate Entity)"),(AT96+AT95)*(-1),MIN(0,((AT95+AT96)-ABS(0.5*AT96))*$E94*(-1))) -> 0 | AU97: =IF(AND(AU95+AU96<0,$D$32="Yes (Separate Entity)"),(AU96+AU95)*(-1),MIN(0,((AU95+AU96)-ABS(0.5*AU96))*$E94*(-1))) -> 0 | AV97: =IF(AND(AV95+AV96<0,$D$32="Yes (Separate Entity)"),(AV96+AV95)*(-1),MIN(0,((AV95+AV96)-ABS(0.5*AV96))*$E94*(-1))) -> 0 | AW97: =IF(AND(AW95+AW96<0,$D$32="Yes (Separate Entity)"),(AW96+AW95)*(-1),MIN(0,((AW95+AW96)-ABS(0.5*AW96))*$E94*(-1))) -> 0 | AX97: =IF(AND(AX95+AX96<0,$D$32="Yes (Separate Entity)"),(AX96+AX95)*(-1),MIN(0,((AX95+AX96)-ABS(0.5*AX96))*$E94*(-1))) -> 0 | AY97: =IF(AND(AY95+AY96<0,$D$32="Yes (Separate Entity)"),(AY96+AY95)*(-1),MIN(0,((AY95+AY96)-ABS(0.5*AY96))*$E94*(-1))) -> 0 | AZ97: =IF(AND(AZ95+AZ96<0,$D$32="Yes (Separate Entity)"),(AZ96+AZ95)*(-1),MIN(0,((AZ95+AZ96)-ABS(0.5*AZ96))*$E94*(-1))) -> 0 | BA97: =IF(AND(BA95+BA96<0,$D$32="Yes (Separate Entity)"),(BA96+BA95)*(-1),MIN(0,((BA95+BA96)-ABS(0.5*BA96))*$E94*(-1))) -> 0 | BB97: =IF(AND(BB95+BB96<0,$D$32="Yes (Separate Entity)"),(BB96+BB95)*(-1),MIN(0,((BB95+BB96)-ABS(0.5*BB96))*$E94*(-1))) -> 0 | BC97: =IF(AND(BC95+BC96<0,$D$32="Yes (Separate Entity)"),(BC96+BC95)*(-1),MIN(0,((BC95+BC96)-ABS(0.5*BC96))*$E94*(-1))) -> 0 | BD97: =IF(AND(BD95+BD96<0,$D$32="Yes (Separate Entity)"),(BD96+BD95)*(-1),MIN(0,((BD95+BD96)-ABS(0.5*BD96))*$E94*(-1))) -> 0 | BE97: =IF(AND(BE95+BE96<0,$D$32="Yes (Separate Entity)"),(BE96+BE95)*(-1),MIN(0,((BE95+BE96)-ABS(0.5*BE96))*$E94*(-1))) -> 0 | BF97: =IF(AND(BF95+BF96<0,$D$32="Yes (Separate Entity)"),(BF96+BF95)*(-1),MIN(0,((BF95+BF96)-ABS(0.5*BF96))*$E94*(-1))) -> 0 | BG97: =IF(AND(BG95+BG96<0,$D$32="Yes (Separate Entity)"),(BG96+BG95)*(-1),MIN(0,((BG95+BG96)-ABS(0.5*BG96))*$E94*(-1))) -> 0 | BH97: =IF(AND(BH95+BH96<0,$D$32="Yes (Separate Entity)"),(BH96+BH95)*(-1),MIN(0,((BH95+BH96)-ABS(0.5*BH96))*$E94*(-1))) -> 0 | BI97: =IF(AND(BI95+BI96<0,$D$32="Yes (Separate Entity)"),(BI96+BI95)*(-1),MIN(0,((BI95+BI96)-ABS(0.5*BI96))*$E94*(-1))) -> 0 | BJ97: =IF(AND(BJ95+BJ96<0,$D$32="Yes (Separate Entity)"),(BJ96+BJ95)*(-1),MIN(0,((BJ95+BJ96)-ABS(0.5*BJ96))*$E94*(-1))) -> 0 | BK97: =IF(AND(BK95+BK96<0,$D$32="Yes (Separate Entity)"),(BK96+BK95)*(-1),MIN(0,((BK95+BK96)-ABS(0.5*BK96))*$E94*(-1))) -> 0 | BL97: =IF(AND(BL95+BL96<0,$D$32="Yes (Separate Entity)"),(BL96+BL95)*(-1),MIN(0,((BL95+BL96)-ABS(0.5*BL96))*$E94*(-1))) -> 0 | BM97: =IF(AND(BM95+BM96<0,$D$32="Yes (Separate Entity)"),(BM96+BM95)*(-1),MIN(0,((BM95+BM96)-ABS(0.5*BM96))*$E94*(-1))) -> 0 | BN97: =IF(AND(BN95+BN96<0,$D$32="Yes (Separate Entity)"),(BN96+BN95)*(-1),MIN(0,((BN95+BN96)-ABS(0.5*BN96))*$E94*(-1))) -> 0 | BO97: =IF(AND(BO95+BO96<0,$D$32="Yes (Separate Entity)"),(BO96+BO95)*(-1),MIN(0,((BO95+BO96)-ABS(0.5*BO96))*$E94*(-1))) -> 0 | BP97: =IF(AND(BP95+BP96<0,$D$32="Yes (Separate Entity)"),(BP96+BP95)*(-1),MIN(0,((BP95+BP96)-ABS(0.5*BP96))*$E94*(-1))) -> 0 | BQ97: =IF(AND(BQ95+BQ96<0,$D$32="Yes (Separate Entity)"),(BQ96+BQ95)*(-1),MIN(0,((BQ95+BQ96)-ABS(0.5*BQ96))*$E94*(-1))) -> 0 | BR97: =IF(AND(BR95+BR96<0,$D$32="Yes (Separate Entity)"),(BR96+BR95)*(-1),MIN(0,((BR95+BR96)-ABS(0.5*BR96))*(-1))*($E94/($E94+WACC))) -> 0
A98: Accelerated CCA - In first year add 2x CCA (pre2024); 1x CCA (pre2028) | H98: =SUM(I98:INDEX(I98:BR98,1,MATCH(End_Year,$I$49:$BR$49,0))) -> 0 | I98: =MIN(MAX(IF(AND(2018<I$49,I$49<2024),I96*$E94,IF(AND(2023<I$49,I$49<2028),I96*$E94*0.5,0))*(-1),-I96+I96*$E94*0.5),0) -> 0 | J98: =MIN(MAX(IF(AND(2018<J$49,J$49<2024),J96*$E94,IF(AND(2023<J$49,J$49<2028),J96*$E94*0.5,0))*(-1),-J96+J96*$E94*0.5),0) -> 0 | K98: =MIN(MAX(IF(AND(2018<K$49,K$49<2024),K96*$E94,IF(AND(2023<K$49,K$49<2028),K96*$E94*0.5,0))*(-1),-K96+K96*$E94*0.5),0) -> 0 | L98: 0 | M98: 0 | N98: 0 | O98: 0 | P98: 0 | Q98: 0 | R98: 0 | S98: 0 | T98: 0 | U98: 0 | V98: 0 | W98: 0 | X98: 0 | Y98: 0 | Z98: 0 | AA98: 0 | AB98: 0 | AC98: 0 | AD98: 0 | AE98: 0 | AF98: 0 | AG98: 0 | AH98: 0 | AI98: 0 | AJ98: 0 | AK98: 0 | AL98: 0 | AM98: 0 | AN98: 0 | AO98: 0 | AP98: 0 | AQ98: 0 | AR98: 0 | AS98: 0 | AT98: 0 | AU98: 0 | AV98: 0 | AW98: 0 | AX98: 0 | AY98: 0 | AZ98: 0 | BA98: 0 | BB98: 0 | BC98: 0 | BD98: 0 | BE98: 0 | BF98: 0 | BG98: 0 | BH98: 0 | BI98: 0 | BJ98: 0 | BK98: 0 | BL98: 0 | BM98: 0 | BN98: 0 | BO98: 0 | BP98: 0 | BQ98: 0
A99: UCC, end of year | I99: =MAX(SUM(I95:I98),0) -> 0 | J99: =MAX(SUM(J95:J98),0) -> 0 | K99: =MAX(SUM(K95:K98),0) -> 0 | L99: =MAX(SUM(L95:L98),0) -> 0 | M99: =MAX(SUM(M95:M98),0) -> 0 | N99: =MAX(SUM(N95:N98),0) -> 0 | O99: =MAX(SUM(O95:O98),0) -> 0 | P99: =MAX(SUM(P95:P98),0) -> 0 | Q99: =MAX(SUM(Q95:Q98),0) -> 0 | R99: =MAX(SUM(R95:R98),0) -> 0 | S99: =MAX(SUM(S95:S98),0) -> 0 | T99: =MAX(SUM(T95:T98),0) -> 0 | U99: =MAX(SUM(U95:U98),0) -> 0 | V99: =MAX(SUM(V95:V98),0) -> 0 | W99: =MAX(SUM(W95:W98),0) -> 0 | X99: =MAX(SUM(X95:X98),0) -> 0 | Y99: =MAX(SUM(Y95:Y98),0) -> 0 | Z99: =MAX(SUM(Z95:Z98),0) -> 0 | AA99: =MAX(SUM(AA95:AA98),0) -> 0 | AB99: =MAX(SUM(AB95:AB98),0) -> 0 | AC99: =MAX(SUM(AC95:AC98),0) -> 0 | AD99: =MAX(SUM(AD95:AD98),0) -> 0 | AE99: =MAX(SUM(AE95:AE98),0) -> 0 | AF99: =MAX(SUM(AF95:AF98),0) -> 0 | AG99: =MAX(SUM(AG95:AG98),0) -> 0 | AH99: =MAX(SUM(AH95:AH98),0) -> 0 | AI99: =MAX(SUM(AI95:AI98),0) -> 0 | AJ99: =MAX(SUM(AJ95:AJ98),0) -> 0 | AK99: =MAX(SUM(AK95:AK98),0) -> 0 | AL99: =MAX(SUM(AL95:AL98),0) -> 0 | AM99: =MAX(SUM(AM95:AM98),0) -> 0 | AN99: =MAX(SUM(AN95:AN98),0) -> 0 | AO99: =MAX(SUM(AO95:AO98),0) -> 0 | AP99: =MAX(SUM(AP95:AP98),0) -> 0 | AQ99: =MAX(SUM(AQ95:AQ98),0) -> 0 | AR99: =MAX(SUM(AR95:AR98),0) -> 0 | AS99: =MAX(SUM(AS95:AS98),0) -> 0 | AT99: =MAX(SUM(AT95:AT98),0) -> 0 | AU99: =MAX(SUM(AU95:AU98),0) -> 0 | AV99: =MAX(SUM(AV95:AV98),0) -> 0 | AW99: =MAX(SUM(AW95:AW98),0) -> 0 | AX99: =MAX(SUM(AX95:AX98),0) -> 0 | AY99: =MAX(SUM(AY95:AY98),0) -> 0 | AZ99: =MAX(SUM(AZ95:AZ98),0) -> 0 | BA99: =MAX(SUM(BA95:BA98),0) -> 0 | BB99: =MAX(SUM(BB95:BB98),0) -> 0 | BC99: =MAX(SUM(BC95:BC98),0) -> 0 | BD99: =MAX(SUM(BD95:BD98),0) -> 0 | BE99: =MAX(SUM(BE95:BE98),0) -> 0 | BF99: =MAX(SUM(BF95:BF98),0) -> 0 | BG99: =MAX(SUM(BG95:BG98),0) -> 0 | BH99: =MAX(SUM(BH95:BH98),0) -> 0 | BI99: =MAX(SUM(BI95:BI98),0) -> 0 | BJ99: =MAX(SUM(BJ95:BJ98),0) -> 0 | BK99: =MAX(SUM(BK95:BK98),0) -> 0 | BL99: =MAX(SUM(BL95:BL98),0) -> 0 | BM99: =MAX(SUM(BM95:BM98),0) -> 0 | BN99: =MAX(SUM(BN95:BN98),0) -> 0 | BO99: =MAX(SUM(BO95:BO98),0) -> 0 | BP99: =MAX(SUM(BP95:BP98),0) -> 0 | BQ99: =MAX(SUM(BQ95:BQ98),0) -> 0
A100: Capital Gain on Sale of Asset | I100: 0 | J100: =IF(J94>=0,0,IF(J94*(-1)>SUM($I94:I94),J94+SUM($I94:I94),0)) -> 0 | K100: =IF(K94>=0,0,IF(K94*(-1)>SUM($I94:J94),K94+SUM($I94:J94),0)) -> 0 | L100: =IF(L94>=0,0,IF(L94*(-1)>SUM($I94:K94),L94+SUM($I94:K94),0)) -> 0 | M100: =IF(M94>=0,0,IF(M94*(-1)>SUM($I94:L94),M94+SUM($I94:L94),0)) -> 0 | N100: =IF(N94>=0,0,IF(N94*(-1)>SUM($I94:M94),N94+SUM($I94:M94),0)) -> 0 | O100: =IF(O94>=0,0,IF(O94*(-1)>SUM($I94:N94),O94+SUM($I94:N94),0)) -> 0 | P100: =IF(P94>=0,0,IF(P94*(-1)>SUM($I94:O94),P94+SUM($I94:O94),0)) -> 0 | Q100: =IF(Q94>=0,0,IF(Q94*(-1)>SUM($I94:P94),Q94+SUM($I94:P94),0)) -> 0 | R100: =IF(R94>=0,0,IF(R94*(-1)>SUM($I94:Q94),R94+SUM($I94:Q94),0)) -> 0 | S100: =IF(S94>=0,0,IF(S94*(-1)>SUM($I94:R94),S94+SUM($I94:R94),0)) -> 0 | T100: =IF(T94>=0,0,IF(T94*(-1)>SUM($I94:S94),T94+SUM($I94:S94),0)) -> 0 | U100: =IF(U94>=0,0,IF(U94*(-1)>SUM($I94:T94),U94+SUM($I94:T94),0)) -> 0 | V100: =IF(V94>=0,0,IF(V94*(-1)>SUM($I94:U94),V94+SUM($I94:U94),0)) -> 0 | W100: =IF(W94>=0,0,IF(W94*(-1)>SUM($I94:V94),W94+SUM($I94:V94),0)) -> 0 | X100: =IF(X94>=0,0,IF(X94*(-1)>SUM($I94:W94),X94+SUM($I94:W94),0)) -> 0 | Y100: =IF(Y94>=0,0,IF(Y94*(-1)>SUM($I94:X94),Y94+SUM($I94:X94),0)) -> 0 | Z100: =IF(Z94>=0,0,IF(Z94*(-1)>SUM($I94:Y94),Z94+SUM($I94:Y94),0)) -> 0 | AA100: =IF(AA94>=0,0,IF(AA94*(-1)>SUM($I94:Z94),AA94+SUM($I94:Z94),0)) -> 0 | AB100: =IF(AB94>=0,0,IF(AB94*(-1)>SUM($I94:AA94),AB94+SUM($I94:AA94),0)) -> 0 | AC100: =IF(AC94>=0,0,IF(AC94*(-1)>SUM($I94:AB94),AC94+SUM($I94:AB94),0)) -> 0 | AD100: =IF(AD94>=0,0,IF(AD94*(-1)>SUM($I94:AC94),AD94+SUM($I94:AC94),0)) -> 0 | AE100: =IF(AE94>=0,0,IF(AE94*(-1)>SUM($I94:AD94),AE94+SUM($I94:AD94),0)) -> 0 | AF100: =IF(AF94>=0,0,IF(AF94*(-1)>SUM($I94:AE94),AF94+SUM($I94:AE94),0)) -> 0 | AG100: =IF(AG94>=0,0,IF(AG94*(-1)>SUM($I94:AF94),AG94+SUM($I94:AF94),0)) -> 0 | AH100: =IF(AH94>=0,0,IF(AH94*(-1)>SUM($I94:AG94),AH94+SUM($I94:AG94),0)) -> 0 | AI100: =IF(AI94>=0,0,IF(AI94*(-1)>SUM($I94:AH94),AI94+SUM($I94:AH94),0)) -> 0 | AJ100: =IF(AJ94>=0,0,IF(AJ94*(-1)>SUM($I94:AI94),AJ94+SUM($I94:AI94),0)) -> 0 | AK100: =IF(AK94>=0,0,IF(AK94*(-1)>SUM($I94:AJ94),AK94+SUM($I94:AJ94),0)) -> 0 | AL100: =IF(AL94>=0,0,IF(AL94*(-1)>SUM($I94:AK94),AL94+SUM($I94:AK94),0)) -> 0 | AM100: =IF(AM94>=0,0,IF(AM94*(-1)>SUM($I94:AL94),AM94+SUM($I94:AL94),0)) -> 0 | AN100: =IF(AN94>=0,0,IF(AN94*(-1)>SUM($I94:AM94),AN94+SUM($I94:AM94),0)) -> 0 | AO100: =IF(AO94>=0,0,IF(AO94*(-1)>SUM($I94:AN94),AO94+SUM($I94:AN94),0)) -> 0 | AP100: =IF(AP94>=0,0,IF(AP94*(-1)>SUM($I94:AO94),AP94+SUM($I94:AO94),0)) -> 0 | AQ100: =IF(AQ94>=0,0,IF(AQ94*(-1)>SUM($I94:AP94),AQ94+SUM($I94:AP94),0)) -> 0 | AR100: =IF(AR94>=0,0,IF(AR94*(-1)>SUM($I94:AQ94),AR94+SUM($I94:AQ94),0)) -> 0 | AS100: =IF(AS94>=0,0,IF(AS94*(-1)>SUM($I94:AR94),AS94+SUM($I94:AR94),0)) -> 0 | AT100: =IF(AT94>=0,0,IF(AT94*(-1)>SUM($I94:AS94),AT94+SUM($I94:AS94),0)) -> 0 | AU100: =IF(AU94>=0,0,IF(AU94*(-1)>SUM($I94:AT94),AU94+SUM($I94:AT94),0)) -> 0 | AV100: =IF(AV94>=0,0,IF(AV94*(-1)>SUM($I94:AU94),AV94+SUM($I94:AU94),0)) -> 0 | AW100: =IF(AW94>=0,0,IF(AW94*(-1)>SUM($I94:AV94),AW94+SUM($I94:AV94),0)) -> 0 | AX100: =IF(AX94>=0,0,IF(AX94*(-1)>SUM($I94:AW94),AX94+SUM($I94:AW94),0)) -> 0 | AY100: =IF(AY94>=0,0,IF(AY94*(-1)>SUM($I94:AX94),AY94+SUM($I94:AX94),0)) -> 0 | AZ100: =IF(AZ94>=0,0,IF(AZ94*(-1)>SUM($I94:AY94),AZ94+SUM($I94:AY94),0)) -> 0 | BA100: =IF(BA94>=0,0,IF(BA94*(-1)>SUM($I94:AZ94),BA94+SUM($I94:AZ94),0)) -> 0 | BB100: =IF(BB94>=0,0,IF(BB94*(-1)>SUM($I94:BA94),BB94+SUM($I94:BA94),0)) -> 0 | BC100: =IF(BC94>=0,0,IF(BC94*(-1)>SUM($I94:BB94),BC94+SUM($I94:BB94),0)) -> 0 | BD100: =IF(BD94>=0,0,IF(BD94*(-1)>SUM($I94:BC94),BD94+SUM($I94:BC94),0)) -> 0 | BE100: =IF(BE94>=0,0,IF(BE94*(-1)>SUM($I94:BD94),BE94+SUM($I94:BD94),0)) -> 0 | BF100: =IF(BF94>=0,0,IF(BF94*(-1)>SUM($I94:BE94),BF94+SUM($I94:BE94),0)) -> 0 | BG100: =IF(BG94>=0,0,IF(BG94*(-1)>SUM($I94:BF94),BG94+SUM($I94:BF94),0)) -> 0 | BH100: =IF(BH94>=0,0,IF(BH94*(-1)>SUM($I94:BG94),BH94+SUM($I94:BG94),0)) -> 0 | BI100: =IF(BI94>=0,0,IF(BI94*(-1)>SUM($I94:BH94),BI94+SUM($I94:BH94),0)) -> 0 | BJ100: =IF(BJ94>=0,0,IF(BJ94*(-1)>SUM($I94:BI94),BJ94+SUM($I94:BI94),0)) -> 0 | BK100: =IF(BK94>=0,0,IF(BK94*(-1)>SUM($I94:BJ94),BK94+SUM($I94:BJ94),0)) -> 0 | BL100: =IF(BL94>=0,0,IF(BL94*(-1)>SUM($I94:BK94),BL94+SUM($I94:BK94),0)) -> 0 | BM100: =IF(BM94>=0,0,IF(BM94*(-1)>SUM($I94:BL94),BM94+SUM($I94:BL94),0)) -> 0 | BN100: =IF(BN94>=0,0,IF(BN94*(-1)>SUM($I94:BM94),BN94+SUM($I94:BM94),0)) -> 0 | BO100: =IF(BO94>=0,0,IF(BO94*(-1)>SUM($I94:BN94),BO94+SUM($I94:BN94),0)) -> 0 | BP100: =IF(BP94>=0,0,IF(BP94*(-1)>SUM($I94:BO94),BP94+SUM($I94:BO94),0)) -> 0 | BQ100: =IF(BQ94>=0,0,IF(BQ94*(-1)>SUM($I94:BP94),BQ94+SUM($I94:BP94),0)) -> 0 | BR100: =IF(BR94>=0,0,IF(BR94*(-1)>SUM($I94:BQ94),BR94+SUM($I94:BQ94),0)) -> 0
A102: Year Addition Comes off Book | J102: =J$49+$F94 -> 2035 | K102: 2036 | L102: 2037 | M102: 2038 | N102: 2039 | O102: 2040 | P102: 2041 | Q102: 2042 | R102: 2043 | S102: 2044 | T102: 2045 | U102: 2046 | V102: 2047 | W102: 2048 | X102: 2049 | Y102: 2050 | Z102: 2051 | AA102: 2052 | AB102: 2053 | AC102: 2054 | AD102: 2055 | AE102: 2056 | AF102: 2057 | AG102: 2058 | AH102: 2059 | AI102: 2060 | AJ102: 2061 | AK102: 2062 | AL102: 2063 | AM102: 2064 | AN102: 2065 | AO102: 2066 | AP102: =AP$49+$F94 -> 2067 | AQ102: 2068 | AR102: 2069 | AS102: 2070 | AT102: 2071 | AU102: 2072 | AV102: 2073 | AW102: 2074 | AX102: 2075 | AY102: 2076 | AZ102: 2077 | BA102: 2078 | BB102: 2079 | BC102: 2080 | BD102: 2081 | BE102: 2082 | BF102: 2083 | BG102: 2084 | BH102: 2085 | BI102: 2086 | BJ102: 2087 | BK102: 2088 | BL102: 2089 | BM102: 2090 | BN102: 2091 | BO102: 2092 | BP102: 2093 | BQ102: 2094
A103: Gross Capital Cost, at beginning of year | I103: 0 | J103: =MAX(0,IF(J$49>=$J102,ROUND(I103+I105-ABS(HLOOKUP(J$49,$J102:$BR105,4,0)),2),I103+I105)) -> 0 | K103: =MAX(0,IF(K$49>=$J102,ROUND(J103+J105-ABS(HLOOKUP(K$49,$J102:$BR105,4,0)),2),J103+J105)) -> 0 | L103: =MAX(0,IF(L$49>=$J102,ROUND(K103+K105-ABS(HLOOKUP(L$49,$J102:$BR105,4,0)),2),K103+K105)) -> 0 | M103: =MAX(0,IF(M$49>=$J102,ROUND(L103+L105-ABS(HLOOKUP(M$49,$J102:$BR105,4,0)),2),L103+L105)) -> 0 | N103: =MAX(0,IF(N$49>=$J102,ROUND(M103+M105-ABS(HLOOKUP(N$49,$J102:$BR105,4,0)),2),M103+M105)) -> 0 | O103: =MAX(0,IF(O$49>=$J102,ROUND(N103+N105-ABS(HLOOKUP(O$49,$J102:$BR105,4,0)),2),N103+N105)) -> 0 | P103: =MAX(0,IF(P$49>=$J102,ROUND(O103+O105-ABS(HLOOKUP(P$49,$J102:$BR105,4,0)),2),O103+O105)) -> 0 | Q103: =MAX(0,IF(Q$49>=$J102,ROUND(P103+P105-ABS(HLOOKUP(Q$49,$J102:$BR105,4,0)),2),P103+P105)) -> 0 | R103: =MAX(0,IF(R$49>=$J102,ROUND(Q103+Q105-ABS(HLOOKUP(R$49,$J102:$BR105,4,0)),2),Q103+Q105)) -> 0 | S103: =MAX(0,IF(S$49>=$J102,ROUND(R103+R105-ABS(HLOOKUP(S$49,$J102:$BR105,4,0)),2),R103+R105)) -> 0 | T103: =MAX(0,IF(T$49>=$J102,ROUND(S103+S105-ABS(HLOOKUP(T$49,$J102:$BR105,4,0)),2),S103+S105)) -> 0 | U103: =MAX(0,IF(U$49>=$J102,ROUND(T103+T105-ABS(HLOOKUP(U$49,$J102:$BR105,4,0)),2),T103+T105)) -> 0 | V103: 0 | W103: 0 | X103: 0 | Y103: =MAX(0,IF(Y$49>=$J102,ROUND(X103+X105-ABS(HLOOKUP(Y$49,$J102:$BR105,4,0)),2),X103+X105)) -> 0 | Z103: =MAX(0,IF(Z$49>=$J102,ROUND(Y103+Y105-ABS(HLOOKUP(Z$49,$J102:$BR105,4,0)),2),Y103+Y105)) -> 0 | AA103: =MAX(0,IF(AA$49>=$J102,ROUND(Z103+Z105-ABS(HLOOKUP(AA$49,$J102:$BR105,4,0)),2),Z103+Z105)) -> 0 | AB103: =MAX(0,IF(AB$49>=$J102,ROUND(AA103+AA105-ABS(HLOOKUP(AB$49,$J102:$BR105,4,0)),2),AA103+AA105)) -> 0 | AC103: =MAX(0,IF(AC$49>=$J102,ROUND(AB103+AB105-ABS(HLOOKUP(AC$49,$J102:$BR105,4,0)),2),AB103+AB105)) -> 0 | AD103: =MAX(0,IF(AD$49>=$J102,ROUND(AC103+AC105-ABS(HLOOKUP(AD$49,$J102:$BR105,4,0)),2),AC103+AC105)) -> 0 | AE103: =MAX(0,IF(AE$49>=$J102,ROUND(AD103+AD105-ABS(HLOOKUP(AE$49,$J102:$BR105,4,0)),2),AD103+AD105)) -> 0 | AF103: =MAX(0,IF(AF$49>=$J102,ROUND(AE103+AE105-ABS(HLOOKUP(AF$49,$J102:$BR105,4,0)),2),AE103+AE105)) -> 0 | AG103: =MAX(0,IF(AG$49>=$J102,ROUND(AF103+AF105-ABS(HLOOKUP(AG$49,$J102:$BR105,4,0)),2),AF103+AF105)) -> 0 | AH103: =MAX(0,IF(AH$49>=$J102,ROUND(AG103+AG105-ABS(HLOOKUP(AH$49,$J102:$BR105,4,0)),2),AG103+AG105)) -> 0 | AI103: =MAX(0,IF(AI$49>=$J102,ROUND(AH103+AH105-ABS(HLOOKUP(AI$49,$J102:$BR105,4,0)),2),AH103+AH105)) -> 0 | AJ103: =MAX(0,IF(AJ$49>=$J102,ROUND(AI103+AI105-ABS(HLOOKUP(AJ$49,$J102:$BR105,4,0)),2),AI103+AI105)) -> 0 | AK103: =MAX(0,IF(AK$49>=$J102,ROUND(AJ103+AJ105-ABS(HLOOKUP(AK$49,$J102:$BR105,4,0)),2),AJ103+AJ105)) -> 0 | AL103: =MAX(0,IF(AL$49>=$J102,ROUND(AK103+AK105-ABS(HLOOKUP(AL$49,$J102:$BR105,4,0)),2),AK103+AK105)) -> 0 | AM103: =MAX(0,IF(AM$49>=$J102,ROUND(AL103+AL105-ABS(HLOOKUP(AM$49,$J102:$BR105,4,0)),2),AL103+AL105)) -> 0 | AN103: =MAX(0,IF(AN$49>=$J102,ROUND(AM103+AM105-ABS(HLOOKUP(AN$49,$J102:$BR105,4,0)),2),AM103+AM105)) -> 0 | AO103: =MAX(0,IF(AO$49>=$J102,ROUND(AN103+AN105-ABS(HLOOKUP(AO$49,$J102:$BR105,4,0)),2),AN103+AN105)) -> 0 | AP103: =MAX(0,IF(AP$49>=$J102,ROUND(AO103+AO105-ABS(HLOOKUP(AP$49,$J102:$BR105,4,0)),2),AO103+AO105)) -> 0 | AQ103: =MAX(0,IF(AQ$49>=$J102,ROUND(AP103+AP105-ABS(HLOOKUP(AQ$49,$J102:$BR105,4,0)),2),AP103+AP105)) -> 0 | AR103: =MAX(0,IF(AR$49>=$J102,ROUND(AQ103+AQ105-ABS(HLOOKUP(AR$49,$J102:$BR105,4,0)),2),AQ103+AQ105)) -> 0 | AS103: =MAX(0,IF(AS$49>=$J102,ROUND(AR103+AR105-ABS(HLOOKUP(AS$49,$J102:$BR105,4,0)),2),AR103+AR105)) -> 0 | AT103: =MAX(0,IF(AT$49>=$J102,ROUND(AS103+AS105-ABS(HLOOKUP(AT$49,$J102:$BR105,4,0)),2),AS103+AS105)) -> 0 | AU103: =MAX(0,IF(AU$49>=$J102,ROUND(AT103+AT105-ABS(HLOOKUP(AU$49,$J102:$BR105,4,0)),2),AT103+AT105)) -> 0 | AV103: =MAX(0,IF(AV$49>=$J102,ROUND(AU103+AU105-ABS(HLOOKUP(AV$49,$J102:$BR105,4,0)),2),AU103+AU105)) -> 0 | AW103: =MAX(0,IF(AW$49>=$J102,ROUND(AV103+AV105-ABS(HLOOKUP(AW$49,$J102:$BR105,4,0)),2),AV103+AV105)) -> 0 | AX103: =MAX(0,IF(AX$49>=$J102,ROUND(AW103+AW105-ABS(HLOOKUP(AX$49,$J102:$BR105,4,0)),2),AW103+AW105)) -> 0 | AY103: =MAX(0,IF(AY$49>=$J102,ROUND(AX103+AX105-ABS(HLOOKUP(AY$49,$J102:$BR105,4,0)),2),AX103+AX105)) -> 0 | AZ103: =MAX(0,IF(AZ$49>=$J102,ROUND(AY103+AY105-ABS(HLOOKUP(AZ$49,$J102:$BR105,4,0)),2),AY103+AY105)) -> 0 | BA103: =MAX(0,IF(BA$49>=$J102,ROUND(AZ103+AZ105-ABS(HLOOKUP(BA$49,$J102:$BR105,4,0)),2),AZ103+AZ105)) -> 0 | BB103: =MAX(0,IF(BB$49>=$J102,ROUND(BA103+BA105-ABS(HLOOKUP(BB$49,$J102:$BR105,4,0)),2),BA103+BA105)) -> 0 | BC103: =MAX(0,IF(BC$49>=$J102,ROUND(BB103+BB105-ABS(HLOOKUP(BC$49,$J102:$BR105,4,0)),2),BB103+BB105)) -> 0 | BD103: =MAX(0,IF(BD$49>=$J102,ROUND(BC103+BC105-ABS(HLOOKUP(BD$49,$J102:$BR105,4,0)),2),BC103+BC105)) -> 0 | BE103: =MAX(0,IF(BE$49>=$J102,ROUND(BD103+BD105-ABS(HLOOKUP(BE$49,$J102:$BR105,4,0)),2),BD103+BD105)) -> 0 | BF103: =MAX(0,IF(BF$49>=$J102,ROUND(BE103+BE105-ABS(HLOOKUP(BF$49,$J102:$BR105,4,0)),2),BE103+BE105)) -> 0 | BG103: =MAX(0,IF(BG$49>=$J102,ROUND(BF103+BF105-ABS(HLOOKUP(BG$49,$J102:$BR105,4,0)),2),BF103+BF105)) -> 0 | BH103: =MAX(0,IF(BH$49>=$J102,ROUND(BG103+BG105-ABS(HLOOKUP(BH$49,$J102:$BR105,4,0)),2),BG103+BG105)) -> 0 | BI103: =MAX(0,IF(BI$49>=$J102,ROUND(BH103+BH105-ABS(HLOOKUP(BI$49,$J102:$BR105,4,0)),2),BH103+BH105)) -> 0 | BJ103: =MAX(0,IF(BJ$49>=$J102,ROUND(BI103+BI105-ABS(HLOOKUP(BJ$49,$J102:$BR105,4,0)),2),BI103+BI105)) -> 0 | BK103: =MAX(0,IF(BK$49>=$J102,ROUND(BJ103+BJ105-ABS(HLOOKUP(BK$49,$J102:$BR105,4,0)),2),BJ103+BJ105)) -> 0 | BL103: =MAX(0,IF(BL$49>=$J102,ROUND(BK103+BK105-ABS(HLOOKUP(BL$49,$J102:$BR105,4,0)),2),BK103+BK105)) -> 0 | BM103: =MAX(0,IF(BM$49>=$J102,ROUND(BL103+BL105-ABS(HLOOKUP(BM$49,$J102:$BR105,4,0)),2),BL103+BL105)) -> 0 | BN103: =MAX(0,IF(BN$49>=$J102,ROUND(BM103+BM105-ABS(HLOOKUP(BN$49,$J102:$BR105,4,0)),2),BM103+BM105)) -> 0 | BO103: =MAX(0,IF(BO$49>=$J102,ROUND(BN103+BN105-ABS(HLOOKUP(BO$49,$J102:$BR105,4,0)),2),BN103+BN105)) -> 0 | BP103: =MAX(0,IF(BP$49>=$J102,ROUND(BO103+BO105-ABS(HLOOKUP(BP$49,$J102:$BR105,4,0)),2),BO103+BO105)) -> 0 | BQ103: =MAX(0,IF(BQ$49>=$J102,ROUND(BP103+BP105-ABS(HLOOKUP(BQ$49,$J102:$BR105,4,0)),2),BP103+BP105)) -> 0
A104: Net Book Value, beginning of year | I104: =MAX(0,H107) -> 0 | J104: =MAX(0,I107) -> 0 | K104: =MAX(0,J107) -> 0 | L104: =MAX(0,K107) -> 0 | M104: =MAX(0,L107) -> 0 | N104: =MAX(0,M107) -> 0 | O104: 0 | P104: 0 | Q104: 0 | R104: 0 | S104: 0 | T104: 0 | U104: 0 | V104: 0 | W104: 0 | X104: =MAX(0,W107) -> 0 | Y104: 0 | Z104: 0 | AA104: 0 | AB104: 0 | AC104: 0 | AD104: 0 | AE104: 0 | AF104: 0 | AG104: 0 | AH104: 0 | AI104: 0 | AJ104: 0 | AK104: 0 | AL104: 0 | AM104: 0 | AN104: 0 | AO104: 0 | AP104: 0 | AQ104: 0 | AR104: 0 | AS104: 0 | AT104: 0 | AU104: 0 | AV104: 0 | AW104: 0 | AX104: 0 | AY104: 0 | AZ104: 0 | BA104: 0 | BB104: 0 | BC104: 0 | BD104: 0 | BE104: 0 | BF104: 0 | BG104: 0 | BH104: 0 | BI104: 0 | BJ104: 0 | BK104: 0 | BL104: 0 | BM104: 0 | BN104: 0 | BO104: 0 | BP104: 0 | BQ104: 0
A105: Additions during year | H105: =SUM(I105:INDEX(I105:BR105,1,MATCH(End_Year,$I$49:$BR$49,0))) -> 0 | I105: =I96 -> 0 | J105: =J96 -> 0 | K105: 0 | L105: 0 | M105: 0 | N105: 0 | O105: 0 | P105: 0 | Q105: 0 | R105: 0 | S105: 0 | T105: 0 | U105: 0 | V105: 0 | W105: 0 | X105: =X96 -> 0 | Y105: 0 | Z105: 0 | AA105: 0 | AB105: 0 | AC105: 0 | AD105: 0 | AE105: 0 | AF105: 0 | AG105: 0 | AH105: 0 | AI105: 0 | AJ105: 0 | AK105: 0 | AL105: 0 | AM105: 0 | AN105: 0 | AO105: 0 | AP105: 0 | AQ105: 0 | AR105: 0 | AS105: 0 | AT105: 0 | AU105: 0 | AV105: 0 | AW105: 0 | AX105: 0 | AY105: 0 | AZ105: 0 | BA105: 0 | BB105: 0 | BC105: 0 | BD105: 0 | BE105: 0 | BF105: 0 | BG105: 0 | BH105: 0 | BI105: 0 | BJ105: 0 | BK105: 0 | BL105: 0 | BM105: 0 | BN105: 0 | BO105: 0 | BP105: 0 | BQ105: 0 | BR105: 0
A106: Depreciation (for in-service year, proportion to number of months since in-service) | H106: =SUM(I106:INDEX(I106:BR106,1,MATCH(End_Year,$I$49:$BR$49,0))) -> 0 | I106: =(-1)*IF(I$49=YEAR(IS_Date),I105/$F94*((12-MONTH(IS_Date)+1)/12),IF(I$49>YEAR(IS_Date),IF(I103=0,I104,I103/$F94+I105/2/$F94),0)) -> 0 | J106: 0 | K106: 0 | L106: 0 | M106: 0 | N106: 0 | O106: 0 | P106: 0 | Q106: 0 | R106: 0 | S106: 0 | T106: 0 | U106: 0 | V106: 0 | W106: =(-1)*IF(W$49=YEAR(IS_Date),W105/$F94*((12-MONTH(IS_Date)+1)/12),IF(W$49>YEAR(IS_Date),IF(W103=0,W104,W103/$F94+W105/2/$F94),0)) -> 0 | X106: =(-1)*IF(X$49=YEAR(IS_Date),X105/$F94*((12-MONTH(IS_Date)+1)/12),IF(X$49>YEAR(IS_Date),IF(X103=0,X104,X103/$F94+X105/2/$F94),0)) -> 0 | Y106: 0 | Z106: 0 | AA106: 0 | AB106: 0 | AC106: 0 | AD106: 0 | AE106: 0 | AF106: 0 | AG106: 0 | AH106: 0 | AI106: 0 | AJ106: 0 | AK106: 0 | AL106: 0 | AM106: 0 | AN106: 0 | AO106: =(-1)*IF(AO$49=YEAR(IS_Date),AO105/$F94*((12-MONTH(IS_Date)+1)/12),IF(AO$49>YEAR(IS_Date),IF(AO103=0,AO104,AO103/$F94+AO105/2/$F94),0)) -> 0 | AP106: 0 | AQ106: 0 | AR106: 0 | AS106: 0 | AT106: 0 | AU106: 0 | AV106: 0 | AW106: 0 | AX106: 0 | AY106: 0 | AZ106: 0 | BA106: 0 | BB106: 0 | BC106: 0 | BD106: 0 | BE106: 0 | BF106: 0 | BG106: 0 | BH106: 0 | BI106: 0 | BJ106: 0 | BK106: 0 | BL106: 0 | BM106: 0 | BN106: 0 | BO106: 0 | BP106: 0 | BQ106: 0 | BR106: =(-1)*OFFSET(I107,,Study_Length,,) -> 0
A107: Net Book Value, end of year | I107: =SUM(I104:I106) -> 0 | J107: =MAX(0,SUM(J104:J106)) -> 0 | K107: 0 | L107: 0 | M107: 0 | N107: 0 | O107: 0 | P107: 0 | Q107: 0 | R107: 0 | S107: 0 | T107: 0 | U107: 0 | V107: 0 | W107: 0 | X107: 0 | Y107: 0 | Z107: 0 | AA107: 0 | AB107: 0 | AC107: 0 | AD107: 0 | AE107: 0 | AF107: 0 | AG107: 0 | AH107: 0 | AI107: 0 | AJ107: 0 | AK107: 0 | AL107: 0 | AM107: 0 | AN107: 0 | AO107: 0 | AP107: =MAX(0,SUM(AP104:AP106)) -> 0 | AQ107: 0 | AR107: 0 | AS107: 0 | AT107: 0 | AU107: 0 | AV107: 0 | AW107: 0 | AX107: 0 | AY107: 0 | AZ107: 0 | BA107: 0 | BB107: 0 | BC107: 0 | BD107: 0 | BE107: 0 | BF107: 0 | BG107: 0 | BH107: 0 | BI107: 0 | BJ107: 0 | BK107: 0 | BL107: 0 | BM107: 0 | BN107: 0 | BO107: 0 | BP107: 0 | BQ107: 0 | BR107: =OFFSET(I107,,Study_Length,,)+BR106 -> 0
A108: Average Net Book Value for the year, i.e. Average Rate Base | I108: =(I107+I104)/2 -> 0 | J108: 0 | K108: 0 | L108: 0 | M108: 0 | N108: 0 | O108: 0 | P108: 0 | Q108: 0 | R108: 0 | S108: 0 | T108: 0 | U108: 0 | V108: 0 | W108: 0 | X108: 0 | Y108: 0 | Z108: 0 | AA108: 0 | AB108: 0 | AC108: 0 | AD108: 0 | AE108: 0 | AF108: 0 | AG108: 0 | AH108: 0 | AI108: 0 | AJ108: 0 | AK108: 0 | AL108: 0 | AM108: 0 | AN108: 0 | AO108: 0 | AP108: 0 | AQ108: 0 | AR108: 0 | AS108: 0 | AT108: 0 | AU108: 0 | AV108: 0 | AW108: 0 | AX108: 0 | AY108: 0 | AZ108: 0 | BA108: 0 | BB108: 0 | BC108: 0 | BD108: 0 | BE108: 0 | BF108: 0 | BG108: 0 | BH108: 0 | BI108: 0 | BJ108: 0 | BK108: 0 | BL108: 0 | BM108: 0 | BN108: 0 | BO108: 0 | BP108: 0 | BQ108: 0 | BR108: =(BR107+OFFSET(I104,,Study_Length,,))/2 -> 0
A110: Class 13 Capital Expenditures | D110: 13 | E110: =VLOOKUP($D110,'Finance Input'!$B$26:$D$37,2,0) -> 0.05 | F110: =VLOOKUP($D110,'Finance Input'!$B$26:$D$37,3,0) -> 20 | H110: =SUM(I110:INDEX(I110:BR110,1,MATCH(End_Year,$I$49:$BR$49,0))) -> 0 | I110: =SUMIF(Table2[[#All],[CCA Class]:[CCA Class]],$D110,Table2[[#All],[Period 0]])*(-1) -> 0 | J110: =SUMIF(Table2[[#All],[CCA Class]:[CCA Class]],$D110,Table2[[#All],[2025]])*(-1) -> 0 | K110: =SUMIF(Table2[[#All],[CCA Class]:[CCA Class]],$D110,Table2[[#All],[2026]])*(-1) -> 0 | L110: =SUMIF(Table2[[#All],[CCA Class]:[CCA Class]],$D110,Table2[[#All],[2027]])*(-1) -> 0 | M110: =SUMIF(Table2[[#All],[CCA Class]:[CCA Class]],$D110,Table2[[#All],[2028]])*(-1) -> 0 | N110: =SUMIF(Table2[[#All],[CCA Class]:[CCA Class]],$D110,Table2[[#All],[2029]])*(-1) -> 0 | O110: =SUMIF(Table2[[#All],[CCA Class]:[CCA Class]],$D110,Table2[[#All],[2030]])*(-1) -> 0 | P110: =SUMIF(Table2[[#All],[CCA Class]:[CCA Class]],$D110,Table2[[#All],[2031]])*(-1) -> 0 | Q110: =SUMIF(Table2[[#All],[CCA Class]:[CCA Class]],$D110,Table2[[#All],[2032]])*(-1) -> 0 | R110: =SUMIF(Table2[[#All],[CCA Class]:[CCA Class]],$D110,Table2[[#All],[2033]])*(-1) -> 0 | S110: =SUMIF(Table2[[#All],[CCA Class]:[CCA Class]],$D110,Table2[[#All],[2034]])*(-1) -> 0 | T110: =SUMIF(Table2[[#All],[CCA Class]:[CCA Class]],$D110,Table2[[#All],[2035]])*(-1) -> 0 | U110: =SUMIF(Table2[[#All],[CCA Class]:[CCA Class]],$D110,Table2[[#All],[2036]])*(-1) -> 0 | V110: =SUMIF(Table2[[#All],[CCA Class]:[CCA Class]],$D110,Table2[[#All],[2037]])*(-1) -> 0 | W110: =SUMIF(Table2[[#All],[CCA Class]:[CCA Class]],$D110,Table2[[#All],[2038]])*(-1) -> 0 | X110: =SUMIF(Table2[[#All],[CCA Class]:[CCA Class]],$D110,Table2[[#All],[2039]])*(-1) -> 0 | Y110: =SUMIF(Table2[[#All],[CCA Class]:[CCA Class]],$D110,Table2[[#All],[2040]])*(-1) -> 0 | Z110: =SUMIF(Table2[[#All],[CCA Class]:[CCA Class]],$D110,Table2[[#All],[2041]])*(-1) -> 0 | AA110: =SUMIF(Table2[[#All],[CCA Class]:[CCA Class]],$D110,Table2[[#All],[2042]])*(-1) -> 0 | AB110: =SUMIF(Table2[[#All],[CCA Class]:[CCA Class]],$D110,Table2[[#All],[2043]])*(-1) -> 0 | AC110: =SUMIF(Table2[[#All],[CCA Class]:[CCA Class]],$D110,Table2[[#All],[2044]])*(-1) -> 0 | AD110: =SUMIF(Table2[[#All],[CCA Class]:[CCA Class]],$D110,Table2[[#All],[2045]])*(-1) -> 0 | AE110: =SUMIF(Table2[[#All],[CCA Class]:[CCA Class]],$D110,Table2[[#All],[2046]])*(-1) -> 0 | AF110: =SUMIF(Table2[[#All],[CCA Class]:[CCA Class]],$D110,Table2[[#All],[2047]])*(-1) -> 0 | AG110: =SUMIF(Table2[[#All],[CCA Class]:[CCA Class]],$D110,Table2[[#All],[2048]])*(-1) -> 0 | AH110: =SUMIF(Table2[[#All],[CCA Class]:[CCA Class]],$D110,Table2[[#All],[2049]])*(-1) -> 0 | AI110: =SUMIF(Table2[[#All],[CCA Class]:[CCA Class]],$D110,Table2[[#All],[2050]])*(-1) -> 0 | AJ110: =SUMIF(Table2[[#All],[CCA Class]:[CCA Class]],$D110,Table2[[#All],[2051]])*(-1) -> 0 | AK110: =SUMIF(Table2[[#All],[CCA Class]:[CCA Class]],$D110,Table2[[#All],[2052]])*(-1) -> 0 | AL110: =SUMIF(Table2[[#All],[CCA Class]:[CCA Class]],$D110,Table2[[#All],[2053]])*(-1) -> 0 | AM110: =SUMIF(Table2[[#All],[CCA Class]:[CCA Class]],$D110,Table2[[#All],[2054]])*(-1) -> 0 | AN110: =SUMIF(Table2[[#All],[CCA Class]:[CCA Class]],$D110,Table2[[#All],[2055]])*(-1) -> 0 | AO110: =SUMIF(Table2[[#All],[CCA Class]:[CCA Class]],$D110,Table2[[#All],[2056]])*(-1) -> 0 | AP110: =SUMIF(Table2[[#All],[CCA Class]:[CCA Class]],$D110,Table2[[#All],[2057]])*(-1) -> 0 | AQ110: =SUMIF(Table2[[#All],[CCA Class]:[CCA Class]],$D110,Table2[[#All],[2058]])*(-1) -> 0 | AR110: =SUMIF(Table2[[#All],[CCA Class]:[CCA Class]],$D110,Table2[[#All],[2059]])*(-1) -> 0 | AS110: =SUMIF(Table2[[#All],[CCA Class]:[CCA Class]],$D110,Table2[[#All],[2060]])*(-1) -> 0 | AT110: =SUMIF(Table2[[#All],[CCA Class]:[CCA Class]],$D110,Table2[[#All],[2061]])*(-1) -> 0 | AU110: =SUMIF(Table2[[#All],[CCA Class]:[CCA Class]],$D110,Table2[[#All],[2062]])*(-1) -> 0 | AV110: =SUMIF(Table2[[#All],[CCA Class]:[CCA Class]],$D110,Table2[[#All],[2063]])*(-1) -> 0 | AW110: =SUMIF(Table2[[#All],[CCA Class]:[CCA Class]],$D110,Table2[[#All],[2064]])*(-1) -> 0 | AX110: =SUMIF(Table2[[#All],[CCA Class]:[CCA Class]],$D110,Table2[[#All],[2065]])*(-1) -> 0 | AY110: =SUMIF(Table2[[#All],[CCA Class]:[CCA Class]],$D110,Table2[[#All],[2066]])*(-1) -> 0 | AZ110: =SUMIF(Table2[[#All],[CCA Class]:[CCA Class]],$D110,Table2[[#All],[2067]])*(-1) -> 0 | BA110: =SUMIF(Table2[[#All],[CCA Class]:[CCA Class]],$D110,Table2[[#All],[2068]])*(-1) -> 0 | BB110: =SUMIF(Table2[[#All],[CCA Class]:[CCA Class]],$D110,Table2[[#All],[2069]])*(-1) -> 0 | BC110: =SUMIF(Table2[[#All],[CCA Class]:[CCA Class]],$D110,Table2[[#All],[2070]])*(-1) -> 0 | BD110: =SUMIF(Table2[[#All],[CCA Class]:[CCA Class]],$D110,Table2[[#All],[2071]])*(-1) -> 0 | BE110: =SUMIF(Table2[[#All],[CCA Class]:[CCA Class]],$D110,Table2[[#All],[2072]])*(-1) -> 0 | BF110: =SUMIF(Table2[[#All],[CCA Class]:[CCA Class]],$D110,Table2[[#All],[2073]])*(-1) -> 0 | BG110: =SUMIF(Table2[[#All],[CCA Class]:[CCA Class]],$D110,Table2[[#All],[2074]])*(-1) -> 0 | BH110: =SUMIF(Table2[[#All],[CCA Class]:[CCA Class]],$D110,Table2[[#All],[2075]])*(-1) -> 0 | BI110: =SUMIF(Table2[[#All],[CCA Class]:[CCA Class]],$D110,Table2[[#All],[2076]])*(-1) -> 0 | BJ110: =SUMIF(Table2[[#All],[CCA Class]:[CCA Class]],$D110,Table2[[#All],[2077]])*(-1) -> 0 | BK110: =SUMIF(Table2[[#All],[CCA Class]:[CCA Class]],$D110,Table2[[#All],[2078]])*(-1) -> 0 | BL110: =SUMIF(Table2[[#All],[CCA Class]:[CCA Class]],$D110,Table2[[#All],[2079]])*(-1) -> 0 | BM110: =SUMIF(Table2[[#All],[CCA Class]:[CCA Class]],$D110,Table2[[#All],[2080]])*(-1) -> 0 | BN110: =SUMIF(Table2[[#All],[CCA Class]:[CCA Class]],$D110,Table2[[#All],[2081]])*(-1) -> 0 | BO110: =SUMIF(Table2[[#All],[CCA Class]:[CCA Class]],$D110,Table2[[#All],[2082]])*(-1) -> 0 | BP110: =SUMIF(Table2[[#All],[CCA Class]:[CCA Class]],$D110,Table2[[#All],[2083]])*(-1) -> 0 | BQ110: =SUMIF(Table2[[#All],[CCA Class]:[CCA Class]],$D110,Table2[[#All],[2084]])*(-1) -> 0
A111: UCC, beginning of year | I111: 0 | J111: =I115 -> 0 | K111: 0 | L111: 0 | M111: 0 | N111: 0 | O111: 0 | P111: 0 | Q111: 0 | R111: 0 | S111: 0 | T111: 0 | U111: 0 | V111: 0 | W111: 0 | X111: 0 | Y111: 0 | Z111: 0 | AA111: 0 | AB111: 0 | AC111: 0 | AD111: 0 | AE111: 0 | AF111: 0 | AG111: 0 | AH111: 0 | AI111: 0 | AJ111: 0 | AK111: 0 | AL111: 0 | AM111: 0 | AN111: 0 | AO111: 0 | AP111: =AO115 -> 0 | AQ111: 0 | AR111: 0 | AS111: 0 | AT111: 0 | AU111: 0 | AV111: 0 | AW111: 0 | AX111: 0 | AY111: 0 | AZ111: 0 | BA111: 0 | BB111: 0 | BC111: 0 | BD111: 0 | BE111: 0 | BF111: 0 | BG111: 0 | BH111: 0 | BI111: 0 | BJ111: 0 | BK111: 0 | BL111: 0 | BM111: 0 | BN111: 0 | BO111: 0 | BP111: 0 | BQ111: 0
A112: Additions during the year | H112: =SUM(I112:INDEX(I112:BR112,1,MATCH(End_Year,$I$49:$BR$49,0))) -> 0 | I112: =I110 -> 0 | J112: =J110 -> 0 | K112: =K110 -> 0 | L112: =L110 -> 0 | M112: 0 | N112: 0 | O112: 0 | P112: 0 | Q112: 0 | R112: 0 | S112: 0 | T112: 0 | U112: 0 | V112: 0 | W112: 0 | X112: 0 | Y112: 0 | Z112: 0 | AA112: 0 | AB112: 0 | AC112: 0 | AD112: 0 | AE112: 0 | AF112: 0 | AG112: 0 | AH112: 0 | AI112: 0 | AJ112: 0 | AK112: 0 | AL112: 0 | AM112: 0 | AN112: 0 | AO112: 0 | AP112: 0 | AQ112: 0 | AR112: 0 | AS112: 0 | AT112: 0 | AU112: 0 | AV112: 0 | AW112: 0 | AX112: 0 | AY112: 0 | AZ112: 0 | BA112: 0 | BB112: 0 | BC112: 0 | BD112: 0 | BE112: 0 | BF112: 0 | BG112: 0 | BH112: 0 | BI112: 0 | BJ112: 0 | BK112: 0 | BL112: 0 | BM112: 0 | BN112: 0 | BO112: 0 | BP112: 0 | BQ112: 0
A113: CCA at straightline basis over lease life + one renewal period | H113: =SUM(I113:INDEX(I113:BR113,1,MATCH(End_Year,$I$49:$BR$49,0))) -> 0 | I113: =IFERROR(-IF(I$49<Lease_Start,0,SUM(I111:I112)/(Lease_Start+Lease_Life-I49)),0) -> 0 | J113: =IFERROR(-IF(SUM($I113:I113)=$H112,0,IF(J$49<Lease_Start,0,SUM(J111:J112)/(Lease_Start+Lease_Life-J49))),0) -> 0 | K113: =IFERROR(-IF(SUM($I113:J113)=$H112,0,IF(K$49<Lease_Start,0,SUM(K111:K112)/(Lease_Start+Lease_Life-K49))),0) -> 0 | L113: =IFERROR(-IF(SUM($I113:K113)=$H112,0,IF(L$49<Lease_Start,0,SUM(L111:L112)/(Lease_Start+Lease_Life-L49))),0) -> 0 | M113: =IFERROR(-IF(SUM($I113:L113)=$H112,0,IF(M$49<Lease_Start,0,SUM(M111:M112)/(Lease_Start+Lease_Life-M49))),0) -> 0 | N113: =IFERROR(-IF(SUM($I113:M113)=$H112,0,IF(N$49<Lease_Start,0,SUM(N111:N112)/(Lease_Start+Lease_Life-N49))),0) -> 0 | O113: =IFERROR(-IF(SUM($I113:N113)=$H112,0,IF(O$49<Lease_Start,0,SUM(O111:O112)/(Lease_Start+Lease_Life-O49))),0) -> 0 | P113: =IFERROR(-IF(SUM($I113:O113)=$H112,0,IF(P$49<Lease_Start,0,SUM(P111:P112)/(Lease_Start+Lease_Life-P49))),0) -> 0 | Q113: =IFERROR(-IF(SUM($I113:P113)=$H112,0,IF(Q$49<Lease_Start,0,SUM(Q111:Q112)/(Lease_Start+Lease_Life-Q49))),0) -> 0 | R113: =IFERROR(-IF(SUM($I113:Q113)=$H112,0,IF(R$49<Lease_Start,0,SUM(R111:R112)/(Lease_Start+Lease_Life-R49))),0) -> 0 | S113: =IFERROR(-IF(SUM($I113:R113)=$H112,0,IF(S$49<Lease_Start,0,SUM(S111:S112)/(Lease_Start+Lease_Life-S49))),0) -> 0 | T113: =IFERROR(-IF(SUM($I113:S113)=$H112,0,IF(T$49<Lease_Start,0,SUM(T111:T112)/(Lease_Start+Lease_Life-T49))),0) -> 0 | U113: =IFERROR(-IF(SUM($I113:T113)=$H112,0,IF(U$49<Lease_Start,0,SUM(U111:U112)/(Lease_Start+Lease_Life-U49))),0) -> 0 | V113: =IFERROR(-IF(SUM($I113:U113)=$H112,0,IF(V$49<Lease_Start,0,SUM(V111:V112)/(Lease_Start+Lease_Life-V49))),0) -> 0 | W113: =IFERROR(-IF(SUM($I113:V113)=$H112,0,IF(W$49<Lease_Start,0,SUM(W111:W112)/(Lease_Start+Lease_Life-W49))),0) -> 0 | X113: =IFERROR(-IF(SUM($I113:W113)=$H112,0,IF(X$49<Lease_Start,0,SUM(X111:X112)/(Lease_Start+Lease_Life-X49))),0) -> 0 | Y113: =IFERROR(-IF(SUM($I113:X113)=$H112,0,IF(Y$49<Lease_Start,0,SUM(Y111:Y112)/(Lease_Start+Lease_Life-Y49))),0) -> 0 | Z113: =IFERROR(-IF(SUM($I113:Y113)=$H112,0,IF(Z$49<Lease_Start,0,SUM(Z111:Z112)/(Lease_Start+Lease_Life-Z49))),0) -> 0 | AA113: =IFERROR(-IF(SUM($I113:Z113)=$H112,0,IF(AA$49<Lease_Start,0,SUM(AA111:AA112)/(Lease_Start+Lease_Life-AA49))),0) -> 0 | AB113: =IFERROR(-IF(SUM($I113:AA113)=$H112,0,IF(AB$49<Lease_Start,0,SUM(AB111:AB112)/(Lease_Start+Lease_Life-AB49))),0) -> 0 | AC113: =IFERROR(-IF(SUM($I113:AB113)=$H112,0,IF(AC$49<Lease_Start,0,SUM(AC111:AC112)/(Lease_Start+Lease_Life-AC49))),0) -> 0 | AD113: =IFERROR(-IF(SUM($I113:AC113)=$H112,0,IF(AD$49<Lease_Start,0,SUM(AD111:AD112)/(Lease_Start+Lease_Life-AD49))),0) -> 0 | AE113: =IFERROR(-IF(SUM($I113:AD113)=$H112,0,IF(AE$49<Lease_Start,0,SUM(AE111:AE112)/(Lease_Start+Lease_Life-AE49))),0) -> 0 | AF113: =IFERROR(-IF(SUM($I113:AE113)=$H112,0,IF(AF$49<Lease_Start,0,SUM(AF111:AF112)/(Lease_Start+Lease_Life-AF49))),0) -> 0 | AG113: =IFERROR(-IF(SUM($I113:AF113)=$H112,0,IF(AG$49<Lease_Start,0,SUM(AG111:AG112)/(Lease_Start+Lease_Life-AG49))),0) -> 0 | AH113: =IFERROR(-IF(SUM($I113:AG113)=$H112,0,IF(AH$49<Lease_Start,0,SUM(AH111:AH112)/(Lease_Start+Lease_Life-AH49))),0) -> 0 | AI113: =IFERROR(-IF(SUM($I113:AH113)=$H112,0,IF(AI$49<Lease_Start,0,SUM(AI111:AI112)/(Lease_Start+Lease_Life-AI49))),0) -> 0 | AJ113: =IFERROR(-IF(SUM($I113:AI113)=$H112,0,IF(AJ$49<Lease_Start,0,SUM(AJ111:AJ112)/(Lease_Start+Lease_Life-AJ49))),0) -> 0 | AK113: =IFERROR(-IF(SUM($I113:AJ113)=$H112,0,IF(AK$49<Lease_Start,0,SUM(AK111:AK112)/(Lease_Start+Lease_Life-AK49))),0) -> 0 | AL113: =IFERROR(-IF(SUM($I113:AK113)=$H112,0,IF(AL$49<Lease_Start,0,SUM(AL111:AL112)/(Lease_Start+Lease_Life-AL49))),0) -> 0 | AM113: =IFERROR(-IF(SUM($I113:AL113)=$H112,0,IF(AM$49<Lease_Start,0,SUM(AM111:AM112)/(Lease_Start+Lease_Life-AM49))),0) -> 0 | AN113: =IFERROR(-IF(SUM($I113:AM113)=$H112,0,IF(AN$49<Lease_Start,0,SUM(AN111:AN112)/(Lease_Start+Lease_Life-AN49))),0) -> 0 | AO113: =IFERROR(-IF(SUM($I113:AN113)=$H112,0,IF(AO$49<Lease_Start,0,SUM(AO111:AO112)/(Lease_Start+Lease_Life-AO49))),0) -> 0 | AP113: =IFERROR(-IF(SUM($I113:AO113)=$H112,0,IF(AP$49<Lease_Start,0,SUM(AP111:AP112)/(Lease_Start+Lease_Life-AP49))),0) -> 0 | AQ113: =IFERROR(-IF(SUM($I113:AP113)=$H112,0,IF(AQ$49<Lease_Start,0,SUM(AQ111:AQ112)/(Lease_Start+Lease_Life-AQ49))),0) -> 0 | AR113: =IFERROR(-IF(SUM($I113:AQ113)=$H112,0,IF(AR$49<Lease_Start,0,SUM(AR111:AR112)/(Lease_Start+Lease_Life-AR49))),0) -> 0 | AS113: =IFERROR(-IF(SUM($I113:AR113)=$H112,0,IF(AS$49<Lease_Start,0,SUM(AS111:AS112)/(Lease_Start+Lease_Life-AS49))),0) -> 0 | AT113: =IFERROR(-IF(SUM($I113:AS113)=$H112,0,IF(AT$49<Lease_Start,0,SUM(AT111:AT112)/(Lease_Start+Lease_Life-AT49))),0) -> 0 | AU113: =IFERROR(-IF(SUM($I113:AT113)=$H112,0,IF(AU$49<Lease_Start,0,SUM(AU111:AU112)/(Lease_Start+Lease_Life-AU49))),0) -> 0 | AV113: =IFERROR(-IF(SUM($I113:AU113)=$H112,0,IF(AV$49<Lease_Start,0,SUM(AV111:AV112)/(Lease_Start+Lease_Life-AV49))),0) -> 0 | AW113: =IFERROR(-IF(SUM($I113:AV113)=$H112,0,IF(AW$49<Lease_Start,0,SUM(AW111:AW112)/(Lease_Start+Lease_Life-AW49))),0) -> 0 | AX113: =IFERROR(-IF(SUM($I113:AW113)=$H112,0,IF(AX$49<Lease_Start,0,SUM(AX111:AX112)/(Lease_Start+Lease_Life-AX49))),0) -> 0 | AY113: =IFERROR(-IF(SUM($I113:AX113)=$H112,0,IF(AY$49<Lease_Start,0,SUM(AY111:AY112)/(Lease_Start+Lease_Life-AY49))),0) -> 0 | AZ113: =IFERROR(-IF(SUM($I113:AY113)=$H112,0,IF(AZ$49<Lease_Start,0,SUM(AZ111:AZ112)/(Lease_Start+Lease_Life-AZ49))),0) -> 0 | BA113: =IFERROR(-IF(SUM($I113:AZ113)=$H112,0,IF(BA$49<Lease_Start,0,SUM(BA111:BA112)/(Lease_Start+Lease_Life-BA49))),0) -> 0 | BB113: =IFERROR(-IF(SUM($I113:BA113)=$H112,0,IF(BB$49<Lease_Start,0,SUM(BB111:BB112)/(Lease_Start+Lease_Life-BB49))),0) -> 0 | BC113: =IFERROR(-IF(SUM($I113:BB113)=$H112,0,IF(BC$49<Lease_Start,0,SUM(BC111:BC112)/(Lease_Start+Lease_Life-BC49))),0) -> 0 | BD113: =IFERROR(-IF(SUM($I113:BC113)=$H112,0,IF(BD$49<Lease_Start,0,SUM(BD111:BD112)/(Lease_Start+Lease_Life-BD49))),0) -> 0 | BE113: =IFERROR(-IF(SUM($I113:BD113)=$H112,0,IF(BE$49<Lease_Start,0,SUM(BE111:BE112)/(Lease_Start+Lease_Life-BE49))),0) -> 0 | BF113: =IFERROR(-IF(SUM($I113:BE113)=$H112,0,IF(BF$49<Lease_Start,0,SUM(BF111:BF112)/(Lease_Start+Lease_Life-BF49))),0) -> 0 | BG113: =IFERROR(-IF(SUM($I113:BF113)=$H112,0,IF(BG$49<Lease_Start,0,SUM(BG111:BG112)/(Lease_Start+Lease_Life-BG49))),0) -> 0 | BH113: =IFERROR(-IF(SUM($I113:BG113)=$H112,0,IF(BH$49<Lease_Start,0,SUM(BH111:BH112)/(Lease_Start+Lease_Life-BH49))),0) -> 0 | BI113: =IFERROR(-IF(SUM($I113:BH113)=$H112,0,IF(BI$49<Lease_Start,0,SUM(BI111:BI112)/(Lease_Start+Lease_Life-BI49))),0) -> 0 | BJ113: =IFERROR(-IF(SUM($I113:BI113)=$H112,0,IF(BJ$49<Lease_Start,0,SUM(BJ111:BJ112)/(Lease_Start+Lease_Life-BJ49))),0) -> 0 | BK113: =IFERROR(-IF(SUM($I113:BJ113)=$H112,0,IF(BK$49<Lease_Start,0,SUM(BK111:BK112)/(Lease_Start+Lease_Life-BK49))),0) -> 0 | BL113: =IFERROR(-IF(SUM($I113:BK113)=$H112,0,IF(BL$49<Lease_Start,0,SUM(BL111:BL112)/(Lease_Start+Lease_Life-BL49))),0) -> 0 | BM113: =IFERROR(-IF(SUM($I113:BL113)=$H112,0,IF(BM$49<Lease_Start,0,SUM(BM111:BM112)/(Lease_Start+Lease_Life-BM49))),0) -> 0 | BN113: =IFERROR(-IF(SUM($I113:BM113)=$H112,0,IF(BN$49<Lease_Start,0,SUM(BN111:BN112)/(Lease_Start+Lease_Life-BN49))),0) -> 0 | BO113: =IFERROR(-IF(SUM($I113:BN113)=$H112,0,IF(BO$49<Lease_Start,0,SUM(BO111:BO112)/(Lease_Start+Lease_Life-BO49))),0) -> 0 | BP113: =IFERROR(-IF(SUM($I113:BO113)=$H112,0,IF(BP$49<Lease_Start,0,SUM(BP111:BP112)/(Lease_Start+Lease_Life-BP49))),0) -> 0 | BQ113: =IFERROR(-IF(SUM($I113:BP113)=$H112,0,IF(BQ$49<Lease_Start,0,SUM(BQ111:BQ112)/(Lease_Start+Lease_Life-BQ49))),0) -> 0 | BR113: =OFFSET(I115,,Study_Length,,)*($E110/($E110+WACC))*-1 -> 0
A114: Accelerated CCA - In first year add 2x CCA (pre2024); 1x CCA (pre2028) | H114: =SUM(I114:INDEX(I114:BR114,1,MATCH(End_Year,$I$49:$BR$49,0))) -> 0 | I114: =MIN(IF(AND(2018<I$49,I$49<2024),I113*2,IF(AND(2023<I$49,I$49<2028),I113,0)),0) -> 0 | J114: =IF(AND(2018<J49,J49<2024),IFERROR(-IF(SUM($I113:I113)=$H112,0,IF(J$49<Lease_Start,0,J112/(Lease_Start+Lease_Life-J49))),0),IF(AND(2023<J49,J49<2028),IFERROR(-IF(SUM($I113:I113)=$H112,0,IF(J$49<Lease_Start,0,J112/(Lease_Start+Lease_Life-J49))),0)/2,0)) -> 0 | K114: =IF(AND(2018<K49,K49<2024),IFERROR(-IF(SUM($I113:J113)=$H112,0,IF(K$49<Lease_Start,0,K112/(Lease_Start+Lease_Life-K49))),0),IF(AND(2023<K49,K49<2028),IFERROR(-IF(SUM($I113:J113)=$H112,0,IF(K$49<Lease_Start,0,K112/(Lease_Start+Lease_Life-K49))),0)/2,0)) -> 0 | L114: =IF(AND(2018<L49,L49<2024),IFERROR(-IF(SUM($I113:K113)=$H112,0,IF(L$49<Lease_Start,0,L112/(Lease_Start+Lease_Life-L49))),0),IF(AND(2023<L49,L49<2028),IFERROR(-IF(SUM($I113:K113)=$H112,0,IF(L$49<Lease_Start,0,L112/(Lease_Start+Lease_Life-L49))),0)/2,0)) -> 0 | M114: =IF(AND(2018<M49,M49<2024),IFERROR(-IF(SUM($I113:L113)=$H112,0,IF(M$49<Lease_Start,0,M112/(Lease_Start+Lease_Life-M49))),0),IF(AND(2023<M49,M49<2028),IFERROR(-IF(SUM($I113:L113)=$H112,0,IF(M$49<Lease_Start,0,M112/(Lease_Start+Lease_Life-M49))),0)/2,0)) -> 0 | N114: =IF(AND(2018<N49,N49<2024),IFERROR(-IF(SUM($I113:M113)=$H112,0,IF(N$49<Lease_Start,0,N112/(Lease_Start+Lease_Life-N49))),0),IF(AND(2023<N49,N49<2028),IFERROR(-IF(SUM($I113:M113)=$H112,0,IF(N$49<Lease_Start,0,N112/(Lease_Start+Lease_Life-N49))),0)/2,0)) -> 0 | O114: =IF(AND(2018<O49,O49<2024),IFERROR(-IF(SUM($I113:N113)=$H112,0,IF(O$49<Lease_Start,0,O112/(Lease_Start+Lease_Life-O49))),0),IF(AND(2023<O49,O49<2028),IFERROR(-IF(SUM($I113:N113)=$H112,0,IF(O$49<Lease_Start,0,O112/(Lease_Start+Lease_Life-O49))),0)/2,0)) -> 0 | P114: =IF(AND(2018<P49,P49<2024),IFERROR(-IF(SUM($I113:O113)=$H112,0,IF(P$49<Lease_Start,0,P112/(Lease_Start+Lease_Life-P49))),0),IF(AND(2023<P49,P49<2028),IFERROR(-IF(SUM($I113:O113)=$H112,0,IF(P$49<Lease_Start,0,P112/(Lease_Start+Lease_Life-P49))),0)/2,0)) -> 0 | Q114: =IF(AND(2018<Q49,Q49<2024),IFERROR(-IF(SUM($I113:P113)=$H112,0,IF(Q$49<Lease_Start,0,Q112/(Lease_Start+Lease_Life-Q49))),0),IF(AND(2023<Q49,Q49<2028),IFERROR(-IF(SUM($I113:P113)=$H112,0,IF(Q$49<Lease_Start,0,Q112/(Lease_Start+Lease_Life-Q49))),0)/2,0)) -> 0 | R114: =IF(AND(2018<R49,R49<2024),IFERROR(-IF(SUM($I113:Q113)=$H112,0,IF(R$49<Lease_Start,0,R112/(Lease_Start+Lease_Life-R49))),0),IF(AND(2023<R49,R49<2028),IFERROR(-IF(SUM($I113:Q113)=$H112,0,IF(R$49<Lease_Start,0,R112/(Lease_Start+Lease_Life-R49))),0)/2,0)) -> 0 | S114: =IF(AND(2018<S49,S49<2024),IFERROR(-IF(SUM($I113:R113)=$H112,0,IF(S$49<Lease_Start,0,S112/(Lease_Start+Lease_Life-S49))),0),IF(AND(2023<S49,S49<2028),IFERROR(-IF(SUM($I113:R113)=$H112,0,IF(S$49<Lease_Start,0,S112/(Lease_Start+Lease_Life-S49))),0)/2,0)) -> 0 | T114: =IF(AND(2018<T49,T49<2024),IFERROR(-IF(SUM($I113:S113)=$H112,0,IF(T$49<Lease_Start,0,T112/(Lease_Start+Lease_Life-T49))),0),IF(AND(2023<T49,T49<2028),IFERROR(-IF(SUM($I113:S113)=$H112,0,IF(T$49<Lease_Start,0,T112/(Lease_Start+Lease_Life-T49))),0)/2,0)) -> 0 | U114: =IF(AND(2018<U49,U49<2024),IFERROR(-IF(SUM($I113:T113)=$H112,0,IF(U$49<Lease_Start,0,U112/(Lease_Start+Lease_Life-U49))),0),IF(AND(2023<U49,U49<2028),IFERROR(-IF(SUM($I113:T113)=$H112,0,IF(U$49<Lease_Start,0,U112/(Lease_Start+Lease_Life-U49))),0)/2,0)) -> 0 | V114: =IF(AND(2018<V49,V49<2024),IFERROR(-IF(SUM($I113:U113)=$H112,0,IF(V$49<Lease_Start,0,V112/(Lease_Start+Lease_Life-V49))),0),IF(AND(2023<V49,V49<2028),IFERROR(-IF(SUM($I113:U113)=$H112,0,IF(V$49<Lease_Start,0,V112/(Lease_Start+Lease_Life-V49))),0)/2,0)) -> 0 | W114: =IF(AND(2018<W49,W49<2024),IFERROR(-IF(SUM($I113:V113)=$H112,0,IF(W$49<Lease_Start,0,W112/(Lease_Start+Lease_Life-W49))),0),IF(AND(2023<W49,W49<2028),IFERROR(-IF(SUM($I113:V113)=$H112,0,IF(W$49<Lease_Start,0,W112/(Lease_Start+Lease_Life-W49))),0)/2,0)) -> 0 | X114: =IF(AND(2018<X49,X49<2024),IFERROR(-IF(SUM($I113:W113)=$H112,0,IF(X$49<Lease_Start,0,X112/(Lease_Start+Lease_Life-X49))),0),IF(AND(2023<X49,X49<2028),IFERROR(-IF(SUM($I113:W113)=$H112,0,IF(X$49<Lease_Start,0,X112/(Lease_Start+Lease_Life-X49))),0)/2,0)) -> 0 | Y114: =IF(AND(2018<Y49,Y49<2024),IFERROR(-IF(SUM($I113:X113)=$H112,0,IF(Y$49<Lease_Start,0,Y112/(Lease_Start+Lease_Life-Y49))),0),IF(AND(2023<Y49,Y49<2028),IFERROR(-IF(SUM($I113:X113)=$H112,0,IF(Y$49<Lease_Start,0,Y112/(Lease_Start+Lease_Life-Y49))),0)/2,0)) -> 0 | Z114: =IF(AND(2018<Z49,Z49<2024),IFERROR(-IF(SUM($I113:Y113)=$H112,0,IF(Z$49<Lease_Start,0,Z112/(Lease_Start+Lease_Life-Z49))),0),IF(AND(2023<Z49,Z49<2028),IFERROR(-IF(SUM($I113:Y113)=$H112,0,IF(Z$49<Lease_Start,0,Z112/(Lease_Start+Lease_Life-Z49))),0)/2,0)) -> 0 | AA114: =IF(AND(2018<AA49,AA49<2024),IFERROR(-IF(SUM($I113:Z113)=$H112,0,IF(AA$49<Lease_Start,0,AA112/(Lease_Start+Lease_Life-AA49))),0),IF(AND(2023<AA49,AA49<2028),IFERROR(-IF(SUM($I113:Z113)=$H112,0,IF(AA$49<Lease_Start,0,AA112/(Lease_Start+Lease_Life-AA49))),0)/2,0)) -> 0 | AB114: =IF(AND(2018<AB49,AB49<2024),IFERROR(-IF(SUM($I113:AA113)=$H112,0,IF(AB$49<Lease_Start,0,AB112/(Lease_Start+Lease_Life-AB49))),0),IF(AND(2023<AB49,AB49<2028),IFERROR(-IF(SUM($I113:AA113)=$H112,0,IF(AB$49<Lease_Start,0,AB112/(Lease_Start+Lease_Life-AB49))),0)/2,0)) -> 0 | AC114: =IF(AND(2018<AC49,AC49<2024),IFERROR(-IF(SUM($I113:AB113)=$H112,0,IF(AC$49<Lease_Start,0,AC112/(Lease_Start+Lease_Life-AC49))),0),IF(AND(2023<AC49,AC49<2028),IFERROR(-IF(SUM($I113:AB113)=$H112,0,IF(AC$49<Lease_Start,0,AC112/(Lease_Start+Lease_Life-AC49))),0)/2,0)) -> 0 | AD114: =IF(AND(2018<AD49,AD49<2024),IFERROR(-IF(SUM($I113:AC113)=$H112,0,IF(AD$49<Lease_Start,0,AD112/(Lease_Start+Lease_Life-AD49))),0),IF(AND(2023<AD49,AD49<2028),IFERROR(-IF(SUM($I113:AC113)=$H112,0,IF(AD$49<Lease_Start,0,AD112/(Lease_Start+Lease_Life-AD49))),0)/2,0)) -> 0 | AE114: =IF(AND(2018<AE49,AE49<2024),IFERROR(-IF(SUM($I113:AD113)=$H112,0,IF(AE$49<Lease_Start,0,AE112/(Lease_Start+Lease_Life-AE49))),0),IF(AND(2023<AE49,AE49<2028),IFERROR(-IF(SUM($I113:AD113)=$H112,0,IF(AE$49<Lease_Start,0,AE112/(Lease_Start+Lease_Life-AE49))),0)/2,0)) -> 0 | AF114: =IF(AND(2018<AF49,AF49<2024),IFERROR(-IF(SUM($I113:AE113)=$H112,0,IF(AF$49<Lease_Start,0,AF112/(Lease_Start+Lease_Life-AF49))),0),IF(AND(2023<AF49,AF49<2028),IFERROR(-IF(SUM($I113:AE113)=$H112,0,IF(AF$49<Lease_Start,0,AF112/(Lease_Start+Lease_Life-AF49))),0)/2,0)) -> 0 | AG114: =IF(AND(2018<AG49,AG49<2024),IFERROR(-IF(SUM($I113:AF113)=$H112,0,IF(AG$49<Lease_Start,0,AG112/(Lease_Start+Lease_Life-AG49))),0),IF(AND(2023<AG49,AG49<2028),IFERROR(-IF(SUM($I113:AF113)=$H112,0,IF(AG$49<Lease_Start,0,AG112/(Lease_Start+Lease_Life-AG49))),0)/2,0)) -> 0 | AH114: =IF(AND(2018<AH49,AH49<2024),IFERROR(-IF(SUM($I113:AG113)=$H112,0,IF(AH$49<Lease_Start,0,AH112/(Lease_Start+Lease_Life-AH49))),0),IF(AND(2023<AH49,AH49<2028),IFERROR(-IF(SUM($I113:AG113)=$H112,0,IF(AH$49<Lease_Start,0,AH112/(Lease_Start+Lease_Life-AH49))),0)/2,0)) -> 0 | AI114: =IF(AND(2018<AI49,AI49<2024),IFERROR(-IF(SUM($I113:AH113)=$H112,0,IF(AI$49<Lease_Start,0,AI112/(Lease_Start+Lease_Life-AI49))),0),IF(AND(2023<AI49,AI49<2028),IFERROR(-IF(SUM($I113:AH113)=$H112,0,IF(AI$49<Lease_Start,0,AI112/(Lease_Start+Lease_Life-AI49))),0)/2,0)) -> 0 | AJ114: =IF(AND(2018<AJ49,AJ49<2024),IFERROR(-IF(SUM($I113:AI113)=$H112,0,IF(AJ$49<Lease_Start,0,AJ112/(Lease_Start+Lease_Life-AJ49))),0),IF(AND(2023<AJ49,AJ49<2028),IFERROR(-IF(SUM($I113:AI113)=$H112,0,IF(AJ$49<Lease_Start,0,AJ112/(Lease_Start+Lease_Life-AJ49))),0)/2,0)) -> 0 | AK114: =IF(AND(2018<AK49,AK49<2024),IFERROR(-IF(SUM($I113:AJ113)=$H112,0,IF(AK$49<Lease_Start,0,AK112/(Lease_Start+Lease_Life-AK49))),0),IF(AND(2023<AK49,AK49<2028),IFERROR(-IF(SUM($I113:AJ113)=$H112,0,IF(AK$49<Lease_Start,0,AK112/(Lease_Start+Lease_Life-AK49))),0)/2,0)) -> 0 | AL114: =IF(AND(2018<AL49,AL49<2024),IFERROR(-IF(SUM($I113:AK113)=$H112,0,IF(AL$49<Lease_Start,0,AL112/(Lease_Start+Lease_Life-AL49))),0),IF(AND(2023<AL49,AL49<2028),IFERROR(-IF(SUM($I113:AK113)=$H112,0,IF(AL$49<Lease_Start,0,AL112/(Lease_Start+Lease_Life-AL49))),0)/2,0)) -> 0 | AM114: =IF(AND(2018<AM49,AM49<2024),IFERROR(-IF(SUM($I113:AL113)=$H112,0,IF(AM$49<Lease_Start,0,AM112/(Lease_Start+Lease_Life-AM49))),0),IF(AND(2023<AM49,AM49<2028),IFERROR(-IF(SUM($I113:AL113)=$H112,0,IF(AM$49<Lease_Start,0,AM112/(Lease_Start+Lease_Life-AM49))),0)/2,0)) -> 0 | AN114: =IF(AND(2018<AN49,AN49<2024),IFERROR(-IF(SUM($I113:AM113)=$H112,0,IF(AN$49<Lease_Start,0,AN112/(Lease_Start+Lease_Life-AN49))),0),IF(AND(2023<AN49,AN49<2028),IFERROR(-IF(SUM($I113:AM113)=$H112,0,IF(AN$49<Lease_Start,0,AN112/(Lease_Start+Lease_Life-AN49))),0)/2,0)) -> 0 | AO114: =IF(AND(2018<AO49,AO49<2024),IFERROR(-IF(SUM($I113:AN113)=$H112,0,IF(AO$49<Lease_Start,0,AO112/(Lease_Start+Lease_Life-AO49))),0),IF(AND(2023<AO49,AO49<2028),IFERROR(-IF(SUM($I113:AN113)=$H112,0,IF(AO$49<Lease_Start,0,AO112/(Lease_Start+Lease_Life-AO49))),0)/2,0)) -> 0 | AP114: =IF(AND(2018<AP49,AP49<2024),IFERROR(-IF(SUM($I113:AO113)=$H112,0,IF(AP$49<Lease_Start,0,AP112/(Lease_Start+Lease_Life-AP49))),0),IF(AND(2023<AP49,AP49<2028),IFERROR(-IF(SUM($I113:AO113)=$H112,0,IF(AP$49<Lease_Start,0,AP112/(Lease_Start+Lease_Life-AP49))),0)/2,0)) -> 0 | AQ114: =IF(AND(2018<AQ49,AQ49<2024),IFERROR(-IF(SUM($I113:AP113)=$H112,0,IF(AQ$49<Lease_Start,0,AQ112/(Lease_Start+Lease_Life-AQ49))),0),IF(AND(2023<AQ49,AQ49<2028),IFERROR(-IF(SUM($I113:AP113)=$H112,0,IF(AQ$49<Lease_Start,0,AQ112/(Lease_Start+Lease_Life-AQ49))),0)/2,0)) -> 0 | AR114: =IF(AND(2018<AR49,AR49<2024),IFERROR(-IF(SUM($I113:AQ113)=$H112,0,IF(AR$49<Lease_Start,0,AR112/(Lease_Start+Lease_Life-AR49))),0),IF(AND(2023<AR49,AR49<2028),IFERROR(-IF(SUM($I113:AQ113)=$H112,0,IF(AR$49<Lease_Start,0,AR112/(Lease_Start+Lease_Life-AR49))),0)/2,0)) -> 0 | AS114: =IF(AND(2018<AS49,AS49<2024),IFERROR(-IF(SUM($I113:AR113)=$H112,0,IF(AS$49<Lease_Start,0,AS112/(Lease_Start+Lease_Life-AS49))),0),IF(AND(2023<AS49,AS49<2028),IFERROR(-IF(SUM($I113:AR113)=$H112,0,IF(AS$49<Lease_Start,0,AS112/(Lease_Start+Lease_Life-AS49))),0)/2,0)) -> 0 | AT114: =IF(AND(2018<AT49,AT49<2024),IFERROR(-IF(SUM($I113:AS113)=$H112,0,IF(AT$49<Lease_Start,0,AT112/(Lease_Start+Lease_Life-AT49))),0),IF(AND(2023<AT49,AT49<2028),IFERROR(-IF(SUM($I113:AS113)=$H112,0,IF(AT$49<Lease_Start,0,AT112/(Lease_Start+Lease_Life-AT49))),0)/2,0)) -> 0 | AU114: =IF(AND(2018<AU49,AU49<2024),IFERROR(-IF(SUM($I113:AT113)=$H112,0,IF(AU$49<Lease_Start,0,AU112/(Lease_Start+Lease_Life-AU49))),0),IF(AND(2023<AU49,AU49<2028),IFERROR(-IF(SUM($I113:AT113)=$H112,0,IF(AU$49<Lease_Start,0,AU112/(Lease_Start+Lease_Life-AU49))),0)/2,0)) -> 0 | AV114: =IF(AND(2018<AV49,AV49<2024),IFERROR(-IF(SUM($I113:AU113)=$H112,0,IF(AV$49<Lease_Start,0,AV112/(Lease_Start+Lease_Life-AV49))),0),IF(AND(2023<AV49,AV49<2028),IFERROR(-IF(SUM($I113:AU113)=$H112,0,IF(AV$49<Lease_Start,0,AV112/(Lease_Start+Lease_Life-AV49))),0)/2,0)) -> 0 | AW114: =IF(AND(2018<AW49,AW49<2024),IFERROR(-IF(SUM($I113:AV113)=$H112,0,IF(AW$49<Lease_Start,0,AW112/(Lease_Start+Lease_Life-AW49))),0),IF(AND(2023<AW49,AW49<2028),IFERROR(-IF(SUM($I113:AV113)=$H112,0,IF(AW$49<Lease_Start,0,AW112/(Lease_Start+Lease_Life-AW49))),0)/2,0)) -> 0 | AX114: =IF(AND(2018<AX49,AX49<2024),IFERROR(-IF(SUM($I113:AW113)=$H112,0,IF(AX$49<Lease_Start,0,AX112/(Lease_Start+Lease_Life-AX49))),0),IF(AND(2023<AX49,AX49<2028),IFERROR(-IF(SUM($I113:AW113)=$H112,0,IF(AX$49<Lease_Start,0,AX112/(Lease_Start+Lease_Life-AX49))),0)/2,0)) -> 0 | AY114: =IF(AND(2018<AY49,AY49<2024),IFERROR(-IF(SUM($I113:AX113)=$H112,0,IF(AY$49<Lease_Start,0,AY112/(Lease_Start+Lease_Life-AY49))),0),IF(AND(2023<AY49,AY49<2028),IFERROR(-IF(SUM($I113:AX113)=$H112,0,IF(AY$49<Lease_Start,0,AY112/(Lease_Start+Lease_Life-AY49))),0)/2,0)) -> 0 | AZ114: =IF(AND(2018<AZ49,AZ49<2024),IFERROR(-IF(SUM($I113:AY113)=$H112,0,IF(AZ$49<Lease_Start,0,AZ112/(Lease_Start+Lease_Life-AZ49))),0),IF(AND(2023<AZ49,AZ49<2028),IFERROR(-IF(SUM($I113:AY113)=$H112,0,IF(AZ$49<Lease_Start,0,AZ112/(Lease_Start+Lease_Life-AZ49))),0)/2,0)) -> 0 | BA114: =IF(AND(2018<BA49,BA49<2024),IFERROR(-IF(SUM($I113:AZ113)=$H112,0,IF(BA$49<Lease_Start,0,BA112/(Lease_Start+Lease_Life-BA49))),0),IF(AND(2023<BA49,BA49<2028),IFERROR(-IF(SUM($I113:AZ113)=$H112,0,IF(BA$49<Lease_Start,0,BA112/(Lease_Start+Lease_Life-BA49))),0)/2,0)) -> 0 | BB114: =IF(AND(2018<BB49,BB49<2024),IFERROR(-IF(SUM($I113:BA113)=$H112,0,IF(BB$49<Lease_Start,0,BB112/(Lease_Start+Lease_Life-BB49))),0),IF(AND(2023<BB49,BB49<2028),IFERROR(-IF(SUM($I113:BA113)=$H112,0,IF(BB$49<Lease_Start,0,BB112/(Lease_Start+Lease_Life-BB49))),0)/2,0)) -> 0 | BC114: =IF(AND(2018<BC49,BC49<2024),IFERROR(-IF(SUM($I113:BB113)=$H112,0,IF(BC$49<Lease_Start,0,BC112/(Lease_Start+Lease_Life-BC49))),0),IF(AND(2023<BC49,BC49<2028),IFERROR(-IF(SUM($I113:BB113)=$H112,0,IF(BC$49<Lease_Start,0,BC112/(Lease_Start+Lease_Life-BC49))),0)/2,0)) -> 0 | BD114: =IF(AND(2018<BD49,BD49<2024),IFERROR(-IF(SUM($I113:BC113)=$H112,0,IF(BD$49<Lease_Start,0,BD112/(Lease_Start+Lease_Life-BD49))),0),IF(AND(2023<BD49,BD49<2028),IFERROR(-IF(SUM($I113:BC113)=$H112,0,IF(BD$49<Lease_Start,0,BD112/(Lease_Start+Lease_Life-BD49))),0)/2,0)) -> 0 | BE114: =IF(AND(2018<BE49,BE49<2024),IFERROR(-IF(SUM($I113:BD113)=$H112,0,IF(BE$49<Lease_Start,0,BE112/(Lease_Start+Lease_Life-BE49))),0),IF(AND(2023<BE49,BE49<2028),IFERROR(-IF(SUM($I113:BD113)=$H112,0,IF(BE$49<Lease_Start,0,BE112/(Lease_Start+Lease_Life-BE49))),0)/2,0)) -> 0 | BF114: =IF(AND(2018<BF49,BF49<2024),IFERROR(-IF(SUM($I113:BE113)=$H112,0,IF(BF$49<Lease_Start,0,BF112/(Lease_Start+Lease_Life-BF49))),0),IF(AND(2023<BF49,BF49<2028),IFERROR(-IF(SUM($I113:BE113)=$H112,0,IF(BF$49<Lease_Start,0,BF112/(Lease_Start+Lease_Life-BF49))),0)/2,0)) -> 0 | BG114: =IF(AND(2018<BG49,BG49<2024),IFERROR(-IF(SUM($I113:BF113)=$H112,0,IF(BG$49<Lease_Start,0,BG112/(Lease_Start+Lease_Life-BG49))),0),IF(AND(2023<BG49,BG49<2028),IFERROR(-IF(SUM($I113:BF113)=$H112,0,IF(BG$49<Lease_Start,0,BG112/(Lease_Start+Lease_Life-BG49))),0)/2,0)) -> 0 | BH114: =IF(AND(2018<BH49,BH49<2024),IFERROR(-IF(SUM($I113:BG113)=$H112,0,IF(BH$49<Lease_Start,0,BH112/(Lease_Start+Lease_Life-BH49))),0),IF(AND(2023<BH49,BH49<2028),IFERROR(-IF(SUM($I113:BG113)=$H112,0,IF(BH$49<Lease_Start,0,BH112/(Lease_Start+Lease_Life-BH49))),0)/2,0)) -> 0 | BI114: =IF(AND(2018<BI49,BI49<2024),IFERROR(-IF(SUM($I113:BH113)=$H112,0,IF(BI$49<Lease_Start,0,BI112/(Lease_Start+Lease_Life-BI49))),0),IF(AND(2023<BI49,BI49<2028),IFERROR(-IF(SUM($I113:BH113)=$H112,0,IF(BI$49<Lease_Start,0,BI112/(Lease_Start+Lease_Life-BI49))),0)/2,0)) -> 0 | BJ114: =IF(AND(2018<BJ49,BJ49<2024),IFERROR(-IF(SUM($I113:BI113)=$H112,0,IF(BJ$49<Lease_Start,0,BJ112/(Lease_Start+Lease_Life-BJ49))),0),IF(AND(2023<BJ49,BJ49<2028),IFERROR(-IF(SUM($I113:BI113)=$H112,0,IF(BJ$49<Lease_Start,0,BJ112/(Lease_Start+Lease_Life-BJ49))),0)/2,0)) -> 0 | BK114: =IF(AND(2018<BK49,BK49<2024),IFERROR(-IF(SUM($I113:BJ113)=$H112,0,IF(BK$49<Lease_Start,0,BK112/(Lease_Start+Lease_Life-BK49))),0),IF(AND(2023<BK49,BK49<2028),IFERROR(-IF(SUM($I113:BJ113)=$H112,0,IF(BK$49<Lease_Start,0,BK112/(Lease_Start+Lease_Life-BK49))),0)/2,0)) -> 0 | BL114: =IF(AND(2018<BL49,BL49<2024),IFERROR(-IF(SUM($I113:BK113)=$H112,0,IF(BL$49<Lease_Start,0,BL112/(Lease_Start+Lease_Life-BL49))),0),IF(AND(2023<BL49,BL49<2028),IFERROR(-IF(SUM($I113:BK113)=$H112,0,IF(BL$49<Lease_Start,0,BL112/(Lease_Start+Lease_Life-BL49))),0)/2,0)) -> 0 | BM114: =IF(AND(2018<BM49,BM49<2024),IFERROR(-IF(SUM($I113:BL113)=$H112,0,IF(BM$49<Lease_Start,0,BM112/(Lease_Start+Lease_Life-BM49))),0),IF(AND(2023<BM49,BM49<2028),IFERROR(-IF(SUM($I113:BL113)=$H112,0,IF(BM$49<Lease_Start,0,BM112/(Lease_Start+Lease_Life-BM49))),0)/2,0)) -> 0 | BN114: =IF(AND(2018<BN49,BN49<2024),IFERROR(-IF(SUM($I113:BM113)=$H112,0,IF(BN$49<Lease_Start,0,BN112/(Lease_Start+Lease_Life-BN49))),0),IF(AND(2023<BN49,BN49<2028),IFERROR(-IF(SUM($I113:BM113)=$H112,0,IF(BN$49<Lease_Start,0,BN112/(Lease_Start+Lease_Life-BN49))),0)/2,0)) -> 0 | BO114: =IF(AND(2018<BO49,BO49<2024),IFERROR(-IF(SUM($I113:BN113)=$H112,0,IF(BO$49<Lease_Start,0,BO112/(Lease_Start+Lease_Life-BO49))),0),IF(AND(2023<BO49,BO49<2028),IFERROR(-IF(SUM($I113:BN113)=$H112,0,IF(BO$49<Lease_Start,0,BO112/(Lease_Start+Lease_Life-BO49))),0)/2,0)) -> 0 | BP114: =IF(AND(2018<BP49,BP49<2024),IFERROR(-IF(SUM($I113:BO113)=$H112,0,IF(BP$49<Lease_Start,0,BP112/(Lease_Start+Lease_Life-BP49))),0),IF(AND(2023<BP49,BP49<2028),IFERROR(-IF(SUM($I113:BO113)=$H112,0,IF(BP$49<Lease_Start,0,BP112/(Lease_Start+Lease_Life-BP49))),0)/2,0)) -> 0 | BQ114: =IF(AND(2018<BQ49,BQ49<2024),IFERROR(-IF(SUM($I113:BP113)=$H112,0,IF(BQ$49<Lease_Start,0,BQ112/(Lease_Start+Lease_Life-BQ49))),0),IF(AND(2023<BQ49,BQ49<2028),IFERROR(-IF(SUM($I113:BP113)=$H112,0,IF(BQ$49<Lease_Start,0,BQ112/(Lease_Start+Lease_Life-BQ49))),0)/2,0)) -> 0
A115: UCC, end of year | I115: =MAX(SUM(I111:I114),0) -> 0 | J115: =MAX(SUM(J111:J114),0) -> 0 | K115: =MAX(SUM(K111:K114),0) -> 0 | L115: =MAX(SUM(L111:L114),0) -> 0 | M115: =MAX(SUM(M111:M114),0) -> 0 | N115: =MAX(SUM(N111:N114),0) -> 0 | O115: =MAX(SUM(O111:O114),0) -> 0 | P115: =MAX(SUM(P111:P114),0) -> 0 | Q115: =MAX(SUM(Q111:Q114),0) -> 0 | R115: =MAX(SUM(R111:R114),0) -> 0 | S115: =MAX(SUM(S111:S114),0) -> 0 | T115: =MAX(SUM(T111:T114),0) -> 0 | U115: =MAX(SUM(U111:U114),0) -> 0 | V115: =MAX(SUM(V111:V114),0) -> 0 | W115: =MAX(SUM(W111:W114),0) -> 0 | X115: =MAX(SUM(X111:X114),0) -> 0 | Y115: =MAX(SUM(Y111:Y114),0) -> 0 | Z115: =MAX(SUM(Z111:Z114),0) -> 0 | AA115: =MAX(SUM(AA111:AA114),0) -> 0 | AB115: =MAX(SUM(AB111:AB114),0) -> 0 | AC115: =MAX(SUM(AC111:AC114),0) -> 0 | AD115: =MAX(SUM(AD111:AD114),0) -> 0 | AE115: =MAX(SUM(AE111:AE114),0) -> 0 | AF115: =MAX(SUM(AF111:AF114),0) -> 0 | AG115: =MAX(SUM(AG111:AG114),0) -> 0 | AH115: =MAX(SUM(AH111:AH114),0) -> 0 | AI115: =MAX(SUM(AI111:AI114),0) -> 0 | AJ115: =MAX(SUM(AJ111:AJ114),0) -> 0 | AK115: =MAX(SUM(AK111:AK114),0) -> 0 | AL115: =MAX(SUM(AL111:AL114),0) -> 0 | AM115: =MAX(SUM(AM111:AM114),0) -> 0 | AN115: =MAX(SUM(AN111:AN114),0) -> 0 | AO115: =MAX(SUM(AO111:AO114),0) -> 0 | AP115: =MAX(SUM(AP111:AP114),0) -> 0 | AQ115: =MAX(SUM(AQ111:AQ114),0) -> 0 | AR115: =MAX(SUM(AR111:AR114),0) -> 0 | AS115: =MAX(SUM(AS111:AS114),0) -> 0 | AT115: =MAX(SUM(AT111:AT114),0) -> 0 | AU115: =MAX(SUM(AU111:AU114),0) -> 0 | AV115: =MAX(SUM(AV111:AV114),0) -> 0 | AW115: =MAX(SUM(AW111:AW114),0) -> 0 | AX115: =MAX(SUM(AX111:AX114),0) -> 0 | AY115: =MAX(SUM(AY111:AY114),0) -> 0 | AZ115: =MAX(SUM(AZ111:AZ114),0) -> 0 | BA115: =MAX(SUM(BA111:BA114),0) -> 0 | BB115: =MAX(SUM(BB111:BB114),0) -> 0 | BC115: =MAX(SUM(BC111:BC114),0) -> 0 | BD115: =MAX(SUM(BD111:BD114),0) -> 0 | BE115: =MAX(SUM(BE111:BE114),0) -> 0 | BF115: =MAX(SUM(BF111:BF114),0) -> 0 | BG115: =MAX(SUM(BG111:BG114),0) -> 0 | BH115: =MAX(SUM(BH111:BH114),0) -> 0 | BI115: =MAX(SUM(BI111:BI114),0) -> 0 | BJ115: =MAX(SUM(BJ111:BJ114),0) -> 0 | BK115: =MAX(SUM(BK111:BK114),0) -> 0 | BL115: =MAX(SUM(BL111:BL114),0) -> 0 | BM115: =MAX(SUM(BM111:BM114),0) -> 0 | BN115: =MAX(SUM(BN111:BN114),0) -> 0 | BO115: =MAX(SUM(BO111:BO114),0) -> 0 | BP115: =MAX(SUM(BP111:BP114),0) -> 0 | BQ115: =MAX(SUM(BQ111:BQ114),0) -> 0
A116: CCA Tax Shield Adjustment | H116: =SUM(I116:INDEX(I116:BR116,1,MATCH(End_Year,$I$49:$BR$49,0))) -> 0 | I116: =IF(I115=0,0,IF(I$49=End_Year,I115*Tax_Rate*(VLOOKUP($D110,'Finance Input'!$B$26:$D$37,2,0)/(VLOOKUP($D110,'Finance Input'!$B$26:$D$37,2,0)+WACC)),0)) -> 0 | J116: =IF(J115=0,0,IF(J$49=End_Year,J115*Tax_Rate*(VLOOKUP($D110,'Finance Input'!$B$26:$D$37,2,0)/(VLOOKUP($D110,'Finance Input'!$B$26:$D$37,2,0)+WACC)),0)) -> 0 | K116: =IF(K115=0,0,IF(K$49=End_Year,K115*Tax_Rate*(VLOOKUP($D110,'Finance Input'!$B$26:$D$37,2,0)/(VLOOKUP($D110,'Finance Input'!$B$26:$D$37,2,0)+WACC)),0)) -> 0 | L116: =IF(L115=0,0,IF(L$49=End_Year,L115*Tax_Rate*(VLOOKUP($D110,'Finance Input'!$B$26:$D$37,2,0)/(VLOOKUP($D110,'Finance Input'!$B$26:$D$37,2,0)+WACC)),0)) -> 0 | M116: =IF(M115=0,0,IF(M$49=End_Year,M115*Tax_Rate*(VLOOKUP($D110,'Finance Input'!$B$26:$D$37,2,0)/(VLOOKUP($D110,'Finance Input'!$B$26:$D$37,2,0)+WACC)),0)) -> 0 | N116: =IF(N115=0,0,IF(N$49=End_Year,N115*Tax_Rate*(VLOOKUP($D110,'Finance Input'!$B$26:$D$37,2,0)/(VLOOKUP($D110,'Finance Input'!$B$26:$D$37,2,0)+WACC)),0)) -> 0 | O116: =IF(O115=0,0,IF(O$49=End_Year,O115*Tax_Rate*(VLOOKUP($D110,'Finance Input'!$B$26:$D$37,2,0)/(VLOOKUP($D110,'Finance Input'!$B$26:$D$37,2,0)+WACC)),0)) -> 0 | P116: =IF(P115=0,0,IF(P$49=End_Year,P115*Tax_Rate*(VLOOKUP($D110,'Finance Input'!$B$26:$D$37,2,0)/(VLOOKUP($D110,'Finance Input'!$B$26:$D$37,2,0)+WACC)),0)) -> 0 | Q116: =IF(Q115=0,0,IF(Q$49=End_Year,Q115*Tax_Rate*(VLOOKUP($D110,'Finance Input'!$B$26:$D$37,2,0)/(VLOOKUP($D110,'Finance Input'!$B$26:$D$37,2,0)+WACC)),0)) -> 0 | R116: =IF(R115=0,0,IF(R$49=End_Year,R115*Tax_Rate*(VLOOKUP($D110,'Finance Input'!$B$26:$D$37,2,0)/(VLOOKUP($D110,'Finance Input'!$B$26:$D$37,2,0)+WACC)),0)) -> 0 | S116: =IF(S115=0,0,IF(S$49=End_Year,S115*Tax_Rate*(VLOOKUP($D110,'Finance Input'!$B$26:$D$37,2,0)/(VLOOKUP($D110,'Finance Input'!$B$26:$D$37,2,0)+WACC)),0)) -> 0 | T116: =IF(T115=0,0,IF(T$49=End_Year,T115*Tax_Rate*(VLOOKUP($D110,'Finance Input'!$B$26:$D$37,2,0)/(VLOOKUP($D110,'Finance Input'!$B$26:$D$37,2,0)+WACC)),0)) -> 0 | U116: =IF(U115=0,0,IF(U$49=End_Year,U115*Tax_Rate*(VLOOKUP($D110,'Finance Input'!$B$26:$D$37,2,0)/(VLOOKUP($D110,'Finance Input'!$B$26:$D$37,2,0)+WACC)),0)) -> 0 | V116: =IF(V115=0,0,IF(V$49=End_Year,V115*Tax_Rate*(VLOOKUP($D110,'Finance Input'!$B$26:$D$37,2,0)/(VLOOKUP($D110,'Finance Input'!$B$26:$D$37,2,0)+WACC)),0)) -> 0 | W116: =IF(W115=0,0,IF(W$49=End_Year,W115*Tax_Rate*(VLOOKUP($D110,'Finance Input'!$B$26:$D$37,2,0)/(VLOOKUP($D110,'Finance Input'!$B$26:$D$37,2,0)+WACC)),0)) -> 0 | X116: =IF(X115=0,0,IF(X$49=End_Year,X115*Tax_Rate*(VLOOKUP($D110,'Finance Input'!$B$26:$D$37,2,0)/(VLOOKUP($D110,'Finance Input'!$B$26:$D$37,2,0)+WACC)),0)) -> 0 | Y116: =IF(Y115=0,0,IF(Y$49=End_Year,Y115*Tax_Rate*(VLOOKUP($D110,'Finance Input'!$B$26:$D$37,2,0)/(VLOOKUP($D110,'Finance Input'!$B$26:$D$37,2,0)+WACC)),0)) -> 0 | Z116: =IF(Z115=0,0,IF(Z$49=End_Year,Z115*Tax_Rate*(VLOOKUP($D110,'Finance Input'!$B$26:$D$37,2,0)/(VLOOKUP($D110,'Finance Input'!$B$26:$D$37,2,0)+WACC)),0)) -> 0 | AA116: =IF(AA115=0,0,IF(AA$49=End_Year,AA115*Tax_Rate*(VLOOKUP($D110,'Finance Input'!$B$26:$D$37,2,0)/(VLOOKUP($D110,'Finance Input'!$B$26:$D$37,2,0)+WACC)),0)) -> 0 | AB116: =IF(AB115=0,0,IF(AB$49=End_Year,AB115*Tax_Rate*(VLOOKUP($D110,'Finance Input'!$B$26:$D$37,2,0)/(VLOOKUP($D110,'Finance Input'!$B$26:$D$37,2,0)+WACC)),0)) -> 0 | AC116: =IF(AC115=0,0,IF(AC$49=End_Year,AC115*Tax_Rate*(VLOOKUP($D110,'Finance Input'!$B$26:$D$37,2,0)/(VLOOKUP($D110,'Finance Input'!$B$26:$D$37,2,0)+WACC)),0)) -> 0 | AD116: =IF(AD115=0,0,IF(AD$49=End_Year,AD115*Tax_Rate*(VLOOKUP($D110,'Finance Input'!$B$26:$D$37,2,0)/(VLOOKUP($D110,'Finance Input'!$B$26:$D$37,2,0)+WACC)),0)) -> 0 | AE116: =IF(AE115=0,0,IF(AE$49=End_Year,AE115*Tax_Rate*(VLOOKUP($D110,'Finance Input'!$B$26:$D$37,2,0)/(VLOOKUP($D110,'Finance Input'!$B$26:$D$37,2,0)+WACC)),0)) -> 0 | AF116: =IF(AF115=0,0,IF(AF$49=End_Year,AF115*Tax_Rate*(VLOOKUP($D110,'Finance Input'!$B$26:$D$37,2,0)/(VLOOKUP($D110,'Finance Input'!$B$26:$D$37,2,0)+WACC)),0)) -> 0 | AG116: =IF(AG115=0,0,IF(AG$49=End_Year,AG115*Tax_Rate*(VLOOKUP($D110,'Finance Input'!$B$26:$D$37,2,0)/(VLOOKUP($D110,'Finance Input'!$B$26:$D$37,2,0)+WACC)),0)) -> 0 | AH116: =IF(AH115=0,0,IF(AH$49=End_Year,AH115*Tax_Rate*(VLOOKUP($D110,'Finance Input'!$B$26:$D$37,2,0)/(VLOOKUP($D110,'Finance Input'!$B$26:$D$37,2,0)+WACC)),0)) -> 0 | AI116: =IF(AI115=0,0,IF(AI$49=End_Year,AI115*Tax_Rate*(VLOOKUP($D110,'Finance Input'!$B$26:$D$37,2,0)/(VLOOKUP($D110,'Finance Input'!$B$26:$D$37,2,0)+WACC)),0)) -> 0 | AJ116: =IF(AJ115=0,0,IF(AJ$49=End_Year,AJ115*Tax_Rate*(VLOOKUP($D110,'Finance Input'!$B$26:$D$37,2,0)/(VLOOKUP($D110,'Finance Input'!$B$26:$D$37,2,0)+WACC)),0)) -> 0 | AK116: =IF(AK115=0,0,IF(AK$49=End_Year,AK115*Tax_Rate*(VLOOKUP($D110,'Finance Input'!$B$26:$D$37,2,0)/(VLOOKUP($D110,'Finance Input'!$B$26:$D$37,2,0)+WACC)),0)) -> 0 | AL116: =IF(AL115=0,0,IF(AL$49=End_Year,AL115*Tax_Rate*(VLOOKUP($D110,'Finance Input'!$B$26:$D$37,2,0)/(VLOOKUP($D110,'Finance Input'!$B$26:$D$37,2,0)+WACC)),0)) -> 0 | AM116: =IF(AM115=0,0,IF(AM$49=End_Year,AM115*Tax_Rate*(VLOOKUP($D110,'Finance Input'!$B$26:$D$37,2,0)/(VLOOKUP($D110,'Finance Input'!$B$26:$D$37,2,0)+WACC)),0)) -> 0 | AN116: =IF(AN115=0,0,IF(AN$49=End_Year,AN115*Tax_Rate*(VLOOKUP($D110,'Finance Input'!$B$26:$D$37,2,0)/(VLOOKUP($D110,'Finance Input'!$B$26:$D$37,2,0)+WACC)),0)) -> 0 | AO116: =IF(AO115=0,0,IF(AO$49=End_Year,AO115*Tax_Rate*(VLOOKUP($D110,'Finance Input'!$B$26:$D$37,2,0)/(VLOOKUP($D110,'Finance Input'!$B$26:$D$37,2,0)+WACC)),0)) -> 0 | AP116: =IF(AP115=0,0,IF(AP$49=End_Year,AP115*Tax_Rate*(VLOOKUP($D110,'Finance Input'!$B$26:$D$37,2,0)/(VLOOKUP($D110,'Finance Input'!$B$26:$D$37,2,0)+WACC)),0)) -> 0 | AQ116: =IF(AQ115=0,0,IF(AQ$49=End_Year,AQ115*Tax_Rate*(VLOOKUP($D110,'Finance Input'!$B$26:$D$37,2,0)/(VLOOKUP($D110,'Finance Input'!$B$26:$D$37,2,0)+WACC)),0)) -> 0 | AR116: =IF(AR115=0,0,IF(AR$49=End_Year,AR115*Tax_Rate*(VLOOKUP($D110,'Finance Input'!$B$26:$D$37,2,0)/(VLOOKUP($D110,'Finance Input'!$B$26:$D$37,2,0)+WACC)),0)) -> 0 | AS116: =IF(AS115=0,0,IF(AS$49=End_Year,AS115*Tax_Rate*(VLOOKUP($D110,'Finance Input'!$B$26:$D$37,2,0)/(VLOOKUP($D110,'Finance Input'!$B$26:$D$37,2,0)+WACC)),0)) -> 0 | AT116: =IF(AT115=0,0,IF(AT$49=End_Year,AT115*Tax_Rate*(VLOOKUP($D110,'Finance Input'!$B$26:$D$37,2,0)/(VLOOKUP($D110,'Finance Input'!$B$26:$D$37,2,0)+WACC)),0)) -> 0 | AU116: =IF(AU115=0,0,IF(AU$49=End_Year,AU115*Tax_Rate*(VLOOKUP($D110,'Finance Input'!$B$26:$D$37,2,0)/(VLOOKUP($D110,'Finance Input'!$B$26:$D$37,2,0)+WACC)),0)) -> 0 | AV116: =IF(AV115=0,0,IF(AV$49=End_Year,AV115*Tax_Rate*(VLOOKUP($D110,'Finance Input'!$B$26:$D$37,2,0)/(VLOOKUP($D110,'Finance Input'!$B$26:$D$37,2,0)+WACC)),0)) -> 0 | AW116: =IF(AW115=0,0,IF(AW$49=End_Year,AW115*Tax_Rate*(VLOOKUP($D110,'Finance Input'!$B$26:$D$37,2,0)/(VLOOKUP($D110,'Finance Input'!$B$26:$D$37,2,0)+WACC)),0)) -> 0 | AX116: =IF(AX115=0,0,IF(AX$49=End_Year,AX115*Tax_Rate*(VLOOKUP($D110,'Finance Input'!$B$26:$D$37,2,0)/(VLOOKUP($D110,'Finance Input'!$B$26:$D$37,2,0)+WACC)),0)) -> 0 | AY116: =IF(AY115=0,0,IF(AY$49=End_Year,AY115*Tax_Rate*(VLOOKUP($D110,'Finance Input'!$B$26:$D$37,2,0)/(VLOOKUP($D110,'Finance Input'!$B$26:$D$37,2,0)+WACC)),0)) -> 0 | AZ116: =IF(AZ115=0,0,IF(AZ$49=End_Year,AZ115*Tax_Rate*(VLOOKUP($D110,'Finance Input'!$B$26:$D$37,2,0)/(VLOOKUP($D110,'Finance Input'!$B$26:$D$37,2,0)+WACC)),0)) -> 0 | BA116: =IF(BA115=0,0,IF(BA$49=End_Year,BA115*Tax_Rate*(VLOOKUP($D110,'Finance Input'!$B$26:$D$37,2,0)/(VLOOKUP($D110,'Finance Input'!$B$26:$D$37,2,0)+WACC)),0)) -> 0 | BB116: =IF(BB115=0,0,IF(BB$49=End_Year,BB115*Tax_Rate*(VLOOKUP($D110,'Finance Input'!$B$26:$D$37,2,0)/(VLOOKUP($D110,'Finance Input'!$B$26:$D$37,2,0)+WACC)),0)) -> 0 | BC116: =IF(BC115=0,0,IF(BC$49=End_Year,BC115*Tax_Rate*(VLOOKUP($D110,'Finance Input'!$B$26:$D$37,2,0)/(VLOOKUP($D110,'Finance Input'!$B$26:$D$37,2,0)+WACC)),0)) -> 0 | BD116: =IF(BD115=0,0,IF(BD$49=End_Year,BD115*Tax_Rate*(VLOOKUP($D110,'Finance Input'!$B$26:$D$37,2,0)/(VLOOKUP($D110,'Finance Input'!$B$26:$D$37,2,0)+WACC)),0)) -> 0 | BE116: =IF(BE115=0,0,IF(BE$49=End_Year,BE115*Tax_Rate*(VLOOKUP($D110,'Finance Input'!$B$26:$D$37,2,0)/(VLOOKUP($D110,'Finance Input'!$B$26:$D$37,2,0)+WACC)),0)) -> 0 | BF116: =IF(BF115=0,0,IF(BF$49=End_Year,BF115*Tax_Rate*(VLOOKUP($D110,'Finance Input'!$B$26:$D$37,2,0)/(VLOOKUP($D110,'Finance Input'!$B$26:$D$37,2,0)+WACC)),0)) -> 0 | BG116: =IF(BG115=0,0,IF(BG$49=End_Year,BG115*Tax_Rate*(VLOOKUP($D110,'Finance Input'!$B$26:$D$37,2,0)/(VLOOKUP($D110,'Finance Input'!$B$26:$D$37,2,0)+WACC)),0)) -> 0 | BH116: =IF(BH115=0,0,IF(BH$49=End_Year,BH115*Tax_Rate*(VLOOKUP($D110,'Finance Input'!$B$26:$D$37,2,0)/(VLOOKUP($D110,'Finance Input'!$B$26:$D$37,2,0)+WACC)),0)) -> 0 | BI116: =IF(BI115=0,0,IF(BI$49=End_Year,BI115*Tax_Rate*(VLOOKUP($D110,'Finance Input'!$B$26:$D$37,2,0)/(VLOOKUP($D110,'Finance Input'!$B$26:$D$37,2,0)+WACC)),0)) -> 0 | BJ116: =IF(BJ115=0,0,IF(BJ$49=End_Year,BJ115*Tax_Rate*(VLOOKUP($D110,'Finance Input'!$B$26:$D$37,2,0)/(VLOOKUP($D110,'Finance Input'!$B$26:$D$37,2,0)+WACC)),0)) -> 0 | BK116: =IF(BK115=0,0,IF(BK$49=End_Year,BK115*Tax_Rate*(VLOOKUP($D110,'Finance Input'!$B$26:$D$37,2,0)/(VLOOKUP($D110,'Finance Input'!$B$26:$D$37,2,0)+WACC)),0)) -> 0 | BL116: =IF(BL115=0,0,IF(BL$49=End_Year,BL115*Tax_Rate*(VLOOKUP($D110,'Finance Input'!$B$26:$D$37,2,0)/(VLOOKUP($D110,'Finance Input'!$B$26:$D$37,2,0)+WACC)),0)) -> 0 | BM116: =IF(BM115=0,0,IF(BM$49=End_Year,BM115*Tax_Rate*(VLOOKUP($D110,'Finance Input'!$B$26:$D$37,2,0)/(VLOOKUP($D110,'Finance Input'!$B$26:$D$37,2,0)+WACC)),0)) -> 0 | BN116: =IF(BN115=0,0,IF(BN$49=End_Year,BN115*Tax_Rate*(VLOOKUP($D110,'Finance Input'!$B$26:$D$37,2,0)/(VLOOKUP($D110,'Finance Input'!$B$26:$D$37,2,0)+WACC)),0)) -> 0 | BO116: =IF(BO115=0,0,IF(BO$49=End_Year,BO115*Tax_Rate*(VLOOKUP($D110,'Finance Input'!$B$26:$D$37,2,0)/(VLOOKUP($D110,'Finance Input'!$B$26:$D$37,2,0)+WACC)),0)) -> 0 | BP116: =IF(BP115=0,0,IF(BP$49=End_Year,BP115*Tax_Rate*(VLOOKUP($D110,'Finance Input'!$B$26:$D$37,2,0)/(VLOOKUP($D110,'Finance Input'!$B$26:$D$37,2,0)+WACC)),0)) -> 0 | BQ116: =IF(BQ115=0,0,IF(BQ$49=End_Year,BQ115*Tax_Rate*(VLOOKUP($D110,'Finance Input'!$B$26:$D$37,2,0)/(VLOOKUP($D110,'Finance Input'!$B$26:$D$37,2,0)+WACC)),0)) -> 0
